Workbook

Sheet Summary
C2: Lossy Compression | L2: =CONCATENATE("Encoder run times for ", I3) -> Encoder run times for BWC-1.0-ICC
C3: =CONCATENATE("Over ", $I$3) -> Over BWC-1.0-ICC | H3: Reference: | I3: BWC-1.0-ICC | M3: MIT (ECG) | N3: INCART (ECG) | O3: CHBMIT (EEG) | P3: NMR55 (EEG) | Q3: NMR57 (EEG) | R3: Ozdemir (EMG) | S3: All [hours] | T3: All [days]
C4: BD-PSNR1 | D4: BD-PSNR2 | E4: EncT | F4: DecT | H4: Tested: | I4: BWC-2.1-ICC | L4: Sum (Hours) | M4: ='MIT (ECG)'!I679 -> 3.44575 | N4: ='INCART (ECG)'!I1057 -> 24.318075 | O4: ='CHBMIT (EEG)'!I1456 -> 156.3504639 | P4: ='NMR55 (EEG)'!I2695 -> 691.5999167 | Q4: ='NMR57 (EEG)'!I637 -> 744.8829 | R4: ='Ozdemir (EMG)'!I865 -> 16.32134444 | S4: =SUM(M4:R4) -> 1636.91845 | T4: =S4/24 -> 68.20493542
B5: MIT (ECG) | C5: ='MIT (ECG)'!T677 -> -0.01140701012 | D5: ='MIT (ECG)'!U677 -> -0.01141821938 | E5: ='MIT (ECG)'!Q677 -> 0.9199822226 | F5: ='MIT (ECG)'!R677 -> 0.4319774937 | L5: Max (Hours) | M5: ='MIT (ECG)'!I680 -> 0.006280555556 | N5: ='INCART (ECG)'!I1058 -> 0.02899166667 | O5: ='CHBMIT (EEG)'!I1457 -> 0.3774916667 | P5: ='NMR55 (EEG)'!I2696 -> 0.8141 | Q5: ='NMR57 (EEG)'!I638 -> 3.048575 | R5: ='Ozdemir (EMG)'!I866 -> 0.02294444444 | S5: =MAX(M5,N5,O5,P5,Q5,R5) -> 3.048575 | T5: =S5/24 -> 0.1270239583
B6: INCART (ECG) | C6: ='INCART (ECG)'!T1055 -> -0.00491208191 | D6: ='INCART (ECG)'!U1055 -> -0.004795468803 | E6: ='CHBMIT (EEG)'!Q1453 -> 0.8537490171 | F6: ='CHBMIT (EEG)'!R1453 -> 0.9323768252
B7: CHBMIT (EEG) | C7: ='CHBMIT (EEG)'!T1454 -> 0.0005882455585 | D7: ='CHBMIT (EEG)'!U1454 -> 0.0008270055577 | E7: ='INCART (ECG)'!Q1055 -> 0.9111833658 | F7: ='CHBMIT (EEG)'!R1454 -> 0.9314742448
B8: NMR55 (EEG) | C8: ='NMR55 (EEG)'!T2693 -> -2.195149302e-05 | D8: ='NMR55 (EEG)'!U2693 -> 0.0001937012287 | E8: ='NMR55 (EEG)'!Q2693 -> 0.875001186 | F8: ='INCART (ECG)'!R1055 -> 0.4828674718 | L8: =CONCATENATE("Encoder run times for ", I4) -> Encoder run times for BWC-2.1-ICC
B9: NMR57 (EEG) | C9: ='NMR57 (EEG)'!T635 -> -0.0007529945559 | D9: ='NMR57 (EEG)'!U635 -> -0.0007191484965 | E9: ='NMR57 (EEG)'!Q635 -> 0.9012490458 | F9: ='NMR57 (EEG)'!R635 -> 0.7868795819 | M9: MIT (ECG) | N9: INCART (ECG) | O9: CHBMIT (EEG) | P9: NMR55 (EEG) | Q9: NMR57 (EEG) | R9: Ozdemir (EMG) | S9: All [hours] | T9: All [days]
B10: Ozdemir (EMG) | C10: ='Ozdemir (EMG)'!T863 -> -4.134391405e-05 | D10: ='Ozdemir (EMG)'!U863 -> -0.0001434470269 | E10: ='Ozdemir (EMG)'!Q863 -> 0.90953153 | F10: ='Ozdemir (EMG)'!R863 -> 0.8633053892 | H10: Note: BD-rate is computed using piece-wise cubic interpolation | L10: Sum | M10: ='MIT (ECG)'!P679 -> 3.168008333 | N10: ='INCART (ECG)'!P1057 -> 22.14716667 | O10: ='CHBMIT (EEG)'!P1456 -> 132.2430167 | P10: ='NMR55 (EEG)'!P2695 -> 596.6952556 | Q10: ='NMR57 (EEG)'!P637 -> 670.6187833 | R10: ='Ozdemir (EMG)'!P865 -> 14.83460833 | S10: =SUM(M10:R10) -> 1439.706839 | T10: =S10/24 -> 59.98778495
B11: Overall | C11: =AVERAGE(C5:C10) -> -0.002757856073 | D11: =AVERAGE(D5:D10) -> -0.002675929487 | E11: =AVERAGE(E5:E10) -> 0.8951160612 | F11: =AVERAGE(F5:F10) -> 0.7381468344 | L11: Max | M11: ='MIT (ECG)'!P680 -> 0.005652777778 | N11: ='INCART (ECG)'!P1058 -> 0.02598333333 | O11: ='CHBMIT (EEG)'!P1457 -> 0.3379527778 | P11: ='NMR55 (EEG)'!P2696 -> 0.4535194444 | Q11: ='NMR57 (EEG)'!P638 -> 2.752755556 | R11: ='Ozdemir (EMG)'!P866 -> 0.02058888889 | S11: =MAX(M11,N11,O11,P11,Q11,R11) -> 2.752755556 | T11: =S11/24 -> 0.1146981481
H13: Cluster information
C14: Lossless Compression | L14: =CONCATENATE("Encoder run times for ", I4, " over ", I3) -> Encoder run times for BWC-2.1-ICC over BWC-1.0-ICC
C15: =CONCATENATE("Over ", $I$3) -> Over BWC-1.0-ICC | H15: CPU type: | I15: AMD Epyc 7713 | M15: MIT (ECG) | N15: INCART (ECG) | O15: CHBMIT (EEG) | P15: NMR55 (EEG) | Q15: NMR57 (EEG) | R15: Ozdemir (EMG) | S15: All
C16: BR-R | D16: EncT | E16: DecT | L16: Average | M16: =E5 -> 0.9199822226 | N16: =E6 -> 0.8537490171 | O16: =E7 -> 0.9111833658 | P16: =E8 -> 0.875001186 | Q16: =E9 -> 0.9012490458 | R16: =E10 -> 0.90953153
B17: MIT (ECG) | C17: ='MIT (ECG)'!V675 -> -0.005334019081 | D17: ='MIT (ECG)'!Q675 -> 0.9138749399 | E17: ='MIT (ECG)'!R675 -> 0.5126280399 | H17: Hyperthreading: | I17: off | L17: Sum | M17: =M10/M4 -> 0.9193958741 | N17: 0.910728611 | O17: 0.8458114762 | P17: 0.8627751987 | Q17: 0.9003009511 | R17: 0.9089084777 | S17: 0.8795226414
B18: INCART (ECG) | C18: ='INCART (ECG)'!V1053 -> -0.001889981687 | D18: ='INCART (ECG)'!Q1053 -> 0.9064036082 | E18: ='INCART (ECG)'!R1053 -> 0.5636361358 | H18: Turbo mode: | I18: off | L18: Max | M18: 0.9000442282 | N18: 0.8962345502 | O18: 0.8952589093 | P18: 0.5570807572 | Q18: 0.902964682 | R18: 0.8973365617 | S18: 0.902964682
B19: CHBMIT (EEG) | C19: ='CHBMIT (EEG)'!V1452 -> 0.0009098554292 | D19: ='CHBMIT (EEG)'!Q1452 -> 0.8532188871 | E19: ='CHBMIT (EEG)'!R1452 -> 0.950613228
B20: NMR55 (EEG) | C20: ='NMR55 (EEG)'!V2691 -> -0.006442001261 | D20: ='NMR55 (EEG)'!Q2691 -> 0.877544647 | E20: ='NMR55 (EEG)'!R2691 -> 0.8024317256 | H20: Compiler: | I20: gcc 13.1.1
B21: NMR57 (EEG) | C21: ='NMR57 (EEG)'!V633 -> -0.002087473063 | D21: ='NMR57 (EEG)'!Q633 -> 0.9017981914 | E21: ='NMR57 (EEG)'!R633 -> 0.809625403
B22: Ozdemir (EMG) | C22: ='Ozdemir (EMG)'!V861 -> 7.712241247e-05 | D22: ='Ozdemir (EMG)'!Q861 -> 0.9022056001 | E22: ='Ozdemir (EMG)'!R861 -> 0.9582943677 | H22: OS: | I22: Rocky Linux 8.10
B23: Overall | C23: =AVERAGE(C17:C22) -> -0.002461082875 | D23: =AVERAGE(D17:D22) -> 0.8925076456 | E23: =AVERAGE(E17:E22) -> 0.7662048167
H24: Decoding options

Sheet MIT (ECG)
D1: Reference | K1: Tested | T1: BD-rate (piecewise cubic) | V1: Lossless
C2: StepSizeForQP | D2: BPS | E2: PSNR1 | F2: PSNR2 | G2: Enc T [s] | H2: Dec T [s] | I2: Enc T [h] | K2: BPS | L2: PSNR1 | M2: PSNR2 | N2: Enc T [s] | O2: Dec T [s] | P2: Enc T [h] | Q2: EncR | R2: DecR | T2: BD-PSNR1 | U2: BD-PSNR2 | V2: BR-R
A3: MIT | B3: 100.dat | C3: 1 | D3: 3.3601 | E3: 0 | F3: 0 | G3: 21.48 | H3: 0.37 | I3: =G3/3600 -> 0.005966666667 | K3: 3.3355 | L3: 0 | M3: 0 | N3: 19.73 | O3: 0.18 | P3: =N3/3600 -> 0.005480555556 | Q3: =N3/G3 -> 0.9185288641 | R3: =O3/H3 -> 0.4864864865 | V3: =($K3/$D3-1) -> -0.007321210678
A4: ECG | C4: 1.125 | D4: 3.2703 | E4: 110.6386873 | F4: 110.6409593 | G4: 19.68 | H4: 0.41 | I4: 0.005466666667 | K4: 3.2516 | L4: 110.7832212 | M4: 110.7870335 | N4: 18 | O4: 0.19 | P4: 0.005 | Q4: 0.9146341463 | R4: 0.4634146341 | T4: =bdrate($D4:$D16,E4:E16,$K4:$K16,L4:L16) -> -0.01596042509 | U4: =bdrate($D4:$D16,F4:F16,$K4:$K16,M4:M16) -> -0.015960877
C5: 1.5 | D5: 2.7718 | E5: 103.0264909 | F5: 103.0267141 | G5: 19.91 | H5: 0.43 | I5: 0.005530555556 | K5: 2.7618 | L5: 103.0873463 | M5: 103.0878359 | N5: 18.35 | O5: 0.22 | P5: 0.005097222222 | Q5: 0.9216474134 | R5: 0.511627907
C6: 2 | D6: 2.2153 | E6: 100.141425 | F6: 100.1421201 | G6: 19.78 | H6: 0.41 | I6: 0.005494444444 | K6: 2.198 | L6: 100.1475351 | M6: 100.1478503 | N6: 18.12 | O6: 0.19 | P6: 0.005033333333 | Q6: 0.9160768453 | R6: 0.4634146341
C7: 3 | D7: 1.3536 | E7: 96.26070362 | F7: 96.26094038 | G7: 19.36 | H7: 0.38 | I7: 0.005377777778 | K7: 1.3438 | L7: 96.27748221 | M7: 96.27781098 | N7: 17.94 | O7: 0.16 | P7: 0.004983333333 | Q7: 0.9266528926 | R7: 0.4210526316
C8: 4 | D8: 1.0286 | E8: 94.73566128 | F8: 94.73615543 | G8: 18.83 | H8: 0.36 | I8: 0.005230555556 | K8: 1.012 | L8: 94.72726976 | M8: 94.727801 | N8: 17.4 | O8: 0.15 | P8: 0.004833333333 | Q8: 0.9240573553 | R8: 0.4166666667
C9: 5.5 | D9: 0.7849 | E9: 93.14478273 | F9: 93.14532924 | G9: 17.91 | H9: 0.35 | I9: 0.004975 | K9: 0.7671 | L9: 93.13390047 | M9: 93.13458342 | N9: 16.61 | O9: 0.14 | P9: 0.004613888889 | Q9: 0.927414852 | R9: 0.4
C10: 7 | D10: 0.6159 | E10: 91.68729986 | F10: 91.68810205 | G10: 17.42 | H10: 0.35 | I10: 0.004838888889 | K10: 0.6011 | L10: 91.68928901 | M10: 91.69015029 | N10: 16.12 | O10: 0.13 | P10: 0.004477777778 | Q10: 0.9253731343 | R10: 0.3714285714
C11: 9 | D11: 0.4818 | E11: 90.23959912 | F11: 90.23967869 | G11: 17.19 | H11: 0.33 | I11: 0.004775 | K11: 0.4675 | L11: 90.26559439 | M11: 90.26567582 | N11: 15.94 | O11: 0.12 | P11: 0.004427777778 | Q11: 0.9272833042 | R11: 0.3636363636
C12: 11 | D12: 0.3917 | E12: 89.03098622 | F12: 89.03116758 | G12: 17.1 | H12: 0.32 | I12: 0.00475 | K12: 0.3802 | L12: 89.06112234 | M12: 89.06117818 | N12: 15.82 | O12: 0.12 | P12: 0.004394444444 | Q12: 0.9251461988 | R12: 0.375
C13: 13.5 | D13: 0.31 | E13: 87.65745732 | F13: 87.65747849 | G13: 16.98 | H13: 0.31 | I13: 0.004716666667 | K13: 0.2998 | L13: 87.67632156 | M13: 87.6763563 | N13: 15.76 | O13: 0.11 | P13: 0.004377777778 | Q13: 0.9281507656 | R13: 0.3548387097
C14: 16 | D14: 0.2535 | E14: 86.68414438 | F14: 86.68424278 | G14: 16.93 | H14: 0.3 | I14: 0.004702777778 | K14: 0.2486 | L14: 86.71903288 | M14: 86.71906328 | N14: 15.71 | O14: 0.11 | P14: 0.004363888889 | Q14: 0.9279385706 | R14: 0.3666666667
C15: 19 | D15: 0.218 | E15: 85.82723513 | F15: 85.82745948 | G15: 16.84 | H15: 0.28 | I15: 0.004677777778 | K15: 0.2127 | L15: 85.90591094 | M15: 85.90594172 | N15: 15.57 | O15: 0.1 | P15: 0.004325 | Q15: 0.924584323 | R15: 0.3571428571
C16: 22 | D16: 0.192 | E16: 84.97107914 | F16: 84.97132831 | G16: 16.75 | H16: 0.27 | I16: 0.004652777778 | K16: 0.1875 | L16: 85.12079876 | M16: 85.12099247 | N16: 15.55 | O16: 0.1 | P16: 0.004319444444 | Q16: 0.928358209 | R16: 0.3703703704
B17: 101.dat | C17: 1 | D17: 3.2183 | E17: 0 | F17: 0 | G17: 21.36 | H17: 0.34 | I17: 0.005933333333 | K17: 3.2018 | L17: 0 | M17: 0 | N17: 19.68 | O17: 0.18 | P17: 0.005466666667 | Q17: 0.9213483146 | R17: 0.5294117647 | V17: =($K17/$D17-1) -> -0.005126930367
C18: 1.125 | D18: 3.1405 | E18: 111.6485391 | F18: 111.9730509 | G18: 19.79 | H18: 0.38 | I18: 0.005497222222 | K18: 3.1261 | L18: 111.755792 | M18: 112.062819 | N18: 18.16 | O18: 0.18 | P18: 0.005044444444 | Q18: 0.9176351693 | R18: 0.4736842105 | T18: =bdrate($D18:$D30,E18:E30,$K18:$K30,L18:L30) -> -0.01201335594 | U18: =bdrate($D18:$D30,F18:F30,$K18:$K30,M18:M30) -> -0.01190570352
C19: 1.5 | D19: 2.6029 | E19: 102.9817 | F19: 102.983354 | G19: 20.05 | H19: 0.39 | I19: 0.005569444444 | K19: 2.5926 | L19: 102.9632443 | M19: 102.9667573 | N19: 18.32 | O19: 0.21 | P19: 0.005088888889 | Q19: 0.9137157107 | R19: 0.5384615385
C20: 2 | D20: 2.064 | E20: 100.1560231 | F20: 100.158577 | G20: 19.87 | H20: 0.37 | I20: 0.005519444444 | K20: 2.0495 | L20: 100.1471087 | M20: 100.1495042 | N20: 18.19 | O20: 0.18 | P20: 0.005052777778 | Q20: 0.9154504278 | R20: 0.4864864865
C21: 3 | D21: 1.2071 | E21: 96.23173619 | F21: 96.23263359 | G21: 19.43 | H21: 0.34 | I21: 0.005397222222 | K21: 1.2096 | L21: 96.2727062 | M21: 96.27349419 | N21: 17.94 | O21: 0.16 | P21: 0.004983333333 | Q21: 0.9233144622 | R21: 0.4705882353
C22: 4 | D22: 0.8801 | E22: 94.73212932 | F22: 94.73224992 | G22: 18.87 | H22: 0.32 | I22: 0.005241666667 | K22: 0.8673 | L22: 94.71452629 | M22: 94.71459952 | N22: 17.5 | O22: 0.14 | P22: 0.004861111111 | Q22: 0.9273979862 | R22: 0.4375
C23: 5.5 | D23: 0.6506 | E23: 93.26191179 | F23: 93.26320346 | G23: 17.86 | H23: 0.32 | I23: 0.004961111111 | K23: 0.6379 | L23: 93.23641351 | M23: 93.23738076 | N23: 16.42 | O23: 0.13 | P23: 0.004561111111 | Q23: 0.9193729003 | R23: 0.40625
C24: 7 | D24: 0.5065 | E24: 91.99609738 | F24: 92.00248869 | G24: 17.43 | H24: 0.32 | I24: 0.004841666667 | K24: 0.4973 | L24: 92.00957248 | M24: 92.01746764 | N24: 16.1 | O24: 0.12 | P24: 0.004472222222 | Q24: 0.9236947791 | R24: 0.375
C25: 9 | D25: 0.3973 | E25: 90.74843184 | F25: 90.76852976 | G25: 17.25 | H25: 0.31 | I25: 0.004791666667 | K25: 0.3864 | L25: 90.73644125 | M25: 90.75430251 | N25: 15.81 | O25: 0.11 | P25: 0.004391666667 | Q25: 0.9165217391 | R25: 0.3548387097
C26: 11 | D26: 0.3208 | E26: 89.57166843 | F26: 89.60017338 | G26: 17.22 | H26: 0.3 | I26: 0.004783333333 | K26: 0.3131 | L26: 89.62530196 | M26: 89.65071345 | N26: 15.92 | O26: 0.11 | P26: 0.004422222222 | Q26: 0.9245063879 | R26: 0.3666666667
C27: 13.5 | D27: 0.2525 | E27: 88.31997616 | F27: 88.35699958 | G27: 17.13 | H27: 0.28 | I27: 0.004758333333 | K27: 0.2462 | L27: 88.37603926 | M27: 88.42148133 | N27: 15.78 | O27: 0.1 | P27: 0.004383333333 | Q27: 0.9211908932 | R27: 0.3571428571
C28: 16 | D28: 0.2059 | E28: 87.45607595 | F28: 87.50731694 | G28: 16.99 | H28: 0.26 | I28: 0.004719444444 | K28: 0.202 | L28: 87.51368411 | M28: 87.56613871 | N28: 15.8 | O28: 0.1 | P28: 0.004388888889 | Q28: 0.9299587993 | R28: 0.3846153846
C29: 19 | D29: 0.1729 | E29: 86.62620966 | F29: 86.69280082 | G29: 16.82 | H29: 0.25 | I29: 0.004672222222 | K29: 0.171 | L29: 86.71859121 | M29: 86.78437916 | N29: 15.62 | O29: 0.1 | P29: 0.004338888889 | Q29: 0.9286563615 | R29: 0.4
C30: 22 | D30: 0.1519 | E30: 85.95386044 | F30: 86.04064246 | G30: 16.79 | H30: 0.23 | I30: 0.004663888889 | K30: 0.1495 | L30: 86.04278721 | M30: 86.128407 | N30: 15.56 | O30: 0.1 | P30: 0.004322222222 | Q30: 0.9267421084 | R30: 0.4347826087
B31: 102.dat | C31: 1 | D31: 3.5219 | E31: 0 | F31: 0 | G31: 21.52 | H31: 0.37 | I31: 0.005977777778 | K31: 3.4951 | L31: 0 | M31: 0 | N31: 19.81 | O31: 0.18 | P31: 0.005502777778 | Q31: 0.9205390335 | R31: 0.4864864865 | V31: =($K31/$D31-1) -> -0.007609528947
C32: 1.125 | D32: 3.4218 | E32: 109.4361485 | F32: 109.4550063 | G32: 19.8 | H32: 0.41 | I32: 0.0055 | K32: 3.4017 | L32: 109.6035189 | M32: 109.6201164 | N32: 18.25 | O32: 0.19 | P32: 0.005069444444 | Q32: 0.9217171717 | R32: 0.4634146341 | T32: =bdrate($D32:$D44,E32:E44,$K32:$K44,L32:L44) -> -0.01125111481 | U32: =bdrate($D32:$D44,F32:F44,$K32:$K44,M32:M44) -> -0.01121838358
C33: 1.5 | D33: 2.9723 | E33: 102.9928854 | F33: 102.9929519 | G33: 20.04 | H33: 0.45 | I33: 0.005566666667 | K33: 2.9659 | L33: 103.0713701 | M33: 103.0713801 | N33: 18.33 | O33: 0.23 | P33: 0.005091666667 | Q33: 0.9146706587 | R33: 0.5111111111
C34: 2 | D34: 2.407 | E34: 100.0895316 | F34: 100.0903694 | G34: 19.82 | H34: 0.41 | I34: 0.005505555556 | K34: 2.3799 | L34: 100.0473925 | M34: 100.0481098 | N34: 18.17 | O34: 0.19 | P34: 0.005047222222 | Q34: 0.9167507568 | R34: 0.4634146341
C35: 3 | D35: 1.5809 | E35: 96.32870798 | F35: 96.32982786 | G35: 19.52 | H35: 0.4 | I35: 0.005422222222 | K35: 1.5755 | L35: 96.35515227 | M35: 96.35631797 | N35: 18.07 | O35: 0.17 | P35: 0.005019444444 | Q35: 0.9257172131 | R35: 0.425
C36: 4 | D36: 1.2002 | E36: 94.56441398 | F36: 94.56680688 | G36: 19.06 | H36: 0.39 | I36: 0.005294444444 | K36: 1.185 | L36: 94.5561934 | M36: 94.55802011 | N36: 17.55 | O36: 0.16 | P36: 0.004875 | Q36: 0.9207764953 | R36: 0.4102564103
C37: 5.5 | D37: 0.9497 | E37: 92.94834138 | F37: 92.95170404 | G37: 18.3 | H37: 0.37 | I37: 0.005083333333 | K37: 0.9343 | L37: 92.93930902 | M37: 92.94263964 | N37: 16.76 | O37: 0.14 | P37: 0.004655555556 | Q37: 0.9158469945 | R37: 0.3783783784
C38: 7 | D38: 0.784 | E38: 91.50912194 | F38: 91.51198148 | G38: 17.83 | H38: 0.36 | I38: 0.004952777778 | K38: 0.7721 | L38: 91.51309977 | M38: 91.51544708 | N38: 16.35 | O38: 0.14 | P38: 0.004541666667 | Q38: 0.9169938306 | R38: 0.3888888889
C39: 9 | D39: 0.6446 | E39: 89.99436988 | F39: 89.99585313 | G39: 17.87 | H39: 0.35 | I39: 0.004963888889 | K39: 0.6324 | L39: 90.00371524 | M39: 90.00488575 | N39: 16.23 | O39: 0.13 | P39: 0.004508333333 | Q39: 0.9082260772 | R39: 0.3714285714
C40: 11 | D40: 0.5402 | E40: 88.64354505 | F40: 88.64483027 | G40: 17.43 | H40: 0.34 | I40: 0.004841666667 | K40: 0.531 | L40: 88.67598045 | M40: 88.67669055 | N40: 16.1 | O40: 0.13 | P40: 0.004472222222 | Q40: 0.9236947791 | R40: 0.3823529412
C41: 13.5 | D41: 0.4435 | E41: 87.27347556 | F41: 87.27391884 | G41: 17.39 | H41: 0.33 | I41: 0.004830555556 | K41: 0.4363 | L41: 87.2780792 | M41: 87.27835917 | N41: 15.88 | O41: 0.12 | P41: 0.004411111111 | Q41: 0.9131684876 | R41: 0.3636363636
C42: 16 | D42: 0.3759 | E42: 86.17165126 | F42: 86.17429414 | G42: 17.26 | H42: 0.32 | I42: 0.004794444444 | K42: 0.3718 | L42: 86.2133608 | M42: 86.21497218 | N42: 15.88 | O42: 0.12 | P42: 0.004411111111 | Q42: 0.9200463499 | R42: 0.375
C43: 19 | D43: 0.3302 | E43: 85.20467082 | F43: 85.20737967 | G43: 17.12 | H43: 0.31 | I43: 0.004755555556 | K43: 0.3255 | L43: 85.22974234 | M43: 85.23253153 | N43: 15.77 | O43: 0.11 | P43: 0.004380555556 | Q43: 0.9211448598 | R43: 0.3548387097
C44: 22 | D44: 0.2943 | E44: 84.30184538 | F44: 84.30381547 | G44: 16.98 | H44: 0.3 | I44: 0.004716666667 | K44: 0.292 | L44: 84.46359569 | M44: 84.46439089 | N44: 15.67 | O44: 0.11 | P44: 0.004352777778 | Q44: 0.9228504122 | R44: 0.3666666667
B45: 103.dat | C45: 1 | D45: 3.472 | E45: 0 | F45: 0 | G45: 21.65 | H45: 0.38 | I45: 0.006013888889 | K45: 3.4399 | L45: 0 | M45: 0 | N45: 19.71 | O45: 0.18 | P45: 0.005475 | Q45: 0.9103926097 | R45: 0.4736842105 | V45: =($K45/$D45-1) -> -0.009245391705
C46: 1.125 | D46: 3.3826 | E46: 110.0506564 | F46: 110.0716704 | G46: 19.92 | H46: 0.42 | I46: 0.005533333333 | K46: 3.357 | L46: 110.2437115 | M46: 110.2640107 | N46: 18.06 | O46: 0.19 | P46: 0.005016666667 | Q46: 0.906626506 | R46: 0.4523809524 | T46: =bdrate($D46:$D58,E46:E58,$K46:$K58,L46:L58) -> -0.02071710335 | U46: =bdrate($D46:$D58,F46:F58,$K46:$K58,M46:M58) -> -0.02065340785
C47: 1.5 | D47: 2.8648 | E47: 102.8514281 | F47: 102.855069 | G47: 20.14 | H47: 0.42 | I47: 0.005594444444 | K47: 2.8564 | L47: 103.0041309 | M47: 103.0049834 | N47: 18.43 | O47: 0.23 | P47: 0.005119444444 | Q47: 0.9150943396 | R47: 0.5476190476
C48: 2 | D48: 2.3439 | E48: 100.1642612 | F48: 100.1645574 | G48: 19.9 | H48: 0.41 | I48: 0.005527777778 | K48: 2.3197 | L48: 100.1785961 | M48: 100.1787819 | N48: 18.27 | O48: 0.19 | P48: 0.005075 | Q48: 0.9180904523 | R48: 0.4634146341
C49: 3 | D49: 1.494 | E49: 96.27504077 | F49: 96.27508417 | G49: 19.59 | H49: 0.4 | I49: 0.005441666667 | K49: 1.4805 | L49: 96.30806003 | M49: 96.30808464 | N49: 17.88 | O49: 0.17 | P49: 0.004966666667 | Q49: 0.9127105666 | R49: 0.425
C50: 4 | D50: 1.1345 | E50: 94.62501823 | F50: 94.62524575 | G50: 19.08 | H50: 0.37 | I50: 0.0053 | K50: 1.1078 | L50: 94.60183705 | M50: 94.60205992 | N50: 17.48 | O50: 0.15 | P50: 0.004855555556 | Q50: 0.9161425577 | R50: 0.4054054054
C51: 5.5 | D51: 0.8835 | E51: 93.04206131 | F51: 93.04207112 | G51: 18.09 | H51: 0.36 | I51: 0.005025 | K51: 0.8568 | L51: 93.03255698 | M51: 93.03257274 | N51: 16.5 | O51: 0.14 | P51: 0.004583333333 | Q51: 0.912106136 | R51: 0.3888888889
C52: 7 | D52: 0.7143 | E52: 91.63717461 | F52: 91.6372043 | G52: 17.58 | H52: 0.35 | I52: 0.004883333333 | K52: 0.6955 | L52: 91.68366578 | M52: 91.68366579 | N52: 16.14 | O52: 0.14 | P52: 0.004483333333 | Q52: 0.9180887372 | R52: 0.4
C53: 9 | D53: 0.5876 | E53: 90.2979892 | F53: 90.29803906 | G53: 17.4 | H53: 0.34 | I53: 0.004833333333 | K53: 0.5671 | L53: 90.33486819 | M53: 90.33487118 | N53: 15.93 | O53: 0.13 | P53: 0.004425 | Q53: 0.9155172414 | R53: 0.3823529412
C54: 11 | D54: 0.4941 | E54: 89.03241613 | F54: 89.03327888 | G54: 17.21 | H54: 0.33 | I54: 0.004780555556 | K54: 0.4791 | L54: 89.16572115 | M54: 89.16601691 | N54: 15.74 | O54: 0.12 | P54: 0.004372222222 | Q54: 0.9145845439 | R54: 0.3636363636
C55: 13.5 | D55: 0.4112 | E55: 87.72523614 | F55: 87.72587181 | G55: 17.12 | H55: 0.32 | I55: 0.004755555556 | K55: 0.3968 | L55: 87.76744422 | M55: 87.76747157 | N55: 15.77 | O55: 0.12 | P55: 0.004380555556 | Q55: 0.9211448598 | R55: 0.375
C56: 16 | D56: 0.3514 | E56: 86.70221079 | F56: 86.70383161 | G56: 17.05 | H56: 0.3 | I56: 0.004736111111 | K56: 0.3436 | L56: 86.78885567 | M56: 86.78980857 | N56: 15.66 | O56: 0.11 | P56: 0.00435 | Q56: 0.9184750733 | R56: 0.3666666667
C57: 19 | D57: 0.3089 | E57: 85.7345944 | F57: 85.73905226 | G57: 16.94 | H57: 0.29 | I57: 0.004705555556 | K57: 0.3045 | L57: 85.8958445 | M57: 85.89787051 | N57: 15.48 | O57: 0.11 | P57: 0.0043 | Q57: 0.9138134593 | R57: 0.3793103448
C58: 22 | D58: 0.278 | E58: 84.91542341 | F58: 84.92224413 | G58: 16.82 | H58: 0.28 | I58: 0.004672222222 | K58: 0.2737 | L58: 85.11217544 | M58: 85.11577452 | N58: 15.39 | O58: 0.1 | P58: 0.004275 | Q58: 0.9149821641 | R58: 0.3571428571
B59: 104.dat | C59: 1 | D59: 3.6236 | E59: 0 | F59: 0 | G59: 21.75 | H59: 0.38 | I59: 0.006041666667 | K59: 3.6007 | L59: 0 | M59: 0 | N59: 19.87 | O59: 0.19 | P59: 0.005519444444 | Q59: 0.9135632184 | R59: 0.5 | V59: =($K59/$D59-1) -> -0.006319682084
C60: 1.125 | D60: 3.5152 | E60: 109.27078 | F60: 109.2736078 | G60: 19.99 | H60: 0.42 | I60: 0.005552777778 | K60: 3.4956 | L60: 109.3897504 | M60: 109.3949064 | N60: 18.22 | O60: 0.2 | P60: 0.005061111111 | Q60: 0.9114557279 | R60: 0.4761904762 | T60: =bdrate($D60:$D72,E60:E72,$K60:$K72,L60:L72) -> -0.009747379715 | U60: =bdrate($D60:$D72,F60:F72,$K60:$K72,M60:M72) -> -0.009755595623
C61: 1.5 | D61: 2.9992 | E61: 102.5789375 | F61: 102.5795459 | G61: 20.2 | H61: 0.43 | I61: 0.005611111111 | K61: 2.9966 | L61: 102.674892 | M61: 102.6749097 | N61: 18.5 | O61: 0.23 | P61: 0.005138888889 | Q61: 0.9158415842 | R61: 0.5348837209
C62: 2 | D62: 2.4937 | E62: 100.0775688 | F62: 100.0785356 | G62: 19.99 | H62: 0.41 | I62: 0.005552777778 | K62: 2.4736 | L62: 100.0546315 | M62: 100.0550503 | N62: 18.28 | O62: 0.19 | P62: 0.005077777778 | Q62: 0.9144572286 | R62: 0.4634146341
C63: 3 | D63: 1.7549 | E63: 96.6409664 | F63: 96.64109677 | G63: 19.61 | H63: 0.41 | I63: 0.005447222222 | K63: 1.749 | L63: 96.66399942 | M63: 96.66399943 | N63: 18.05 | O63: 0.17 | P63: 0.005013888889 | Q63: 0.9204487506 | R63: 0.4146341463
C64: 4 | D64: 1.3113 | E64: 94.49130677 | F64: 94.49200103 | G64: 19.14 | H64: 0.39 | I64: 0.005316666667 | K64: 1.3006 | L64: 94.48852317 | M64: 94.48920685 | N64: 17.67 | O64: 0.16 | P64: 0.004908333333 | Q64: 0.9231974922 | R64: 0.4102564103
C65: 5.5 | D65: 1.0323 | E65: 92.75168618 | F65: 92.75199258 | G65: 18.35 | H65: 0.37 | I65: 0.005097222222 | K65: 1.0208 | L65: 92.73023888 | M65: 92.7304349 | N65: 16.97 | O65: 0.15 | P65: 0.004713888889 | Q65: 0.9247956403 | R65: 0.4054054054
C66: 7 | D66: 0.8561 | E66: 91.25315086 | F66: 91.2531776 | G66: 18 | H66: 0.36 | I66: 0.005 | K66: 0.845 | L66: 91.26264752 | M66: 91.26269696 | N66: 16.46 | O66: 0.14 | P66: 0.004572222222 | Q66: 0.9144444444 | R66: 0.3888888889
C67: 9 | D67: 0.7113 | E67: 89.7338306 | F67: 89.73390439 | G67: 17.73 | H67: 0.34 | I67: =G67/3600 -> 0.004925 | K67: 0.7013 | L67: 89.74768688 | M67: 89.74819841 | N67: 16.38 | O67: 0.13 | P67: =N67/3600 -> 0.00455 | Q67: =N67/G67 -> 0.923857868 | R67: =O67/H67 -> 0.3823529412
C68: 11 | D68: 0.6076 | E68: 88.37326967 | F68: 88.37329158 | G68: 17.6 | H68: 0.33 | I68: 0.004888888889 | K68: 0.5967 | L68: 88.4198335 | M68: 88.42074474 | N68: 16.32 | O68: 0.13 | P68: 0.004533333333 | Q68: 0.9272727273 | R68: 0.3939393939
C69: 13.5 | D69: 0.5088 | E69: 87.11655701 | F69: 87.11657137 | G69: 17.47 | H69: 0.33 | I69: 0.004852777778 | K69: 0.5029 | L69: 87.13407612 | M69: 87.13459208 | N69: 16.08 | O69: 0.12 | P69: 0.004466666667 | Q69: 0.9204350315 | R69: 0.3636363636
C70: 16 | D70: 0.4377 | E70: 85.96596801 | F70: 85.96603733 | G70: 17.41 | H70: 0.31 | I70: 0.004836111111 | K70: 0.4351 | L70: 86.01545911 | M70: 86.01619981 | N70: 16.06 | O70: 0.12 | P70: 0.004461111111 | Q70: 0.9224583573 | R70: 0.3870967742
C71: 19 | D71: 0.386 | E71: 84.95892787 | F71: 84.95919307 | G71: 17.27 | H71: 0.3 | I71: 0.004797222222 | K71: 0.3807 | L71: 85.01529711 | M71: 85.01562897 | N71: 15.9 | O71: 0.11 | P71: 0.004416666667 | Q71: 0.920671685 | R71: 0.3666666667
C72: 22 | D72: 0.3439 | E72: 84.12451223 | F72: 84.1245839 | G72: 17.08 | H72: 0.29 | I72: 0.004744444444 | K72: 0.3418 | L72: 84.25826007 | M72: 84.25976575 | N72: 15.82 | O72: 0.11 | P72: 0.004394444444 | Q72: 0.9262295082 | R72: 0.3793103448
B73: 105.dat | C73: 1 | D73: 3.6458 | E73: 0 | F73: 0 | G73: 21.65 | H73: 0.33 | I73: 0.006013888889 | K73: 3.6303 | L73: 0 | M73: 0 | N73: 19.96 | O73: 0.18 | P73: 0.005544444444 | Q73: 0.9219399538 | R73: 0.5454545455 | V73: =($K73/$D73-1) -> -0.004251467442
C74: 1.125 | D74: 3.5179 | E74: 108.5751586 | F74: 108.5859228 | G74: 19.91 | H74: 0.4 | I74: 0.005530555556 | K74: 3.508 | L74: 108.6713861 | M74: 108.6839286 | N74: 18.25 | O74: 0.2 | P74: 0.005069444444 | Q74: 0.9166248117 | R74: 0.5 | T74: =bdrate($D74:$D86,E74:E86,$K74:$K86,L74:L86) -> -0.008073379862 | U74: =bdrate($D74:$D86,F74:F86,$K74:$K86,M74:M86) -> -0.008090281987
C75: 1.5 | D75: 3.0615 | E75: 102.5722534 | F75: 102.5784059 | G75: 20.17 | H75: 0.38 | I75: 0.005602777778 | K75: 3.0474 | L75: 102.5525007 | M75: 102.5573969 | N75: 18.54 | O75: 0.23 | P75: 0.00515 | Q75: 0.9191869113 | R75: 0.6052631579
C76: 2 | D76: 2.5373 | E76: 99.94780866 | F76: 99.95069891 | G76: 19.92 | H76: 0.36 | I76: 0.005533333333 | K76: 2.5203 | L76: 99.92265617 | M76: 99.92377436 | N76: 18.4 | O76: 0.19 | P76: 0.005111111111 | Q76: 0.9236947791 | R76: 0.5277777778
C77: 3 | D77: 1.7179 | E77: 96.28535363 | F77: 96.28535363 | G77: 19.56 | H77: 0.36 | I77: 0.005433333333 | K77: 1.7157 | L77: 96.31244592 | M77: 96.31244628 | N77: 18.14 | O77: 0.17 | P77: 0.005038888889 | Q77: 0.927402863 | R77: 0.4722222222
C78: 4 | D78: 1.3631 | E78: 94.70663975 | F78: 94.70717134 | G78: 19.06 | H78: 0.32 | I78: 0.005294444444 | K78: 1.3515 | L78: 94.69586609 | M78: 94.69658987 | N78: 17.71 | O78: 0.16 | P78: 0.004919444444 | Q78: 0.9291710388 | R78: 0.5
C79: 5.5 | D79: 1.1137 | E79: 93.2300594 | F79: 93.23035928 | G79: 18.15 | H79: 0.31 | I79: 0.005041666667 | K79: 1.1021 | L79: 93.206927 | M79: 93.20719987 | N79: 16.79 | O79: 0.15 | P79: 0.004663888889 | Q79: 0.9250688705 | R79: 0.4838709677
C80: 7 | D80: 0.9259 | E80: 91.74197249 | F80: 91.74212641 | G80: 17.63 | H80: 0.3 | I80: 0.004897222222 | K80: 0.916 | L80: 91.73661358 | M80: 91.73677803 | N80: 16.29 | O80: 0.14 | P80: 0.004525 | Q80: 0.9239931934 | R80: 0.4666666667
C81: 9 | D81: 0.7584 | E81: 90.1505 | F81: 90.15052495 | G81: 17.57 | H81: 0.3 | I81: 0.004880555556 | K81: 0.7462 | L81: 90.14548646 | M81: 90.14548653 | N81: 16.08 | O81: 0.13 | P81: 0.004466666667 | Q81: 0.9151963574 | R81: 0.4333333333
C82: 11 | D82: 0.6264 | E82: 88.7237004 | F82: 88.72434786 | G82: 17.37 | H82: 0.3 | I82: 0.004825 | K82: 0.6157 | L82: 88.733781 | M82: 88.73488598 | N82: 15.91 | O82: 0.13 | P82: 0.004419444444 | Q82: 0.9159470351 | R82: 0.4333333333
C83: 13.5 | D83: 0.5087 | E83: 87.26212254 | F83: 87.2632219 | G83: 17.25 | H83: 0.29 | I83: 0.004791666667 | K83: 0.5016 | L83: 87.26941836 | M83: 87.27179505 | N83: 15.91 | O83: 0.12 | P83: 0.004419444444 | Q83: 0.9223188406 | R83: 0.4137931034
C84: 16 | D84: 0.4198 | E84: 86.08260768 | F84: 86.08658715 | G84: 17.12 | H84: 0.28 | I84: 0.004755555556 | K84: 0.4196 | L84: 86.15141473 | M84: 86.15714484 | N84: 15.78 | O84: 0.12 | P84: 0.004383333333 | Q84: 0.921728972 | R84: 0.4285714286
C85: 19 | D85: 0.3629 | E85: 85.1425433 | F85: 85.14997576 | G85: 17.07 | H85: 0.28 | I85: 0.004741666667 | K85: 0.3624 | L85: 85.24360093 | M85: 85.25315719 | N85: 15.75 | O85: 0.11 | P85: 0.004375 | Q85: 0.9226713533 | R85: 0.3928571429
C86: 22 | D86: 0.3192 | E86: 84.2759274 | F86: 84.28592971 | G86: 16.92 | H86: 0.27 | I86: 0.0047 | K86: 0.3178 | L86: 84.37925557 | M86: 84.39180711 | N86: 15.59 | O86: 0.11 | P86: 0.004330555556 | Q86: 0.9213947991 | R86: 0.4074074074
B87: 106.dat | C87: 1 | D87: 3.7532 | E87: 0 | F87: 0 | G87: 22 | H87: 0.36 | I87: 0.006111111111 | K87: 3.7402 | L87: 0 | M87: 0 | N87: 19.97 | O87: 0.19 | P87: 0.005547222222 | Q87: 0.9077272727 | R87: 0.5277777778 | V87: =($K87/$D87-1) -> -0.003463710967
C88: 1.125 | D88: 3.6175 | E88: 108.1669491 | F88: 108.1732178 | G88: 20.09 | H88: 0.41 | I88: 0.005580555556 | K88: 3.6075 | L88: 108.1823753 | M88: 108.1873723 | N88: 18.26 | O88: 0.2 | P88: 0.005072222222 | Q88: 0.9089099054 | R88: 0.487804878 | T88: =bdrate($D88:$D100,E88:E100,$K88:$K100,L88:L100) -> -0.004878150736 | U88: =bdrate($D88:$D100,F88:F100,$K88:$K100,M88:M100) -> -0.004870809688
C89: 1.5 | D89: 3.1531 | E89: 102.432865 | F89: 102.4328817 | G89: 20.36 | H89: 0.38 | I89: 0.005655555556 | K89: 3.1529 | L89: 102.4870836 | M89: 102.4871446 | N89: 18.57 | O89: 0.24 | P89: 0.005158333333 | Q89: 0.9120825147 | R89: 0.6315789474
C90: 2 | D90: 2.6526 | E90: 99.95276745 | F90: 99.9527787 | G90: 20.14 | H90: 0.37 | I90: 0.005594444444 | K90: 2.6434 | L90: 99.95971158 | M90: 99.96021653 | N90: 18.47 | O90: 0.2 | P90: 0.005130555556 | Q90: 0.9170804369 | R90: 0.5405405405
C91: 3 | D91: 1.8792 | E91: 96.42980821 | F91: 96.43754722 | G91: 19.79 | H91: 0.36 | I91: 0.005497222222 | K91: 1.8952 | L91: 96.50839339 | M91: 96.51593288 | N91: 18.2 | O91: 0.17 | P91: 0.005055555556 | Q91: 0.9196563921 | R91: 0.4722222222
C92: 4 | D92: 1.443 | E92: 94.49067686 | F92: 94.49488038 | G92: 19.38 | H92: 0.34 | I92: 0.005383333333 | K92: 1.4344 | L92: 94.47230098 | M92: 94.47594725 | N92: 17.91 | O92: 0.16 | P92: 0.004975 | Q92: 0.9241486068 | R92: 0.4705882353
C93: 5.5 | D93: 1.1688 | E93: 92.9452238 | F93: 92.95158306 | G93: 18.46 | H93: 0.33 | I93: 0.005127777778 | K93: 1.1626 | L93: 92.93698237 | M93: 92.94292897 | N93: 16.97 | O93: 0.15 | P93: 0.004713888889 | Q93: 0.9192849404 | R93: 0.4545454545
C94: 7 | D94: 0.9727 | E94: 91.54593896 | F94: 91.5516834 | G94: 17.79 | H94: 0.32 | I94: 0.004941666667 | K94: 0.9664 | L94: 91.54078094 | M94: 91.54694612 | N94: 16.46 | O94: 0.14 | P94: 0.004572222222 | Q94: 0.9252388983 | R94: 0.4375
C95: 9 | D95: 0.8134 | E95: 90.12178225 | F95: 90.12805278 | G95: 17.55 | H95: 0.35 | I95: 0.004875 | K95: 0.8065 | L95: 90.12296768 | M95: 90.12869388 | N95: 16.13 | O95: 0.14 | P95: 0.004480555556 | Q95: 0.9190883191 | R95: 0.4
C96: 11 | D96: 0.6927 | E96: 88.83431388 | F96: 88.84093106 | G96: 17.42 | H96: 0.32 | I96: 0.004838888889 | K96: 0.6852 | L96: 88.84085753 | M96: 88.84702151 | N96: 15.94 | O96: 0.13 | P96: 0.004427777778 | Q96: 0.9150401837 | R96: 0.40625
C97: 13.5 | D97: 0.586 | E97: 87.54018214 | F97: 87.54519853 | G97: 17.37 | H97: 0.31 | I97: 0.004825 | K97: 0.5804 | L97: 87.53816333 | M97: 87.54359421 | N97: 15.86 | O97: 0.13 | P97: 0.004405555556 | Q97: 0.9130685089 | R97: 0.4193548387
C98: 16 | D98: 0.5014 | E98: 86.29204945 | F98: 86.29536982 | G98: 17.29 | H98: 0.3 | I98: 0.004802777778 | K98: 0.497 | L98: 86.29704868 | M98: 86.29998649 | N98: 15.87 | O98: 0.12 | P98: 0.004408333333 | Q98: 0.9178716021 | R98: 0.4
C99: 19 | D99: 0.4208 | E99: 85.04772463 | F99: 85.04926771 | G99: 17.26 | H99: 0.28 | I99: 0.004794444444 | K99: 0.4162 | L99: 85.02970034 | M99: 85.03190039 | N99: 15.91 | O99: 0.12 | P99: 0.004419444444 | Q99: 0.9217844728 | R99: 0.4285714286
C100: 22 | D100: 0.3588 | E100: 84.04180127 | F100: 84.04689723 | G100: 17.18 | H100: 0.28 | I100: 0.004772222222 | K100: 0.3578 | L100: 84.08296105 | M100: 84.08747595 | N100: 15.79 | O100: 0.11 | P100: 0.004386111111 | Q100: 0.9190919674 | R100: 0.3928571429
B101: 107.dat | C101: 1 | D101: 3.9893 | E101: 0 | F101: 0 | G101: 22.04 | H101: 0.39 | I101: 0.006122222222 | K101: 3.9777 | L101: 0 | M101: 0 | N101: 20.11 | O101: 0.2 | P101: 0.005586111111 | Q101: 0.9124319419 | R101: 0.5128205128 | V101: =($K101/$D101-1) -> -0.002907778307
C102: 1.125 | D102: 3.8252 | E102: 107.3301426 | F102: 107.3316077 | G102: 20.22 | H102: 0.42 | I102: 0.005616666667 | K102: 3.8191 | L102: 107.3834133 | M102: 107.3856198 | N102: 18.34 | O102: 0.21 | P102: 0.005094444444 | Q102: 0.9070227498 | R102: 0.5 | T102: =bdrate($D102:$D114,E102:E114,$K102:$K114,L102:L114) -> -0.002207437514 | U102: =bdrate($D102:$D114,F102:F114,$K102:$K114,M102:M114) -> -0.002260439633
C103: 1.5 | D103: 3.3329 | E103: 101.7652163 | F103: 101.775484 | G103: 20.44 | H103: 0.41 | I103: 0.005677777778 | K103: 3.3473 | L103: 101.8910966 | M103: 101.9065843 | N103: 18.74 | O103: 0.23 | P103: 0.005205555556 | Q103: 0.9168297456 | R103: 0.5609756098
C104: 2 | D104: 2.8907 | E104: 99.75968212 | F104: 99.76020448 | G104: 20.2 | H104: 0.39 | I104: 0.005611111111 | K104: 2.8831 | L104: 99.77149293 | M104: 99.77227178 | N104: 18.55 | O104: 0.19 | P104: 0.005152777778 | Q104: 0.9183168317 | R104: 0.4871794872
C105: 3 | D105: 2.2022 | E105: 96.72515764 | F105: 96.72580603 | G105: 19.9 | H105: 0.4 | I105: 0.005527777778 | K105: 2.2177 | L105: 96.80928595 | M105: 96.81028581 | N105: 18.29 | O105: 0.18 | P105: 0.005080555556 | Q105: 0.9190954774 | R105: 0.45
C106: 4 | D106: 1.7262 | E106: 94.53967714 | F106: 94.539817 | G106: 19.42 | H106: 0.4 | I106: 0.005394444444 | K106: 1.7241 | L106: 94.54453264 | M106: 94.54483603 | N106: 17.89 | O106: 0.18 | P106: 0.004969444444 | Q106: 0.921215242 | R106: 0.45
C107: 5.5 | D107: 1.4541 | E107: 92.95202281 | F107: 92.9528499 | G107: 18.57 | H107: 0.38 | I107: 0.005158333333 | K107: 1.4518 | L107: 92.94026544 | M107: 92.94095785 | N107: 17.06 | O107: 0.17 | P107: 0.004738888889 | Q107: 0.9186860528 | R107: 0.4473684211
C108: 7 | D108: 1.2543 | E108: 91.4732825 | F108: 91.47459622 | G108: 18.05 | H108: 0.37 | I108: 0.005013888889 | K108: 1.2503 | L108: 91.47055621 | M108: 91.47195643 | N108: 16.61 | O108: 0.16 | P108: 0.004613888889 | Q108: 0.9202216066 | R108: 0.4324324324
C109: 9 | D109: 1.0791 | E109: 89.9260287 | F109: 89.9276815 | G109: 17.81 | H109: 0.38 | I109: 0.004947222222 | K109: 1.0736 | L109: 89.90672009 | M109: 89.90850074 | N109: 16.44 | O109: 0.15 | P109: 0.004566666667 | Q109: 0.9230769231 | R109: 0.3947368421
C110: 11 | D110: 0.9369 | E110: 88.50446163 | F110: 88.50612783 | G110: 17.66 | H110: 0.36 | I110: 0.004905555556 | K110: 0.9315 | L110: 88.47926947 | M110: 88.48132144 | N110: 16.17 | O110: 0.14 | P110: 0.004491666667 | Q110: 0.9156285391 | R110: 0.3888888889
C111: 13.5 | D111: 0.8015 | E111: 86.98589698 | F111: 86.98780867 | G111: 17.47 | H111: 0.35 | I111: 0.004852777778 | K111: 0.7986 | L111: 86.98024195 | M111: 86.98284342 | N111: 16.18 | O111: 0.14 | P111: 0.004494444444 | Q111: 0.9261591299 | R111: 0.4
C112: 16 | D112: 0.6899 | E112: 85.69539252 | F112: 85.6958325 | G112: 17.4 | H112: 0.35 | I112: 0.004833333333 | K112: 0.6884 | L112: 85.68898036 | M112: 85.68987203 | N112: 16.01 | O112: 0.13 | P112: 0.004447222222 | Q112: 0.9201149425 | R112: 0.3714285714
C113: 19 | D113: 0.5962 | E113: 84.5297831 | F113: 84.53001492 | G113: 17.27 | H113: 0.34 | I113: 0.004797222222 | K113: 0.5952 | L113: 84.52826 | M113: 84.52848373 | N113: 15.92 | O113: 0.13 | P113: 0.004422222222 | Q113: 0.9218297626 | R113: 0.3823529412
C114: 22 | D114: 0.5258 | E114: 83.47892548 | F114: 83.47912417 | G114: 17.19 | H114: 0.34 | I114: 0.004775 | K114: 0.5259 | L114: 83.50549938 | M114: 83.50567929 | N114: 15.81 | O114: 0.12 | P114: 0.004391666667 | Q114: 0.9197207679 | R114: 0.3529411765
B115: 108.dat | C115: 1 | D115: 3.8156 | E115: 0 | F115: 0 | G115: 21.87 | H115: 0.34 | I115: 0.006075 | K115: 3.8143 | L115: 0 | M115: 0 | N115: 20.05 | O115: 0.19 | P115: 0.005569444444 | Q115: 0.9167809785 | R115: 0.5588235294 | V115: =($K115/$D115-1) -> -0.000340706573
C116: 1.125 | D116: 3.6813 | E116: 108.1174157 | F116: 108.1174166 | G116: 20.03 | H116: 0.39 | I116: 0.005563888889 | K116: 3.6802 | L116: 108.1580859 | M116: 108.1581202 | N116: 18.33 | O116: 0.2 | P116: 0.005091666667 | Q116: 0.915127309 | R116: 0.5128205128 | T116: =bdrate($D116:$D128,E116:E128,$K116:$K128,L116:L128) -> -0.001805622539 | U116: =bdrate($D116:$D128,F116:F128,$K116:$K128,M116:M128) -> -0.001813928223
C117: 1.5 | D117: 3.1865 | E117: 102.1370916 | F117: 102.1371134 | G117: 20.32 | H117: 0.36 | I117: 0.005644444444 | K117: 3.2024 | L117: 102.2588362 | M117: 102.2590427 | N117: 18.62 | O117: 0.24 | P117: 0.005172222222 | Q117: 0.9163385827 | R117: 0.6666666667
C118: 2 | D118: 2.7052 | E118: 99.84005617 | F118: 99.84077551 | G118: 20.12 | H118: 0.36 | I118: 0.005588888889 | K118: 2.7098 | L118: 99.88539161 | M118: 99.88624139 | N118: 18.52 | O118: 0.2 | P118: 0.005144444444 | Q118: 0.9204771372 | R118: 0.5555555556
C119: 3 | D119: 1.9533 | E119: 96.50533869 | F119: 96.50600621 | G119: 19.66 | H119: 0.35 | I119: 0.005461111111 | K119: 1.96 | L119: 96.54069631 | M119: 96.54101716 | N119: 18.26 | O119: 0.18 | P119: 0.005072222222 | Q119: 0.9287894201 | R119: 0.5142857143
C120: 4 | D120: 1.5527 | E120: 94.66283978 | F120: 94.66342652 | G120: 19.17 | H120: 0.33 | I120: 0.005325 | K120: 1.5465 | L120: 94.65947794 | M120: 94.660059 | N120: 17.75 | O120: 0.16 | P120: 0.004930555556 | Q120: 0.9259259259 | R120: 0.4848484848
C121: 5.5 | D121: 1.2796 | E121: 93.09404501 | F121: 93.09413705 | G121: 18.32 | H121: 0.32 | I121: 0.005088888889 | K121: 1.2769 | L121: 93.0968302 | M121: 93.09688175 | N121: 16.96 | O121: 0.15 | P121: 0.004711111111 | Q121: 0.9257641921 | R121: 0.46875
C122: 7 | D122: 1.0794 | E122: 91.64341567 | F122: 91.64349062 | G122: 17.82 | H122: 0.31 | I122: 0.00495 | K122: 1.0771 | L122: 91.65949924 | M122: 91.65972081 | N122: 16.44 | O122: 0.15 | P122: 0.004566666667 | Q122: 0.9225589226 | R122: 0.4838709677
C123: 9 | D123: 0.9122 | E123: 90.17400249 | F123: 90.17453783 | G123: 17.56 | H123: 0.31 | I123: 0.004877777778 | K123: 0.9108 | L123: 90.18794813 | M123: 90.18896419 | N123: 16.29 | O123: 0.14 | P123: 0.004525 | Q123: 0.9276765376 | R123: 0.4516129032
C124: 11 | D124: 0.7799 | E124: 88.81747088 | F124: 88.81794726 | G124: 17.42 | H124: 0.31 | I124: 0.004838888889 | K124: 0.7773 | L124: 88.80312328 | M124: 88.80401861 | N124: 16.07 | O124: 0.13 | P124: 0.004463888889 | Q124: 0.9225028703 | R124: 0.4193548387
C125: 13.5 | D125: 0.6569 | E125: 87.37205791 | F125: 87.37222476 | G125: 17.35 | H125: 0.29 | I125: 0.004819444444 | K125: 0.657 | L125: 87.38243765 | M125: 87.3827749 | N125: 16.01 | O125: 0.13 | P125: 0.004447222222 | Q125: 0.9227665706 | R125: 0.4482758621
C126: 16 | D126: 0.5638 | E126: 86.21339105 | F126: 86.21431093 | G126: 17.25 | H126: 0.28 | I126: 0.004791666667 | K126: 0.5646 | L126: 86.25386948 | M126: 86.25500996 | N126: 16.01 | O126: 0.12 | P126: 0.004447222222 | Q126: 0.928115942 | R126: 0.4285714286
C127: 19 | D127: 0.4854 | E127: 85.1522448 | F127: 85.15402413 | G127: 17.14 | H127: 0.27 | I127: 0.004761111111 | K127: 0.4852 | L127: 85.15916387 | M127: 85.16075386 | N127: 15.92 | O127: 0.12 | P127: 0.004422222222 | Q127: 0.9288214702 | R127: 0.4444444444
C128: 22 | D128: 0.4231 | E128: 84.17634611 | F128: 84.1779433 | G128: 17.01 | H128: 0.27 | I128: 0.004725 | K128: 0.4236 | L128: 84.20199366 | M128: 84.20442646 | N128: 15.84 | O128: 0.11 | P128: 0.0044 | Q128: 0.9312169312 | R128: 0.4074074074
B129: 109.dat | C129: 1 | D129: 3.3351 | E129: 0 | F129: 0 | G129: 21.54 | H129: 0.36 | I129: 0.005983333333 | K129: 3.2987 | L129: 0 | M129: 0 | N129: 19.7 | O129: 0.18 | P129: 0.005472222222 | Q129: 0.9145775302 | R129: 0.5 | V129: =($K129/$D129-1) -> -0.01091421547
C130: 1.125 | D130: 3.2488 | E130: 110.6153279 | F130: 110.6827221 | G130: 19.89 | H130: 0.4 | I130: 0.005525 | K130: 3.2179 | L130: 110.9141666 | M130: 111.0041113 | N130: 18.26 | O130: 0.19 | P130: 0.005072222222 | Q130: 0.918049271 | R130: 0.475 | T130: =bdrate($D130:$D142,E130:E142,$K130:$K142,L130:L142) -> -0.02849868928 | U130: =bdrate($D130:$D142,F130:F142,$K130:$K142,M130:M142) -> -0.02867019227
C131: 1.5 | D131: 2.7202 | E131: 102.8920122 | F131: 102.8922459 | G131: 20.09 | H131: 0.43 | I131: =G131/3600 -> 0.005580555556 | K131: 2.6993 | L131: 103.0494688 | M131: 103.0498421 | N131: 18.43 | O131: 0.22 | P131: =N131/3600 -> 0.005119444444 | Q131: =N131/G131 -> 0.9173718268 | R131: =O131/H131 -> 0.511627907
C132: 2 | D132: 2.2211 | E132: 100.2978834 | F132: 100.2989061 | G132: 19.77 | H132: 0.44 | I132: 0.005491666667 | K132: 2.1911 | L132: 100.3199353 | M132: 100.3209393 | N132: 18.24 | O132: 0.19 | P132: 0.005066666667 | Q132: 0.9226100152 | R132: 0.4318181818
C133: 3 | D133: 1.3595 | E133: 96.29306049 | F133: 96.29322787 | G133: 19.4 | H133: 0.4 | I133: 0.005388888889 | K133: 1.3411 | L133: 96.34854538 | M133: 96.34876502 | N133: 17.93 | O133: 0.17 | P133: 0.004980555556 | Q133: 0.9242268041 | R133: 0.425
C134: 4 | D134: 0.9861 | E134: 94.5778796 | F134: 94.57853219 | G134: 18.89 | H134: 0.37 | I134: 0.005247222222 | K134: 0.9588 | L134: 94.57822771 | M134: 94.5790354 | N134: 17.42 | O134: 0.14 | P134: 0.004838888889 | Q134: 0.9221810482 | R134: 0.3783783784
C135: 5.5 | D135: 0.7477 | E135: 93.04873443 | F135: 93.04943536 | G135: 17.92 | H135: 0.35 | I135: 0.004977777778 | K135: 0.7225 | L135: 93.08948723 | M135: 93.08955936 | N135: 16.56 | O135: 0.13 | P135: 0.0046 | Q135: 0.9241071429 | R135: 0.3714285714
C136: 7 | D136: 0.6034 | E136: 91.74134305 | F136: 91.74136145 | G136: 17.4 | H136: 0.33 | I136: 0.004833333333 | K136: 0.5829 | L136: 91.84274306 | M136: 91.84394446 | N136: 16.01 | O136: 0.13 | P136: 0.004447222222 | Q136: 0.9201149425 | R136: 0.3939393939
C137: 9 | D137: 0.4922 | E137: 90.43860039 | F137: 90.43954365 | G137: 17.18 | H137: 0.32 | I137: 0.004772222222 | K137: 0.4768 | L137: 90.58438129 | M137: 90.58955934 | N137: 15.89 | O137: 0.12 | P137: 0.004413888889 | Q137: 0.9249126892 | R137: 0.375
C138: 11 | D138: 0.4163 | E138: 89.20471393 | F138: 89.2056081 | G138: 17.05 | H138: 0.32 | I138: 0.004736111111 | K138: 0.4022 | L138: 89.38994767 | M138: 89.39611727 | N138: 15.71 | O138: 0.12 | P138: 0.004363888889 | Q138: 0.9214076246 | R138: 0.375
C139: 13.5 | D139: 0.3426 | E139: 87.72589529 | F139: 87.72608106 | G139: 16.99 | H139: 0.32 | I139: 0.004719444444 | K139: 0.3291 | L139: 87.85753592 | M139: 87.85879029 | N139: 15.73 | O139: 0.11 | P139: 0.004369444444 | Q139: 0.9258387287 | R139: 0.34375
C140: 16 | D140: 0.2917 | E140: 86.70692104 | F140: 86.70714705 | G140: 16.97 | H140: 0.31 | I140: 0.004713888889 | K140: 0.2852 | L140: 86.901216 | M140: 86.91126305 | N140: 15.72 | O140: 0.11 | P140: 0.004366666667 | Q140: 0.9263406011 | R140: 0.3548387097
C141: 19 | D141: 0.2561 | E141: 85.65094693 | F141: 85.65099413 | G141: 16.87 | H141: 0.29 | I141: 0.004686111111 | K141: 0.2517 | L141: 85.88877239 | M141: 85.8978969 | N141: 15.62 | O141: 0.11 | P141: 0.004338888889 | Q141: 0.9259039715 | R141: 0.3793103448
C142: 22 | D142: 0.2308 | E142: 84.79898277 | F142: 84.79962296 | G142: 16.72 | H142: 0.28 | I142: 0.004644444444 | K142: 0.2254 | L142: 85.06553268 | M142: 85.07655829 | N142: 15.49 | O142: 0.11 | P142: 0.004302777778 | Q142: 0.9264354067 | R142: 0.3928571429
B143: 111.dat | C143: 1 | D143: 3.4662 | E143: 0 | F143: 0 | G143: 21.67 | H143: 0.36 | I143: 0.006019444444 | K143: 3.4369 | L143: 0 | M143: 0 | N143: 19.86 | O143: 0.18 | P143: 0.005516666667 | Q143: 0.9164743886 | R143: 0.5 | V143: =($K143/$D143-1) -> -0.008453060989
C144: 1.125 | D144: 3.3585 | E144: 109.4596379 | F144: 109.490755 | G144: 19.87 | H144: 0.4 | I144: 0.005519444444 | K144: 3.3361 | L144: 109.6608936 | M144: 109.700601 | N144: 18.08 | O144: 0.19 | P144: 0.005022222222 | Q144: 0.9099144439 | R144: 0.475 | T144: =bdrate($D144:$D156,E144:E156,$K144:$K156,L144:L156) -> -0.01951480261 | U144: =bdrate($D144:$D156,F144:F156,$K144:$K156,M144:M156) -> -0.01954838752
C145: 1.5 | D145: 2.8715 | E145: 102.6443481 | F145: 102.6479063 | G145: 20.12 | H145: 0.42 | I145: 0.005588888889 | K145: 2.8479 | L145: 102.6211075 | M145: 102.622407 | N145: 18.44 | O145: 0.22 | P145: 0.005122222222 | Q145: 0.916500994 | R145: 0.5238095238
C146: 2 | D146: 2.3584 | E146: 100.093312 | F146: 100.0933137 | G146: 19.86 | H146: 0.4 | I146: 0.005516666667 | K146: 2.3363 | L146: 100.1021802 | M146: 100.1021804 | N146: 18.34 | O146: 0.19 | P146: 0.005094444444 | Q146: 0.9234642497 | R146: 0.475
C147: 3 | D147: 1.4876 | E147: 96.11943747 | F147: 96.11949902 | G147: 19.56 | H147: 0.38 | I147: 0.005433333333 | K147: 1.4704 | L147: 96.13184678 | M147: 96.13317346 | N147: 18.05 | O147: 0.17 | P147: 0.005013888889 | Q147: 0.922801636 | R147: 0.4473684211
C148: 4 | D148: 1.1266 | E148: 94.57570231 | F148: 94.57647284 | G148: 19.11 | H148: 0.35 | I148: 0.005308333333 | K148: 1.0996 | L148: 94.55827874 | M148: 94.55882067 | N148: 17.61 | O148: 0.15 | P148: 0.004891666667 | Q148: 0.9215070644 | R148: 0.4285714286
C149: 5.5 | D149: 0.8885 | E149: 93.15583869 | F149: 93.1558639 | G149: 18.02 | H149: 0.33 | I149: 0.005005555556 | K149: 0.8658 | L149: 93.15326293 | M149: 93.15346834 | N149: 16.64 | O149: 0.14 | P149: 0.004622222222 | Q149: 0.923418424 | R149: 0.4242424242
C150: 7 | D150: 0.7197 | E150: 91.79377706 | F150: 91.79380371 | G150: 17.38 | H150: 0.33 | I150: 0.004827777778 | K150: 0.7036 | L150: 91.85123252 | M150: 91.85150067 | N150: 15.91 | O150: 0.13 | P150: 0.004419444444 | Q150: 0.915420023 | R150: 0.3939393939
C151: 9 | D151: 0.583 | E151: 90.42354469 | F151: 90.42373328 | G151: 17.2 | H151: 0.33 | I151: 0.004777777778 | K151: 0.5712 | L151: 90.51034651 | M151: 90.51152972 | N151: 15.79 | O151: 0.13 | P151: 0.004386111111 | Q151: 0.9180232558 | R151: 0.3939393939
C152: 11 | D152: 0.4903 | E152: 89.24294472 | F152: 89.24297689 | G152: 17.09 | H152: 0.33 | I152: 0.004747222222 | K152: 0.4786 | L152: 89.33374569 | M152: 89.33500542 | N152: 15.77 | O152: 0.12 | P152: 0.004380555556 | Q152: 0.922761849 | R152: 0.3636363636
C153: 13.5 | D153: 0.4146 | E153: 88.04171158 | F153: 88.04171826 | G153: 17.02 | H153: 0.32 | I153: 0.004727777778 | K153: 0.4039 | L153: 88.16717036 | M153: 88.16809404 | N153: 15.69 | O153: 0.12 | P153: 0.004358333333 | Q153: 0.9218566392 | R153: 0.375
C154: 16 | D154: 0.3566 | E154: 86.93179428 | F154: 86.93208026 | G154: 16.97 | H154: 0.31 | I154: 0.004713888889 | K154: 0.3469 | L154: 87.04801423 | M154: 87.04812951 | N154: 15.7 | O154: 0.11 | P154: 0.004361111111 | Q154: 0.9251620507 | R154: 0.3548387097
C155: 19 | D155: 0.2986 | E155: 85.66901669 | F155: 85.66942215 | G155: 16.99 | H155: 0.3 | I155: 0.004719444444 | K155: 0.2905 | L155: 85.74067037 | M155: 85.7418266 | N155: 15.7 | O155: 0.11 | P155: 0.004361111111 | Q155: 0.9240729841 | R155: 0.3666666667
C156: 22 | D156: 0.2534 | E156: 84.76439843 | F156: 84.76483788 | G156: 16.91 | H156: 0.29 | I156: 0.004697222222 | K156: 0.253 | L156: 84.90063717 | M156: 84.90111206 | N156: 15.73 | O156: 0.11 | P156: 0.004369444444 | Q156: 0.9302188054 | R156: 0.3793103448
B157: 112.dat | C157: 1 | D157: 3.2079 | E157: 0 | F157: 0 | G157: 21.39 | H157: 0.33 | I157: 0.005941666667 | K157: 3.1943 | L157: 0 | M157: 0 | N157: 19.72 | O157: 0.17 | P157: 0.005477777778 | Q157: 0.9219261337 | R157: 0.5151515152 | V157: =($K157/$D157-1) -> -0.004239533651
C158: 1.125 | D158: 3.1335 | E158: 111.4145478 | F158: 111.4757509 | G158: 19.7 | H158: 0.37 | I158: 0.005472222222 | K158: 3.1217 | L158: 111.4808603 | M158: 111.5448113 | N158: 18.09 | O158: 0.18 | P158: 0.005025 | Q158: 0.9182741117 | R158: 0.4864864865 | T158: =bdrate($D158:$D170,E158:E170,$K158:$K170,L158:L170) -> -0.01205437407 | U158: =bdrate($D158:$D170,F158:F170,$K158:$K170,M158:M170) -> -0.0119093612
C159: 1.5 | D159: 2.5843 | E159: 102.6553272 | F159: 102.6765411 | G159: 19.87 | H159: 0.39 | I159: 0.005519444444 | K159: 2.6219 | L159: 103.037636 | M159: 103.0383803 | N159: 18.33 | O159: 0.22 | P159: 0.005091666667 | Q159: 0.9224962255 | R159: 0.5641025641
C160: 2 | D160: 2.097 | E160: 100.2353625 | F160: 100.2384723 | G160: 19.77 | H160: 0.38 | I160: 0.005491666667 | K160: 2.089 | L160: 100.2301771 | M160: 100.2330136 | N160: 18.19 | O160: 0.18 | P160: 0.005052777778 | Q160: 0.9200809307 | R160: 0.4736842105
C161: 3 | D161: 1.1945 | E161: 96.09182415 | F161: 96.09183587 | G161: 19.38 | H161: 0.35 | I161: 0.005383333333 | K161: 1.2031 | L161: 96.14278767 | M161: 96.14283474 | N161: 18 | O161: 0.16 | P161: 0.005 | Q161: 0.9287925697 | R161: 0.4571428571
C162: 4 | D162: 0.8526 | E162: 94.60895776 | F162: 94.6102705 | G162: 18.76 | H162: 0.3 | I162: 0.005211111111 | K162: 0.8441 | L162: 94.6127508 | M162: 94.61433252 | N162: 17.5 | O162: 0.14 | P162: 0.004861111111 | Q162: 0.9328358209 | R162: 0.4666666667
C163: 5.5 | D163: 0.6659 | E163: 93.429072 | F163: 93.42907248 | G163: 17.58 | H163: 0.28 | I163: 0.004883333333 | K163: 0.6572 | L163: 93.40813278 | M163: 93.40820767 | N163: 16.3 | O163: 0.13 | P163: 0.004527777778 | Q163: 0.9271899886 | R163: 0.4642857143
C164: 7 | D164: 0.551 | E164: 92.34021776 | F164: 92.34036757 | G164: 16.99 | H164: 0.28 | I164: 0.004719444444 | K164: 0.542 | L164: 92.33525941 | M164: 92.33538302 | N164: 15.63 | O164: 0.12 | P164: 0.004341666667 | Q164: 0.9199529135 | R164: 0.4285714286
C165: 9 | D165: 0.4532 | E165: 91.09869217 | F165: 91.09899364 | G165: 16.83 | H165: 0.27 | I165: 0.004675 | K165: 0.4446 | L165: 91.12385685 | M165: 91.12481309 | N165: 15.42 | O165: 0.11 | P165: 0.004283333333 | Q165: 0.9162210339 | R165: 0.4074074074
C166: 11 | D166: 0.377 | E166: 89.92639721 | F166: 89.92734659 | G166: 16.65 | H166: 0.28 | I166: 0.004625 | K166: 0.3704 | L166: 89.96553411 | M166: 89.96680571 | N166: 15.46 | O166: 0.11 | P166: 0.004294444444 | Q166: 0.9285285285 | R166: 0.3928571429
C167: 13.5 | D167: 0.3157 | E167: 88.67309826 | F167: 88.67473662 | G167: 16.59 | H167: 0.27 | I167: 0.004608333333 | K167: 0.3057 | L167: 88.67405171 | M167: 88.67751429 | N167: 15.26 | O167: 0.11 | P167: 0.004238888889 | Q167: 0.9198312236 | R167: 0.4074074074
C168: 16 | D168: 0.2665 | E168: 87.48308139 | F168: 87.48511216 | G168: 16.5 | H168: 0.27 | I168: 0.004583333333 | K168: 0.2583 | L168: 87.61539792 | M168: 87.61866966 | N168: 15.23 | O168: 0.1 | P168: 0.004230555556 | Q168: 0.923030303 | R168: 0.3703703704
C169: 19 | D169: 0.2269 | E169: 86.41022576 | F169: 86.41195586 | G169: 16.42 | H169: 0.26 | I169: 0.004561111111 | K169: 0.2168 | L169: 86.3691482 | M169: 86.37448802 | N169: 15.24 | O169: 0.1 | P169: 0.004233333333 | Q169: 0.928136419 | R169: 0.3846153846
C170: 22 | D170: 0.1935 | E170: 85.34332583 | F170: 85.34606156 | G170: 16.47 | H170: 0.26 | I170: 0.004575 | K170: 0.1853 | L170: 85.41917594 | M170: 85.42585247 | N170: 15.09 | O170: 0.1 | P170: 0.004191666667 | Q170: 0.9162112933 | R170: 0.3846153846
B171: 113.dat | C171: 1 | D171: 3.3515 | E171: 0 | F171: 0 | G171: 21.67 | H171: 0.39 | I171: 0.006019444444 | K171: 3.3135 | L171: 0 | M171: 0 | N171: 19.66 | O171: 0.18 | P171: 0.005461111111 | Q171: 0.9072450392 | R171: 0.4615384615 | V171: =($K171/$D171-1) -> -0.01133820677
C172: 1.125 | D172: 3.2608 | E172: 110.7180529 | F172: 111.0437472 | G172: 19.86 | H172: 0.4 | I172: 0.005516666667 | K172: 3.2275 | L172: 110.9231024 | M172: 111.2564288 | N172: 18.03 | O172: 0.19 | P172: 0.005008333333 | Q172: 0.9078549849 | R172: 0.475 | T172: =bdrate($D172:$D184,E172:E184,$K172:$K184,L172:L184) -> -0.02252619339 | U172: =bdrate($D172:$D184,F172:F184,$K172:$K184,M172:M184) -> -0.02246384426
C173: 1.5 | D173: 2.7255 | E173: 103.0894682 | F173: 103.0894711 | G173: 20.1 | H173: 0.44 | I173: 0.005583333333 | K173: 2.7056 | L173: 103.1549156 | M173: 103.1549164 | N173: 18.31 | O173: 0.22 | P173: 0.005086111111 | Q173: 0.9109452736 | R173: 0.5
C174: 2 | D174: 2.2246 | E174: 100.3838816 | F174: 100.3838878 | G174: 19.91 | H174: 0.42 | I174: 0.005530555556 | K174: 2.1929 | L174: 100.386754 | M174: 100.386755 | N174: 18.02 | O174: 0.19 | P174: 0.005005555556 | Q174: 0.9050728277 | R174: 0.4523809524
C175: 3 | D175: 1.4157 | E175: 96.47476769 | F175: 96.48493277 | G175: 19.6 | H175: 0.4 | I175: 0.005444444444 | K175: 1.4021 | L175: 96.53194623 | M175: 96.54520667 | N175: 18.05 | O175: 0.16 | P175: 0.005013888889 | Q175: 0.9209183673 | R175: 0.4
C176: 4 | D176: 0.9457 | E176: 94.33624712 | F176: 94.33992642 | G176: 19.21 | H176: 0.37 | I176: 0.005336111111 | K176: 0.9264 | L176: 94.36051953 | M176: 94.36316996 | N176: 17.58 | O176: 0.14 | P176: 0.004883333333 | Q176: 0.9151483602 | R176: 0.3783783784
C177: 5.5 | D177: 0.6646 | E177: 92.6848331 | F177: 92.70580056 | G177: 18.29 | H177: 0.36 | I177: 0.005080555556 | K177: 0.6443 | L177: 92.70708792 | M177: 92.73085678 | N177: 16.79 | O177: 0.13 | P177: 0.004663888889 | Q177: 0.9179879716 | R177: 0.3611111111
C178: 7 | D178: 0.5207 | E178: 91.47212324 | F178: 91.51154986 | G178: 17.65 | H178: 0.35 | I178: 0.004902777778 | K178: 0.5045 | L178: 91.49851131 | M178: 91.54090572 | N178: 16.07 | O178: 0.13 | P178: 0.004463888889 | Q178: 0.9104815864 | R178: 0.3714285714
C179: 9 | D179: 0.4164 | E179: 90.25876627 | F179: 90.3121824 | G179: 17.41 | H179: 0.34 | I179: 0.004836111111 | K179: 0.4007 | L179: 90.29137445 | M179: 90.35053256 | N179: 15.88 | O179: 0.12 | P179: 0.004411111111 | Q179: 0.9121194716 | R179: 0.3529411765
C180: 11 | D180: 0.3475 | E180: 89.16850335 | F180: 89.23813613 | G180: 17.2 | H180: 0.33 | I180: 0.004777777778 | K180: 0.3372 | L180: 89.27842375 | M180: 89.34265631 | N180: 15.75 | O180: 0.11 | P180: 0.004375 | Q180: 0.9156976744 | R180: 0.3333333333
C181: 13.5 | D181: 0.2937 | E181: 88.1245381 | F181: 88.18692137 | G181: 17.19 | H181: 0.31 | I181: 0.004775 | K181: 0.2839 | L181: 88.12680891 | M181: 88.19459224 | N181: 15.59 | O181: 0.11 | P181: 0.004330555556 | Q181: 0.9069226294 | R181: 0.3548387097
C182: 16 | D182: 0.2493 | E182: 86.88183095 | F182: 86.90771112 | G182: 17.14 | H182: 0.29 | I182: 0.004761111111 | K182: 0.2418 | L182: 86.9609297 | M182: 86.99181954 | N182: 15.76 | O182: 0.11 | P182: 0.004377777778 | Q182: 0.9194865811 | R182: 0.3793103448
C183: 19 | D183: 0.2023 | E183: 85.61358753 | F183: 85.66126028 | G183: 17.13 | H183: 0.27 | I183: 0.004758333333 | K183: 0.1991 | L183: 85.71292459 | M183: 85.7500881 | N183: 15.73 | O183: 0.1 | P183: 0.004369444444 | Q183: 0.9182720374 | R183: 0.3703703704
C184: 22 | D184: 0.1785 | E184: 84.91487357 | F184: 84.96449049 | G184: 17.12 | H184: 0.26 | I184: 0.004755555556 | K184: 0.1753 | L184: 85.05793234 | M184: 85.10192875 | N184: 15.83 | O184: 0.1 | P184: 0.004397222222 | Q184: 0.9246495327 | R184: 0.3846153846
B185: 114.dat | C185: 1 | D185: 3.6123 | E185: 0 | F185: 0 | G185: 21.77 | H185: 0.37 | I185: 0.006047222222 | K185: 3.5883 | L185: 0 | M185: 0 | N185: 19.88 | O185: 0.19 | P185: 0.005522222222 | Q185: 0.9131832797 | R185: 0.5135135135 | V185: =($K185/$D185-1) -> -0.006643966448
C186: 1.125 | D186: 3.4796 | E186: 108.6772889 | F186: 108.6858848 | G186: 20 | H186: 0.41 | I186: 0.005555555556 | K186: 3.4607 | L186: 108.7864635 | M186: 108.7933781 | N186: 18.26 | O186: 0.2 | P186: 0.005072222222 | Q186: 0.913 | R186: 0.487804878 | T186: =bdrate($D186:$D198,E186:E198,$K186:$K198,L186:L198) -> -0.01806202893 | U186: =bdrate($D186:$D198,F186:F198,$K186:$K198,M186:M198) -> -0.0180902745
C187: 1.5 | D187: 3.0393 | E187: 102.8006253 | F187: 102.8060391 | G187: 20.24 | H187: 0.42 | I187: 0.005622222222 | K187: 3.0292 | L187: 102.8314416 | M187: 102.8316489 | N187: 18.68 | O187: 0.23 | P187: 0.005188888889 | Q187: 0.9229249012 | R187: 0.5476190476
C188: 2 | D188: 2.5033 | E188: 100.0400243 | F188: 100.0416866 | G188: 19.94 | H188: 0.39 | I188: 0.005538888889 | K188: 2.4779 | L188: 100.0241052 | M188: 100.0265756 | N188: 18.26 | O188: 0.19 | P188: 0.005072222222 | Q188: 0.9157472417 | R188: 0.4871794872
C189: 3 | D189: 1.6671 | E189: 96.23504875 | F189: 96.23527243 | G189: 19.64 | H189: 0.39 | I189: 0.005455555556 | K189: 1.6616 | L189: 96.28100822 | M189: 96.28283784 | N189: 17.98 | O189: 0.17 | P189: 0.004994444444 | Q189: 0.9154786151 | R189: 0.4358974359
C190: 4 | D190: 1.2567 | E190: 94.47848815 | F190: 94.4804466 | G190: 19.3 | H190: 0.35 | I190: 0.005361111111 | K190: 1.2365 | L190: 94.46050898 | M190: 94.46184475 | N190: 17.82 | O190: 0.15 | P190: 0.00495 | Q190: 0.9233160622 | R190: 0.4285714286
C191: 5.5 | D191: 1.0008 | E191: 92.99453398 | F191: 92.99574914 | G191: 18.3 | H191: 0.34 | I191: 0.005083333333 | K191: 0.982 | L191: 92.97570446 | M191: 92.97706091 | N191: 16.87 | O191: 0.14 | P191: 0.004686111111 | Q191: 0.9218579235 | R191: 0.4117647059
C192: 7 | D192: 0.8153 | E192: 91.60606373 | F192: 91.60742089 | G192: 17.69 | H192: 0.35 | I192: 0.004913888889 | K192: 0.7992 | L192: 91.61599069 | M192: 91.6177441 | N192: 16.13 | O192: 0.13 | P192: 0.004480555556 | Q192: 0.9118145845 | R192: 0.3714285714
C193: 9 | D193: 0.6599 | E193: 90.16247188 | F193: 90.16334828 | G193: 17.4 | H193: 0.34 | I193: 0.004833333333 | K193: 0.6451 | L193: 90.17169214 | M193: 90.17315748 | N193: 16 | O193: 0.13 | P193: 0.004444444444 | Q193: 0.9195402299 | R193: 0.3823529412
C194: 11 | D194: 0.5461 | E194: 88.90218976 | F194: 88.90223317 | G194: 17.26 | H194: 0.33 | I194: 0.004794444444 | K194: 0.5308 | L194: 88.9429452 | M194: 88.94300378 | N194: 15.94 | O194: 0.12 | P194: 0.004427777778 | Q194: 0.9235225956 | R194: 0.3636363636
C195: 13.5 | D195: 0.4514 | E195: 87.60538234 | F195: 87.60613267 | G195: 17.19 | H195: 0.32 | I195: =G195/3600 -> 0.004775 | K195: 0.4372 | L195: 87.69831557 | M195: 87.69868124 | N195: 15.79 | O195: 0.12 | P195: =N195/3600 -> 0.004386111111 | Q195: =N195/G195 -> 0.9185573008 | R195: =O195/H195 -> 0.375
C196: 16 | D196: 0.3761 | E196: 86.35226824 | F196: 86.35252015 | G196: 17.14 | H196: 0.31 | I196: 0.004761111111 | K196: 0.3662 | L196: 86.55747121 | M196: 86.55898093 | N196: 15.77 | O196: 0.12 | P196: 0.004380555556 | Q196: 0.9200700117 | R196: 0.3870967742
C197: 19 | D197: 0.3063 | E197: 85.11615684 | F197: 85.11824344 | G197: 17.11 | H197: 0.29 | I197: 0.004752777778 | K197: 0.299 | L197: 85.24627199 | M197: 85.25147355 | N197: 15.83 | O197: 0.11 | P197: 0.004397222222 | Q197: 0.9251899474 | R197: 0.3793103448
C198: 22 | D198: 0.2571 | E198: 84.18023342 | F198: 84.18373279 | G198: 17.08 | H198: 0.28 | I198: 0.004744444444 | K198: 0.2516 | L198: 84.28942869 | M198: 84.29238895 | N198: 15.78 | O198: 0.1 | P198: 0.004383333333 | Q198: 0.9238875878 | R198: 0.3571428571
B199: 115.dat | C199: 1 | D199: 3.202 | E199: 0 | F199: 0 | G199: 21.49 | H199: 0.37 | I199: 0.005969444444 | K199: 3.1828 | L199: 0 | M199: 0 | N199: 19.62 | O199: 0.17 | P199: 0.00545 | Q199: 0.9129827827 | R199: 0.4594594595 | V199: =($K199/$D199-1) -> -0.005996252342
C200: 1.125 | D200: 3.142 | E200: 111.9682967 | F200: 112.1699773 | G200: 19.77 | H200: 0.4 | I200: 0.005491666667 | K200: 3.1267 | L200: 112.0878769 | M200: 112.2834093 | N200: 17.95 | O200: 0.18 | P200: 0.004986111111 | Q200: 0.9079413252 | R200: 0.45 | T200: =bdrate($D200:$D212,E200:E212,$K200:$K212,L200:L212) -> -0.01341842197 | U200: =bdrate($D200:$D212,F200:F212,$K200:$K212,M200:M212) -> -0.01328862089
... 479 more rows

Sheet INCART (ECG)
D1: Reference | K1: Tested | T1: BD-rate (piecewise cubic) | V1: Lossless
C2: StepSizeForQP | D2: BPS | E2: PSNR1 | F2: PSNR2 | G2: Enc T [s] | H2: Dec T [s] | I2: Enc T [h] | K2: BPS | L2: PSNR1 | M2: PSNR2 | N2: Enc T [s] | O2: Dec T [s] | P2: Enc T [h] | Q2: EncR | R2: DecR | T2: BD-PSNR1 | U2: BD-PSNR2 | V2: BR-R
A3: MIT | B3: l01.dat | C3: 1 | D3: 5.1865 | E3: 0 | F3: 0 | G3: 96.58 | H3: 1.67 | I3: =G3/3600 -> 0.02682777778 | K3: 5.1862 | L3: 0 | M3: 0 | N3: 87.99 | O3: 1.02 | P3: =N3/3600 -> 0.02444166667 | Q3: =N3/G3 -> 0.9110581901 | R3: =O3/H3 -> 0.6107784431 | V3: =($K3/$D3-1) -> -5.784247566e-05
A4: ECG | C4: 1.125 | D4: 5.3324 | E4: 119.2395398 | F4: 125.124352 | G4: 95.46 | H4: 0.79 | I4: 0.02651666667 | K4: 5.3301 | L4: 118.9823346 | M4: 123.0006317 | N4: 87.1 | O4: 0.73 | P4: 0.02419444444 | Q4: 0.912424052 | R4: 0.9240506329 | T4: =bdrate($D4:$D16,E4:E16,$K4:$K16,L4:L16) -> 0.0004087763809 | U4: =bdrate($D4:$D16,F4:F16,$K4:$K16,M4:M16) -> 0.002116687572
C5: 1.5 | D5: 4.647 | E5: 102.507203 | F5: 102.5378348 | G5: 89.89 | H5: 2.02 | I5: 0.02496944444 | K5: 4.6654 | L5: 102.6304217 | M5: 102.6560214 | N5: 81.94 | O5: 1.31 | P5: 0.02276111111 | Q5: 0.9115585716 | R5: 0.6485148515
C6: 2 | D6: 4.1715 | E6: 100.0891977 | F6: 100.0967536 | G6: 88.34 | H6: 1.85 | I6: 0.02453888889 | K6: 4.1816 | L6: 100.1446589 | M6: 100.1547451 | N6: 80.72 | O6: 1.13 | P6: 0.02242222222 | Q6: 0.9137423591 | R6: 0.6108108108
C7: 3 | D7: 3.6125 | E7: 98.05631986 | F7: 98.05846332 | G7: 86.85 | H7: 1.71 | I7: 0.024125 | K7: 3.6156 | L7: 98.06698673 | M7: 98.06884859 | N7: 79.39 | O7: 0.9 | P7: 0.02205277778 | Q7: 0.9141047784 | R7: 0.5263157895
C8: 4 | D8: 3.1156 | E8: 94.87382001 | F8: 94.87451919 | G8: 85.63 | H8: 1.8 | I8: 0.02378611111 | K8: 3.1182 | L8: 94.89105954 | M8: 94.89177615 | N8: 78.43 | O8: 0.95 | P8: 0.02178611111 | Q8: 0.9159173187 | R8: 0.5277777778
C9: 5.5 | D9: 2.6419 | E9: 92.29108562 | F9: 92.29368403 | G9: 83.86 | H9: 1.8 | I9: 0.02329444444 | K9: 2.6446 | L9: 92.30559696 | M9: 92.30845595 | N9: 77.33 | O9: 0.92 | P9: 0.02148055556 | Q9: 0.922132125 | R9: 0.5111111111
C10: 7 | D10: 2.3052 | E10: 90.39312238 | F10: 90.39964151 | G10: 82.48 | H10: 1.76 | I10: 0.02291111111 | K10: 2.3087 | L10: 90.414396 | M10: 90.42096153 | N10: 75.99 | O10: 0.87 | P10: 0.02110833333 | Q10: 0.921314258 | R10: 0.4943181818
C11: 9 | D11: 1.9727 | E11: 88.42124799 | F11: 88.43144509 | G11: 81.18 | H11: 1.71 | I11: 0.02255 | K11: 1.9744 | L11: 88.42858317 | M11: 88.4386692 | N11: 74.73 | O11: 0.82 | P11: 0.02075833333 | Q11: 0.9205469327 | R11: 0.4795321637
C12: 11 | D12: 1.7255 | E12: 86.85822012 | F12: 86.86869278 | G12: 80.05 | H12: 1.67 | I12: 0.02223611111 | K12: 1.7268 | L12: 86.86405559 | M12: 86.87477938 | N12: 73.58 | O12: 0.77 | P12: 0.02043888889 | Q12: 0.9191755153 | R12: 0.4610778443
C13: 13.5 | D13: 1.488 | E13: 85.25867541 | F13: 85.26917906 | G13: 78.83 | H13: 1.64 | I13: 0.02189722222 | K13: 1.4895 | L13: 85.26873911 | M13: 85.27924738 | N13: 72.4 | O13: 0.73 | P13: 0.02011111111 | Q13: 0.918432069 | R13: 0.4451219512
C14: 16 | D14: 1.3034 | E14: 83.93312811 | F14: 83.94431345 | G14: 77.93 | H14: 1.61 | I14: 0.02164722222 | K14: 1.3036 | L14: 83.92739918 | M14: 83.93799678 | N14: 72.01 | O14: 0.7 | P14: 0.02000277778 | Q14: 0.9240343898 | R14: 0.4347826087
C15: 19 | D15: 1.1248 | E15: 82.57424903 | F15: 82.58692982 | G15: 77.09 | H15: 1.57 | I15: 0.02141388889 | K15: 1.1269 | L15: 82.59228406 | M15: 82.60496225 | N15: 70.96 | O15: 0.67 | P15: 0.01971111111 | Q15: 0.9204825529 | R15: 0.4267515924
C16: 22 | D16: 0.9879 | E16: 81.46186263 | F16: 81.4790355 | G16: 76.42 | H16: 1.54 | I16: 0.02122777778 | K16: 0.987 | L16: 81.4560217 | M16: 81.47290975 | N16: 70.36 | O16: 0.65 | P16: 0.01954444444 | Q16: 0.9207013871 | R16: 0.4220779221
B17: l02.dat | C17: 1 | D17: 4.2335 | E17: 0 | F17: 0 | G17: 93.81 | H17: 1.51 | I17: 0.02605833333 | K17: 4.2293 | L17: 0 | M17: 0 | N17: 85.95 | O17: 0.89 | P17: 0.023875 | Q17: 0.9162136233 | R17: 0.5894039735 | V17: =($K17/$D17-1) -> -0.0009920869257
C18: 1.125 | D18: 4.3104 | E18: 115.3428144 | F18: 115.1924782 | G18: 92.68 | H18: 1.07 | I18: 0.02574444444 | K18: 4.3048 | L18: 115.2804923 | M18: 115.1393123 | N18: 85.08 | O18: 0.76 | P18: 0.02363333333 | Q18: 0.9179974104 | R18: 0.7102803738 | T18: =bdrate($D18:$D30,E18:E30,$K18:$K30,L18:L30) -> -0.002222785086 | U18: =bdrate($D18:$D30,F18:F30,$K18:$K30,M18:M30) -> -0.001854436089
C19: 1.5 | D19: 3.7238 | E19: 102.9344547 | F19: 104.096154 | G19: 85.86 | H19: 1.87 | I19: 0.02385 | K19: 3.7314 | L19: 103.0426101 | M19: 104.181619 | N19: 78.31 | O19: 1.13 | P19: 0.02175277778 | Q19: 0.9120661542 | R19: 0.6042780749
C20: 2 | D20: 3.2702 | E20: 100.4836767 | F20: 101.609985 | G20: 84.81 | H20: 1.72 | I20: 0.02355833333 | K20: 3.2722 | L20: 100.5320687 | M20: 101.6413069 | N20: 78.03 | O20: 0.97 | P20: 0.021675 | Q20: 0.9200565971 | R20: 0.5639534884
C21: 3 | D21: 2.7537 | E21: 98.14768109 | F21: 99.19823966 | G21: 83.35 | H21: 1.55 | I21: 0.02315277778 | K21: 2.7511 | L21: 98.16252024 | M21: 99.19075923 | N21: 76.64 | O21: 0.8 | P21: 0.02128888889 | Q21: 0.9194961008 | R21: 0.5161290323
C22: 4 | D22: 2.3431 | E22: 95.32835555 | F22: 96.39669789 | G22: 81.88 | H22: 1.61 | I22: 0.02274444444 | K22: 2.34 | L22: 95.34857359 | M22: 96.40524552 | N22: 75.21 | O22: 0.81 | P22: 0.02089166667 | Q22: 0.9185393258 | R22: 0.5031055901
C23: 5.5 | D23: 1.9528 | E23: 92.80946118 | F23: 93.84850937 | G23: 80.28 | H23: 1.58 | I23: 0.0223 | K23: 1.9493 | L23: 92.81639318 | M23: 93.86468079 | N23: 73.81 | O23: 0.76 | P23: 0.02050277778 | Q23: 0.9194070752 | R23: 0.4810126582
C24: 7 | D24: 1.6797 | E24: 90.93461373 | F24: 91.9742262 | G24: 79.13 | H24: 1.54 | I24: 0.02198055556 | K24: 1.6753 | L24: 90.93512881 | M24: 91.96696741 | N24: 72.72 | O24: 0.72 | P24: 0.0202 | Q24: 0.9189940604 | R24: 0.4675324675
C25: 9 | D25: 1.4151 | E25: 88.99149478 | F25: 90.01646349 | G25: 77.96 | H25: 1.48 | I25: 0.02165555556 | K25: 1.4123 | L25: 89.00271194 | M25: 90.02200962 | N25: 72.53 | O25: 0.69 | P25: 0.02014722222 | Q25: 0.9303488969 | R25: 0.4662162162
C26: 11 | D26: 1.2247 | E26: 87.48907225 | F26: 88.50727166 | G26: 77.08 | H26: 1.44 | I26: 0.02141111111 | K26: 1.2222 | L26: 87.50422141 | M26: 88.51784123 | N26: 71.29 | O26: 0.66 | P26: 0.01980277778 | Q26: 0.9248832382 | R26: 0.4583333333
C27: 13.5 | D27: 1.0469 | E27: 85.97213505 | F27: 86.97694917 | G27: 76.13 | H27: 1.42 | I27: 0.02114722222 | K27: 1.043 | L27: 85.97803157 | M27: 86.98635706 | N27: 70.27 | O27: 0.62 | P27: 0.01951944444 | Q27: 0.9230264022 | R27: 0.4366197183
C28: 16 | D28: 0.9102 | E28: 84.70870978 | F28: 85.71647805 | G28: 75.26 | H28: 1.39 | I28: 0.02090555556 | K28: 0.9077 | L28: 84.72264112 | M28: 85.71950612 | N28: 69.75 | O28: 0.59 | P28: 0.019375 | Q28: 0.9267871379 | R28: 0.4244604317
C29: 19 | D29: 0.7843 | E29: 83.42678656 | F29: 84.41864496 | G29: 74.45 | H29: 1.35 | I29: 0.02068055556 | K29: 0.7803 | L29: 83.42212339 | M29: 84.41796887 | N29: 68.86 | O29: 0.57 | P29: 0.01912777778 | Q29: 0.924916051 | R29: 0.4222222222
C30: 22 | D30: 0.6855 | E30: 82.34548112 | F30: 83.33849179 | G30: 74.04 | H30: 1.34 | I30: 0.02056666667 | K30: 0.6836 | L30: 82.4013887 | M30: 83.38728363 | N30: 68.7 | O30: 0.56 | P30: 0.01908333333 | Q30: 0.9278768233 | R30: 0.4179104478
B31: l03.dat | C31: 1 | D31: 5.563 | E31: 0 | F31: 0 | G31: 96.96 | H31: 2.03 | I31: 0.02693333333 | K31: 5.5491 | L31: 0 | M31: 0 | N31: 88.39 | O31: 1.22 | P31: 0.02455277778 | Q31: 0.9116130363 | R31: 0.6009852217 | V31: =($K31/$D31-1) -> -0.002498651807
C32: 1.125 | D32: 5.6672 | E32: 111.1770138 | F32: 115.7072339 | G32: 95.08 | H32: 1.4 | I32: 0.02641111111 | K32: 5.6454 | L32: 110.9570479 | M32: 114.5427757 | N32: 86.74 | O32: 1.05 | P32: 0.02409444444 | Q32: 0.9122843921 | R32: 0.75 | T32: =bdrate($D32:$D44,E32:E44,$K32:$K44,L32:L44) -> -0.005091650314 | U32: =bdrate($D32:$D44,F32:F44,$K32:$K44,M32:M44) -> -0.004301726009
C33: 1.5 | D33: 5.042 | E33: 103.8348696 | F33: 107.5842103 | G33: 88.91 | H33: 2.31 | I33: 0.02469722222 | K33: 5.0333 | L33: 103.8642926 | M33: 107.6112858 | N33: 83.69 | O33: 1.54 | P33: 0.02324722222 | Q33: 0.9412889439 | R33: 0.6666666667
C34: 2 | D34: 4.6362 | E34: 101.3244927 | F34: 105.2830697 | G34: 87.75 | H34: 2.16 | I34: 0.024375 | K34: 4.6259 | L34: 101.3414135 | M34: 105.2985002 | N34: 79.93 | O34: 1.36 | P34: 0.02220277778 | Q34: 0.9108831909 | R34: 0.6296296296
C35: 3 | D35: 4.0843 | E35: 98.51903037 | F35: 102.7112697 | G35: 86.44 | H35: 1.81 | I35: 0.02401111111 | K35: 4.0703 | L35: 98.5342503 | M35: 102.7252253 | N35: 79.17 | O35: 1 | P35: 0.02199166667 | Q35: 0.9158954188 | R35: 0.5524861878
C36: 4 | D36: 3.6838 | E36: 95.90942489 | F36: 99.45163729 | G36: 85.71 | H36: 1.9 | I36: 0.02380833333 | K36: 3.6708 | L36: 95.90488399 | M36: 99.44735391 | N36: 78.43 | O36: 1.09 | P36: 0.02178611111 | Q36: 0.9150624198 | R36: 0.5736842105
C37: 5.5 | D37: 3.2482 | E37: 93.21178092 | F37: 92.83503606 | G37: 84.81 | H37: 1.81 | I37: 0.02355833333 | K37: 3.2349 | L37: 93.21660152 | M37: 92.83937926 | N37: 77.99 | O37: 1 | P37: 0.02166388889 | Q37: 0.9195849546 | R37: 0.5524861878
C38: 7 | D38: 2.9172 | E38: 91.10661832 | F38: 95.05007608 | G38: 84.22 | H38: 1.75 | I38: 0.02339444444 | K38: 2.9019 | L38: 91.1160137 | M38: 95.05873768 | N38: 77.42 | O38: 0.93 | P38: 0.02150555556 | Q38: 0.9192590834 | R38: 0.5314285714
C39: 9 | D39: 2.5485 | E39: 88.77144983 | F39: 92.60085067 | G39: 83.47 | H39: 1.71 | I39: 0.02318611111 | K39: 2.5375 | L39: 88.78648438 | M39: 92.61430485 | N39: 76.88 | O39: 0.88 | P39: 0.02135555556 | Q39: 0.9210494789 | R39: 0.514619883
C40: 11 | D40: 2.2459 | E40: 86.83446753 | F40: 91.13840621 | G40: 83.01 | H40: 1.66 | I40: 0.02305833333 | K40: 2.2304 | L40: 86.84538355 | M40: 91.14833268 | N40: 76.57 | O40: 0.83 | P40: 0.02126944444 | Q40: 0.9224189857 | R40: 0.5
C41: 13.5 | D41: 1.9219 | E41: 84.82285967 | F41: 88.33985889 | G41: 82.29 | H41: 1.63 | I41: 0.02285833333 | K41: 1.9083 | L41: 84.84609792 | M41: 88.36123021 | N41: 75.75 | O41: 0.78 | P41: 0.02104166667 | Q41: 0.9205249727 | R41: 0.4785276074
C42: 16 | D42: 1.661 | E42: 83.20708486 | F42: 86.89335769 | G42: 81.75 | H42: 1.59 | I42: 0.02270833333 | K42: 1.6464 | L42: 83.22807923 | M42: 86.9125851 | N42: 75.33 | O42: 0.74 | P42: 0.020925 | Q42: 0.9214678899 | R42: 0.465408805
C43: 19 | D43: 1.4115 | E43: 81.65041159 | F43: 85.88027108 | G43: 81.09 | H43: 1.55 | I43: 0.022525 | K43: 1.3965 | L43: 81.66516056 | M43: 85.89363751 | N43: 74.51 | O43: 0.7 | P43: 0.02069722222 | Q43: 0.9188555926 | R43: 0.4516129032
C44: 22 | D44: 1.2116 | E44: 80.37700959 | F44: 83.74360097 | G44: 80.3 | H44: 1.51 | I44: 0.02230555556 | K44: 1.1993 | L44: 80.39962291 | M44: 83.76410425 | N44: 74.04 | O44: 0.65 | P44: 0.02056666667 | Q44: 0.9220423412 | R44: 0.4304635762
B45: l04.dat | C45: 1 | D45: 6.1666 | E45: 0 | F45: 0 | G45: 98.53 | H45: 2.02 | I45: 0.02736944444 | K45: 6.152 | L45: 0 | M45: 0 | N45: 89.19 | O45: 1.28 | P45: 0.024775 | Q45: 0.9052065361 | R45: 0.6336633663 | V45: =($K45/$D45-1) -> -0.002367593163
C46: 1.125 | D46: 6.287 | E46: 112.2455301 | F46: 115.2954609 | G46: 97 | H46: 1.42 | I46: 0.02694444444 | K46: 6.2639 | L46: 111.9109215 | M46: 114.5273564 | N46: 87.77 | O46: 1.15 | P46: 0.02438055556 | Q46: 0.9048453608 | R46: 0.8098591549 | T46: =bdrate($D46:$D58,E46:E58,$K46:$K58,L46:L58) -> -0.004238436247 | U46: =bdrate($D46:$D58,F46:F58,$K46:$K58,M46:M58) -> -0.003727749146
C47: 1.5 | D47: 5.6024 | E47: 103.4446662 | F47: 103.4450411 | G47: 91.62 | H47: 2.43 | I47: 0.02545 | K47: 5.5935 | L47: 103.4705768 | M47: 103.4710314 | N47: 82.83 | O47: 1.65 | P47: 0.02300833333 | Q47: 0.9040602489 | R47: 0.6790123457
C48: 2 | D48: 5.1591 | E48: 100.9378939 | F48: 100.9382305 | G48: 90.22 | H48: 2.26 | I48: 0.02506111111 | K48: 5.1492 | L48: 100.9438956 | M48: 100.9443461 | N48: 82.24 | O48: 1.49 | P48: 0.02284444444 | Q48: 0.9115495456 | R48: 0.6592920354
C49: 3 | D49: 4.5531 | E49: 98.12511952 | F49: 98.12526789 | G49: 88.73 | H49: 1.84 | I49: 0.02464722222 | K49: 4.5393 | L49: 98.14311615 | M49: 98.14321106 | N49: 80.71 | O49: 1.06 | P49: 0.02241944444 | Q49: 0.909613434 | R49: 0.5760869565
C50: 4 | D50: 4.1141 | E50: 95.49977135 | F50: 95.5007419 | G50: 88.01 | H50: 1.93 | I50: 0.02444722222 | K50: 4.1023 | L50: 95.51397676 | M50: 95.51460027 | N50: 80.15 | O50: 1.17 | P50: 0.02226388889 | Q50: 0.9106919668 | R50: 0.6062176166
C51: 5.5 | D51: 3.6395 | E51: 92.80100196 | F51: 92.80242292 | G51: 86.97 | H51: 1.84 | I51: 0.02415833333 | K51: 3.6256 | L51: 92.80473398 | M51: 92.80580813 | N51: 79.58 | O51: 1.07 | P51: 0.02210555556 | Q51: 0.9150281706 | R51: 0.5815217391
C52: 7 | D52: 3.2825 | E52: 90.71862053 | F52: 90.72028336 | G52: 86.35 | H52: 1.79 | I52: 0.02398611111 | K52: 3.2668 | L52: 90.73017224 | M52: 90.73198142 | N52: 79.28 | O52: 1 | P52: 0.02202222222 | Q52: 0.9181239143 | R52: 0.5586592179
C53: 9 | D53: 2.8871 | E53: 88.4301392 | F53: 88.43505585 | G53: 85.64 | H53: 1.73 | I53: 0.02378888889 | K53: 2.8734 | L53: 88.43966467 | M53: 88.44436152 | N53: 78.13 | O53: 0.93 | P53: 0.02170277778 | Q53: 0.912307333 | R53: 0.5375722543
C54: 11 | D54: 2.559 | E54: 86.53085375 | F54: 86.53896324 | G54: 84.93 | H54: 1.69 | I54: 0.02359166667 | K54: 2.55 | L54: 86.54498029 | M54: 86.55250584 | N54: 78.48 | O54: 0.89 | P54: 0.0218 | Q54: 0.9240551042 | R54: 0.5266272189
C55: 13.5 | D55: 2.2165 | E55: 84.55547447 | F55: 84.56592912 | G55: 84.2 | H55: 1.65 | I55: 0.02338888889 | K55: 2.2019 | L55: 84.57356854 | M55: 84.58405844 | N55: 77.78 | O55: 0.84 | P55: 0.02160555556 | Q55: 0.9237529691 | R55: 0.5090909091
C56: 16 | D56: 1.9333 | E56: 82.94108018 | F56: 82.95155473 | G56: 83.48 | H56: 1.61 | I56: 0.02318888889 | K56: 1.92 | L56: 82.9656999 | M56: 82.97592587 | N56: 77.02 | O56: 0.79 | P56: 0.02139444444 | Q56: 0.9226161955 | R56: 0.4906832298
C57: 19 | D57: 1.664 | E57: 81.38135094 | F57: 81.38956584 | G57: 82.79 | H57: 1.56 | I57: 0.02299722222 | K57: 1.6483 | L57: 81.39611124 | M57: 81.40447772 | N57: 76.27 | O57: 0.74 | P57: 0.02118611111 | Q57: 0.9212465274 | R57: 0.4743589744
C58: 22 | D58: 1.4476 | E58: 80.10424092 | F58: 80.11113072 | G58: 82.3 | H58: 1.51 | I58: 0.02286111111 | K58: 1.4338 | L58: 80.12605657 | M58: 80.13285727 | N58: 75.67 | O58: 0.7 | P58: 0.02101944444 | Q58: 0.9194410693 | R58: 0.4635761589
B59: l05.dat | C59: 1 | D59: 4.8819 | E59: 0 | F59: 0 | G59: 95.99 | H59: 1.86 | I59: 0.02666388889 | K59: 4.8761 | L59: 0 | M59: 0 | N59: 86.65 | O59: 1.04 | P59: 0.02406944444 | Q59: 0.9026981977 | R59: 0.5591397849 | V59: =($K59/$D59-1) -> -0.001188062025
C60: 1.125 | D60: 4.8806 | E60: 108.9795831 | F60: 109.0901586 | G60: 93.71 | H60: 1.57 | I60: 0.02603055556 | K60: 4.8678 | L60: 108.9092001 | M60: 109.0047548 | N60: 84.83 | O60: 0.98 | P60: 0.02356388889 | Q60: 0.9052395689 | R60: 0.6242038217 | T60: =bdrate($D60:$D72,E60:E72,$K60:$K72,L60:L72) -> -0.003310604437 | U60: =bdrate($D60:$D72,F60:F72,$K60:$K72,M60:M72) -> -0.003326757682
C61: 1.5 | D61: 4.3225 | E61: 103.2237818 | F61: 103.2258135 | G61: 88.58 | H61: 2.12 | I61: 0.02460555556 | K61: 4.3184 | L61: 103.2322932 | M61: 103.23426 | N61: 79.7 | O61: 1.22 | P61: 0.02213888889 | Q61: 0.8997516369 | R61: 0.5754716981
C62: 2 | D62: 3.8709 | E62: 100.7212941 | F62: 100.7237426 | G62: 87.69 | H62: 2 | I62: 0.02435833333 | K62: 3.8665 | L62: 100.7217006 | M62: 100.7240241 | N62: 79.16 | O62: 1.1 | P62: 0.02198888889 | Q62: 0.9027255103 | R62: 0.55
C63: 3 | D63: 3.271 | E63: 97.95259773 | F63: 97.9531168 | G63: 86.42 | H63: 1.8 | I63: 0.02400555556 | K63: 3.2675 | L63: 97.96050845 | M63: 97.9609556 | N63: 78.43 | O63: 0.91 | P63: 0.02178611111 | Q63: 0.9075445499 | R63: 0.5055555556
C64: 4 | D64: 2.7942 | E64: 95.10863482 | F64: 95.11052096 | G64: 85.63 | H64: 1.8 | I64: 0.02378611111 | K64: 2.789 | L64: 95.13340838 | M64: 95.13513616 | N64: 77.52 | O64: 0.9 | P64: 0.02153333333 | Q64: 0.905290202 | R64: 0.5
C65: 5.5 | D65: 2.2741 | E65: 92.16702549 | F65: 92.17086674 | G65: 85.05 | H65: 1.74 | I65: 0.023625 | K65: 2.2692 | L65: 92.1820053 | M65: 92.18584935 | N65: 77.07 | O65: 0.85 | P65: 0.02140833333 | Q65: 0.9061728395 | R65: 0.4885057471
C66: 7 | D66: 1.8538 | E66: 89.8627799 | F66: 89.86643702 | G66: 84.2 | H66: 1.7 | I66: 0.02338888889 | K66: 1.8504 | L66: 89.87819853 | M66: 89.88165054 | N66: 76.55 | O66: 0.78 | P66: 0.02126388889 | Q66: 0.9091448931 | R66: 0.4588235294
C67: 9 | D67: 1.4313 | E67: 87.58855741 | F67: 87.58960619 | G67: 82.76 | H67: 1.64 | I67: =G67/3600 -> 0.02298888889 | K67: 1.4296 | L67: 87.60753309 | M67: 87.60865369 | N67: 75.42 | O67: 0.71 | P67: =N67/3600 -> 0.02095 | Q67: =N67/G67 -> 0.9113098115 | R67: =O67/H67 -> 0.4329268293
C68: 11 | D68: 1.1528 | E68: 85.97528529 | F68: 85.97682335 | G68: 81.56 | H68: 1.56 | I68: 0.02265555556 | K68: 1.1489 | L68: 85.99685639 | M68: 85.9982648 | N68: 74.14 | O68: 0.65 | P68: 0.02059444444 | Q68: 0.9090240314 | R68: 0.4166666667
C69: 13.5 | D69: 0.9151 | E69: 84.48918036 | F69: 84.49653062 | G69: 80.32 | H69: 1.51 | I69: 0.02231111111 | K69: 0.9106 | L69: 84.49212475 | M69: 84.50003851 | N69: 72.95 | O69: 0.61 | P69: 0.02026388889 | Q69: 0.9082420319 | R69: 0.4039735099
C70: 16 | D70: 0.7592 | E70: 83.33656009 | F70: 83.3500662 | G70: 79.08 | H70: 1.47 | I70: 0.02196666667 | K70: 0.7543 | L70: 83.35125476 | M70: 83.36640697 | N70: 72.47 | O70: 0.58 | P70: 0.02013055556 | Q70: 0.9164137582 | R70: 0.3945578231
C71: 19 | D71: 0.6335 | E71: 82.20584326 | F71: 82.22356355 | G71: 77.81 | H71: 1.43 | I71: 0.02161388889 | K71: 0.6299 | L71: 82.22603432 | M71: 82.24673378 | N71: 71.46 | O71: 0.56 | P71: 0.01985 | Q71: 0.9183909523 | R71: 0.3916083916
C72: 22 | D72: 0.5453 | E72: 81.32990739 | F72: 81.35417565 | G72: 76.79 | H72: 1.39 | I72: 0.02133055556 | K72: 0.5436 | L72: 81.37639967 | M72: 81.40239513 | N72: 69.85 | O72: 0.53 | P72: 0.01940277778 | Q72: 0.9096236489 | R72: 0.381294964
B73: l06.dat | C73: 1 | D73: 4.3873 | E73: 0 | F73: 0 | G73: 94.31 | H73: 1.66 | I73: 0.02619722222 | K73: 4.3834 | L73: 0 | M73: 0 | N73: 86.01 | O73: 0.96 | P73: 0.02389166667 | Q73: 0.9119923656 | R73: 0.578313253 | V73: =($K73/$D73-1) -> -0.0008889294099
C74: 1.125 | D74: 4.491 | E74: 113.5884103 | F74: 115.4270911 | G74: 93.26 | H74: 1.2 | I74: 0.02590555556 | K74: 4.4865 | L74: 113.5450935 | M74: 115.317489 | N74: 84.96 | O74: 0.88 | P74: 0.0236 | Q74: 0.9110015012 | R74: 0.7333333333 | T74: =bdrate($D74:$D86,E74:E86,$K74:$K86,L74:L86) -> -0.003270397029 | U74: =bdrate($D74:$D86,F74:F86,$K74:$K86,M74:M86) -> -0.0030052191
C75: 1.5 | D75: 3.8276 | E75: 102.7007771 | F75: 102.7036999 | G75: 87.39 | H75: 1.97 | I75: 0.024275 | K75: 3.8382 | L75: 102.8373041 | M75: 102.8401755 | N75: 79.5 | O75: 1.14 | P75: 0.02208333333 | Q75: 0.9097150704 | R75: 0.578680203
C76: 2 | D76: 3.3218 | E76: 100.1844025 | F76: 100.1855179 | G76: 86.07 | H76: 1.83 | I76: 0.02390833333 | K76: 3.3263 | L76: 100.2478207 | M76: 100.249151 | N76: 78.95 | O76: 1.02 | P76: 0.02193055556 | Q76: 0.9172766353 | R76: 0.5573770492
C77: 3 | D77: 2.7363 | E77: 97.5879538 | F77: 97.59620404 | G77: 84.07 | H77: 1.64 | I77: 0.02335277778 | K77: 2.7368 | L77: 97.61176848 | M77: 97.61982575 | N77: 77.42 | O77: 0.84 | P77: 0.02150555556 | Q77: 0.9208992506 | R77: 0.512195122
C78: 4 | D78: 2.267 | E78: 94.97140002 | F78: 94.97175116 | G78: 82.66 | H78: 1.7 | I78: 0.02296111111 | K78: 2.2637 | L78: 94.97628411 | M78: 94.97660721 | N78: 75.31 | O78: 0.83 | P78: 0.02091944444 | Q78: 0.9110815388 | R78: 0.4882352941
C79: 5.5 | D79: 1.8389 | E79: 92.54178577 | F79: 92.54337149 | G79: 80.79 | H79: 1.61 | I79: 0.02244166667 | K79: 1.8365 | L79: 92.55622859 | M79: 92.5577414 | N79: 74.08 | O79: 0.77 | P79: 0.02057777778 | Q79: 0.9169451665 | R79: 0.4782608696
C80: 7 | D80: 1.5409 | E80: 90.70957785 | F80: 90.71318982 | G80: 79.08 | H80: 1.55 | I80: 0.02196666667 | K80: 1.5382 | L80: 90.72114894 | M80: 90.72428002 | N80: 73.08 | O80: 0.73 | P80: 0.0203 | Q80: 0.9241274659 | R80: 0.4709677419
C81: 9 | D81: 1.2548 | E81: 88.80157822 | F81: 88.80785421 | G81: 77.77 | H81: 1.51 | I81: 0.02160277778 | K81: 1.2508 | L81: 88.81111744 | M81: 88.81710107 | N81: 71.81 | O81: 0.66 | P81: 0.01994722222 | Q81: 0.9233637649 | R81: 0.4370860927
C82: 11 | D82: 1.0454 | E82: 87.28532208 | F82: 87.29415092 | G82: 76.56 | H82: 1.48 | I82: 0.02126666667 | K82: 1.0407 | L82: 87.29203991 | M82: 87.30071758 | N82: 70.61 | O82: 0.63 | P82: 0.01961388889 | Q82: 0.9222831766 | R82: 0.4256756757
C83: 13.5 | D83: 0.8521 | E83: 85.76449686 | F83: 85.77682791 | G83: 75.61 | H83: 1.46 | I83: 0.02100277778 | K83: 0.8464 | L83: 85.77660824 | M83: 85.78923318 | N83: 69.73 | O83: 0.6 | P83: 0.01936944444 | Q83: 0.9222325089 | R83: 0.4109589041
C84: 16 | D84: 0.7094 | E84: 84.53534714 | F84: 84.55270185 | G84: 74.67 | H84: 1.44 | I84: 0.02074166667 | K84: 0.7039 | L84: 84.55438413 | M84: 84.57265437 | N84: 68.51 | O84: 0.57 | P84: 0.01903055556 | Q84: 0.9175036829 | R84: 0.3958333333
C85: 19 | D85: 0.5836 | E85: 83.34394094 | F85: 83.37103368 | G85: 73.77 | H85: 1.41 | I85: 0.02049166667 | K85: 0.5772 | L85: 83.35371317 | M85: 83.38151954 | N85: 68.42 | O85: 0.55 | P85: 0.01900555556 | Q85: 0.9274772943 | R85: 0.390070922
C86: 22 | D86: 0.4871 | E86: 82.32651175 | F86: 82.36183648 | G86: 72.88 | H86: 1.36 | I86: 0.02024444444 | K86: 0.4821 | L86: 82.34821164 | M86: 82.38402548 | N86: 68.2 | O86: 0.52 | P86: 0.01894444444 | Q86: 0.9357848518 | R86: 0.3823529412
B87: l07.dat | C87: 1 | D87: 4.3427 | E87: 0 | F87: 0 | G87: 94.32 | H87: 1.67 | I87: 0.0262 | K87: 4.3392 | L87: 0 | M87: 0 | N87: 86.27 | O87: 0.96 | P87: 0.02396388889 | Q87: 0.9146522477 | R87: 0.5748502994 | V87: =($K87/$D87-1) -> -0.0008059502153
C88: 1.125 | D88: 4.4684 | E88: 114.7286138 | F88: 116.6424069 | G88: 93.08 | H88: 1.17 | I88: 0.02585555556 | K88: 4.4626 | L88: 114.6052698 | M88: 116.4525962 | N88: 84.55 | O88: 0.9 | P88: 0.02348611111 | Q88: 0.9083584014 | R88: 0.7692307692 | T88: =bdrate($D88:$D100,E88:E100,$K88:$K100,L88:L100) -> -0.002763091691 | U88: =bdrate($D88:$D100,F88:F100,$K88:$K100,M88:M100) -> -0.002560930491
C89: 1.5 | D89: 3.7919 | E89: 102.6693369 | F89: 102.6751519 | G89: 87.27 | H89: 1.97 | I89: 0.02424166667 | K89: 3.8026 | L89: 102.8098772 | M89: 102.8179156 | N89: 79.41 | O89: 1.14 | P89: 0.02205833333 | Q89: 0.9099346855 | R89: 0.578680203
C90: 2 | D90: 3.2803 | E90: 100.1343564 | F90: 100.1358554 | G90: 85.81 | H90: 1.82 | I90: 0.02383611111 | K90: 3.2859 | L90: 100.1970885 | M90: 100.1997561 | N90: 78.48 | O90: 1 | P90: 0.0218 | Q90: 0.9145787204 | R90: 0.5494505495
C91: 3 | D91: 2.7134 | E91: 97.64717444 | F91: 97.65759079 | G91: 83.97 | H91: 1.63 | I91: 0.023325 | K91: 2.7089 | L91: 97.64545812 | M91: 97.65464714 | N91: 77.24 | O91: 0.83 | P91: 0.02145555556 | Q91: 0.9198523282 | R91: 0.509202454
C92: 4 | D92: 2.2258 | E92: 94.93144742 | F92: 94.93249241 | G92: 82.4 | H92: 1.7 | I92: 0.02288888889 | K92: 2.2246 | L92: 94.94392608 | M92: 94.94483196 | N92: 75.66 | O92: 0.83 | P92: 0.02101666667 | Q92: 0.9182038835 | R92: 0.4882352941
C93: 5.5 | D93: 1.7976 | E93: 92.49763589 | F93: 92.50195924 | G93: 80.53 | H93: 1.63 | I93: 0.02236944444 | K93: 1.7944 | L93: 92.50664396 | M93: 92.51103056 | N93: 73.99 | O93: 0.77 | P93: 0.02055277778 | Q93: 0.9187880293 | R93: 0.472392638
C94: 7 | D94: 1.5077 | E94: 90.69588898 | F94: 90.70167096 | G94: 79.08 | H94: 1.58 | I94: 0.02196666667 | K94: 1.5032 | L94: 90.69908221 | M94: 90.70513397 | N94: 72.77 | O94: 0.71 | P94: 0.02021388889 | Q94: 0.9202073849 | R94: 0.4493670886
C95: 9 | D95: 1.222 | E95: 88.7755889 | F95: 88.78487449 | G95: 77.63 | H95: 1.57 | I95: 0.02156388889 | K95: 1.2181 | L95: 88.78428462 | M95: 88.79337192 | N95: 71.85 | O95: 0.67 | P95: 0.01995833333 | Q95: 0.9255442484 | R95: 0.4267515924
C96: 11 | D96: 1.0138 | E96: 87.2682151 | F96: 87.28209878 | G96: 76.58 | H96: 1.47 | I96: 0.02127222222 | K96: 1.0099 | L96: 87.27549089 | M96: 87.28871743 | N96: 70.26 | O96: 0.63 | P96: 0.01951666667 | Q96: 0.9174719248 | R96: 0.4285714286
C97: 13.5 | D97: 0.8251 | E97: 85.78256278 | F97: 85.80017777 | G97: 76.02 | H97: 1.44 | I97: 0.02111666667 | K97: 0.8219 | L97: 85.79924995 | M97: 85.81706831 | N97: 69.71 | O97: 0.6 | P97: 0.01936388889 | Q97: 0.9169955275 | R97: 0.4166666667
C98: 16 | D98: 0.6875 | E98: 84.59145988 | F98: 84.61534492 | G98: 74.35 | H98: 1.41 | I98: 0.02065277778 | K98: 0.6829 | L98: 84.59896851 | M98: 84.6218446 | N98: 68.77 | O98: 0.57 | P98: 0.01910277778 | Q98: 0.9249495629 | R98: 0.4042553191
C99: 19 | D99: 0.5626 | E99: 83.40056132 | F99: 83.43062456 | G99: 73.68 | H99: 1.43 | I99: 0.02046666667 | K99: 0.5588 | L99: 83.41964577 | M99: 83.45295732 | N99: 67.75 | O99: 0.54 | P99: 0.01881944444 | Q99: 0.9195168295 | R99: 0.3776223776
C100: 22 | D100: 0.4724 | E100: 82.43104524 | F100: 82.46711024 | G100: 72.74 | H100: 1.37 | I100: 0.02020555556 | K100: 0.4683 | L100: 82.45977549 | M100: 82.49752854 | N100: 66.89 | O100: 0.52 | P100: 0.01858055556 | Q100: 0.9195765741 | R100: 0.3795620438
B101: l08.dat | C101: 1 | D101: 6.2556 | E101: 0 | F101: 0 | G101: 99.59 | H101: 1.62 | I101: 0.02766388889 | K101: 6.255 | L101: 0 | M101: 0 | N101: 90.8 | O101: 1.11 | P101: 0.02522222222 | Q101: 0.9117381263 | R101: 0.6851851852 | V101: =($K101/$D101-1) -> -9.5914061e-05
C102: 1.125 | D102: 6.342 | E102: 119.9194173 | F102: 121.2870432 | G102: 98.03 | H102: 1.12 | I102: 0.02723055556 | K102: 6.3414 | L102: 119.8495313 | M102: 120.7960186 | N102: 88.93 | O102: 1.05 | P102: 0.02470277778 | Q102: 0.9071712741 | R102: 0.9375 | T102: =bdrate($D102:$D114,E102:E114,$K102:$K114,L102:L114) -> -4.369649012e-05 | U102: =bdrate($D102:$D114,F102:F114,$K102:$K114,M102:M114) -> 0.0002268445651
C103: 1.5 | D103: 5.789 | E103: 102.9520795 | F103: 102.9569086 | G103: 92.99 | H103: 2.36 | I103: 0.02583055556 | K103: 5.798 | L103: 103.039231 | M103: 103.045415 | N103: 84.92 | O103: 1.73 | P103: 0.02358888889 | Q103: 0.9132164749 | R103: 0.7330508475
C104: 2 | D104: 5.293 | E104: 100.2598136 | F104: 100.261142 | G104: 91.51 | H104: 2.04 | I104: 0.02541944444 | K104: 5.3017 | L104: 100.3260196 | M104: 100.3278317 | N104: 83.47 | O104: 1.47 | P104: 0.02318611111 | Q104: 0.9121407496 | R104: 0.7205882353
C105: 3 | D105: 4.6909 | E105: 98.12687654 | F105: 98.12744369 | G105: 89.7 | H105: 1.75 | I105: 0.02491666667 | K105: 4.6912 | L105: 98.1174927 | M105: 98.11807449 | N105: 81.88 | O105: 1.04 | P105: 0.02274444444 | Q105: 0.9128205128 | R105: 0.5942857143
C106: 4 | D106: 4.2408 | E106: 94.9265438 | F106: 94.92684358 | G106: 89.3 | H106: 1.82 | I106: 0.02480555556 | K106: 4.2399 | L106: 94.93506195 | M106: 94.93545773 | N106: 81.67 | O106: 1.13 | P106: 0.02268611111 | Q106: 0.9145576708 | R106: 0.6208791209
C107: 5.5 | D107: 3.7578 | E107: 92.25904575 | F107: 92.25945034 | G107: 87.54 | H107: 1.73 | I107: 0.02431666667 | K107: 3.7611 | L107: 92.27260758 | M107: 92.27306657 | N107: 79.79 | O107: 1.03 | P107: 0.02216388889 | Q107: 0.9114690427 | R107: 0.5953757225
C108: 7 | D108: 3.4223 | E108: 90.37401959 | F108: 90.37445464 | G108: 86.69 | H108: 1.67 | I108: 0.02408055556 | K108: 3.4252 | L108: 90.39481477 | M108: 90.39525795 | N108: 79.37 | O108: 0.99 | P108: 0.02204722222 | Q108: 0.9155611951 | R108: 0.5928143713
C109: 9 | D109: 3.0548 | E109: 88.23676796 | F109: 88.23748649 | G109: 85.4 | H109: 1.63 | I109: 0.02372222222 | K109: 3.0572 | L109: 88.25452685 | M109: 88.2552345 | N109: 78.51 | O109: 0.94 | P109: 0.02180833333 | Q109: 0.9193208431 | R109: 0.5766871166
C110: 11 | D110: 2.7614 | E110: 86.54143509 | F110: 86.54308077 | G110: 84.33 | H110: 1.62 | I110: 0.023425 | K110: 2.7639 | L110: 86.55095664 | M110: 86.55243565 | N110: 77.18 | O110: 0.91 | P110: 0.02143888889 | Q110: 0.9152140401 | R110: 0.5617283951
C111: 13.5 | D111: 2.4779 | E111: 84.85564427 | F111: 84.85872545 | G111: 83.29 | H111: 1.59 | I111: 0.02313611111 | K111: 2.4801 | L111: 84.87769522 | M111: 84.88056644 | N111: 76.46 | O111: 0.87 | P111: 0.02123888889 | Q111: 0.9179973586 | R111: 0.5471698113
C112: 16 | D112: 2.2523 | E112: 83.5008266 | F112: 83.50502749 | G112: 82.31 | H112: 1.56 | I112: 0.02286388889 | K112: 2.2553 | L112: 83.51452345 | M112: 83.51833884 | N112: 75.79 | O112: 0.83 | P112: 0.02105277778 | Q112: 0.9207872676 | R112: 0.5320512821
C113: 19 | D113: 2.0368 | E113: 82.14302851 | F113: 82.14873988 | G113: 81.25 | H113: 1.53 | I113: 0.02256944444 | K113: 2.0382 | L113: 82.15539269 | M113: 82.160544 | N113: 75.29 | O113: 0.79 | P113: 0.02091388889 | Q113: 0.9266461538 | R113: 0.5163398693
C114: 22 | D114: 1.8577 | E114: 80.97381471 | F114: 80.98125031 | G114: 80.48 | H114: 1.5 | I114: 0.02235555556 | K114: 1.8591 | L114: 80.98872523 | M114: 80.99565289 | N114: 74.11 | O114: 0.75 | P114: 0.02058611111 | Q114: 0.9208499006 | R114: 0.5
B115: l09.dat | C115: 1 | D115: 4.5791 | E115: 0 | F115: 0 | G115: 94.86 | H115: 1.74 | I115: 0.02635 | K115: 4.5754 | L115: 0 | M115: 0 | N115: 86.57 | O115: 0.99 | P115: 0.02404722222 | Q115: 0.912608054 | R115: 0.5689655172 | V115: =($K115/$D115-1) -> -0.000808019043
C116: 1.125 | D116: 4.7247 | E116: 115.184776 | F116: 118.0068813 | G116: 93.61 | H116: 1.05 | I116: 0.02600277778 | K116: 4.72 | L116: 115.0357706 | M116: 117.8565747 | N116: 85.67 | O116: 0.87 | P116: 0.02379722222 | Q116: 0.9151800021 | R116: 0.8285714286 | T116: =bdrate($D116:$D128,E116:E128,$K116:$K128,L116:L128) -> -0.002967428622 | U116: =bdrate($D116:$D128,F116:F128,$K116:$K128,M116:M128) -> -0.002759677283
C117: 1.5 | D117: 4.0599 | E117: 102.9711948 | F117: 102.9818114 | G117: 88.16 | H117: 2.08 | I117: 0.02448888889 | K117: 4.0656 | L117: 103.0714595 | M117: 103.0800054 | N117: 80.09 | O117: 1.19 | P117: 0.02224722222 | Q117: 0.9084618875 | R117: 0.5721153846
C118: 2 | D118: 3.5475 | E118: 100.3059177 | F118: 100.3107061 | G118: 86.28 | H118: 1.9 | I118: 0.02396666667 | K118: 3.5527 | L118: 100.3634357 | M118: 100.369117 | N118: 79.23 | O118: 1.04 | P118: 0.02200833333 | Q118: 0.9182892907 | R118: 0.5473684211
C119: 3 | D119: 2.9717 | E119: 97.79276096 | F119: 97.80168358 | G119: 84.82 | H119: 1.68 | I119: 0.02356111111 | K119: 2.9669 | L119: 97.79407392 | M119: 97.80299674 | N119: 78.54 | O119: 0.85 | P119: 0.02181666667 | Q119: 0.9259608583 | R119: 0.505952381
C120: 4 | D120: 2.4572 | E120: 94.87373552 | F120: 94.8739689 | G120: 83.52 | H120: 1.8 | I120: 0.0232 | K120: 2.4557 | L120: 94.89283678 | M120: 94.89312928 | N120: 76.84 | O120: 0.88 | P120: 0.02134444444 | Q120: 0.9200191571 | R120: 0.4888888889
C121: 5.5 | D121: 1.9938 | E121: 92.33915725 | F121: 92.34101661 | G121: 81.53 | H121: 1.75 | I121: 0.02264722222 | K121: 1.9903 | L121: 92.34946112 | M121: 92.35111951 | N121: 75.4 | O121: 0.82 | P121: 0.02094444444 | Q121: 0.9248129523 | R121: 0.4685714286
C122: 7 | D122: 1.6781 | E122: 90.47678072 | F122: 90.47950642 | G122: 80.29 | H122: 1.7 | I122: 0.02230277778 | K122: 1.6732 | L122: 90.48970435 | M122: 90.49228017 | N122: 73.92 | O122: 0.76 | P122: 0.02053333333 | Q122: 0.9206625981 | R122: 0.4470588235
C123: 9 | D123: 1.3744 | E123: 88.54198188 | F123: 88.54678577 | G123: 78.8 | H123: 1.64 | I123: 0.02188888889 | K123: 1.3694 | L123: 88.54916429 | M123: 88.55393695 | N123: 72.63 | O123: 0.7 | P123: 0.020175 | Q123: 0.9217005076 | R123: 0.4268292683
C124: 11 | D124: 1.1515 | E124: 86.98650967 | F124: 86.99432129 | G124: 77.51 | H124: 1.6 | I124: 0.02153055556 | K124: 1.1472 | L124: 87.00313141 | M124: 87.01119204 | N124: 71.48 | O124: 0.67 | P124: 0.01985555556 | Q124: 0.9222035866 | R124: 0.41875
C125: 13.5 | D125: 0.9449 | E125: 85.42986907 | F125: 85.4434344 | G125: 76.35 | H125: 1.55 | I125: 0.02120833333 | K125: 0.9388 | L125: 85.43026848 | M125: 85.44267223 | N125: 70.75 | O125: 0.64 | P125: 0.01965277778 | Q125: 0.9266535691 | R125: 0.4129032258
C126: 16 | D126: 0.7872 | E126: 84.14568375 | F126: 84.1661165 | G126: 75.3 | H126: 1.52 | I126: 0.02091666667 | K126: 0.7812 | L126: 84.15685916 | M126: 84.17648184 | N126: 70.48 | O126: 0.61 | P126: 0.01957777778 | Q126: 0.9359893758 | R126: 0.4013157895
C127: 19 | D127: 0.6472 | E127: 82.89384471 | F127: 82.92049754 | G127: 74.27 | H127: 1.49 | I127: 0.02063055556 | K127: 0.6399 | L127: 82.90292237 | M127: 82.93184773 | N127: 68.8 | O127: 0.58 | P127: 0.01911111111 | Q127: 0.9263498048 | R127: 0.389261745
C128: 22 | D128: 0.5431 | E128: 81.88423618 | F128: 81.92021076 | G128: 73.72 | H128: 1.46 | I128: 0.02047777778 | K128: 0.5375 | L128: 81.91149986 | M128: 81.94958162 | N128: 68.05 | O128: 0.55 | P128: 0.01890277778 | Q128: 0.9230873576 | R128: 0.3767123288
B129: l10.dat | C129: 1 | D129: 5.014 | E129: 0 | F129: 0 | G129: 95.61 | H129: 1.77 | I129: 0.02655833333 | K129: 5.0098 | L129: 0 | M129: 0 | N129: 87.6 | O129: 1.06 | P129: 0.02433333333 | Q129: 0.9162221525 | R129: 0.5988700565 | V129: =($K129/$D129-1) -> -0.0008376545672
C130: 1.125 | D130: 5.1877 | E130: 118.413941 | F130: 123.9995936 | G130: 94.32 | H130: 1.02 | I130: 0.0262 | K130: 5.1846 | L130: 118.1302257 | M130: 124.7227851 | N130: 86.16 | O130: 0.95 | P130: 0.02393333333 | Q130: 0.9134860051 | R130: 0.931372549 | T130: =bdrate($D130:$D142,E130:E142,$K130:$K142,L130:L142) -> -0.001886754858 | U130: =bdrate($D130:$D142,F130:F142,$K130:$K142,M130:M142) -> -0.002504556577
C131: 1.5 | D131: 4.5143 | E131: 103.1375996 | F131: 103.1448266 | G131: 88.69 | H131: 2.16 | I131: =G131/3600 -> 0.02463611111 | K131: 4.5217 | L131: 103.2507174 | M131: 103.2553572 | N131: 81.18 | O131: 1.31 | P131: =N131/3600 -> 0.02255 | Q131: =N131/G131 -> 0.9153230353 | R131: =O131/H131 -> 0.6064814815
C132: 2 | D132: 4.0203 | E132: 100.4656734 | F132: 100.4711064 | G132: 87.49 | H132: 1.98 | I132: 0.02430277778 | K132: 4.0244 | L132: 100.5203338 | M132: 100.5261016 | N132: 80.37 | O132: 1.16 | P132: 0.022325 | Q132: 0.9186192708 | R132: 0.5858585859
C133: 3 | D133: 3.4321 | E133: 98.02970771 | F133: 98.03371139 | G133: 86.05 | H133: 1.68 | I133: 0.02390277778 | K133: 3.4283 | L133: 98.03211775 | M133: 98.03605829 | N133: 79.16 | O133: 0.88 | P133: 0.02198888889 | Q133: 0.9199302731 | R133: 0.5238095238
C134: 4 | D134: 2.9194 | E134: 94.92840984 | F134: 94.92976009 | G134: 84.97 | H134: 1.85 | I134: 0.02360277778 | K134: 2.919 | L134: 94.95318329 | M134: 94.95459327 | N134: 78.36 | O134: 0.95 | P134: 0.02176666667 | Q134: 0.9222078381 | R134: 0.5135135135
C135: 5.5 | D135: 2.4258 | E135: 92.27557105 | F135: 92.27589768 | G135: 83.52 | H135: 1.81 | I135: 0.0232 | K135: 2.4223 | L135: 92.28798228 | M135: 92.28834074 | N135: 76.62 | O135: 0.89 | P135: 0.02128333333 | Q135: 0.9173850575 | R135: 0.4917127072
C136: 7 | D136: 2.0757 | E136: 90.31752869 | F136: 90.31884121 | G136: 82.04 | H136: 1.77 | I136: 0.02278888889 | K136: 2.0725 | L136: 90.32922854 | M136: 90.33041017 | N136: 75.8 | O136: 0.83 | P136: 0.02105555556 | Q136: 0.9239395417 | R136: 0.4689265537
C137: 9 | D137: 1.7373 | E137: 88.30535536 | F137: 88.30849497 | G137: 80.6 | H137: 1.7 | I137: 0.02238888889 | K137: 1.734 | L137: 88.32291032 | M137: 88.3259171 | N137: 74.39 | O137: 0.77 | P137: 0.02066388889 | Q137: 0.9229528536 | R137: 0.4529411765
C138: 11 | D138: 1.4857 | E138: 86.71215765 | F138: 86.71749552 | G138: 79.51 | H138: 1.66 | I138: 0.02208611111 | K138: 1.4799 | L138: 86.72360987 | M138: 86.72839424 | N138: 73.97 | O138: 0.74 | P138: 0.02054722222 | Q138: 0.9303232298 | R138: 0.4457831325
C139: 13.5 | D139: 1.2453 | E139: 85.09698084 | F139: 85.10561132 | G139: 77.9 | H139: 1.61 | I139: 0.02163888889 | K139: 1.2393 | L139: 85.10011752 | M139: 85.10842939 | N139: 72.43 | O139: 0.69 | P139: 0.02011944444 | Q139: 0.9297817715 | R139: 0.4285714286
C140: 16 | D140: 1.0607 | E140: 83.77053925 | F140: 83.78314417 | G140: 77.16 | H140: 1.56 | I140: 0.02143333333 | K140: 1.0554 | L140: 83.77674654 | M140: 83.78939158 | N140: 71.4 | O140: 0.65 | P140: 0.01983333333 | Q140: 0.9253499222 | R140: 0.4166666667
C141: 19 | D141: 0.8896 | E141: 82.46451944 | F141: 82.48404142 | G141: 76.04 | H141: 1.55 | I141: 0.02112222222 | K141: 0.8831 | L141: 82.46966435 | M141: 82.48901918 | N141: 70.56 | O141: 0.62 | P141: 0.0196 | Q141: 0.927932667 | R141: 0.4
C142: 22 | D142: 0.7556 | E142: 81.37794191 | F142: 81.40405799 | G142: 75.08 | H142: 1.53 | I142: 0.02085555556 | K142: 0.7492 | L142: 81.39072865 | M142: 81.41771334 | N142: 69.56 | O142: 0.6 | P142: 0.01932222222 | Q142: 0.926478423 | R142: 0.3921568627
B143: l11.dat | C143: 1 | D143: 2.9233 | E143: 0 | F143: 0 | G143: 90.18 | H143: 1.66 | I143: 0.02505 | K143: 2.9066 | L143: 0 | M143: 0 | N143: 82.38 | O143: 0.72 | P143: 0.02288333333 | Q143: 0.9135063207 | R143: 0.4337349398 | V143: =($K143/$D143-1) -> -0.005712721924
C144: 1.125 | D144: 2.936 | E144: 115.2395777 | F144: 115.7163823 | G144: 89.81 | H144: 1.69 | I144: 0.02494722222 | K144: 2.9221 | L144: 115.3734037 | M144: 115.8635364 | N144: 81.19 | O144: 0.75 | P144: 0.02255277778 | Q144: 0.9040195969 | R144: 0.4437869822 | T144: =bdrate($D144:$D156,E144:E156,$K144:$K156,L144:L156) -> -0.01447581314 | U144: =bdrate($D144:$D156,F144:F156,$K144:$K156,M144:M156) -> -0.01448549958
C145: 1.5 | D145: 2.212 | E145: 102.0004955 | F145: 102.0007252 | G145: 83.42 | H145: 1.86 | I145: 0.02317222222 | K145: 2.207 | L145: 102.066975 | M145: 102.0672241 | N145: 75.92 | O145: 0.86 | P145: 0.02108888889 | Q145: 0.9100935028 | R145: 0.4623655914
C146: 2 | D146: 1.7345 | E146: 99.92950136 | F146: 99.93069122 | G146: 81.5 | H146: 1.78 | I146: 0.02263888889 | K146: 1.72 | L146: 99.93384977 | M146: 99.93489208 | N146: 74.36 | O146: 0.76 | P146: 0.02065555556 | Q146: 0.912392638 | R146: 0.4269662921
C147: 3 | D147: 1.3042 | E147: 97.44833876 | F147: 97.44929359 | G147: 79.19 | H147: 1.75 | I147: 0.02199722222 | K147: 1.2906 | L147: 97.44483073 | M147: 97.44595672 | N147: 72.32 | O147: 0.72 | P147: 0.02008888889 | Q147: 0.913246622 | R147: 0.4114285714
C148: 4 | D148: 1.0238 | E148: 95.52102678 | F148: 95.52345929 | G148: 77.24 | H148: 1.7 | I148: 0.02145555556 | K148: 1.0075 | L148: 95.51789751 | M148: 95.52055157 | N148: 70.07 | O148: 0.65 | P148: 0.01946388889 | Q148: 0.9071724495 | R148: 0.3823529412
C149: 5.5 | D149: 0.7755 | E149: 93.35835552 | F149: 93.36772567 | G149: 75.44 | H149: 1.66 | I149: 0.02095555556 | K149: 0.7607 | L149: 93.3563161 | M149: 93.3658254 | N149: 68.76 | O149: 0.61 | P149: 0.0191 | Q149: 0.9114528102 | R149: 0.3674698795
C150: 7 | D150: 0.6223 | E150: 91.62602486 | F150: 91.64483049 | G150: 74.36 | H150: 1.59 | I150: 0.02065555556 | K150: 0.6084 | L150: 91.63646503 | M150: 91.65479987 | N150: 67.71 | O150: 0.58 | P150: 0.01880833333 | Q150: 0.910570199 | R150: 0.3647798742
C151: 9 | D151: 0.4933 | E151: 90.02236375 | F151: 90.05759098 | G151: 73.12 | H151: 1.54 | I151: 0.02031111111 | K151: 0.4813 | L151: 90.05332907 | M151: 90.0910358 | N151: 67.17 | O151: 0.56 | P151: 0.01865833333 | Q151: 0.9186269147 | R151: 0.3636363636
C152: 11 | D152: 0.4104 | E152: 88.73083384 | F152: 88.78085803 | G152: 72.67 | H152: 1.5 | I152: 0.02018611111 | K152: 0.3991 | L152: 88.79500957 | M152: 88.84839225 | N152: 66.31 | O152: 0.54 | P152: 0.01841944444 | Q152: 0.9124810788 | R152: 0.36
C153: 13.5 | D153: 0.3411 | E153: 87.51414482 | F153: 87.56867188 | G153: 71.84 | H153: 1.47 | I153: 0.01995555556 | K153: 0.3324 | L153: 87.57967394 | M153: 87.64016203 | N153: 65.89 | O153: 0.51 | P153: 0.01830277778 | Q153: 0.9171770601 | R153: 0.3469387755
C154: 16 | D154: 0.2953 | E154: 86.43971987 | F154: 86.4913167 | G154: 71.24 | H154: 1.42 | I154: 0.01978888889 | K154: 0.2882 | L154: 86.50248555 | M154: 86.56641275 | N154: 65.73 | O154: 0.49 | P154: 0.01825833333 | Q154: 0.9226558113 | R154: 0.3450704225
C155: 19 | D155: 0.2578 | E155: 85.33533246 | F155: 85.38986148 | G155: 70.86 | H155: 1.37 | I155: 0.01968333333 | K155: 0.2518 | L155: 85.41385916 | M155: 85.47287268 | N155: 65.25 | O155: 0.49 | P155: 0.018125 | Q155: 0.9208298052 | R155: 0.3576642336
C156: 22 | D156: 0.2302 | E156: 84.40623673 | F156: 84.44878708 | G156: 70.44 | H156: 1.34 | I156: 0.01956666667 | K156: 0.2248 | L156: 84.53306087 | M156: 84.58935965 | N156: 64.69 | O156: 0.47 | P156: 0.01796944444 | Q156: 0.9183702442 | R156: 0.3507462687
B157: l12.dat | C157: 1 | D157: 5.9776 | E157: 0 | F157: 0 | G157: 98.82 | H157: 1.77 | I157: 0.02745 | K157: 5.9743 | L157: 0 | M157: 0 | N157: 90.25 | O157: 1.18 | P157: 0.02506944444 | Q157: 0.9132766646 | R157: 0.6666666667 | V157: =($K157/$D157-1) -> -0.0005520610278
C158: 1.125 | D158: 6.1522 | E158: 120.5292755 | F158: 122.0714754 | G158: 97.49 | H158: 1.13 | I158: 0.02708055556 | K158: 6.1487 | L158: 120.1192038 | M158: 123.5281961 | N158: 88.45 | O158: 1.1 | P158: 0.02456944444 | Q158: 0.9072725408 | R158: 0.9734513274 | T158: =bdrate($D158:$D170,E158:E170,$K158:$K170,L158:L170) -> -0.0006624614992 | U158: =bdrate($D158:$D170,F158:F170,$K158:$K170,M158:M170) -> -0.001948161899
C159: 1.5 | D159: 5.4956 | E159: 102.7091173 | F159: 102.7162458 | G159: 91.95 | H159: 2.2 | I159: 0.02554166667 | K159: 5.5187 | L159: 102.9251457 | M159: 102.9310746 | N159: 84 | O159: 1.58 | P159: 0.02333333333 | Q159: 0.9135399674 | R159: 0.7181818182
C160: 2 | D160: 4.9874 | E160: 100.0199841 | F160: 100.0209345 | G160: 91.31 | H160: 1.88 | I160: 0.02536388889 | K160: 4.9998 | L160: 100.1193012 | M160: 100.1211258 | N160: 83.26 | O160: 1.26 | P160: 0.02312777778 | Q160: 0.9118387909 | R160: 0.670212766
C161: 3 | D161: 4.3935 | E161: 98.18665464 | F161: 98.18669578 | G161: 88.98 | H161: 1.65 | I161: 0.02471666667 | K161: 4.3896 | L161: 98.17703554 | M161: 98.17711119 | N161: 81.74 | O161: 0.99 | P161: 0.02270555556 | Q161: 0.9186334008 | R161: 0.6
C162: 4 | D162: 3.9158 | E162: 94.79348438 | F162: 94.79361452 | G162: 87.91 | H162: 1.66 | I162: 0.02441944444 | K162: 3.9145 | L162: 94.80328427 | M162: 94.80345313 | N162: 80.8 | O162: 0.97 | P162: 0.02244444444 | Q162: 0.9191218291 | R162: 0.5843373494
C163: 5.5 | D163: 3.4322 | E163: 92.17192491 | F163: 92.17211351 | G163: 86.61 | H163: 1.64 | I163: 0.02405833333 | K163: 3.4301 | L163: 92.19512718 | M163: 92.19533614 | N163: 79.56 | O163: 0.93 | P163: 0.0221 | Q163: 0.9186006235 | R163: 0.5670731707
C164: 7 | D164: 3.0827 | E164: 90.27175337 | F164: 90.27214743 | G164: 85.45 | H164: 1.65 | I164: 0.02373611111 | K164: 3.0813 | L164: 90.30074345 | M164: 90.30117612 | N164: 78.57 | O164: 0.91 | P164: 0.021825 | Q164: 0.919485079 | R164: 0.5515151515
C165: 9 | D165: 2.7069 | E165: 88.14799669 | F165: 88.15002802 | G165: 83.94 | H165: 1.62 | I165: 0.02331666667 | K165: 2.7051 | L165: 88.17883513 | M165: 88.18107193 | N165: 77.13 | O165: 0.87 | P165: 0.021425 | Q165: 0.9188706219 | R165: 0.537037037
C166: 11 | D166: 2.424 | E166: 86.52895684 | F166: 86.53248765 | G166: 83.14 | H166: 1.59 | I166: 0.02309444444 | K166: 2.4228 | L166: 86.55810313 | M166: 86.56122523 | N166: 76.05 | O166: 0.84 | P166: 0.021125 | Q166: 0.9147221554 | R166: 0.5283018868
C167: 13.5 | D167: 2.1527 | E167: 84.92488548 | F167: 84.92939443 | G167: 81.71 | H167: 1.56 | I167: 0.02269722222 | K167: 2.152 | L167: 84.9411331 | M167: 84.94549919 | N167: 75.37 | O167: 0.8 | P167: 0.02093611111 | Q167: 0.9224085179 | R167: 0.5128205128
C168: 16 | D168: 1.9427 | E168: 83.61865707 | F168: 83.6234037 | G168: 80.89 | H168: 1.54 | I168: 0.02246944444 | K168: 1.9413 | L168: 83.63678614 | M168: 83.64161274 | N168: 74.14 | O168: 0.78 | P168: 0.02059444444 | Q168: 0.916553344 | R168: 0.5064935065
C169: 19 | D169: 1.7381 | E169: 82.28762528 | F169: 82.29219199 | G169: 79.91 | H169: 1.51 | I169: 0.02219722222 | K169: 1.7354 | L169: 82.3017297 | M169: 82.30597773 | N169: 73.34 | O169: 0.74 | P169: 0.02037222222 | Q169: 0.9177825053 | R169: 0.4900662252
C170: 22 | D170: 1.5717 | E170: 81.16812014 | F170: 81.17287593 | G170: 79.06 | H170: 1.49 | I170: 0.02196111111 | K170: 1.5682 | L170: 81.17401962 | M170: 81.17863518 | N170: 73.03 | O170: 0.71 | P170: 0.02028611111 | Q170: 0.9237288136 | R170: 0.4765100671
B171: l13.dat | C171: 1 | D171: 3.2591 | E171: 0 | F171: 0 | G171: 91.81 | H171: 1.63 | I171: 0.02550277778 | K171: 3.2449 | L171: 0 | M171: 0 | N171: 82.2 | O171: 0.74 | P171: 0.02283333333 | Q171: 0.8953273064 | R171: 0.4539877301 | V171: =($K171/$D171-1) -> -0.004357031082
C172: 1.125 | D172: 3.2439 | E172: 112.1250792 | F172: 112.3639717 | G172: 91.15 | H172: 1.72 | I172: 0.02531944444 | K172: 3.2294 | L172: 112.239394 | M172: 112.4874732 | N172: 81.46 | O172: 0.8 | P172: 0.02262777778 | Q172: 0.893691717 | R172: 0.4651162791 | T172: =bdrate($D172:$D184,E172:E184,$K172:$K184,L172:L184) -> -0.01756028129 | U172: =bdrate($D172:$D184,F172:F184,$K172:$K184,M172:M184) -> -0.01748603912
C173: 1.5 | D173: 2.6184 | E173: 102.0516769 | F173: 102.0567756 | G173: 85.11 | H173: 1.9 | I173: 0.02364166667 | K173: 2.6085 | L173: 102.1391864 | M173: 102.1442515 | N173: 76.1 | O173: 0.92 | P173: 0.02113888889 | Q173: 0.8941369992 | R173: 0.4842105263
C174: 2 | D174: 2.089 | E174: 99.7871442 | F174: 99.78807897 | G174: 83.48 | H174: 1.77 | I174: 0.02318888889 | K174: 2.0738 | L174: 99.81305968 | M174: 99.81413196 | N174: 74.71 | O174: 0.78 | P174: 0.02075277778 | Q174: 0.894944897 | R174: 0.4406779661
C175: 3 | D175: 1.5957 | E175: 97.22294024 | F175: 97.22372631 | G175: 81.45 | H175: 1.73 | I175: 0.022625 | K175: 1.5709 | L175: 97.2177268 | M175: 97.21838291 | N175: 72.42 | O175: 0.72 | P175: 0.02011666667 | Q175: 0.8891344383 | R175: 0.4161849711
C176: 4 | D176: 1.2396 | E176: 95.03534954 | F176: 95.03677163 | G176: 79.22 | H176: 1.66 | I176: 0.02200555556 | K176: 1.2175 | L176: 95.04401594 | M176: 95.04533381 | N176: 70.95 | O176: 0.68 | P176: 0.01970833333 | Q176: 0.8956071699 | R176: 0.4096385542
C177: 5.5 | D177: 0.9459 | E177: 92.76165842 | F177: 92.76666193 | G177: 77.22 | H177: 1.63 | I177: 0.02145 | K177: 0.9254 | L177: 92.76848415 | M177: 92.77349652 | N177: 69.08 | O177: 0.63 | P177: 0.01918888889 | Q177: 0.8945868946 | R177: 0.3865030675
C178: 7 | D178: 0.7724 | E178: 91.09385038 | F178: 91.10153912 | G178: 75.85 | H178: 1.59 | I178: 0.02106944444 | K178: 0.7536 | L178: 91.12104996 | M178: 91.12899879 | N178: 67.78 | O178: 0.6 | P178: 0.01882777778 | Q178: 0.8936058009 | R178: 0.3773584906
C179: 9 | D179: 0.6289 | E179: 89.4965836 | F179: 89.51071102 | G179: 74.57 | H179: 1.54 | I179: 0.02071388889 | K179: 0.6109 | L179: 89.53110742 | M179: 89.54632499 | N179: 66.55 | O179: 0.57 | P179: 0.01848611111 | Q179: 0.8924500469 | R179: 0.3701298701
C180: 11 | D180: 0.5379 | E180: 88.21643901 | F180: 88.23421185 | G180: 73.58 | H180: 1.51 | I180: 0.02043888889 | K180: 0.5219 | L180: 88.25159633 | M180: 88.2696329 | N180: 65.86 | O180: 0.56 | P180: 0.01829444444 | Q180: 0.8950801848 | R180: 0.3708609272
C181: 13.5 | D181: 0.4603 | E181: 86.91330108 | F181: 86.93578975 | G181: 72.86 | H181: 1.48 | I181: 0.02023888889 | K181: 0.4466 | L181: 86.95369177 | M181: 86.97872289 | N181: 65.39 | O181: 0.53 | P181: 0.01816388889 | Q181: 0.8974746088 | R181: 0.3581081081
C182: 16 | D182: 0.4057 | E182: 85.78882976 | F182: 85.81657236 | G182: 72.35 | H182: 1.45 | I182: 0.02009722222 | K182: 0.3943 | L182: 85.88932005 | M182: 85.91950869 | N182: 64.93 | O182: 0.52 | P182: 0.01803611111 | Q182: 0.8974429855 | R182: 0.3586206897
C183: 19 | D183: 0.3582 | E183: 84.59201192 | F183: 84.61800125 | G183: 72.03 | H183: 1.41 | I183: 0.02000833333 | K183: 0.3482 | L183: 84.68285682 | M183: 84.70752777 | N183: 64.88 | O183: 0.51 | P183: 0.01802222222 | Q183: 0.9007358045 | R183: 0.3617021277
C184: 22 | D184: 0.3222 | E184: 83.65268149 | F184: 83.68718545 | G184: 71.53 | H184: 1.4 | I184: 0.01986944444 | K184: 0.3153 | L184: 83.72229257 | M184: 83.7578351 | N184: 64.33 | O184: 0.5 | P184: 0.01786944444 | Q184: 0.899342933 | R184: 0.3571428571
B185: l14.dat | C185: 1 | D185: 3.3156 | E185: 0 | F185: 0 | G185: 91.48 | H185: 1.58 | I185: 0.02541111111 | K185: 3.3029 | L185: 0 | M185: 0 | N185: 82.18 | O185: 0.76 | P185: 0.02282777778 | Q185: 0.8983384346 | R185: 0.4810126582 | V185: =($K185/$D185-1) -> -0.003830377609
C186: 1.125 | D186: 3.3066 | E186: 112.354324 | F186: 112.7133029 | G186: 90.98 | H186: 1.65 | I186: 0.02527222222 | K186: 3.2936 | L186: 112.4426425 | M186: 112.796913 | N186: 81.68 | O186: 0.8 | P186: 0.02268888889 | Q186: 0.8977797318 | R186: 0.4848484848 | T186: =bdrate($D186:$D198,E186:E198,$K186:$K198,L186:L198) -> -0.01393240671 | U186: =bdrate($D186:$D198,F186:F198,$K186:$K198,M186:M198) -> -0.01382775632
C187: 1.5 | D187: 2.6645 | E187: 101.962085 | F187: 101.9671879 | G187: 85.26 | H187: 1.88 | I187: 0.02368333333 | K187: 2.6579 | L187: 102.058709 | M187: 102.0638416 | N187: 76.13 | O187: 0.94 | P187: 0.02114722222 | Q187: 0.892915787 | R187: 0.5
C188: 2 | D188: 2.1559 | E188: 99.81775935 | F188: 99.81870784 | G188: 83.38 | H188: 1.75 | I188: 0.02316111111 | K188: 2.1422 | L188: 99.8425111 | M188: 99.84333012 | N188: 75.12 | O188: 0.81 | P188: 0.02086666667 | Q188: 0.9009354761 | R188: 0.4628571429
C189: 3 | D189: 1.6483 | E189: 97.26382184 | F189: 97.26481598 | G189: 81.13 | H189: 1.73 | I189: 0.02253611111 | K189: 1.6279 | L189: 97.26000021 | M189: 97.26108228 | N189: 72.7 | O189: 0.75 | P189: 0.02019444444 | Q189: 0.8960926907 | R189: 0.4335260116
C190: 4 | D190: 1.3037 | E190: 95.11427189 | F190: 95.11538239 | G190: 78.88 | H190: 1.66 | I190: 0.02191111111 | K190: 1.2847 | L190: 95.12411677 | M190: 95.12521315 | N190: 70.6 | O190: 0.69 | P190: 0.01961111111 | Q190: 0.895030426 | R190: 0.4156626506
C191: 5.5 | D191: 1.0067 | E191: 92.88135964 | F191: 92.8861781 | G191: 77.16 | H191: 1.61 | I191: 0.02143333333 | K191: 0.9912 | L191: 92.88869545 | M191: 92.89341826 | N191: 69.03 | O191: 0.64 | P191: 0.019175 | Q191: 0.8946345257 | R191: 0.397515528
C192: 7 | D192: 0.8251 | E192: 91.22875101 | F192: 91.23756653 | G192: 75.78 | H192: 1.57 | I192: 0.02105 | K192: 0.8105 | L192: 91.25898564 | M192: 91.269147 | N192: 67.94 | O192: 0.61 | P192: 0.01887222222 | Q192: 0.8965426234 | R192: 0.3885350318
C193: 9 | D193: 0.6671 | E193: 89.52954759 | F193: 89.54726086 | G193: 74.6 | H193: 1.52 | I193: 0.02072222222 | K193: 0.6535 | L193: 89.56952168 | M193: 89.58961869 | N193: 66.89 | O193: 0.58 | P193: 0.01858055556 | Q193: 0.8966487936 | R193: 0.3815789474
C194: 11 | D194: 0.5648 | E194: 88.20409047 | F194: 88.22550897 | G194: 73.51 | H194: 1.5 | I194: 0.02041944444 | K194: 0.5523 | L194: 88.24127901 | M194: 88.2630589 | N194: 66.36 | O194: 0.56 | P194: 0.01843333333 | Q194: 0.9027343219 | R194: 0.3733333333
C195: 13.5 | D195: 0.4805 | E195: 86.88844285 | F195: 86.90983834 | G195: 72.65 | H195: 1.44 | I195: =G195/3600 -> 0.02018055556 | K195: 0.4696 | L195: 86.9423025 | M195: 86.96564512 | N195: 65.05 | O195: 0.53 | P195: =N195/3600 -> 0.01806944444 | Q195: =N195/G195 -> 0.8953888507 | R195: =O195/H195 -> 0.3680555556
C196: 16 | D196: 0.4214 | E196: 85.76387477 | F196: 85.78671939 | G196: 71.91 | H196: 1.42 | I196: 0.019975 | K196: 0.4119 | L196: 85.8091789 | M196: 85.83195718 | N196: 64.87 | O196: 0.51 | P196: 0.01801944444 | Q196: 0.902099847 | R196: 0.3591549296
C197: 19 | D197: 0.3705 | E197: 84.62922737 | F197: 84.65520203 | G197: 71.43 | H197: 1.37 | I197: 0.01984166667 | K197: 0.3626 | L197: 84.67300194 | M197: 84.69865427 | N197: 64.9 | O197: 0.51 | P197: 0.01802777778 | Q197: 0.9085818284 | R197: 0.3722627737
C198: 22 | D198: 0.3336 | E198: 83.71350198 | F198: 83.74289656 | G198: 71.36 | H198: 1.35 | I198: 0.01982222222 | K198: 0.3255 | L198: 83.74910908 | M198: 83.78237639 | N198: 64.4 | O198: 0.49 | P198: 0.01788888889 | Q198: 0.9024663677 | R198: 0.362962963
B199: l15.dat | C199: 1 | D199: 5.2009 | E199: 0 | F199: 0 | G199: 96.09 | H199: 1.84 | I199: 0.02669166667 | K199: 5.1939 | L199: 0 | M199: 0 | N199: 87.37 | O199: 1.07 | P199: 0.02426944444 | Q199: 0.9092517432 | R199: 0.5815217391 | V199: =($K199/$D199-1) -> -0.001345920898
C200: 1.125 | D200: 5.3431 | E200: 112.1457497 | F200: 112.9275349 | G200: 95 | H200: 1.35 | I200: 0.02638888889 | K200: 5.3356 | L200: 112.0499039 | M200: 112.8250233 | N200: 85.67 | O200: 1.05 | P200: 0.02379722222 | Q200: 0.9017894737 | R200: 0.7777777778 | T200: =bdrate($D200:$D212,E200:E212,$K200:$K212,L200:L212) -> -0.00249695268 | U200: =bdrate($D200:$D212,F200:F212,$K200:$K212,M200:M212) -> -0.002440115201
... 857 more rows

Sheet CHBMIT (EEG)
D1: Reference | K1: Tested | T1: BD-rate (piecewise cubic) | V1: Lossless
C2: StepSizeForQP | D2: BPS | E2: PSNR1 | F2: PSNR2 | G2: Enc T [s] | H2: Dec T [s] | I2: Enc T [h] | K2: BPS | L2: PSNR1 | M2: PSNR2 | N2: Enc T [s] | O2: Dec T [s] | P2: Enc T [h] | Q2: EncR | R2: DecR | T2: BD-PSNR1 | U2: BD-PSNR2 | V2: BR-R
A3: CHBMIT | B3: chb01_07.dat | C3: 1 | D3: 6.2595 | E3: 0 | F3: 0 | G3: 333.77 | H3: 3.25 | I3: =G3/3600 -> 0.09271388889 | K3: 6.2625 | L3: 0 | M3: 0 | N3: 301.67 | O3: 3.08 | P3: =N3/3600 -> 0.08379722222 | Q3: =N3/G3 -> 0.903825988 | R3: =O3/H3 -> 0.9476923077 | V3: =($K3/$D3-1) -> 0.0004792715073
A4: EEG | C4: 1.125 | D4: 6.2691 | E4: 147.8603064 | F4: 137.5239103 | G4: 331 | H4: 2.83 | I4: 0.09194444444 | K4: 6.2692 | L4: 153.4643305 | M4: 139.8470522 | N4: 300.29 | O4: 2.8 | P4: 0.08341388889 | Q4: 0.9072205438 | R4: 0.9893992933 | T4: =bdrate($D4:$D23,E4:E23,$K4:$K23,L4:L23) -> -0.0006571765832 | U4: =bdrate($D4:$D23,F4:F23,$K4:$K23,M4:M23) -> 7.940383828e-05
C5: 1.5 | D5: 5.7853 | E5: 102.6385959 | F5: 102.6617024 | G5: 322.94 | H5: 5.98 | I5: 0.08970555556 | K5: 5.8012 | L5: 102.7476708 | M5: 102.7758368 | N5: 291.4 | O5: 5.56 | P5: 0.08094444444 | Q5: 0.902334799 | R5: 0.9297658863
C6: 2 | D6: 5.3043 | E6: 100.1076756 | F6: 100.1144903 | G6: 318.6 | H6: 4.63 | I6: 0.0885 | K6: 5.3175 | L6: 100.176073 | M6: 100.1855946 | N6: 286.73 | O6: 4.41 | P6: 0.07964722222 | Q6: 0.8999686127 | R6: 0.9524838013
C7: 3 | D7: 4.7062 | E7: 97.96653429 | F7: 97.97625182 | G7: 307.92 | H7: 3.76 | I7: 0.08553333333 | K7: 4.7101 | L7: 97.94216427 | M7: 97.95315136 | N7: 279.47 | O7: 3.36 | P7: 0.07763055556 | Q7: 0.9076058717 | R7: 0.8936170213
C8: 4 | D8: 4.2475 | E8: 94.70566303 | F8: 94.70743343 | G8: 306.9 | H8: 3.49 | I8: 0.08525 | K8: 4.2539 | L8: 94.72033452 | M8: 94.72282006 | N8: 280.06 | O8: 3.25 | P8: 0.07779444444 | Q8: 0.9125448029 | R8: 0.9312320917
C9: 5.5 | D9: 3.7734 | E9: 92.07316639 | F9: 92.07509818 | G9: 300.42 | H9: 3.16 | I9: 0.08345 | K9: 3.7773 | L9: 92.07517521 | M9: 92.07752325 | N9: 272.62 | O9: 2.9 | P9: 0.07572777778 | Q9: 0.9074628853 | R9: 0.917721519
C10: 7 | D10: 3.4452 | E10: 90.20969399 | F10: 90.21463092 | G10: 295.96 | H10: 3 | I10: 0.08221111111 | K10: 3.4474 | L10: 90.20734882 | M10: 90.21242329 | N10: 268.64 | O10: 2.74 | P10: 0.07462222222 | Q10: 0.9076902284 | R10: 0.9133333333
C11: 9 | D11: 3.0706 | E11: 88.00792565 | F11: 88.01624381 | G11: 293.09 | H11: 2.97 | I11: 0.08141388889 | K11: 3.0734 | L11: 88.01344947 | M11: 88.02064751 | N11: 266.45 | O11: 2.7 | P11: 0.07401388889 | Q11: 0.9091064178 | R11: 0.9090909091
C12: 11 | D12: 2.7658 | E12: 86.23682395 | F12: 86.25073628 | G12: 288.37 | H12: 2.98 | I12: 0.08010277778 | K12: 2.7687 | L12: 86.24713772 | M12: 86.25988986 | N12: 261.99 | O12: 2.67 | P12: 0.072775 | Q12: 0.9085203038 | R12: 0.8959731544
C13: 13 | D13: 2.4686 | E13: 84.49846266 | F13: 84.5235664 | G13: 285.67 | H13: 2.96 | I13: 0.07935277778 | K13: 2.4732 | L13: 84.52589878 | M13: 84.54978848 | N13: 259.41 | O13: 2.62 | P13: 0.07205833333 | Q13: 0.9080757517 | R13: 0.8851351351
C14: 16 | D14: 2.2403 | E14: 83.15630007 | F14: 83.19329336 | G14: 283.39 | H14: 2.93 | I14: 0.07871944444 | K14: 2.2451 | L14: 83.18077255 | M14: 83.21664982 | N14: 257.46 | O14: 2.59 | P14: 0.07151666667 | Q14: 0.9085006528 | R14: 0.8839590444
C15: 22 | D15: 1.8427 | E15: 80.70101521 | F15: 80.76390989 | G15: 276.97 | H15: 2.78 | I15: 0.07693611111 | K15: 1.8476 | L15: 80.71985682 | M15: 80.78007908 | N15: 252.39 | O15: 2.39 | P15: 0.07010833333 | Q15: 0.9112539264 | R15: 0.8597122302
C16: 33 | D16: 1.3972 | E16: 77.69193933 | F16: 77.77525647 | G16: 270.05 | H16: 2.53 | I16: 0.07501388889 | K16: 1.4023 | L16: 77.70933108 | M16: 77.7901233 | N16: 245.96 | O16: 2.15 | P16: 0.06832222222 | Q16: 0.9107942974 | R16: 0.8498023715
C17: 44 | D17: 1.0977 | E17: 75.44831252 | F17: 75.54020351 | G17: 264.36 | H17: 2.32 | I17: 0.07343333333 | K17: 1.1026 | L17: 75.48274642 | M17: 75.57458675 | N17: 240.4 | O17: 1.96 | P17: 0.06677777778 | Q17: 0.909366016 | R17: 0.8448275862
C18: 55 | D18: 0.9184 | E18: 73.9629916 | F18: 74.05996103 | G18: 259.37 | H18: 2.23 | I18: 0.07204722222 | K18: 0.9216 | L18: 73.97728427 | M18: 74.07326098 | N18: 237.55 | O18: 1.85 | P18: 0.06598611111 | Q18: 0.9158730771 | R18: 0.8295964126
C19: 66 | D19: 0.7756 | E19: 72.67089858 | F19: 72.77390382 | G19: 255.29 | H19: 2.1 | I19: 0.07091388889 | K19: 0.7784 | L19: 72.68774343 | M19: 72.79041756 | N19: 234.08 | O19: 1.75 | P19: 0.06502222222 | Q19: 0.9169180148 | R19: 0.8333333333
C20: 77 | D20: 0.6631 | E20: 71.58759587 | F20: 71.7028957 | G20: 253.33 | H20: 1.99 | I20: 0.07036944444 | K20: 0.665 | L20: 71.60525742 | M20: 71.72008576 | N20: 232.31 | O20: 1.68 | P20: 0.06453055556 | Q20: 0.917025224 | R20: 0.8442211055
C21: 88 | D21: 0.5936 | E21: 70.87040206 | F21: 70.99046702 | G21: 249.99 | H21: 1.94 | I21: 0.06944166667 | K21: 0.595 | L21: 70.87502582 | M21: 70.99528475 | N21: 230.44 | O21: 1.61 | P21: 0.06401111111 | Q21: 0.9217968719 | R21: 0.8298969072
C22: 99 | D22: 0.5153 | E22: 70.02507256 | F22: 70.16123341 | G22: 246.9 | H22: 1.89 | I22: 0.06858333333 | K22: 0.5169 | L22: 70.03545791 | M22: 70.17080018 | N22: 227.73 | O22: 1.56 | P22: 0.06325833333 | Q22: 0.9223572296 | R22: 0.8253968254
C23: 110 | D23: 0.4504 | E23: 69.27264117 | F23: 69.42828992 | G23: 245.41 | H23: 1.85 | I23: 0.06816944444 | K23: 0.4517 | L23: 69.28483444 | M23: 69.43963214 | N23: 224.06 | O23: 1.52 | P23: 0.06223888889 | Q23: 0.9130027301 | R23: 0.8216216216
B24: chb01_14.dat | C24: 1 | D24: 5.4884 | E24: 0 | F24: 0 | G24: 316.78 | H24: 3.38 | I24: 0.08799444444 | K24: 5.4974 | L24: 0 | M24: 0 | N24: 287.03 | O24: 3.07 | P24: 0.07973055556 | Q24: 0.9060862428 | R24: 0.9082840237 | V24: =($K24/$D24-1) -> 0.00163982217
C25: 1.125 | D25: 5.5152 | E25: 123.6895482 | F25: 117.8293789 | G25: 315.89 | H25: 2.82 | I25: 0.08774722222 | K25: 5.5191 | L25: 125.0475318 | M25: 121.6410972 | N25: 284.5 | O25: 2.71 | P25: 0.07902777778 | Q25: 0.9006299661 | R25: 0.9609929078 | T25: =bdrate($D25:$D44,E25:E44,$K25:$K44,L25:L44) -> 0.002711783666 | U25: =bdrate($D25:$D44,F25:F44,$K25:$K44,M25:M44) -> 0.001154910082
C26: 1.5 | D26: 4.8494 | E26: 102.1355528 | F26: 102.1450963 | G26: 304.05 | H26: 3.97 | I26: 0.08445833333 | K26: 4.8656 | L26: 102.1877274 | M26: 102.198215 | N26: 272.5 | O26: 3.62 | P26: 0.07569444444 | Q26: 0.896234172 | R26: 0.9118387909
C27: 2 | D27: 4.4105 | E27: 99.90666861 | F27: 99.91016059 | G27: 299.99 | H27: 3.43 | I27: 0.08333055556 | K27: 4.4227 | L27: 99.93042313 | M27: 99.93436036 | N27: 270.16 | O27: 3.14 | P27: 0.07504444444 | Q27: 0.9005633521 | R27: 0.915451895
C28: 3 | D28: 3.8405 | E28: 97.39387854 | F28: 97.40134844 | G28: 292.58 | H28: 3.2 | I28: 0.08127222222 | K28: 3.846 | L28: 97.35012683 | M28: 97.35775977 | N28: 264.71 | O28: 2.77 | P28: 0.07353055556 | Q28: 0.9047440016 | R28: 0.865625
C29: 4 | D29: 3.3908 | E29: 94.6949972 | F29: 94.69697159 | G29: 288.73 | H29: 2.87 | I29: 0.08020277778 | K29: 3.3986 | L29: 94.69751149 | M29: 94.69983934 | N29: 261.21 | O29: 2.58 | P29: 0.07255833333 | Q29: 0.9046860389 | R29: 0.8989547038
C30: 5.5 | D30: 2.9351 | E30: 92.15307574 | F30: 92.15912015 | G30: 284.08 | H30: 2.7 | I30: 0.07891111111 | K30: 2.9426 | L30: 92.16258806 | M30: 92.16800588 | N30: 257.74 | O30: 2.4 | P30: 0.07159444444 | Q30: 0.9072796395 | R30: 0.8888888889
C31: 7 | D31: 2.6123 | E31: 90.30307542 | F31: 90.31795312 | G31: 281.85 | H31: 2.67 | I31: 0.07829166667 | K31: 2.6228 | L31: 90.33020995 | M31: 90.34183793 | N31: 254.62 | O31: 2.31 | P31: 0.07072777778 | Q31: 0.9033883271 | R31: 0.8651685393
C32: 9 | D32: 2.2914 | E32: 88.38832089 | F32: 88.41450085 | G32: 277.94 | H32: 2.66 | I32: 0.07720555556 | K32: 2.3061 | L32: 88.43425027 | M32: 88.45586573 | N32: 251.03 | O32: 2.26 | P32: 0.06973055556 | Q32: 0.9031805426 | R32: 0.8496240602
C33: 11 | D33: 2.0416 | E33: 86.81672512 | F33: 86.84804416 | G33: 271.79 | H33: 2.63 | I33: 0.07549722222 | K33: 2.0557 | L33: 86.85292868 | M33: 86.880559 | N33: 247.27 | O33: 2.21 | P33: 0.06868611111 | Q33: 0.9097832886 | R33: 0.8403041825
C34: 13 | D34: 1.82 | E34: 85.33372648 | F34: 85.37491336 | G34: 268.74 | H34: 2.61 | I34: 0.07465 | K34: 1.8337 | L34: 85.36797138 | M34: 85.40554972 | N34: 245.03 | O34: 2.17 | P34: 0.06806388889 | Q34: 0.9117734613 | R34: 0.8314176245
C35: 16 | D35: 1.646 | E35: 84.10338434 | F35: 84.15112791 | G35: 265.87 | H35: 2.57 | I35: 0.07385277778 | K35: 1.6593 | L35: 84.1337383 | M35: 84.17842355 | N35: 242.44 | O35: 2.11 | P35: 0.06734444444 | Q35: 0.9118742242 | R35: 0.8210116732
C36: 22 | D36: 1.3493 | E36: 81.80275395 | F36: 81.86444009 | G36: 262.19 | H36: 2.45 | I36: 0.07283055556 | K36: 1.3615 | L36: 81.8338334 | M36: 81.89056649 | N36: 238.23 | O36: 1.98 | P36: 0.066175 | Q36: 0.9086158892 | R36: 0.8081632653
C37: 33 | D37: 1.0107 | E37: 78.85910777 | F37: 78.93939099 | G37: 256.07 | H37: 2.28 | I37: 0.07113055556 | K37: 1.0228 | L37: 78.89711637 | M37: 78.97519283 | N37: 233.6 | O37: 1.84 | P37: 0.06488888889 | Q37: 0.9122505565 | R37: 0.8070175439
C38: 44 | D38: 0.7823 | E38: 76.61960955 | F38: 76.70838295 | G38: 251.17 | H38: 2.22 | I38: 0.06976944444 | K38: 0.7929 | L38: 76.66212576 | M38: 76.75182036 | N38: 229.52 | O38: 1.74 | P38: 0.06375555556 | Q38: 0.9138034001 | R38: 0.7837837838
C39: 55 | D39: 0.6529 | E39: 75.19048828 | F39: 75.2986036 | G39: 249.19 | H39: 2.16 | I39: 0.06921944444 | K39: 0.6618 | L39: 75.21628935 | M39: 75.32600588 | N39: 226.97 | O39: 1.68 | P39: 0.06304722222 | Q39: 0.9108310927 | R39: 0.7777777778
C40: 66 | D40: 0.5567 | E40: 74.01774491 | F40: 74.13953194 | G40: 245.74 | H40: 2.1 | I40: 0.06826111111 | K40: 0.5641 | L40: 74.04018847 | M40: 74.16338945 | N40: 225 | O40: 1.63 | P40: 0.0625 | Q40: 0.9156018556 | R40: 0.7761904762
C41: 77 | D41: 0.4846 | E41: 73.05261312 | F41: 73.18377389 | G41: 243.83 | H41: 2.03 | I41: 0.06773055556 | K41: 0.4903 | L41: 73.06298012 | M41: 73.19548369 | N41: 223.2 | O41: 1.58 | P41: 0.062 | Q41: 0.9153918714 | R41: 0.7783251232
C42: 88 | D42: 0.4401 | E42: 72.37779007 | F42: 72.515161 | G42: 243.12 | H42: 1.98 | I42: 0.06753333333 | K42: 0.4441 | L42: 72.3712067 | M42: 72.51186667 | N42: 223.37 | O42: 1.55 | P42: 0.06204722222 | Q42: 0.9187643962 | R42: 0.7828282828
C43: 99 | D43: 0.3919 | E43: 71.62258939 | F43: 71.76429818 | G43: 241.92 | H43: 1.92 | I43: 0.0672 | K43: 0.3951 | L43: 71.61349785 | M43: 71.76012535 | N43: 220.85 | O43: 1.51 | P43: 0.06134722222 | Q43: 0.9129050926 | R43: 0.7864583333
C44: 110 | D44: 0.3514 | E44: 70.92716972 | F44: 71.07542762 | G44: 241 | H44: 1.85 | I44: 0.06694444444 | K44: 0.3537 | L44: 70.90068436 | M44: 71.05423788 | N44: 219.64 | O44: 1.47 | P44: 0.06101111111 | Q44: 0.9113692946 | R44: 0.7945945946
B45: chb01_20.dat | C45: 1 | D45: 5.1038 | E45: 0 | F45: 0 | G45: 233.39 | H45: 2.38 | I45: 0.06483055556 | K45: 5.1136 | L45: 0 | M45: 0 | N45: 212.63 | O45: 2.15 | P45: 0.05906388889 | Q45: 0.9110501735 | R45: 0.9033613445 | V45: =($K45/$D45-1) -> 0.001920137936
C46: 1.125 | D46: 5.1076 | E46: 117.0565035 | F46: 121.3703397 | G46: 231.66 | H46: 2.15 | I46: 0.06435 | K46: 5.1183 | L46: 117.6296734 | M46: 110.5214334 | N46: 209.53 | O46: 2.03 | P46: 0.05820277778 | Q46: 0.9044720711 | R46: 0.9441860465 | T46: =bdrate($D46:$D65,E46:E65,$K46:$K65,L46:L65) -> 0.003354237531 | U46: =bdrate($D46:$D65,F46:F65,$K46:$K65,M46:M65) -> 0.01184940774
C47: 1.5 | D47: 4.4177 | E47: 102.0049475 | F47: 102.0086633 | G47: 223.47 | H47: 2.55 | I47: 0.062075 | K47: 4.433 | L47: 102.050214 | M47: 102.0542057 | N47: 200.74 | O47: 2.3 | P47: 0.05576111111 | Q47: 0.8982861234 | R47: 0.9019607843
C48: 2 | D48: 3.984 | E48: 99.83541692 | F48: 99.83590769 | G48: 219.98 | H48: 2.25 | I48: 0.06110555556 | K48: 3.9956 | L48: 99.85660736 | M48: 99.85708696 | N48: 199.35 | O48: 2.06 | P48: 0.055375 | Q48: 0.9062187472 | R48: 0.9155555556
C49: 3 | D49: 3.4033 | E49: 97.18793491 | F49: 97.19853324 | G49: 214.92 | H49: 2.09 | I49: 0.0597 | K49: 3.4079 | L49: 97.15617344 | M49: 97.16572791 | N49: 194.94 | O49: 1.83 | P49: 0.05415 | Q49: 0.9070351759 | R49: 0.8755980861
C50: 4 | D50: 2.9697 | E50: 94.71485891 | F50: 94.71749827 | G50: 210.74 | H50: 1.9 | I50: 0.05853888889 | K50: 2.9778 | L50: 94.71979258 | M50: 94.72203374 | N50: 191.87 | O50: 1.7 | P50: 0.05329722222 | Q50: 0.9104583847 | R50: 0.8947368421
C51: 5.5 | D51: 2.5248 | E51: 92.25397902 | F51: 92.26897128 | G51: 208.84 | H51: 1.89 | I51: 0.05801111111 | K51: 2.5363 | L51: 92.28096368 | M51: 92.292891 | N51: 188.38 | O51: 1.63 | P51: 0.05232777778 | Q51: 0.9020302624 | R51: 0.8624338624
C52: 7 | D52: 2.233 | E52: 90.5482043 | F52: 90.57179237 | G52: 205.82 | H52: 1.88 | I52: 0.05717222222 | K52: 2.2452 | L52: 90.57221385 | M52: 90.59281075 | N52: 186.51 | O52: 1.6 | P52: 0.05180833333 | Q52: 0.9061801574 | R52: 0.8510638298
C53: 9 | D53: 1.9453 | E53: 88.73556364 | F53: 88.78294752 | G53: 202.2 | H53: 1.89 | I53: 0.05616666667 | K53: 1.9567 | L53: 88.76481276 | M53: 88.80921054 | N53: 183.52 | O53: 1.56 | P53: 0.05097777778 | Q53: 0.9076162216 | R53: 0.8253968254
C54: 11 | D54: 1.7206 | E54: 87.21966755 | F54: 87.28505061 | G54: 199.87 | H54: 1.89 | I54: 0.05551944444 | K54: 1.7308 | L54: 87.24789981 | M54: 87.31097166 | N54: 181.4 | O54: 1.52 | P54: 0.05038888889 | Q54: 0.9075899335 | R54: 0.8042328042
C55: 13 | D55: 1.5263 | E55: 85.7863116 | F55: 85.86899212 | G55: 198.13 | H55: 1.86 | I55: 0.05503611111 | K55: 1.538 | L55: 85.8159058 | M55: 85.89431694 | N55: 180.04 | O55: 1.49 | P55: 0.05001111111 | Q55: 0.9086963105 | R55: 0.8010752688
C56: 16 | D56: 1.3782 | E56: 84.59600354 | F56: 84.67988458 | G56: 194.48 | H56: 1.76 | I56: 0.05402222222 | K56: 1.3878 | L56: 84.62362391 | M56: 84.70335311 | N56: 178.36 | O56: 1.43 | P56: 0.04954444444 | Q56: 0.9171122995 | R56: 0.8125
C57: 22 | D57: 1.1146 | E57: 82.29620032 | F57: 82.36149372 | G57: 193.72 | H57: 1.7 | I57: 0.05381111111 | K57: 1.1237 | L57: 82.31776496 | M57: 82.38101738 | N57: 175.6 | O57: 1.36 | P57: 0.04877777778 | Q57: 0.9064629362 | R57: 0.8
C58: 33 | D58: 0.8204 | E58: 79.37216261 | F58: 79.42795102 | G58: 189.38 | H58: 1.63 | I58: 0.05260555556 | K58: 0.8278 | L58: 79.38844541 | M58: 79.44391349 | N58: 173.38 | O58: 1.3 | P58: 0.04816111111 | Q58: 0.9155137818 | R58: 0.7975460123
C59: 44 | D59: 0.6294 | E59: 77.21175074 | F59: 77.27057851 | G59: 186.42 | H59: 1.57 | I59: 0.05178333333 | K59: 0.6346 | L59: 77.22823496 | M59: 77.2840018 | N59: 170.68 | O59: 1.23 | P59: 0.04741111111 | Q59: 0.9155669992 | R59: 0.7834394904
C60: 55 | D60: 0.5204 | E60: 75.79968305 | F60: 75.86927151 | G60: 184.28 | H60: 1.54 | I60: 0.05118888889 | K60: 0.5257 | L60: 75.81806805 | M60: 75.88951577 | N60: 168.65 | O60: 1.19 | P60: 0.04684722222 | Q60: 0.9151834165 | R60: 0.7727272727
C61: 66 | D61: 0.4432 | E61: 74.66983755 | F61: 74.75454942 | G61: 182.54 | H61: 1.5 | I61: 0.05070555556 | K61: 0.4462 | L61: 74.66266921 | M61: 74.7496565 | N61: 167.41 | O61: 1.15 | P61: 0.04650277778 | Q61: 0.9171140572 | R61: 0.7666666667
C62: 77 | D62: 0.3835 | E62: 73.72172922 | F62: 73.81136152 | G62: 180.64 | H62: 1.43 | I62: 0.05017777778 | K62: 0.3857 | L62: 73.70488665 | M62: 73.7987911 | N62: 166.02 | O62: 1.12 | P62: 0.04611666667 | Q62: 0.9190655447 | R62: 0.7832167832
C63: 88 | D63: 0.3458 | E63: 73.04592992 | F63: 73.14334151 | G63: 180.13 | H63: 1.39 | I63: 0.05003611111 | K63: 0.3479 | L63: 73.01323048 | M63: 73.1173906 | N63: 165.48 | O63: 1.11 | P63: 0.04596666667 | Q63: 0.9186698496 | R63: 0.7985611511
C64: 99 | D64: 0.3055 | E64: 72.24966993 | F64: 72.36036393 | G64: 178.61 | H64: 1.32 | I64: 0.04961388889 | K64: 0.3073 | L64: 72.25524711 | M64: 72.36481138 | N64: 164.72 | O64: 1.07 | P64: 0.04575555556 | Q64: 0.9222327977 | R64: 0.8106060606
C65: 110 | D65: 0.2732 | E65: 71.57302936 | F65: 71.690151 | G65: 177.9 | H65: 1.27 | I65: 0.04941666667 | K65: 0.2745 | L65: 71.54932878 | M65: 71.67335417 | N65: 163.44 | O65: 1.04 | P65: 0.0454 | Q65: 0.9187183811 | R65: 0.8188976378
B66: chb01_27.dat | C66: 1 | D66: 5.743 | E66: 0 | F66: 0 | G66: 51.74 | H66: 0.6 | I66: 0.01437222222 | K66: 5.7431 | L66: 0 | M66: 0 | N66: 46.26 | O66: 0.54 | P66: 0.01285 | Q66: 0.8940858137 | R66: 0.9 | V66: =($K66/$D66-1) -> 1.741250218e-05
C67: 1.125 | D67: 5.8104 | E67: 116.1597379 | F67: 116.4591345 | G67: 51.72 | H67: 0.57 | I67: =G67/3600 -> 0.01436666667 | K67: 5.8116 | L67: 116.1110684 | M67: 116.4275342 | N67: 45.81 | O67: 0.52 | P67: =N67/3600 -> 0.012725 | Q67: =N67/G67 -> 0.8857308585 | R67: =O67/H67 -> 0.9122807018 | T67: =bdrate($D67:$D86,E67:E86,$K67:$K86,L67:L86) -> 0.0007642067834 | U67: =bdrate($D67:$D86,F67:F86,$K67:$K86,M67:M86) -> 0.0008026598256
C68: 1.5 | D68: 5.1676 | E68: 101.9609977 | F68: 101.962119 | G68: 49.17 | H68: 0.66 | I68: 0.01365833333 | K68: 5.1713 | L68: 101.9744388 | M68: 101.9757532 | N68: 44.79 | O68: 0.61 | P68: 0.01244166667 | Q68: 0.9109212935 | R68: 0.9242424242
C69: 2 | D69: 4.7372 | E69: 99.8326729 | F69: 99.83305633 | G69: 48.6 | H69: 0.6 | I69: 0.0135 | K69: 4.74 | L69: 99.8433031 | M69: 99.84374054 | N69: 43.48 | O69: 0.55 | P69: 0.01207777778 | Q69: 0.8946502058 | R69: 0.9166666667
C70: 3 | D70: 4.1489 | E70: 97.25215923 | F70: 97.25470102 | G70: 47.52 | H70: 0.55 | I70: 0.0132 | K70: 4.1484 | L70: 97.23287885 | M70: 97.23524979 | N70: 42.64 | O70: 0.5 | P70: 0.01184444444 | Q70: 0.8973063973 | R70: 0.9090909091
C71: 4 | D71: 3.7213 | E71: 94.72231738 | F71: 94.72432229 | G71: 46.88 | H71: 0.52 | I71: 0.01302222222 | K71: 3.7243 | L71: 94.72970049 | M71: 94.7318488 | N71: 41.82 | O71: 0.47 | P71: 0.01161666667 | Q71: 0.8920648464 | R71: 0.9038461538
C72: 5.5 | D72: 3.2798 | E72: 92.2881354 | F72: 92.2936474 | G72: 45.61 | H72: 0.49 | I72: 0.01266944444 | K72: 3.2819 | L72: 92.290719 | M72: 92.29649635 | N72: 41.13 | O72: 0.44 | P72: 0.011425 | Q72: 0.9017759263 | R72: 0.8979591837
C73: 7 | D73: 2.9872 | E73: 90.5872292 | F73: 90.59672523 | G73: 45.04 | H73: 0.47 | I73: 0.01251111111 | K73: 2.9883 | L73: 90.58594687 | M73: 90.59578393 | N73: 40.45 | O73: 0.42 | P73: 0.01123611111 | Q73: 0.8980905861 | R73: 0.8936170213
C74: 9 | D74: 2.6977 | E74: 88.7534231 | F74: 88.76646014 | G74: 44.44 | H74: 0.46 | I74: 0.01234444444 | K74: 2.7005 | L74: 88.76588488 | M74: 88.77839866 | N74: 40.08 | O74: 0.4 | P74: 0.01113333333 | Q74: 0.901890189 | R74: 0.8695652174
C75: 11 | D75: 2.4625 | E75: 87.18925919 | F75: 87.20575415 | G75: 43.62 | H75: 0.44 | I75: 0.01211666667 | K75: 2.467 | L75: 87.21024537 | M75: 87.22498774 | N75: 39.62 | O75: 0.39 | P75: 0.01100555556 | Q75: 0.9082989454 | R75: 0.8863636364
C76: 13 | D76: 2.2464 | E76: 85.65735377 | F76: 85.6779684 | G76: 43.39 | H76: 0.44 | I76: 0.01205277778 | K76: 2.2523 | L76: 85.68655817 | M76: 85.70342986 | N76: 38.96 | O76: 0.38 | P76: 0.01082222222 | Q76: 0.8979027426 | R76: 0.8636363636
C77: 16 | D77: 2.0758 | E77: 84.38106292 | F77: 84.40162419 | G77: 43.06 | H77: 0.43 | I77: 0.01196111111 | K77: 2.082 | L77: 84.41579043 | M77: 84.43186311 | N77: 38.59 | O77: 0.37 | P77: 0.01071944444 | Q77: 0.8961913609 | R77: 0.8604651163
C78: 22 | D78: 1.767 | E78: 81.92178537 | F78: 81.94216351 | G78: 42.28 | H78: 0.43 | I78: 0.01174444444 | K78: 1.7731 | L78: 81.95026611 | M78: 81.96716666 | N78: 37.87 | O78: 0.36 | P78: 0.01051944444 | Q78: 0.8956953642 | R78: 0.8372093023
C79: 33 | D79: 1.4128 | E79: 78.79884718 | F79: 78.8148099 | G79: 41.31 | H79: 0.42 | I79: 0.011475 | K79: 1.4204 | L79: 78.85185336 | M79: 78.86801944 | N79: 36.95 | O79: 0.35 | P79: 0.01026388889 | Q79: 0.8944565481 | R79: 0.8333333333
C80: 44 | D80: 1.1744 | E80: 76.50658373 | F80: 76.52003874 | G80: 40.21 | H80: 0.4 | I80: 0.01116944444 | K80: 1.1804 | L80: 76.54654635 | M80: 76.55849587 | N80: 36.31 | O80: 0.33 | P80: 0.01008611111 | Q80: 0.9030092017 | R80: 0.825
C81: 55 | D81: 1.0394 | E81: 75.03975394 | F81: 75.05622696 | G81: 39.58 | H81: 0.38 | I81: 0.01099444444 | K81: 1.0455 | L81: 75.07921457 | M81: 75.09279113 | N81: 35.96 | O81: 0.31 | P81: 0.009988888889 | Q81: 0.9085396665 | R81: 0.8157894737
C82: 66 | D82: 0.9367 | E82: 73.78371447 | F82: 73.80296093 | G82: 39.57 | H82: 0.38 | I82: 0.01099166667 | K82: 0.9394 | L82: 73.80713536 | M82: 73.82475238 | N82: 35.71 | O82: 0.31 | P82: 0.009919444444 | Q82: 0.902451352 | R82: 0.8157894737
C83: 77 | D83: 0.8468 | E83: 72.64687385 | F83: 72.67217954 | G83: 39.08 | H83: 0.37 | I83: 0.01085555556 | K83: 0.8492 | L83: 72.66596762 | M83: 72.69184031 | N83: 36.44 | O83: 0.3 | P83: 0.01012222222 | Q83: 0.9324462641 | R83: 0.8108108108
C84: 88 | D84: 0.7947 | E84: 71.95291561 | F84: 71.98329473 | G84: 38.9 | H84: 0.36 | I84: 0.01080555556 | K84: 0.7969 | L84: 71.97345978 | M84: 72.00170842 | N84: 35.35 | O84: 0.29 | P84: 0.009819444444 | Q84: 0.9087403599 | R84: 0.8055555556
C85: 99 | D85: 0.7308 | E85: 71.0377338 | F85: 71.06492346 | G85: 38.85 | H85: 0.35 | I85: 0.01079166667 | K85: 0.733 | L85: 71.05112156 | M85: 71.07762741 | N85: 35.19 | O85: 0.28 | P85: 0.009775 | Q85: 0.9057915058 | R85: 0.8
C86: 110 | D86: 0.6719 | E86: 70.16011534 | F86: 70.18486081 | G86: 38.46 | H86: 0.34 | I86: 0.01068333333 | K86: 0.6731 | L86: 70.17258946 | M86: 70.19652017 | N86: 34.92 | O86: 0.28 | P86: 0.0097 | Q86: 0.9079563183 | R86: 0.8235294118
B87: chb01_32.dat | C87: 1 | D87: 6.7856 | E87: 0 | F87: 0 | G87: 335.6 | H87: 4.05 | I87: 0.09322222222 | K87: 6.7956 | L87: 0 | M87: 0 | N87: 302.58 | O87: 3.59 | P87: 0.08405 | Q87: 0.9016090584 | R87: 0.8864197531 | V87: =($K87/$D87-1) -> 0.001473709031
C88: 1.125 | D88: 6.8178 | E88: 118.6612457 | F88: 118.7276549 | G88: 335.83 | H88: 3.27 | I88: 0.09328611111 | K88: 6.8266 | L88: 119.428355 | M88: 120.2255549 | N88: 301.21 | O88: 3.08 | P88: 0.08366944444 | Q88: 0.8969121282 | R88: 0.9418960245 | T88: =bdrate($D88:$D107,E88:E107,$K88:$K107,L88:L107) -> 0.00254186223 | U88: =bdrate($D88:$D107,F88:F107,$K88:$K107,M88:M107) -> 0.002291423566
C89: 1.5 | D89: 6.3574 | E89: 102.7540692 | F89: 102.7595832 | G89: 327.02 | H89: 7.32 | I89: 0.09083888889 | K89: 6.3845 | L89: 102.894837 | M89: 102.9010296 | N89: 293.4 | O89: 6.53 | P89: 0.0815 | Q89: 0.8971928322 | R89: 0.8920765027
C90: 2 | D90: 5.8647 | E90: 100.1475847 | F90: 100.1509567 | G90: 319.5 | H90: 5.76 | I90: 0.08875 | K90: 5.8883 | L90: 100.2308389 | M90: 100.2347913 | N90: 288.66 | O90: 5.19 | P90: 0.08018333333 | Q90: 0.9034741784 | R90: 0.9010416667
C91: 3 | D91: 5.2521 | E91: 98.01723332 | F91: 98.01895991 | G91: 311.26 | H91: 4.55 | I91: 0.08646111111 | K91: 5.2662 | L91: 98.00049578 | M91: 98.0023795 | N91: 283.16 | O91: 3.81 | P91: 0.07865555556 | Q91: 0.909721776 | R91: 0.8373626374
C92: 4 | D92: 4.8013 | E92: 94.73650821 | F92: 94.7375743 | G92: 307.13 | H92: 4.3 | I92: 0.08531388889 | K92: 4.8171 | L92: 94.75621469 | M92: 94.75780318 | N92: 279.33 | O92: 3.7 | P92: 0.07759166667 | Q92: 0.9094845831 | R92: 0.8604651163
C93: 5.5 | D93: 4.3285 | E93: 92.10116706 | F93: 92.10233131 | G93: 300.78 | H93: 3.93 | I93: 0.08355 | K93: 4.3406 | L93: 92.10412839 | M93: 92.10550967 | N93: 275.84 | O93: 3.45 | P93: 0.07662222222 | Q93: 0.9170822528 | R93: 0.8778625954
C94: 7 | D94: 4.0005 | E94: 90.23410915 | F94: 90.23616353 | G94: 298 | H94: 3.74 | I94: 0.08277777778 | K94: 4.01 | L94: 90.22547427 | M94: 90.22770969 | N94: 272.01 | O94: 3.14 | P94: 0.07555833333 | Q94: 0.9127852349 | R94: 0.8395721925
C95: 9 | D95: 3.6237 | E95: 87.99475543 | F95: 87.99790447 | G95: 295.38 | H95: 3.6 | I95: 0.08205 | K95: 3.6331 | L95: 87.99926372 | M95: 88.00173978 | N95: 269.1 | O95: 3.02 | P95: 0.07475 | Q95: 0.9110298598 | R95: 0.8388888889
C96: 11 | D96: 3.3077 | E96: 86.16051737 | F96: 86.16365069 | G96: 291.64 | H96: 3.56 | I96: 0.08101111111 | K96: 3.3184 | L96: 86.172609 | M96: 86.17525926 | N96: 266.68 | O96: 2.95 | P96: 0.07407777778 | Q96: 0.9144150322 | R96: 0.8286516854
C97: 13 | D97: 2.9845 | E97: 84.31806245 | F97: 84.32260555 | G97: 289.49 | H97: 3.54 | I97: 0.08041388889 | K97: 2.9958 | L97: 84.34006356 | M97: 84.34363591 | N97: 265.17 | O97: 2.89 | P97: 0.07365833333 | Q97: 0.9159901896 | R97: 0.8163841808
C98: 16 | D98: 2.7325 | E98: 82.89211202 | F98: 82.8970418 | G98: 285.76 | H98: 3.48 | I98: 0.07937777778 | K98: 2.7455 | L98: 82.91968417 | M98: 82.9239641 | N98: 262.12 | O98: 2.82 | P98: 0.07281111111 | Q98: 0.9172732363 | R98: 0.8103448276
C99: 22 | D99: 2.2864 | E99: 80.29563034 | F99: 80.30329963 | G99: 281.05 | H99: 3.36 | I99: 0.07806944444 | K99: 2.2982 | L99: 80.31359405 | M99: 80.3210415 | N99: 257.3 | O99: 2.65 | P99: 0.07147222222 | Q99: 0.9154954634 | R99: 0.7886904762
C100: 33 | D100: 1.7882 | E100: 77.15420205 | F100: 77.16834762 | G100: 275.19 | H100: 3.13 | I100: 0.07644166667 | K100: 1.7991 | L100: 77.17590788 | M100: 77.18953365 | N100: 251.01 | O100: 2.41 | P100: 0.069725 | Q100: 0.9121334351 | R100: 0.7699680511
C101: 44 | D101: 1.4489 | E101: 74.80816089 | F101: 74.82936824 | G101: 269.71 | H101: 2.91 | I101: 0.07491944444 | K101: 1.4564 | L101: 74.82785615 | M101: 74.84843565 | N101: 245.99 | O101: 2.2 | P101: 0.06833055556 | Q101: 0.9120536873 | R101: 0.7560137457
C102: 55 | D102: 1.2433 | E102: 73.26314921 | F102: 73.29087332 | G102: 265.58 | H102: 2.75 | I102: 0.07377222222 | K102: 1.2503 | L102: 73.26907121 | M102: 73.29658347 | N102: 243.55 | O102: 2.09 | P102: 0.06765277778 | Q102: 0.9170494766 | R102: 0.76
C103: 66 | D103: 1.0778 | E103: 71.9376075 | F103: 71.97173484 | G103: 262.92 | H103: 2.67 | I103: 0.07303333333 | K103: 1.0846 | L103: 71.95124661 | M103: 71.98509674 | N103: 241.54 | O103: 1.98 | P103: 0.06709444444 | Q103: 0.918682489 | R103: 0.7415730337
C104: 77 | D104: 0.9409 | E104: 70.79124609 | F104: 70.83449333 | G104: 260.67 | H104: 2.58 | I104: 0.07240833333 | K104: 0.9472 | L104: 70.79848081 | M104: 70.84105976 | N104: 238.65 | O104: 1.91 | P104: 0.06629166667 | Q104: 0.9155253769 | R104: 0.7403100775
C105: 88 | D105: 0.8552 | E105: 70.03356776 | F105: 70.08279403 | G105: 257.98 | H105: 2.52 | I105: 0.07166111111 | K105: 0.8608 | L105: 70.03246661 | M105: 70.08202358 | N105: 237.21 | O105: 1.85 | P105: 0.06589166667 | Q105: 0.9194898829 | R105: 0.7341269841
C106: 99 | D106: 0.7562 | E106: 69.11574391 | F106: 69.1749782 | G106: 255.88 | H106: 2.47 | I106: 0.07107777778 | K106: 0.7614 | L106: 69.11499078 | M106: 69.17292093 | N106: 238.14 | O106: 1.79 | P106: 0.06615 | Q106: 0.9306706269 | R106: 0.7246963563
C107: 110 | D107: 0.6724 | E107: 68.30179956 | F107: 68.37054004 | G107: 252.72 | H107: 2.37 | I107: 0.0702 | K107: 0.6767 | L107: 68.30409264 | M107: 68.37165523 | N107: 233.14 | O107: 1.72 | P107: 0.06476111111 | Q107: 0.9225229503 | R107: 0.7257383966
B108: chb01_40.dat | C108: 1 | D108: 5.4115 | E108: 0 | F108: 0 | G108: 314.12 | H108: 4.27 | I108: 0.08725555556 | K108: 5.4405 | L108: 0 | M108: 0 | N108: 283.23 | O108: 3.53 | P108: 0.078675 | Q108: 0.9016617853 | R108: 0.8266978923 | V108: =($K108/$D108-1) -> 0.005358957775
C109: 1.125 | D109: 5.4309 | E109: 112.5865077 | F109: 118.9897848 | G109: 312.19 | H109: 3.52 | I109: 0.08671944444 | K109: 5.4684 | L109: 113.4134466 | M109: 120.4650704 | N109: 280.62 | O109: 3.03 | P109: 0.07795 | Q109: 0.8988756847 | R109: 0.8607954545 | T109: =bdrate($D109:$D128,E109:E128,$K109:$K128,L109:L128) -> 0.008835323119 | U109: =bdrate($D109:$D128,F109:F128,$K109:$K128,M109:M128) -> 0.008231228113
C110: 1.5 | D110: 4.7757 | E110: 102.0610371 | F110: 102.0865115 | G110: 297.98 | H110: 4.59 | I110: 0.08277222222 | K110: 4.8163 | L110: 102.1749503 | M110: 102.2004363 | N110: 269.59 | O110: 4 | P110: 0.07488611111 | Q110: 0.9047251493 | R110: 0.871459695
C111: 2 | D111: 4.3362 | E111: 99.86175693 | F111: 99.873789 | G111: 294.16 | H111: 4.09 | I111: 0.08171111111 | K111: 4.3685 | L111: 99.90775758 | M111: 99.92001927 | N111: 264.84 | O111: 3.46 | P111: 0.07356666667 | Q111: 0.900326353 | R111: 0.8459657702
C112: 3 | D112: 3.7661 | E112: 97.46403466 | F112: 97.49635752 | G112: 287.02 | H112: 3.64 | I112: 0.07972777778 | K112: 3.7863 | L112: 97.38464373 | M112: 97.41637277 | N112: 259.52 | O112: 2.85 | P112: 0.07208888889 | Q112: 0.9041878615 | R112: 0.782967033
C113: 4 | D113: 3.3156 | E113: 94.66143243 | F113: 94.66517116 | G113: 283.9 | H113: 3.4 | I113: 0.07886111111 | K113: 3.3362 | L113: 94.64888591 | M113: 94.65437644 | N113: 256.9 | O113: 2.76 | P113: 0.07136111111 | Q113: 0.9048960902 | R113: 0.8117647059
C114: 5.5 | D114: 2.8423 | E114: 92.02118224 | F114: 92.03351455 | G114: 279.96 | H114: 3.34 | I114: 0.07776666667 | K114: 2.8674 | L114: 92.0460048 | M114: 92.05782521 | N114: 254.83 | O114: 2.62 | P114: 0.07078611111 | Q114: 0.9102371767 | R114: 0.7844311377
C115: 7 | D115: 2.5138 | E115: 90.1636893 | F115: 90.18661102 | G115: 275.49 | H115: 3.39 | I115: 0.076525 | K115: 2.5329 | L115: 90.16303015 | M115: 90.18911373 | N115: 252.16 | O115: 2.61 | P115: 0.07004444444 | Q115: 0.9153145305 | R115: 0.7699115044
C116: 9 | D116: 2.1564 | E116: 88.10072117 | F116: 88.16414014 | G116: 273.53 | H116: 3.47 | I116: 0.07598055556 | K116: 2.1866 | L116: 88.16481003 | M116: 88.22642432 | N116: 249.27 | O116: 2.58 | P116: 0.06924166667 | Q116: 0.9113077176 | R116: 0.7435158501
C117: 11 | D117: 1.9082 | E117: 86.59474652 | F117: 86.67823304 | G117: 269.43 | H117: 3.41 | I117: 0.07484166667 | K117: 1.9355 | L117: 86.64112882 | M117: 86.72072865 | N117: 246.08 | O117: 2.54 | P117: 0.06835555556 | Q117: 0.9133355603 | R117: 0.7448680352
C118: 13 | D118: 1.6916 | E118: 85.15045445 | F118: 85.24954471 | G118: 267.4 | H118: 3.33 | I118: 0.07427777778 | K118: 1.7162 | L118: 85.18738772 | M118: 85.2835706 | N118: 244.14 | O118: 2.41 | P118: 0.06781666667 | Q118: 0.9130142109 | R118: 0.7237237237
C119: 16 | D119: 1.5272 | E119: 83.95765256 | F119: 84.06364002 | G119: 265.3 | H119: 3.22 | I119: 0.07369444444 | K119: 1.5489 | L119: 83.98376257 | M119: 84.08777051 | N119: 243.19 | O119: 2.34 | P119: 0.06755277778 | Q119: 0.9166603845 | R119: 0.7267080745
C120: 22 | D120: 1.2482 | E120: 81.68788241 | F120: 81.81798121 | G120: 262.4 | H120: 3.08 | I120: 0.07288888889 | K120: 1.2655 | L120: 81.71219674 | M120: 81.84015799 | N120: 238.53 | O120: 2.17 | P120: 0.06625833333 | Q120: 0.9090320122 | R120: 0.7045454545
C121: 33 | D121: 0.9211 | E121: 78.66135746 | F121: 78.8331688 | G121: 258.21 | H121: 2.91 | I121: 0.071725 | K121: 0.9349 | L121: 78.68357138 | M121: 78.85239717 | N121: 234.78 | O121: 1.98 | P121: 0.06521666667 | Q121: 0.9092599047 | R121: 0.6804123711
C122: 44 | D122: 0.7019 | E122: 76.40661878 | F122: 76.59266398 | G122: 263.56 | H122: 2.82 | I122: 0.07321111111 | K122: 0.713 | L122: 76.41074619 | M122: 76.59578937 | N122: 237.34 | O122: 1.88 | P122: 0.06592777778 | Q122: 0.9005160115 | R122: 0.6666666667
C123: 55 | D123: 0.5731 | E123: 74.9063419 | F123: 75.09993957 | G123: 251.95 | H123: 2.56 | I123: 0.06998611111 | K123: 0.582 | L123: 74.89901643 | M123: 75.08817268 | N123: 231.79 | O123: 1.75 | P123: 0.06438611111 | Q123: 0.9199841238 | R123: 0.68359375
C124: 66 | D124: 0.4787 | E124: 73.66601972 | F124: 73.87317875 | G124: 251.35 | H124: 2.45 | I124: 0.06981944444 | K124: 0.4857 | L124: 73.67723461 | M124: 73.88026635 | N124: 230.37 | O124: 1.66 | P124: 0.06399166667 | Q124: 0.916530734 | R124: 0.6775510204
C125: 77 | D125: 0.4104 | E125: 72.72509025 | F125: 72.95860743 | G125: 249.31 | H125: 2.38 | I125: 0.06925277778 | K125: 0.4164 | L125: 72.71347779 | M125: 72.94481854 | N125: 228.93 | O125: 1.62 | P125: 0.06359166667 | Q125: 0.9182543821 | R125: 0.6806722689
C126: 88 | D126: 0.3668 | E126: 71.98989995 | F126: 72.24077035 | G126: 249.29 | H126: 2.29 | I126: 0.06924722222 | K126: 0.3717 | L126: 71.97187054 | M126: 72.22138911 | N126: 228.67 | O126: 1.57 | P126: 0.06351944444 | Q126: 0.9172850897 | R126: 0.6855895197
C127: 99 | D127: 0.3218 | E127: 71.26541287 | F127: 71.52495489 | G127: 247.1 | H127: 2.29 | I127: 0.06863888889 | K127: 0.3257 | L127: 71.20832919 | M127: 71.47725277 | N127: 226.02 | O127: 1.52 | P127: 0.06278333333 | Q127: 0.9146904087 | R127: 0.6637554585
C128: 110 | D128: 0.2853 | E128: 70.5685416 | F128: 70.8503492 | G128: 246.17 | H128: 2.17 | I128: 0.06838055556 | K128: 0.2882 | L128: 70.53593291 | M128: 70.82014669 | N128: 225.17 | O128: 1.49 | P128: 0.06254722222 | Q128: 0.9146930983 | R128: 0.6866359447
B129: chb02_07.dat | C129: 1 | D129: 6.6109 | E129: 0 | F129: 0 | G129: 338.87 | H129: 2.93 | I129: 0.09413055556 | K129: 6.611 | L129: 0 | M129: 0 | N129: 305.77 | O129: 2.89 | P129: 0.08493611111 | Q129: 0.9023224245 | R129: 0.9863481229 | V129: =($K129/$D129-1) -> 1.512653345e-05
C130: 1.125 | D130: 6.6049 | E130: 0 | F130: 0 | G130: 342 | H130: 3.23 | I130: 0.095 | K130: 6.6055 | L130: 0 | M130: 0 | N130: 306.78 | O130: 3.15 | P130: 0.08521666667 | Q130: 0.8970175439 | R130: 0.9752321981 | T130: =bdrate($D130:$D149,E130:E149,$K130:$K149,L130:L149) -> -0.0007620973425 | U130: =bdrate($D130:$D149,F130:F149,$K130:$K149,M130:M149) -> -0.0006818442828
C131: 1.5 | D131: 6.1258 | E131: 102.7077742 | F131: 102.7418358 | G131: 334.54 | H131: 6.45 | I131: =G131/3600 -> 0.09292777778 | K131: 6.1351 | L131: 102.7913407 | M131: 102.8298026 | N131: 300.76 | O131: 6.16 | P131: =N131/3600 -> 0.08354444444 | Q131: =N131/G131 -> 0.8990255276 | R131: =O131/H131 -> 0.9550387597
C132: 2 | D132: 5.6509 | E132: 100.2042599 | F132: 100.2187761 | G132: 328.11 | H132: 5.13 | I132: 0.09114166667 | K132: 5.6601 | L132: 100.2703781 | M132: 100.2886038 | N132: 293.35 | O132: 5.02 | P132: 0.08148611111 | Q132: 0.8940599189 | R132: 0.9785575049
C133: 3 | D133: 5.043 | E133: 98.00575202 | F133: 98.0114596 | G133: 318.01 | H133: 3.66 | I133: 0.08833611111 | K133: 5.0447 | L133: 97.9960268 | M133: 98.00209377 | N133: 286.18 | O133: 3.55 | P133: 0.07949444444 | Q133: 0.8999088079 | R133: 0.9699453552
C134: 4 | D134: 4.6058 | E134: 94.8182798 | F134: 94.824987 | G134: 310.63 | H134: 3.88 | I134: 0.08628611111 | K134: 4.6135 | L134: 94.87429462 | M134: 94.88512869 | N134: 282.29 | O134: 3.95 | P134: 0.07841388889 | Q134: 0.9087660561 | R134: 1.018041237
C135: 5.5 | D135: 4.1332 | E135: 92.19072457 | F135: 92.19567761 | G135: 307.24 | H135: 3.51 | I135: 0.08534444444 | K135: 4.1393 | L135: 92.23402696 | M135: 92.24196942 | N135: 276.58 | O135: 3.47 | P135: 0.07682777778 | Q135: 0.9002083062 | R135: 0.9886039886
C136: 7 | D136: 3.8006 | E136: 90.31521333 | F136: 90.31952594 | G136: 302.75 | H136: 3.2 | I136: 0.08409722222 | K136: 3.8039 | L136: 90.33922443 | M136: 90.34511142 | N136: 274.57 | O136: 3.2 | P136: 0.07626944444 | Q136: 0.9069199009 | R136: 1
C137: 9 | D137: 3.4474 | E137: 88.21785129 | F137: 88.22601092 | G137: 298.38 | H137: 3.09 | I137: 0.08288333333 | K137: 3.4489 | L137: 88.2354158 | M137: 88.24453177 | N137: 270.48 | O137: 3.07 | P137: 0.07513333333 | Q137: 0.9064950734 | R137: 0.9935275081
C138: 11 | D138: 3.1552 | E138: 86.47759538 | F138: 86.49300344 | G138: 293.62 | H138: 2.96 | I138: 0.08156111111 | K138: 3.1567 | L138: 86.500097 | M138: 86.51640739 | N138: 267.69 | O138: 2.96 | P138: 0.07435833333 | Q138: 0.9116885771 | R138: 1
C139: 13 | D139: 2.8739 | E139: 84.7817639 | F139: 84.80869011 | G139: 292.66 | H139: 2.9 | I139: 0.08129444444 | K139: 2.8748 | L139: 84.80368547 | M139: 84.83002822 | N139: 264.61 | O139: 2.85 | P139: 0.07350277778 | Q139: 0.9041549921 | R139: 0.9827586207
C140: 16 | D140: 2.6493 | E140: 83.40503018 | F140: 83.44353394 | G140: 287.63 | H140: 2.78 | I140: 0.07989722222 | K140: 2.6509 | L140: 83.43139434 | M140: 83.46878878 | N140: 262.03 | O140: 2.76 | P140: 0.07278611111 | Q140: 0.9109967667 | R140: 0.9928057554
C141: 22 | D141: 2.2483 | E141: 80.84484714 | F141: 80.91291251 | G141: 281.68 | H141: 2.6 | I141: 0.07824444444 | K141: 2.2495 | L141: 80.87272787 | M141: 80.93859477 | N141: 258.22 | O141: 2.57 | P141: 0.07172777778 | Q141: 0.9167140017 | R141: 0.9884615385
C142: 33 | D142: 1.7716 | E142: 77.6321724 | F142: 77.74399687 | G142: 276.62 | H142: 2.43 | I142: 0.07683888889 | K142: 1.7736 | L142: 77.66271925 | M142: 77.77183575 | N142: 251.61 | O142: 2.32 | P142: 0.06989166667 | Q142: 0.9095871593 | R142: 0.9547325103
C143: 44 | D143: 1.4301 | E143: 75.18484489 | F143: 75.33089356 | G143: 270.98 | H143: 2.27 | I143: 0.07527222222 | K143: 1.4327 | L143: 75.23117227 | M143: 75.36929553 | N143: 247.2 | O143: 2.13 | P143: 0.06866666667 | Q143: 0.9122444461 | R143: 0.9383259912
C144: 55 | D144: 1.2283 | E144: 73.64999236 | F144: 73.83605383 | G144: 267.2 | H144: 2.13 | I144: 0.07422222222 | K144: 1.2303 | L144: 73.67094078 | M144: 73.84946827 | N144: 242.74 | O144: 1.98 | P144: 0.06742777778 | Q144: 0.9084580838 | R144: 0.9295774648
C145: 66 | D145: 1.0714 | E145: 72.35875995 | F145: 72.585615 | G145: 261.96 | H145: 2 | I145: 0.07276666667 | K145: 1.0728 | L145: 72.38159247 | M145: 72.60332297 | N145: 239.31 | O145: 1.89 | P145: 0.066475 | Q145: 0.9135364178 | R145: 0.945
C146: 77 | D146: 0.9427 | E146: 71.24339136 | F146: 71.51119869 | G146: 257.95 | H146: 1.93 | I146: 0.07165277778 | K146: 0.9442 | L146: 71.26428678 | M146: 71.53083724 | N146: 235.9 | O146: 1.8 | P146: 0.06552777778 | Q146: 0.9145183175 | R146: 0.932642487
C147: 88 | D147: 0.8641 | E147: 70.5105471 | F147: 70.80091811 | G147: 256.91 | H147: 1.88 | I147: 0.07136388889 | K147: 0.865 | L147: 70.51915982 | M147: 70.80779107 | N147: 235.11 | O147: 1.74 | P147: 0.06530833333 | Q147: 0.9151453817 | R147: 0.9255319149
C148: 99 | D148: 0.7696 | E148: 69.60647341 | F148: 69.93648721 | G148: 254.11 | H148: 1.83 | I148: 0.07058611111 | K148: 0.7709 | L148: 69.62051923 | M148: 69.94915607 | N148: 231.19 | O148: 1.69 | P148: 0.06421944444 | Q148: 0.9098028413 | R148: 0.9234972678
C149: 110 | D149: 0.6895 | E149: 68.78883599 | F149: 69.15708126 | G149: 250.74 | H149: 1.77 | I149: 0.06965 | K149: 0.6906 | L149: 68.80753002 | M149: 69.17546873 | N149: 229.22 | O149: 1.63 | P149: 0.06367222222 | Q149: 0.9141740448 | R149: 0.9209039548
B150: chb02_10.dat | C150: 1 | D150: 4.7209 | E150: 0 | F150: 0 | G150: 308.55 | H150: 2.85 | I150: 0.08570833333 | K150: 4.7253 | L150: 0 | M150: 0 | N150: 277.76 | O150: 2.69 | P150: 0.07715555556 | Q150: 0.9002106628 | R150: 0.9438596491 | V150: =($K150/$D150-1) -> 0.0009320256731
C151: 1.125 | D151: 4.7378 | E151: 147.2876799 | F151: 142.140244 | G151: 308.13 | H151: 2.45 | I151: 0.08559166667 | K151: 4.7379 | L151: 147.2876799 | M151: 142.140244 | N151: 276.42 | O151: 2.42 | P151: 0.07678333333 | Q151: 0.8970888911 | R151: 0.987755102 | T151: =bdrate($D151:$D170,E151:E170,$K151:$K170,L151:L170) -> 0.00100396189 | U151: =bdrate($D151:$D170,F151:F170,$K151:$K170,M151:M170) -> 0.001081951109
C152: 1.5 | D152: 4.0284 | E152: 102.0023564 | F152: 102.0025574 | G152: 295.02 | H152: 2.73 | I152: 0.08195 | K152: 4.0304 | L152: 102.0135692 | M152: 102.0137976 | N152: 266.27 | O152: 2.66 | P152: 0.07396388889 | Q152: 0.9025489797 | R152: 0.9743589744
C153: 2 | D153: 3.6101 | E153: 99.88367631 | F153: 99.88379154 | G153: 289.51 | H153: 2.49 | I153: 0.08041944444 | K153: 3.6116 | L153: 99.8897676 | M153: 99.88991428 | N153: 261.78 | O153: 2.44 | P153: 0.07271666667 | Q153: 0.9042174709 | R153: 0.9799196787
C154: 3 | D154: 3.0564 | E154: 97.24546233 | F154: 97.2498234 | G154: 284.19 | H154: 2.39 | I154: 0.07894166667 | K154: 3.0526 | L154: 97.20675165 | M154: 97.21035422 | N154: 256.86 | O154: 2.26 | P154: 0.07135 | Q154: 0.9038319434 | R154: 0.9456066946
C155: 4 | D155: 2.6488 | E155: 94.92551246 | F155: 94.92924732 | G155: 278.15 | H155: 2.16 | I155: 0.07726388889 | K155: 2.6502 | L155: 94.93062072 | M155: 94.93416901 | N155: 251.71 | O155: 2.09 | P155: 0.06991944444 | Q155: 0.9049433759 | R155: 0.9675925926
C156: 5.5 | D156: 2.2402 | E156: 92.62687624 | F156: 92.63739128 | G156: 271.55 | H156: 2.06 | I156: 0.07543055556 | K156: 2.2436 | L156: 92.64097731 | M156: 92.65015301 | N156: 246.51 | O156: 1.96 | P156: 0.068475 | Q156: 0.9077886209 | R156: 0.9514563107
C157: 7 | D157: 1.9762 | E157: 90.9982515 | F157: 91.01458588 | G157: 266.72 | H157: 1.98 | I157: 0.07408888889 | K157: 1.98 | L157: 91.01343734 | M157: 91.02795405 | N157: 241.43 | O157: 1.87 | P157: 0.06706388889 | Q157: 0.9051814637 | R157: 0.9444444444
C158: 9 | D158: 1.7364 | E158: 89.35670518 | F158: 89.37781106 | G158: 263.16 | H158: 1.93 | I158: 0.0731 | K158: 1.74 | L158: 89.37020756 | M158: 89.38960395 | N158: 237.88 | O158: 1.8 | P158: 0.06607777778 | Q158: 0.9039367685 | R158: 0.932642487
C159: 11 | D159: 1.5458 | E159: 87.91292793 | F159: 87.93400266 | G159: 260.33 | H159: 1.85 | I159: 0.07231388889 | K159: 1.5478 | L159: 87.91946496 | M159: 87.94005688 | N159: 235.88 | O159: 1.73 | P159: 0.06552222222 | Q159: 0.9060807437 | R159: 0.9351351351
C160: 13 | D160: 1.3838 | E160: 86.54731115 | F160: 86.57152661 | G160: 259.9 | H160: 1.83 | I160: 0.07219444444 | K160: 1.3867 | L160: 86.55928221 | M160: 86.58194214 | N160: 233.85 | O160: 1.69 | P160: 0.06495833333 | Q160: 0.899769142 | R160: 0.9234972678
C161: 16 | D161: 1.253 | E161: 85.33992936 | F161: 85.3651305 | G161: 257.75 | H161: 1.79 | I161: 0.07159722222 | K161: 1.2565 | L161: 85.3582179 | M161: 85.38148079 | N161: 232.24 | O161: 1.65 | P161: 0.06451111111 | Q161: 0.901028128 | R161: 0.9217877095
C162: 22 | D162: 1.0244 | E162: 83.00704976 | F162: 83.02759597 | G162: 254.18 | H162: 1.77 | I162: 0.07060555556 | K162: 1.0297 | L162: 83.0408331 | M162: 83.06074755 | N162: 230.18 | O162: 1.62 | P162: 0.06393888889 | Q162: 0.9055787237 | R162: 0.9152542373
C163: 33 | D163: 0.7603 | E163: 80.04228556 | F163: 80.0637165 | G163: 250.89 | H163: 1.81 | I163: 0.06969166667 | K163: 0.7673 | L163: 80.07991864 | M163: 80.10145705 | N163: 226.91 | O163: 1.62 | P163: 0.06303055556 | Q163: 0.9044202639 | R163: 0.8950276243
C164: 44 | D164: 0.594 | E164: 77.94429896 | F164: 77.95907517 | G164: 245.21 | H164: 1.77 | I164: 0.06811388889 | K164: 0.5988 | L164: 77.96384176 | M164: 77.97878753 | N164: 222.81 | O164: 1.57 | P164: 0.06189166667 | Q164: 0.9086497288 | R164: 0.8870056497
C165: 55 | D165: 0.5052 | E165: 76.669334 | F165: 76.68986596 | G165: 242.54 | H165: 1.7 | I165: 0.06737222222 | K165: 0.5097 | L165: 76.685239 | M165: 76.70614985 | N165: 220.58 | O165: 1.53 | P165: 0.06127222222 | Q165: 0.9094582337 | R165: 0.9
C166: 66 | D166: 0.4424 | E166: 75.63845917 | F166: 75.65941222 | G166: 240.29 | H166: 1.66 | I166: 0.06674722222 | K166: 0.446 | L166: 75.64998146 | M166: 75.67221265 | N166: 218.37 | O166: 1.49 | P166: 0.06065833333 | Q166: 0.9087768946 | R166: 0.8975903614
C167: 77 | D167: 0.3926 | E167: 74.73064365 | F167: 74.75145164 | G167: 237.21 | H167: 1.59 | I167: 0.06589166667 | K167: 0.3956 | L167: 74.74420959 | M167: 74.7656706 | N167: 216.6 | O167: 1.48 | P167: 0.06016666667 | Q167: 0.9131149614 | R167: 0.9308176101
C168: 88 | D168: 0.3634 | E168: 74.13724507 | F168: 74.15979873 | G168: 237.23 | H168: 1.59 | I168: 0.06589722222 | K168: 0.3665 | L168: 74.14880918 | M168: 74.17248921 | N168: 215.36 | O168: 1.44 | P168: 0.05982222222 | Q168: 0.9078109851 | R168: 0.9056603774
C169: 99 | D169: 0.3286 | E169: 73.37705655 | F169: 73.39982664 | G169: 234.91 | H169: 1.55 | I169: 0.06525277778 | K169: 0.3312 | L169: 73.39359497 | M169: 73.41628634 | N169: 213.18 | O169: 1.4 | P169: 0.05921666667 | Q169: 0.907496488 | R169: 0.9032258065
C170: 110 | D170: 0.2985 | E170: 72.66652415 | F170: 72.68751274 | G170: 233.31 | H170: 1.51 | I170: 0.06480833333 | K170: 0.3009 | L170: 72.68532799 | M170: 72.70672442 | N170: 211.6 | O170: 1.37 | P170: 0.05877777778 | Q170: 0.9069478376 | R170: 0.9072847682
B171: chb02_12.dat | C171: 1 | D171: 4.4805 | E171: 0 | F171: 0 | G171: 309.14 | H171: 2.76 | I171: 0.08587222222 | K171: 4.4851 | L171: 0 | M171: 0 | N171: 277.86 | O171: 2.6 | P171: 0.07718333333 | Q171: 0.8988160704 | R171: 0.9420289855 | V171: =($K171/$D171-1) -> 0.00102667113
C172: 1.125 | D172: 4.497 | E172: 148.5541319 | F172: 141.1244889 | G172: 307.16 | H172: 2.35 | I172: 0.08532222222 | K172: 4.4971 | L172: 150.5612692 | M172: 141.7480145 | N172: 277.15 | O172: 2.32 | P172: 0.07698611111 | Q172: 0.9022984764 | R172: 0.9872340426 | T172: =bdrate($D172:$D191,E172:E191,$K172:$K191,L172:L191) -> -0.0005722632569 | U172: =bdrate($D172:$D191,F172:F191,$K172:$K191,M172:M191) -> 0.0002480259215
C173: 1.5 | D173: 3.7862 | E173: 101.9568837 | F173: 101.9570384 | G173: 296.69 | H173: 2.5 | I173: 0.08241388889 | K173: 3.788 | L173: 101.963322 | M173: 101.9634483 | N173: 265.03 | O173: 2.42 | P173: 0.07361944444 | Q173: 0.8932892919 | R173: 0.968
C174: 2 | D174: 3.3717 | E174: 99.86568939 | F174: 99.86583427 | G174: 289.84 | H174: 2.35 | I174: 0.08051111111 | K174: 3.3736 | L174: 99.87109275 | M174: 99.87120383 | N174: 261.78 | O174: 2.27 | P174: 0.07271666667 | Q174: 0.9031879658 | R174: 0.9659574468
C175: 3 | D175: 2.8204 | E175: 97.17665623 | F175: 97.18075623 | G175: 286.02 | H175: 2.27 | I175: 0.07945 | K175: 2.8168 | L175: 97.13999366 | M175: 97.14324103 | N175: 256.56 | O175: 2.12 | P175: 0.07126666667 | Q175: 0.8970002098 | R175: 0.9339207048
C176: 4 | D176: 2.4118 | E176: 94.93387767 | F176: 94.94096855 | G176: 278.22 | H176: 2.12 | I176: 0.07728333333 | K176: 2.4148 | L176: 94.94415643 | M176: 94.94958525 | N176: 251.2 | O176: 2 | P176: 0.06977777778 | Q176: 0.9028826109 | R176: 0.9433962264
C177: 5.5 | D177: 2.0106 | E177: 92.70092447 | F177: 92.71899085 | G177: 273.36 | H177: 2.08 | I177: 0.07593333333 | K177: 2.0153 | L177: 92.71504906 | M177: 92.73015424 | N177: 245.4 | O177: 1.93 | P177: 0.06816666667 | Q177: 0.8977172959 | R177: 0.9278846154
C178: 7 | D178: 1.7629 | E178: 91.15397109 | F178: 91.17665341 | G178: 268.33 | H178: 2.01 | I178: 0.07453611111 | K178: 1.767 | L178: 91.16317875 | M178: 91.18422437 | N178: 241.19 | O178: 1.85 | P178: 0.06699722222 | Q178: 0.8988558864 | R178: 0.92039801
C179: 9 | D179: 1.5439 | E179: 89.60000593 | F179: 89.62517614 | G179: 263.9 | H179: 1.9 | I179: 0.07330555556 | K179: 1.5472 | L179: 89.60413509 | M179: 89.62863831 | N179: 237.34 | O179: 1.76 | P179: 0.06592777778 | Q179: 0.8993558166 | R179: 0.9263157895
C180: 11 | D180: 1.3702 | E180: 88.20021166 | F180: 88.22532747 | G180: 260.53 | H180: 1.82 | I180: 0.07236944444 | K180: 1.3725 | L180: 88.2046379 | M180: 88.22873699 | N180: 236.01 | O180: 1.69 | P180: 0.06555833333 | Q180: 0.9058841592 | R180: 0.9285714286
C181: 13 | D181: 1.2245 | E181: 86.87350245 | F181: 86.89894917 | G181: 258.61 | H181: 1.76 | I181: 0.07183611111 | K181: 1.2268 | L181: 86.87981509 | M181: 86.90419555 | N181: 234.97 | O181: 1.64 | P181: 0.06526944444 | Q181: 0.9085882216 | R181: 0.9318181818
C182: 16 | D182: 1.1053 | E182: 85.67750615 | F182: 85.69935631 | G182: 257.27 | H182: 1.73 | I182: 0.07146388889 | K182: 1.1075 | L182: 85.68125673 | M182: 85.70241722 | N182: 233.47 | O182: 1.6 | P182: 0.06485277778 | Q182: 0.9074901854 | R182: 0.9248554913
C183: 22 | D183: 0.885 | E183: 83.25357114 | F183: 83.26925365 | G183: 254.67 | H183: 1.74 | I183: 0.07074166667 | K183: 0.8903 | L183: 83.28098714 | M183: 83.29642623 | N183: 232.55 | O183: 1.6 | P183: 0.06459722222 | Q183: 0.9131424981 | R183: 0.9195402299
C184: 33 | D184: 0.6463 | E184: 80.39783552 | F184: 80.41183991 | G184: 251.63 | H184: 1.73 | I184: 0.06989722222 | K184: 0.6491 | L184: 80.3984704 | M184: 80.41243114 | N184: 229.48 | O184: 1.57 | P184: 0.06374444444 | Q184: 0.91197393 | R184: 0.9075144509
C185: 44 | D185: 0.497 | E185: 78.31857926 | F185: 78.33635668 | G185: 246.69 | H185: 1.66 | I185: 0.068525 | K185: 0.4984 | L185: 78.32982732 | M185: 78.34890122 | N185: 225.4 | O185: 1.51 | P185: 0.06261111111 | Q185: 0.913697353 | R185: 0.9096385542
C186: 55 | D186: 0.4137 | E186: 76.98439005 | F186: 77.01577407 | G186: 243.32 | H186: 1.57 | I186: 0.06758888889 | K186: 0.4141 | L186: 76.98502908 | M186: 77.01810615 | N186: 223.28 | O186: 1.45 | P186: 0.06202222222 | Q186: 0.9176393227 | R186: 0.923566879
C187: 66 | D187: 0.3546 | E187: 75.92638245 | F187: 75.95908677 | G187: 241.75 | H187: 1.53 | I187: 0.06715277778 | K187: 0.3547 | L187: 75.92928636 | M187: 75.96369932 | N187: 220.28 | O187: 1.4 | P187: 0.06118888889 | Q187: 0.9111892451 | R187: 0.9150326797
C188: 77 | D188: 0.3116 | E188: 75.06798404 | F188: 75.09360528 | G188: 238.58 | H188: 1.49 | I188: 0.06627222222 | K188: 0.3117 | L188: 75.0748924 | M188: 75.101393 | N188: 218.6 | O188: 1.38 | P188: 0.06072222222 | Q188: 0.9162545058 | R188: 0.9261744966
C189: 88 | D189: 0.2869 | E189: 74.51854612 | F189: 74.54105144 | G189: 238.13 | H189: 1.48 | I189: 0.06614722222 | K189: 0.2869 | L189: 74.52102778 | M189: 74.54383012 | N189: 217.01 | O189: 1.36 | P189: 0.06028055556 | Q189: 0.9113089489 | R189: 0.9189189189
C190: 99 | D190: 0.2578 | E190: 73.80834804 | F190: 73.82734684 | G190: 235.48 | H190: 1.47 | I190: 0.06541111111 | K190: 0.2578 | L190: 73.82101018 | M190: 73.84006161 | N190: 215.22 | O190: 1.33 | P190: 0.05978333333 | Q190: 0.9139629693 | R190: 0.9047619048
C191: 110 | D191: 0.2327 | E191: 73.12646056 | F191: 73.14246006 | G191: 233.29 | H191: 1.45 | I191: 0.06480277778 | K191: 0.2329 | L191: 73.15165584 | M191: 73.16751019 | N191: 213.85 | O191: 1.32 | P191: 0.05940277778 | Q191: 0.9166702388 | R191: 0.9103448276
B192: chb02_14.dat | C192: 1 | D192: 4.9351 | E192: 0 | F192: 0 | G192: 318.36 | H192: 2.94 | I192: 0.08843333333 | K192: 4.9382 | L192: 0 | M192: 0 | N192: 284.29 | O192: 2.79 | P192: 0.07896944444 | Q192: 0.8929827868 | R192: 0.9489795918 | V192: =($K192/$D192-1) -> 0.0006281534315
C193: 1.125 | D193: 4.9515 | E193: 146.0128206 | F193: 139.3277501 | G193: 314.59 | H193: 2.5 | I193: 0.08738611111 | K193: 4.9517 | L193: 148.0085442 | M193: 139.4875356 | N193: 283.04 | O193: 2.45 | P193: 0.07862222222 | Q193: 0.8997107346 | R193: 0.98 | T193: =bdrate($D193:$D212,E193:E212,$K193:$K212,L193:L212) -> -0.0005306097612 | U193: =bdrate($D193:$D212,F193:F212,$K193:$K212,M193:M212) -> 0.0004062685638
C194: 1.5 | D194: 4.2817 | E194: 102.0663204 | F194: 102.0667962 | G194: 302.42 | H194: 3.17 | I194: 0.08400555556 | K194: 4.2848 | L194: 102.0830249 | M194: 102.0835921 | N194: 272.86 | O194: 3.07 | P194: 0.07579444444 | Q194: 0.9022551419 | R194: 0.9684542587
C195: 2 | D195: 3.8565 | E195: 99.90909769 | F195: 99.90925413 | G195: 298.29 | H195: 2.86 | I195: =G195/3600 -> 0.08285833333 | K195: 3.8589 | L195: 99.9206672 | M195: 99.92086414 | N195: 267.37 | O195: 2.77 | P195: =N195/3600 -> 0.07426944444 | Q195: =N195/G195 -> 0.8963424855 | R195: =O195/H195 -> 0.9685314685
C196: 3 | D196: 3.3041 | E196: 97.38386662 | F196: 97.39038183 | G196: 290.48 | H196: 2.58 | I196: 0.08068888889 | K196: 3.3023 | L196: 97.35821494 | M196: 97.3647531 | N196: 262.99 | O196: 2.44 | P196: 0.07305277778 | Q196: 0.9053635362 | R196: 0.9457364341
C197: 4 | D197: 2.8752 | E197: 94.84308309 | F197: 94.84633506 | G197: 286.15 | H197: 2.42 | I197: 0.07948611111 | K197: 2.8768 | L197: 94.85024489 | M197: 94.85328653 | N197: 258.74 | O197: 2.35 | P197: 0.07187222222 | Q197: 0.9042110781 | R197: 0.9710743802
C198: 5.5 | D198: 2.4491 | E198: 92.46444941 | F198: 92.47524874 | G198: 279.52 | H198: 2.29 | I198: 0.07764444444 | K198: 2.4506 | L198: 92.46936869 | M198: 92.47939424 | N198: 252.96 | O198: 2.21 | P198: 0.07026666667 | Q198: 0.9049799657 | R198: 0.9650655022
C199: 7 | D199: 2.1681 | E199: 90.77998264 | F199: 90.79848387 | G199: 276.34 | H199: 2.22 | I199: 0.07676111111 | K199: 2.1707 | L199: 90.78936375 | M199: 90.80704122 | N199: 248.97 | O199: 2.11 | P199: 0.06915833333 | Q199: 0.9009553449 | R199: 0.9504504505
C200: 9 | D200: 1.908 | E200: 89.07007994 | F200: 89.09527244 | G200: 270.73 | H200: 2.13 | I200: 0.07520277778 | K200: 1.91 | L200: 89.07592803 | M200: 89.10043535 | N200: 245.58 | O200: 2.04 | P200: 0.06821666667 | Q200: 0.9071030178 | R200: 0.9577464789
... 1256 more rows

Sheet NMR55 (EEG)
D1: Reference | K1: Tested | T1: BD-rate (piecewise cubic) | V1: Lossless
C2: StepSizeForQP | D2: BPS | E2: PSNR1 | F2: PSNR2 | G2: Enc T [s] | H2: Dec T [s] | I2: Enc T [h] | K2: BPS | L2: PSNR1 | M2: PSNR2 | N2: Enc T [s] | O2: Dec T [s] | P2: Enc T [h] | Q2: EncR | R2: DecR | T2: BD-PSNR1 | U2: BD-PSNR2 | V2: BR-R
A3: NMR55 | B3: sub-101_task-Sleep_acq-headband_eeg.dat | C3: 1 | D3: 4.3032 | E3: 0 | F3: 0 | G3: 923.55 | H3: 12.36 | I3: =G3/3600 -> 0.2565416667 | K3: 4.1694 | L3: 0 | M3: 0 | N3: 826.38 | O3: 8.17 | P3: =N3/3600 -> 0.22955 | Q3: =N3/G3 -> 0.894786422 | R3: =O3/H3 -> 0.6610032362 | V3: =($K3/$D3-1) -> -0.03109313999
A4: EEG | C4: 1.125 | D4: 5.1015 | E4: 118.2947969 | F4: 118.224394 | G4: 921.48 | H4: 7.88 | I4: 0.2559666667 | K4: 5.1041 | L4: 118.3725078 | M4: 118.3460219 | N4: 834.7 | O4: 6.9 | P4: 0.2318611111 | Q4: 0.9058254113 | R4: 0.8756345178 | T4: =bdrate($D4:$D23,E4:E23,$K4:$K23,L4:L23) -> -0.001076263725 | U4: =bdrate($D4:$D23,F4:F23,$K4:$K23,M4:M23) -> -0.001062398197
C5: 1.5 | D5: 4.474 | E5: 101.459046 | F5: 101.5474519 | G5: 890.45 | H5: 13.08 | I5: 0.2473472222 | K5: 4.467 | L5: 101.4534323 | M5: 101.5435994 | N5: 801.61 | O5: 9.49 | P5: 0.2226694444 | Q5: 0.9002302207 | R5: 0.7255351682
C6: 2 | D6: 4.1435 | E6: 99.80602502 | F6: 99.87984991 | G6: 878.43 | H6: 12.51 | I6: 0.2440083333 | K6: 4.1364 | L6: 99.8024174 | M6: 99.87658238 | N6: 787.01 | O6: 8.96 | P6: 0.2186138889 | Q6: 0.8959279624 | R6: 0.7162270184
C7: 3 | D7: 3.7189 | E7: 98.31982262 | F7: 98.36377667 | G7: 862.3 | H7: 12.68 | I7: 0.2395277778 | K7: 3.7117 | L7: 98.29585195 | M7: 98.34120161 | N7: 776.1 | O7: 8.87 | P7: 0.2155833333 | Q7: 0.9000347907 | R7: 0.6995268139
C8: 4 | D8: 3.2939 | E8: 94.94773628 | F8: 95.10255753 | G8: 846.17 | H8: 11.31 | I8: 0.2350472222 | K8: 3.2876 | L8: 94.94287571 | M8: 95.09761584 | N8: 765.02 | O8: 7.82 | P8: 0.2125055556 | Q8: 0.9040972854 | R8: 0.691423519
C9: 5.5 | D9: 2.9218 | E9: 92.15963269 | F9: 92.39266179 | G9: 840.06 | H9: 10.97 | I9: 0.23335 | K9: 2.9159 | L9: 92.1503881 | M9: 92.38282704 | N9: 756.52 | O9: 7.46 | P9: 0.2101444444 | Q9: 0.9005547223 | R9: 0.6800364631
C10: 7 | D10: 2.7188 | E10: 90.62967422 | F10: 90.87877633 | G10: 826.41 | H10: 10.64 | I10: 0.2295583333 | K10: 2.7143 | L10: 90.62766925 | M10: 90.87582461 | N10: 752.73 | O10: 7.33 | P10: 0.2090916667 | Q10: 0.910843286 | R10: 0.6889097744
C11: 9 | D11: 2.443 | E11: 88.46650054 | F11: 88.77161939 | G11: 816.57 | H11: 10.31 | I11: 0.226825 | K11: 2.4395 | L11: 88.46848771 | M11: 88.7724571 | N11: 745.33 | O11: 7.07 | P11: 0.2070361111 | Q11: 0.9127570202 | R11: 0.6857419981
C12: 11 | D12: 2.2167 | E12: 86.70075699 | F12: 87.04120943 | G12: 810.52 | H12: 10.05 | I12: 0.2251444444 | K12: 2.2128 | L12: 86.70734892 | M12: 87.04680724 | N12: 736.75 | O12: 6.76 | P12: 0.2046527778 | Q12: 0.9089843557 | R12: 0.6726368159
C13: 13 | D13: 1.9668 | E13: 84.83222016 | F13: 85.22737158 | G13: 800.76 | H13: 9.86 | I13: 0.2224333333 | K13: 1.9637 | L13: 84.84595073 | M13: 85.23908812 | N13: 726.33 | O13: 6.56 | P13: 0.2017583333 | Q13: 0.9070508017 | R13: 0.6653144016
C14: 16 | D14: 1.7909 | E14: 83.5119344 | F14: 83.92207019 | G14: 791.72 | H14: 9.56 | I14: 0.2199222222 | K14: 1.7885 | L14: 83.52688436 | M14: 83.93467186 | N14: 721.19 | O14: 6.38 | P14: 0.2003305556 | Q14: 0.9109154752 | R14: 0.6673640167
C15: 22 | D15: 1.4531 | E15: 80.88792507 | F15: 81.34164534 | G15: 775.06 | H15: 8.83 | I15: 0.2152944444 | K15: 1.4503 | L15: 80.8976888 | M15: 81.34912929 | N15: 705.69 | O15: 5.99 | P15: 0.196025 | Q15: 0.9104972518 | R15: 0.6783691959
C16: 33 | D16: 1.0836 | E16: 77.89824109 | F16: 78.39510253 | G16: 761.34 | H16: 7.9 | I16: 0.2114833333 | K16: 1.0829 | L16: 77.90608906 | M16: 78.40176627 | N16: 687.46 | O16: 5.53 | P16: 0.1909611111 | Q16: 0.9029605695 | R16: 0.7
C17: 44 | D17: 0.8686 | E17: 75.93899053 | F17: 76.38957833 | G17: 738.9 | H17: 7.16 | I17: 0.20525 | K17: 0.8694 | L17: 75.95279772 | M17: 76.40258854 | N17: 667.31 | O17: 5.14 | P17: 0.1853638889 | Q17: 0.9031127351 | R17: 0.717877095
C18: 55 | D18: 0.7591 | E18: 74.72731243 | F18: 75.14811259 | G18: 726.02 | H18: 6.65 | I18: 0.2016722222 | K18: 0.7601 | L18: 74.73624014 | M18: 75.15658257 | N18: 660.98 | O18: 4.97 | P18: 0.1836055556 | Q18: 0.910415691 | R18: 0.7473684211
C19: 66 | D19: 0.6738 | E19: 73.7035929 | F19: 74.09697393 | G19: 717.25 | H19: 6.39 | I19: 0.1992361111 | K19: 0.6747 | L19: 73.71038214 | M19: 74.10340585 | N19: 653.94 | O19: 4.79 | P19: 0.18165 | Q19: 0.9117323109 | R19: 0.7496087637
C20: 77 | D20: 0.6016 | E20: 72.74492566 | F20: 73.12187256 | G20: 709.85 | H20: 6.25 | I20: 0.1971805556 | K20: 0.6022 | L20: 72.75371051 | M20: 73.13025932 | N20: 646.39 | O20: 4.66 | P20: 0.1795527778 | Q20: 0.9106008312 | R20: 0.7456
C21: 88 | D21: 0.5604 | E21: 72.15108055 | F21: 72.53335922 | G21: 708.89 | H21: 6.22 | I21: 0.1969138889 | K21: 0.5606 | L21: 72.15226637 | M21: 72.53366241 | N21: 645.85 | O21: 4.64 | P21: 0.1794027778 | Q21: 0.9110722397 | R21: 0.7459807074
C22: 99 | D22: 0.5048 | E22: 71.3063941 | F22: 71.6856654 | G22: 707.49 | H22: 6.2 | I22: 0.196525 | K22: 0.505 | L22: 71.3121432 | M22: 71.6894867 | N22: 642.05 | O22: 4.57 | P22: 0.1783472222 | Q22: 0.907503993 | R22: 0.7370967742
C23: 110 | D23: 0.4582 | E23: 70.53537492 | F23: 70.91200484 | G23: 702.3 | H23: 5.98 | I23: 0.1950833333 | K23: 0.4583 | L23: 70.55126893 | M23: 70.92601225 | N23: 634.88 | O23: 4.46 | P23: 0.1763555556 | Q23: 0.9040011391 | R23: 0.745819398
B24: sub-101_task-Sleep_acq-psg_eeg.dat | C24: 1 | D24: 5.444 | E24: 0 | F24: 0 | G24: 1204 | H24: 13.53 | I24: 0.3344444444 | K24: 5.4303 | L24: 0 | M24: 0 | N24: 1080.06 | O24: 11.96 | P24: 0.3000166667 | Q24: 0.8970598007 | R24: 0.8839615669 | V24: =($K24/$D24-1) -> -0.002516531962
C25: 1.125 | D25: 5.9245 | E25: 117.778458 | F25: 136.4678087 | G25: 1191.37 | H25: 11.92 | I25: 0.3309361111 | K25: 5.9239 | L25: 117.6522446 | M25: 140.7428305 | N25: 1065.47 | O25: 10.49 | P25: 0.2959638889 | Q25: 0.894323342 | R25: 0.880033557 | T25: =bdrate($D25:$D44,E25:E44,$K25:$K44,L25:L44) -> -0.0001986115025 | U25: =bdrate($D25:$D44,F25:F44,$K25:$K44,M25:M44) -> -0.001051708425
C26: 1.5 | D26: 5.4839 | E26: 102.9717327 | F26: 105.6401077 | G26: 1151.2 | H26: 15.47 | I26: 0.3197777778 | K26: 5.4917 | L26: 103.0216923 | M26: 105.6938139 | N26: 1026.26 | O26: 14.51 | P26: 0.2850722222 | Q26: 0.8914697707 | R26: 0.9379444085
C27: 2 | D27: 5.1196 | E27: 100.7185123 | F27: 103.2211744 | G27: 1127.29 | H27: 13.3 | I27: 0.3131361111 | K27: 5.1222 | L27: 100.7329823 | M27: 103.1892211 | N27: 1013.66 | O27: 12.21 | P27: 0.2815722222 | Q27: 0.8992007381 | R27: 0.9180451128
C28: 3 | D28: 4.6412 | E28: 98.95694239 | F28: 100.9973268 | G28: 1103.48 | H28: 14.31 | I28: 0.3065222222 | K28: 4.6452 | L28: 98.9481929 | M28: 100.9916746 | N28: 994.7 | O28: 12.54 | P28: 0.2763055556 | Q28: 0.9014209591 | R28: 0.8763102725
C29: 4 | D29: 4.2772 | E29: 95.51181464 | F29: 97.68837095 | G29: 1087.86 | H29: 13.09 | I29: 0.3021833333 | K29: 4.2776 | L29: 95.50956464 | M29: 97.64331498 | N29: 978.66 | O29: 11.64 | P29: 0.27185 | Q29: 0.8996194363 | R29: 0.8892284186
C30: 5.5 | D30: 3.8915 | E30: 92.94690614 | F30: 94.97700684 | G30: 1076.98 | H30: 12.6 | I30: 0.2991611111 | K30: 3.8917 | L30: 92.937516 | M30: 94.97474927 | N30: 969.54 | O30: 10.98 | P30: 0.2693166667 | Q30: 0.9002395588 | R30: 0.8714285714
C31: 7 | D31: 3.6244 | E31: 91.12835999 | F31: 93.08547809 | G31: 1069.59 | H31: 12.02 | I31: 0.2971083333 | K31: 3.6234 | L31: 91.10799493 | M31: 93.06378656 | N31: 957.24 | O31: 10.38 | P31: 0.2659 | Q31: 0.8949597509 | R31: 0.8635607321
C32: 9 | D32: 3.3326 | E32: 88.97068263 | F32: 90.93694746 | G32: 1052.28 | H32: 11.26 | I32: 0.2923 | K32: 3.332 | L32: 88.95855317 | M32: 90.9176087 | N32: 948.35 | O32: 9.81 | P32: 0.2634305556 | Q32: 0.901233512 | R32: 0.8712255773
C33: 11 | D33: 3.0965 | E33: 87.20930535 | F33: 89.24361244 | G33: 1039.12 | H33: 10.76 | I33: 0.2886444444 | K33: 3.0953 | L33: 87.19630481 | M33: 89.21871826 | N33: 935.26 | O33: 9.29 | P33: 0.2597944444 | Q33: 0.9000500423 | R33: 0.8633828996
C34: 13 | D34: 2.8625 | E34: 85.44620477 | F34: 87.37966192 | G34: 1027.73 | H34: 10.17 | I34: 0.2854805556 | K34: 2.8623 | L34: 85.44686017 | M34: 87.38912965 | N34: 926.34 | O34: 8.86 | P34: 0.2573166667 | Q34: 0.9013456842 | R34: 0.8711897738
C35: 16 | D35: 2.6764 | E35: 84.04992887 | F35: 86.00232941 | G35: 1012.74 | H35: 9.74 | I35: 0.2813166667 | K35: 2.6752 | L35: 84.04658253 | M35: 86.02522 | N35: 921.58 | O35: 8.53 | P35: 0.2559944444 | Q35: 0.9099867686 | R35: 0.8757700205
C36: 22 | D36: 2.3323 | E36: 81.40955554 | F36: 83.40092491 | G36: 998.22 | H36: 9.17 | I36: 0.2772833333 | K36: 2.3309 | L36: 81.40718709 | M36: 83.39868795 | N36: 900.7 | O36: 7.95 | P36: 0.2501944444 | Q36: 0.9023061049 | R36: 0.86695747
C37: 33 | D37: 1.9345 | E37: 78.20812002 | F37: 80.10943219 | G37: 974.96 | H37: 8.57 | I37: 0.2708222222 | K37: 1.9319 | L37: 78.20508512 | M37: 80.093743 | N37: 876.56 | O37: 7.34 | P37: 0.2434888889 | Q37: 0.8990727825 | R37: 0.8564760793
C38: 44 | D38: 1.6304 | E38: 75.62249263 | F38: 77.56985119 | G38: 954.43 | H38: 8.18 | I38: 0.2651194444 | K38: 1.6282 | L38: 75.62755581 | M38: 77.52895661 | N38: 864.3 | O38: 7.1 | P38: 0.2400833333 | Q38: 0.9055666733 | R38: 0.8679706601
C39: 55 | D39: 1.4617 | E39: 74.07975142 | F39: 75.95456604 | G39: 945.35 | H39: 8.02 | I39: 0.2625972222 | K39: 1.4595 | L39: 74.08223359 | M39: 75.92759651 | N39: 852.68 | O39: 6.84 | P39: 0.2368555556 | Q39: 0.9019728143 | R39: 0.8528678304
C40: 66 | D40: 1.3206 | E40: 72.73422959 | F40: 74.56003941 | G40: 939.31 | H40: 7.93 | I40: 0.2609194444 | K40: 1.3183 | L40: 72.74306538 | M40: 74.55193389 | N40: 846.23 | O40: 6.71 | P40: 0.2350638889 | Q40: 0.9009059842 | R40: 0.8461538462
C41: 77 | D41: 1.1991 | E41: 71.51998851 | F41: 73.33619863 | G41: 966.94 | H41: 7.95 | I41: 0.2685944444 | K41: 1.1969 | L41: 71.52931526 | M41: 73.35156088 | N41: 837 | O41: 6.55 | P41: 0.2325 | Q41: 0.8656173082 | R41: 0.8238993711
C42: 88 | D42: 1.1351 | E42: 70.85330266 | F42: 72.6464743 | G42: 920.71 | H42: 7.59 | I42: 0.2557527778 | K42: 1.133 | L42: 70.85501755 | M42: 72.62058436 | N42: 833.14 | O42: 6.46 | P42: 0.2314277778 | Q42: 0.9048886186 | R42: 0.8511198946
C43: 99 | D43: 1.043 | E43: 69.85374742 | F43: 71.58536687 | G43: 916.36 | H43: 7.48 | I43: 0.2545444444 | K43: 1.0406 | L43: 69.85676554 | M43: 71.56711576 | N43: 827.27 | O43: 6.31 | P43: 0.2297972222 | Q43: 0.902778384 | R43: 0.8435828877
C44: 110 | D44: 0.9637 | E44: 68.96545095 | F44: 70.78762736 | G44: 904.63 | H44: 7.31 | I44: 0.2512861111 | K44: 0.9609 | L44: 68.97383128 | M44: 70.78198041 | N44: 821.49 | O44: 6.22 | P44: 0.2281916667 | Q44: 0.9080950223 | R44: 0.8508891929
B45: sub-102_task-Sleep_acq-psg_eeg.dat | C45: 1 | D45: 5.2808 | E45: 0 | F45: 0 | G45: 1265.59 | H45: 14.68 | I45: 0.3515527778 | K45: 5.2731 | L45: 0 | M45: 0 | N45: 1121.04 | O45: 12.95 | P45: 0.3114 | Q45: 0.8857844958 | R45: 0.8821525886 | V45: =($K45/$D45-1) -> -0.001458112407
C46: 1.125 | D46: 5.7518 | E46: 116.7953831 | F46: 132.4867213 | G46: 1255.38 | H46: 13.83 | I46: 0.3487166667 | K46: 5.7575 | L46: 116.6748286 | M46: 132.5765355 | N46: 1104.89 | O46: 12.28 | P46: 0.3069138889 | Q46: 0.8801239465 | R46: 0.8879248012 | T46: =bdrate($D46:$D65,E46:E65,$K46:$K65,L46:L65) -> -5.170038962e-05 | U46: =bdrate($D46:$D65,F46:F65,$K46:$K65,M46:M65) -> 0.0001977016283
C47: 1.5 | D47: 5.3203 | E47: 103.098818 | F47: 105.7401479 | G47: 1213.03 | H47: 19.31 | I47: 0.3369527778 | K47: 5.3336 | L47: 103.1597818 | M47: 105.7785535 | N47: 1061.41 | O47: 17.49 | P47: 0.2948361111 | Q47: 0.8750072133 | R47: 0.9057483169
C48: 2 | D48: 4.9557 | E48: 100.8240933 | F48: 103.1119556 | G48: 1194.63 | H48: 16.5 | I48: 0.3318416667 | K48: 4.9658 | L48: 100.8556171 | M48: 103.1380172 | N48: 1048.9 | O48: 15 | P48: 0.2913611111 | Q48: 0.878012439 | R48: 0.9090909091
C49: 3 | D49: 4.4993 | E49: 98.99393705 | F49: 101.0098714 | G49: 1168.45 | H49: 15.64 | I49: 0.3245694444 | K49: 4.5059 | L49: 98.99090144 | M49: 100.9998886 | N49: 1026.32 | O49: 13.54 | P49: 0.2850888889 | Q49: 0.8783602208 | R49: 0.8657289003
C50: 4 | D50: 4.1282 | E50: 95.57120101 | F50: 97.5115324 | G50: 1154.12 | H50: 14.93 | I50: 0.3205888889 | K50: 4.1332 | L50: 95.58268158 | M50: 97.52339179 | N50: 1012.22 | O50: 13.17 | P50: 0.2811722222 | Q50: 0.8770491803 | R50: 0.8821165439
C51: 5.5 | D51: 3.7489 | E51: 92.95494167 | F51: 94.82274345 | G51: 1129.81 | H51: 13.73 | I51: 0.3138361111 | K51: 3.7522 | L51: 92.96191392 | M51: 94.85474011 | N51: 997.88 | O51: 12.11 | P51: 0.2771888889 | Q51: 0.8832281534 | R51: 0.8820101966
C52: 7 | D52: 3.4827 | E52: 91.08487129 | F52: 92.94330757 | G52: 1120.6 | H52: 12.94 | I52: 0.3112777778 | K52: 3.4842 | L52: 91.08529604 | M52: 92.96431348 | N52: 1023.87 | O52: 11.48 | P52: 0.2844083333 | Q52: 0.9136801713 | R52: 0.8871715611
C53: 9 | D53: 3.2021 | E53: 89.03749927 | F53: 90.82389488 | G53: 1101.2 | H53: 12.4 | I53: 0.3058888889 | K53: 3.2034 | L53: 89.04079119 | M53: 90.83801073 | N53: 968.72 | O53: 10.74 | P53: 0.2690888889 | Q53: 0.8796948783 | R53: 0.8661290323
C54: 11 | D54: 2.9716 | E54: 87.3356054 | F54: 89.12271161 | G54: 1088.69 | H54: 11.95 | I54: 0.3024138889 | K54: 2.9719 | L54: 87.33882575 | M54: 89.16063026 | N54: 961.62 | O54: 10.39 | P54: 0.2671166667 | Q54: 0.8832817423 | R54: 0.8694560669
C55: 13 | D55: 2.7545 | E55: 85.6938673 | F55: 87.44596499 | G55: 1076.85 | H55: 11.65 | I55: 0.299125 | K55: 2.7542 | L55: 85.69603167 | M55: 87.46745612 | N55: 941.4 | O55: 10.04 | P55: 0.2615 | Q55: 0.8742164647 | R55: 0.8618025751
C56: 16 | D56: 2.5778 | E56: 84.33652454 | F56: 86.11832682 | G56: 1060.57 | H56: 11.34 | I56: 0.2946027778 | K56: 2.5765 | L56: 84.33699159 | M56: 86.15435993 | N56: 937.04 | O56: 9.94 | P56: 0.2602888889 | Q56: 0.883524897 | R56: 0.8765432099
C57: 22 | D57: 2.2588 | E57: 81.78010578 | F57: 83.52347791 | G57: 1044.09 | H57: 10.93 | I57: 0.290025 | K57: 2.256 | L57: 81.77990148 | M57: 83.53859432 | N57: 916.81 | O57: 9.38 | P57: 0.2546694444 | Q57: 0.8780948003 | R57: 0.8581884721
C58: 33 | D58: 1.8871 | E58: 78.62002023 | F58: 80.31339382 | G58: 1017.14 | H58: 10.34 | I58: 0.2825388889 | K58: 1.8841 | L58: 78.63271312 | M58: 80.31790254 | N58: 893.21 | O58: 8.82 | P58: 0.2481138889 | Q58: 0.8781583656 | R58: 0.8529980658
C59: 44 | D59: 1.6233 | E59: 76.18244029 | F59: 77.85375914 | G59: 999 | H59: 9.74 | I59: 0.2775 | K59: 1.6219 | L59: 76.22499243 | M59: 77.88484976 | N59: 883.32 | O59: 8.3 | P59: 0.2453666667 | Q59: 0.8842042042 | R59: 0.8521560575
C60: 55 | D60: 1.4695 | E60: 74.64816604 | F60: 76.27792372 | G60: 986.97 | H60: 9.41 | I60: 0.2741583333 | K60: 1.4683 | L60: 74.67604496 | M60: 76.2756346 | N60: 877.84 | O60: 7.96 | P60: 0.2438444444 | Q60: 0.8894292633 | R60: 0.8459086079
C61: 66 | D61: 1.3418 | E61: 73.30727326 | F61: 74.90240816 | G61: 981.84 | H61: 9.11 | I61: 0.2727333333 | K61: 1.3408 | L61: 73.33547263 | M61: 74.92040393 | N61: 868.12 | O61: 7.62 | P61: 0.2411444444 | Q61: 0.8841766479 | R61: 0.8364434687
C62: 77 | D62: 1.2337 | E62: 72.10327693 | F62: 73.64575839 | G62: 976.56 | H62: 8.86 | I62: 0.2712666667 | K62: 1.2328 | L62: 72.1334535 | M62: 73.670022 | N62: 861.15 | O62: 7.36 | P62: 0.2392083333 | Q62: 0.8818198575 | R62: 0.8306997743
C63: 88 | D63: 1.1709 | E63: 71.36792548 | F63: 72.85088021 | G63: 973.86 | H63: 8.72 | I63: 0.2705166667 | K63: 1.1703 | L63: 71.39119021 | M63: 72.87231289 | N63: 860.85 | O63: 7.26 | P63: 0.239125 | Q63: 0.8839566262 | R63: 0.8325688073
C64: 99 | D64: 1.087 | E64: 70.36861254 | F64: 71.85876382 | G64: 967.54 | H64: 8.52 | I64: 0.2687611111 | K64: 1.0861 | L64: 70.39009875 | M64: 71.85313873 | N64: 852.53 | O64: 6.98 | P64: 0.2368138889 | Q64: 0.8811315294 | R64: 0.8192488263
C65: 110 | D65: 1.0117 | E65: 69.44510081 | F65: 70.97931693 | G65: 961.44 | H65: 8.36 | I65: 0.2670666667 | K65: 1.0103 | L65: 69.47091756 | M65: 70.98412662 | N65: 853.72 | O65: 6.95 | P65: 0.2371444444 | Q65: 0.8879597271 | R65: 0.8313397129
B66: sub-103_task-Sleep_acq-psg_eeg.dat | C66: 1 | D66: 5.259 | E66: 0 | F66: 0 | G66: 1535.3 | H66: 16.93 | I66: 0.4264722222 | K66: 5.2519 | L66: 0 | M66: 0 | N66: 1379.55 | O66: 14.31 | P66: 0.3832083333 | Q66: 0.8985540285 | R66: 0.845245127 | V66: =($K66/$D66-1) -> -0.001350066553
C67: 1.125 | D67: 5.6037 | E67: 119.0183534 | F67: 137.8248453 | G67: 1514.97 | H67: 15.28 | I67: =G67/3600 -> 0.420825 | K67: 5.6046 | L67: 118.9468454 | M67: 136.46855 | N67: 1364.85 | O67: 13.83 | P67: =N67/3600 -> 0.379125 | Q67: =N67/G67 -> 0.9009089289 | R67: =O67/H67 -> 0.905104712 | T67: =bdrate($D67:$D86,E67:E86,$K67:$K86,L67:L86) -> 0.0001911318846 | U67: =bdrate($D67:$D86,F67:F86,$K67:$K86,M67:M86) -> 0.0005879648113
C68: 1.5 | D68: 5.1031 | E68: 102.7275947 | F68: 104.5714302 | G68: 1469.09 | H68: 22.64 | I68: 0.4080805556 | K68: 5.1122 | L68: 102.7751372 | M68: 104.6348458 | N68: 1311.15 | O68: 20.33 | P68: 0.3642083333 | Q68: 0.8924912701 | R68: 0.8979681979
C69: 2 | D69: 4.7108 | E69: 100.4548378 | F69: 102.0557233 | G69: 1446.59 | H69: 18.78 | I69: 0.4018305556 | K69: 4.7154 | L69: 100.4734558 | M69: 102.1160169 | N69: 1291.03 | O69: 16.66 | P69: 0.3586194444 | Q69: 0.8924643472 | R69: 0.887113951
C70: 3 | D70: 4.2403 | E70: 98.55580976 | F70: 99.96608061 | G70: 1429.23 | H70: 20.55 | I70: 0.3970083333 | K70: 4.2449 | L70: 98.54735961 | M70: 99.9509985 | N70: 1266.39 | O70: 16.19 | P70: 0.351775 | Q70: 0.8860645243 | R70: 0.7878345499
C71: 4 | D71: 3.8172 | E71: 95.17087597 | F71: 96.52457162 | G71: 1394.99 | H71: 16.82 | I71: 0.3874972222 | K71: 3.8191 | L71: 95.17073809 | M71: 96.53128979 | N71: 1254.37 | O71: 14.26 | P71: 0.3484361111 | Q71: 0.89919641 | R71: 0.8478002378
C72: 5.5 | D72: 3.4097 | E72: 92.59068154 | F72: 93.90932432 | G72: 1370.62 | H72: 16.94 | I72: 0.3807277778 | K72: 3.4118 | L72: 92.59242223 | M72: 93.9192589 | N72: 1235.12 | O72: 13.84 | P72: 0.3430888889 | Q72: 0.9011396302 | R72: 0.8170011806
C73: 7 | D73: 3.1233 | E73: 90.73600967 | F73: 92.04273473 | G73: 1350.8 | H73: 16.07 | I73: 0.3752222222 | K73: 3.1238 | L73: 90.73301933 | M73: 92.04594744 | N73: 1214.51 | O73: 13.08 | P73: 0.3373638889 | Q73: 0.8991042345 | R73: 0.8139390168
C74: 9 | D74: 2.8274 | E74: 88.73511907 | F74: 90.02983641 | G74: 1337.69 | H74: 15.76 | I74: 0.3715805556 | K74: 2.8279 | L74: 88.73790492 | M74: 90.04285126 | N74: 1200.65 | O74: 12.78 | P74: 0.3335138889 | Q74: 0.8975547399 | R74: 0.8109137056
C75: 11 | D75: 2.593 | E75: 87.10141011 | F75: 88.42262014 | G75: 1320.14 | H75: 15.08 | I75: 0.3667055556 | K75: 2.5932 | L75: 87.10031227 | M75: 88.43159924 | N75: 1182.48 | O75: 12.19 | P75: 0.3284666667 | Q75: 0.8957231809 | R75: 0.8083554377
C76: 13 | D76: 2.3754 | E76: 85.535805 | F76: 86.88496602 | G76: 1303.68 | H76: 14.35 | I76: 0.3621333333 | K76: 2.3762 | L76: 85.54198165 | M76: 86.90802532 | N76: 1169.06 | O76: 11.68 | P76: 0.3247388889 | Q76: 0.8967384634 | R76: 0.8139372822
C77: 16 | D77: 2.1984 | E77: 84.2202124 | F77: 85.63827805 | G77: 1280.81 | H77: 13.8 | I77: 0.3557805556 | K77: 2.1989 | L77: 84.22583937 | M77: 85.65624538 | N77: 1157.21 | O77: 11.27 | P77: 0.3214472222 | Q77: 0.9034985673 | R77: 0.8166666667
C78: 22 | D78: 1.8832 | E78: 81.74993433 | F78: 83.2337854 | G78: 1255.75 | H78: 13.14 | I78: 0.3488194444 | K78: 1.8833 | L78: 81.75739846 | M78: 83.2603448 | N78: 1134.64 | O78: 10.72 | P78: 0.3151777778 | Q78: 0.903555644 | R78: 0.8158295282
C79: 33 | D79: 1.5284 | E79: 78.74058124 | F79: 80.27890879 | G79: 1227.08 | H79: 12.68 | I79: 0.3408555556 | K79: 1.5285 | L79: 78.74946523 | M79: 80.29366047 | N79: 1107.95 | O79: 10.06 | P79: 0.3077638889 | Q79: 0.9029158653 | R79: 0.7933753943
C80: 44 | D80: 1.2703 | E80: 76.32978252 | F80: 77.92081286 | G80: 1210.42 | H80: 12.44 | I80: 0.3362277778 | K80: 1.2708 | L80: 76.35066101 | M80: 77.9316353 | N80: 1088.3 | O80: 9.58 | P80: 0.3023055556 | Q80: 0.8991094 | R80: 0.770096463
C81: 55 | D81: 1.1262 | E81: 74.85418439 | F81: 76.4443257 | G81: 1197.98 | H81: 12.23 | I81: 0.3327722222 | K81: 1.1278 | L81: 74.8790526 | M81: 76.4604962 | N81: 1077.02 | O81: 9.34 | P81: 0.2991722222 | Q81: 0.8990300339 | R81: 0.7636958299
C82: 66 | D82: 1.0105 | E82: 73.58310238 | F82: 75.15242772 | G82: 1180.5 | H82: 11.93 | I82: 0.3279166667 | K82: 1.0121 | L82: 73.61016381 | M82: 75.18517314 | N82: 1068.71 | O82: 9.01 | P82: 0.2968638889 | Q82: 0.9053028378 | R82: 0.7552388935
C83: 77 | D83: 0.9137 | E83: 72.45068399 | F83: 74.03279467 | G83: 1173.21 | H83: 11.74 | I83: 0.3258916667 | K83: 0.9151 | L83: 72.4749261 | M83: 74.06714285 | N83: 1062.18 | O83: 8.79 | P83: 0.29505 | Q83: 0.9053622114 | R83: 0.7487223169
C84: 88 | D84: 0.8603 | E84: 71.78880615 | F84: 73.34425734 | G84: 1171.82 | H84: 11.81 | I84: 0.3255055556 | K84: 0.8616 | L84: 71.80920344 | M84: 73.36607454 | N84: 1057.77 | O84: 8.66 | P84: 0.293825 | Q84: 0.9026727654 | R84: 0.733276884
C85: 99 | D85: 0.787 | E85: 70.83626627 | F85: 72.42599861 | G85: 1161.52 | H85: 11.46 | I85: 0.3226444444 | K85: 0.788 | L85: 70.85609601 | M85: 72.43424185 | N85: 1047.5 | O85: 8.42 | P85: 0.2909722222 | Q85: 0.9018355259 | R85: 0.7347294939
C86: 110 | D86: 0.7222 | E86: 69.94637798 | F86: 71.595957 | G86: 1154.76 | H86: 11.38 | I86: 0.3207666667 | K86: 0.7227 | L86: 69.96598937 | M86: 71.60221841 | N86: 1042.64 | O86: 8.25 | P86: 0.2896222222 | Q86: 0.9029062316 | R86: 0.7249560633
B87: sub-104_task-Sleep_acq-headband_eeg.dat | C87: 1 | D87: 2.7701 | E87: 0 | F87: 0 | G87: 776.5 | H87: 7.63 | I87: 0.2156944444 | K87: 2.7526 | L87: 0 | M87: 0 | N87: 705.57 | O87: 5.11 | P87: 0.1959916667 | Q87: 0.9086542176 | R87: 0.6697247706 | V87: =($K87/$D87-1) -> -0.006317461463
C88: 1.125 | D88: 2.9401 | E88: 123.0584614 | F88: 123.4053749 | G88: 781.15 | H88: 5.95 | I88: 0.2169861111 | K88: 2.9429 | L88: 123.1295303 | M88: 123.5566944 | N88: 708.02 | O88: 4.78 | P88: 0.1966722222 | Q88: 0.9063816168 | R88: 0.8033613445 | T88: =bdrate($D88:$D107,E88:E107,$K88:$K107,L88:L107) -> 0.0005458871618 | U88: =bdrate($D88:$D107,F88:F107,$K88:$K107,M88:M107) -> 0.0005302427794
C89: 1.5 | D89: 2.5016 | E89: 102.0914341 | F89: 102.3215878 | G89: 739.68 | H89: 8.47 | I89: 0.2054666667 | K89: 2.5048 | L89: 102.1007362 | M89: 102.3276713 | N89: 665.05 | O89: 6.45 | P89: 0.1847361111 | Q89: 0.8991050184 | R89: 0.7615112161
C90: 2 | D90: 2.2231 | E90: 100.5931825 | F90: 100.8066963 | G90: 725.67 | H90: 7.91 | I90: 0.201575 | K90: 2.2229 | L90: 100.5835443 | M90: 100.7944771 | N90: 657.86 | O90: 5.84 | P90: 0.1827388889 | Q90: 0.9065553213 | R90: 0.7383059418
C91: 3 | D91: 1.957 | E91: 98.68970299 | F91: 98.89879291 | G91: 707.77 | H91: 8.07 | I91: 0.1966027778 | K91: 1.9562 | L91: 98.65045585 | M91: 98.86424241 | N91: 641.67 | O91: 5.96 | P91: 0.1782416667 | Q91: 0.9066080789 | R91: 0.7385377943
C92: 4 | D92: 1.6553 | E92: 96.03861569 | F92: 96.50470023 | G92: 697.8 | H92: 6.89 | I92: 0.1938333333 | K92: 1.657 | L92: 96.04665375 | M92: 96.51068444 | N92: 631.13 | O92: 5.3 | P92: 0.1753138889 | Q92: 0.9044568644 | R92: 0.7692307692
C93: 5.5 | D93: 1.4019 | E93: 93.76302932 | F93: 94.43499581 | G93: 682.99 | H93: 6.24 | I93: 0.1897194444 | K93: 1.4027 | L93: 93.76408181 | M93: 94.43696427 | N93: 619.66 | O93: 4.93 | P93: 0.1721277778 | Q93: 0.9072753627 | R93: 0.7900641026
C94: 7 | D94: 1.2473 | E94: 92.24269173 | F94: 93.0412064 | G94: 674.08 | H94: 5.75 | I94: 0.1872444444 | K94: 1.2473 | L94: 92.23845954 | M94: 93.03862653 | N94: 610.55 | O94: 4.66 | P94: 0.1695972222 | Q94: 0.9057530263 | R94: 0.8104347826
C95: 9 | D95: 1.0988 | E95: 90.62700214 | F95: 91.5115839 | G95: 666.62 | H95: 5.61 | I95: 0.1851722222 | K95: 1.0985 | L95: 90.62364386 | M95: 91.50347903 | N95: 620.23 | O95: 4.52 | P95: 0.1722861111 | Q95: 0.9304101287 | R95: 0.8057040998
C96: 11 | D96: 0.9841 | E96: 89.26512411 | F96: 90.27184684 | G96: 657.12 | H96: 5.37 | I96: 0.1825333333 | K96: 0.9835 | L96: 89.26081278 | M96: 90.26265945 | N96: 595.34 | O96: 4.32 | P96: 0.1653722222 | Q96: 0.9059836864 | R96: 0.8044692737
C97: 13 | D97: 0.8803 | E97: 87.93940464 | F97: 89.05537365 | G97: 649.35 | H97: 5.09 | I97: 0.180375 | K97: 0.8806 | L97: 87.94361428 | M97: 89.06125603 | N97: 589.73 | O97: 4.2 | P97: 0.1638138889 | Q97: 0.9081851082 | R97: 0.8251473477
C98: 16 | D98: 0.7983 | E98: 86.80211922 | F98: 88.05926662 | G98: 642.97 | H98: 4.78 | I98: 0.1786027778 | K98: 0.7989 | L98: 86.80930249 | M98: 88.071592 | N98: 585.91 | O98: 4.05 | P98: 0.1627527778 | Q98: 0.9112555796 | R98: 0.8472803347
C99: 22 | D99: 0.6615 | E99: 84.66483895 | F99: 86.24471717 | G99: 633.54 | H99: 4.23 | I99: 0.1759833333 | K99: 0.6618 | L99: 84.67407321 | M99: 86.26040336 | N99: 574.28 | O99: 3.84 | P99: 0.1595222222 | Q99: 0.9064621018 | R99: 0.9078014184
C100: 33 | D100: 0.5149 | E100: 81.97887534 | F100: 84.04001808 | G100: 622.08 | H100: 4.06 | I100: 0.1728 | K100: 0.5151 | L100: 81.98811004 | M100: 84.04632811 | N100: 566.3 | O100: 3.64 | P100: 0.1573055556 | Q100: 0.9103330761 | R100: 0.8965517241
C101: 44 | D101: 0.4087 | E101: 79.82396042 | F101: 82.38623455 | G101: 617.14 | H101: 4.23 | I101: 0.1714277778 | K101: 0.4091 | L101: 79.83670053 | M101: 82.39133286 | N101: 563.83 | O101: 3.61 | P101: 0.1566194444 | Q101: 0.9136176556 | R101: 0.853427896
C102: 55 | D102: 0.3528 | E102: 78.55625558 | F102: 81.39313079 | G102: 613.73 | H102: 4.08 | I102: 0.1704805556 | K102: 0.3535 | L102: 78.56950654 | M102: 81.39884908 | N102: 559 | O102: 3.54 | P102: 0.1552777778 | Q102: 0.910823978 | R102: 0.8676470588
C103: 66 | D103: 0.3109 | E103: 77.50564479 | F103: 80.60263921 | G103: 628.46 | H103: 3.97 | I103: 0.1745722222 | K103: 0.3118 | L103: 77.5199565 | M103: 80.60966103 | N103: 555.49 | O103: 3.5 | P103: 0.1543027778 | Q103: 0.8838907806 | R103: 0.8816120907
C104: 77 | D104: 0.2766 | E104: 76.5453659 | F104: 79.88008687 | G104: 609.78 | H104: 3.92 | I104: 0.1693833333 | K104: 0.2772 | L104: 76.55807705 | M104: 79.88729552 | N104: 555.19 | O104: 3.45 | P104: 0.1542194444 | Q104: 0.9104759093 | R104: 0.8801020408
C105: 88 | D105: 0.2592 | E105: 76.00619944 | F105: 79.41115153 | G105: 606.55 | H105: 3.94 | I105: 0.1684861111 | K105: 0.2603 | L105: 76.02966361 | M105: 79.42515368 | N105: 554.42 | O105: 3.45 | P105: 0.1540055556 | Q105: 0.9140549007 | R105: 0.8756345178
C106: 99 | D106: 0.2344 | E106: 75.19509447 | F106: 78.83438335 | G106: 607.49 | H106: 3.91 | I106: 0.1687472222 | K106: 0.2348 | L106: 75.2079428 | M106: 78.84502117 | N106: 552.07 | O106: 3.37 | P106: 0.1533527778 | Q106: 0.9087721609 | R106: 0.8618925831
C107: 110 | D107: 0.2134 | E107: 74.45217315 | F107: 78.30693214 | G107: 604.09 | H107: 3.9 | I107: 0.1678027778 | K107: 0.2137 | L107: 74.46632875 | M107: 78.32179965 | N107: 549.27 | O107: 3.33 | P107: 0.152575 | Q107: 0.9092519327 | R107: 0.8538461538
B108: sub-104_task-Sleep_acq-psg_eeg.dat | C108: 1 | D108: 5.5592 | E108: 0 | F108: 0 | G108: 1507.41 | H108: 17.21 | I108: 0.418725 | K108: 5.5567 | L108: 0 | M108: 0 | N108: 1353.45 | O108: 14.58 | P108: 0.3759583333 | Q108: 0.8978645491 | R108: 0.847181871 | V108: =($K108/$D108-1) -> -0.0004497049935
C109: 1.125 | D109: 5.6162 | E109: 119.9591625 | F109: 128.1496231 | G109: 1495.13 | H109: 14.4 | I109: 0.4153138889 | K109: 5.6145 | L109: 119.8568762 | M109: 125.8584716 | N109: 1352.29 | O109: 13.15 | P109: 0.3756361111 | Q109: 0.904463157 | R109: 0.9131944444 | T109: =bdrate($D109:$D128,E109:E128,$K109:$K128,L109:L128) -> -0.0001743152174 | U109: =bdrate($D109:$D128,F109:F128,$K109:$K128,M109:M128) -> 0.0007907715087
C110: 1.5 | D110: 5.0744 | E110: 102.4574476 | F110: 102.7303743 | G110: 1456.67 | H110: 21.19 | I110: 0.4046305556 | K110: 5.0813 | L110: 102.5048846 | M110: 102.769493 | N110: 1298.46 | O110: 19.38 | P110: 0.3606833333 | Q110: 0.8913892646 | R110: 0.9145823502
C111: 2 | D111: 4.6664 | E111: 100.2046136 | F111: 100.478589 | G111: 1424.6 | H111: 17.53 | I111: 0.3957222222 | K111: 4.6681 | L111: 100.2193739 | M111: 100.4868071 | N111: 1273.96 | O111: 15.75 | P111: 0.3538777778 | Q111: 0.8942580373 | R111: 0.8984597832
C112: 3 | D112: 4.1823 | E112: 98.28137663 | F112: 98.49701266 | G112: 1391.85 | H112: 19.47 | I112: 0.386625 | K112: 4.1839 | L112: 98.25211803 | M112: 98.4659575 | N112: 1251.55 | O112: 15.49 | P112: 0.3476527778 | Q112: 0.8991989079 | R112: 0.7955829481
C113: 4 | D113: 3.7586 | E113: 95.04725928 | F113: 95.38024929 | G113: 1370.45 | H113: 16.39 | I113: 0.3806805556 | K113: 3.7586 | L113: 95.05063406 | M113: 95.38260393 | N113: 1235.34 | O113: 14.25 | P113: 0.34315 | Q113: 0.901411945 | R113: 0.8694325808
C114: 5.5 | D114: 3.3498 | E114: 92.55011044 | F114: 92.96144361 | G114: 1357.04 | H114: 16.81 | I114: 0.3769555556 | K114: 3.349 | L114: 92.5488451 | M114: 92.96521402 | N114: 1253.34 | O114: 14.33 | P114: 0.34815 | Q114: 0.9235836821 | R114: 0.8524687686
C115: 7 | D115: 3.0588 | E115: 90.72801995 | F115: 91.2140653 | G115: 1328.79 | H115: 15.95 | I115: 0.3691083333 | K115: 3.0571 | L115: 90.72555548 | M115: 91.22152934 | N115: 1197.86 | O115: 13.21 | P115: 0.3327388889 | Q115: 0.9014667479 | R115: 0.8282131661
C116: 9 | D116: 2.7649 | E116: 88.77595252 | F116: 89.34987864 | G116: 1308.26 | H116: 15.07 | I116: 0.3634055556 | K116: 2.7636 | L116: 88.77683823 | M116: 89.35892938 | N116: 1180.59 | O116: 12.53 | P116: 0.3279416667 | Q116: 0.9024123645 | R116: 0.8314532183
C117: 11 | D117: 2.534 | E117: 87.18403216 | F117: 87.85822153 | G117: 1336.97 | H117: 14.75 | I117: 0.3713805556 | K117: 2.5332 | L117: 87.19119646 | M117: 87.88106903 | N117: 1169.35 | O117: 11.99 | P117: 0.3248194444 | Q117: 0.874626955 | R117: 0.8128813559
C118: 13 | D118: 2.3225 | E118: 85.66106867 | F118: 86.43472142 | G118: 1269.89 | H118: 13.69 | I118: 0.3527472222 | K118: 2.3221 | L118: 85.66904844 | M118: 86.45324902 | N118: 1143.51 | O118: 11.29 | P118: 0.3176416667 | Q118: 0.9004795691 | R118: 0.8246895544
C119: 16 | D119: 2.1527 | E119: 84.38424459 | F119: 85.27894536 | G119: 1254.79 | H119: 13.22 | I119: 0.3485527778 | K119: 2.1522 | L119: 84.38932362 | M119: 85.28767582 | N119: 1137.18 | O119: 10.95 | P119: 0.3158833333 | Q119: 0.9062711689 | R119: 0.828290469
C120: 22 | D120: 1.8508 | E120: 81.93905337 | F120: 83.03644151 | G120: 1234.11 | H120: 12.52 | I120: 0.3428083333 | K120: 1.8499 | L120: 81.94084586 | M120: 83.04178438 | N120: 1115.46 | O120: 10.27 | P120: 0.30985 | Q120: 0.9038578409 | R120: 0.8202875399
C121: 33 | D121: 1.5037 | E121: 78.85061472 | F121: 80.1431778 | G121: 1206.53 | H121: 11.91 | I121: 0.3351472222 | K121: 1.5035 | L121: 78.86211304 | M121: 80.16622366 | N121: 1092.22 | O121: 9.7 | P121: 0.3033944444 | Q121: 0.9052572253 | R121: 0.8144416457
C122: 44 | D122: 1.2429 | E122: 76.35339323 | F122: 77.80180405 | G122: 1211.02 | H122: 11.59 | I122: 0.3363944444 | K122: 1.2432 | L122: 76.37560744 | M122: 77.82877937 | N122: 1073.2 | O122: 9.21 | P122: 0.2981111111 | Q122: 0.8861951083 | R122: 0.7946505608
C123: 55 | D123: 1.0925 | E123: 74.80118444 | F123: 76.30704397 | G123: 1175.35 | H123: 11.32 | I123: 0.3264861111 | K123: 1.0935 | L123: 74.82380882 | M123: 76.32578473 | N123: 1060.77 | O123: 8.92 | P123: 0.2946583333 | Q123: 0.9025141447 | R123: 0.7879858657
C124: 66 | D124: 0.9687 | E124: 73.45183631 | F124: 75.00092064 | G124: 1164.45 | H124: 11.16 | I124: 0.3234583333 | K124: 0.9699 | L124: 73.47201167 | M124: 75.02100205 | N124: 1053.36 | O124: 8.71 | P124: 0.2926 | Q124: 0.9045987376 | R124: 0.7804659498
C125: 77 | D125: 0.862 | E125: 72.23275558 | F125: 73.80594723 | G125: 1151.99 | H125: 10.94 | I125: 0.3199972222 | K125: 0.8628 | L125: 72.2513099 | M125: 73.82951329 | N125: 1041.48 | O125: 8.45 | P125: 0.2893 | Q125: 0.9040703478 | R125: 0.7723948812
C126: 88 | D126: 0.7993 | E126: 71.48960938 | F126: 73.08161752 | G126: 1152.38 | H126: 10.89 | I126: 0.3201055556 | K126: 0.8005 | L126: 71.50286584 | M126: 73.09533389 | N126: 1037.02 | O126: 8.36 | P126: 0.2880611111 | Q126: 0.8998941321 | R126: 0.7676767677
C127: 99 | D127: 0.7179 | E127: 70.48585585 | F127: 72.13483523 | G127: 1139.68 | H127: 10.6 | I127: 0.3165777778 | K127: 0.7194 | L127: 70.50627919 | M127: 72.15855742 | N127: 1030.93 | O127: 8.13 | P127: 0.2863694444 | Q127: 0.9045784782 | R127: 0.7669811321
C128: 110 | D128: 0.6473 | E128: 69.57614553 | F128: 71.31314183 | G128: 1140.68 | H128: 10.65 | I128: 0.3168555556 | K128: 0.6489 | L128: 69.60384103 | M128: 71.34062784 | N128: 1021.65 | O128: 7.94 | P128: 0.2837916667 | Q128: 0.8956499632 | R128: 0.7455399061
B129: sub-105_task-Sleep_acq-psg_eeg.dat | C129: 1 | D129: 5.3659 | E129: 0 | F129: 0 | G129: 1808.58 | H129: 19.05 | I129: 0.5023833333 | K129: 5.3607 | L129: 0 | M129: 0 | N129: 1592.74 | O129: 16.45 | P129: 0.4424277778 | Q129: 0.8806577536 | R129: 0.8635170604 | V129: =($K129/$D129-1) -> -0.0009690825397
C130: 1.125 | D130: 5.5467 | E130: 120.504819 | F130: 135.2511556 | G130: 1783.54 | H130: 15.68 | I130: 0.4954277778 | K130: 5.5463 | L130: 120.414358 | M130: 135.4847986 | N130: 1570.16 | O130: 14.54 | P130: 0.4361555556 | Q130: 0.8803615282 | R130: 0.9272959184 | T130: =bdrate($D130:$D149,E130:E149,$K130:$K149,L130:L149) -> 6.312253953e-05 | U130: =bdrate($D130:$D149,F130:F149,$K130:$K149,M130:M149) -> -0.000164990174
C131: 1.5 | D131: 5.0641 | E131: 102.8889593 | F131: 104.7838562 | G131: 1719.61 | H131: 29.2 | I131: =G131/3600 -> 0.4776694444 | K131: 5.0707 | L131: 102.9320708 | M131: 104.7714512 | N131: 1499.77 | O131: 26.3 | P131: =N131/3600 -> 0.4166027778 | Q131: =N131/G131 -> 0.8721570589 | R131: =O131/H131 -> 0.9006849315
C132: 2 | D132: 4.674 | E132: 100.608791 | F132: 102.4141844 | G132: 1687.87 | H132: 24.68 | I132: 0.4688527778 | K132: 4.679 | L132: 100.6387401 | M132: 102.450826 | N132: 1480.65 | O132: 21.98 | P132: 0.4112916667 | Q132: 0.8772298814 | R132: 0.8905996759
C133: 3 | D133: 4.1781 | E133: 98.56193381 | F133: 100.1037673 | G133: 1648.8 | H133: 21.88 | I133: 0.458 | K133: 4.1812 | L133: 98.55867189 | M133: 100.1171144 | N133: 1444.51 | O133: 17.98 | P133: 0.4012527778 | Q133: 0.8760977681 | R133: 0.8217550274
C134: 4 | D134: 3.787 | E134: 95.36437042 | F134: 96.95093685 | G134: 1628.88 | H134: 21.41 | I134: 0.4524666667 | K134: 3.7886 | L134: 95.37059933 | M134: 96.95051951 | N134: 1437.23 | O134: 18.56 | P134: 0.3992305556 | Q134: 0.8823424684 | R134: 0.8668846333
C135: 5.5 | D135: 3.3836 | E135: 92.78896185 | F135: 94.18812072 | G135: 1600.59 | H135: 20.56 | I135: 0.4446083333 | K135: 3.3842 | L135: 92.79233083 | M135: 94.21967789 | N135: 1411.57 | O135: 17.29 | P135: 0.3921027778 | Q135: 0.8819060471 | R135: 0.8409533074
C136: 7 | D136: 3.112 | E136: 91.02297395 | F136: 92.43069549 | G136: 1583.26 | H136: 19.64 | I136: 0.4397944444 | K136: 3.1114 | L136: 91.01795134 | M136: 92.43879977 | N136: 1385.81 | O136: 16.16 | P136: 0.3849472222 | Q136: 0.8752889608 | R136: 0.8228105906
C137: 9 | D137: 2.8351 | E137: 89.08382999 | F137: 90.5847269 | G137: 1567.36 | H137: 19.34 | I137: 0.4353777778 | K137: 2.8346 | L137: 89.08051311 | M137: 90.58702611 | N137: 1375.81 | O137: 15.82 | P137: 0.3821694444 | Q137: 0.8777881278 | R137: 0.8179937952
C138: 11 | D138: 2.6154 | E138: 87.4766064 | F138: 88.9964725 | G138: 1545.15 | H138: 18.6 | I138: 0.4292083333 | K138: 2.6152 | L138: 87.47856113 | M138: 88.99999913 | N138: 1352.39 | O138: 15.29 | P138: 0.3756638889 | Q138: 0.8752483578 | R138: 0.8220430108
C139: 13 | D139: 2.401 | E139: 85.84583805 | F139: 87.38111483 | G139: 1524 | H139: 17.8 | I139: 0.4233333333 | K139: 2.4011 | L139: 85.85419668 | M139: 87.39653853 | N139: 1340.82 | O139: 14.84 | P139: 0.37245 | Q139: 0.8798031496 | R139: 0.8337078652
C140: 16 | D140: 2.2311 | E140: 84.51354269 | F140: 86.1330602 | G140: 1510.16 | H140: 17.23 | I140: 0.4194888889 | K140: 2.2309 | L140: 84.51888943 | M140: 86.12533722 | N140: 1322 | O140: 14.14 | P140: 0.3672222222 | Q140: 0.8754039307 | R140: 0.8206616367
C141: 22 | D141: 1.9193 | E141: 81.9246673 | F141: 83.64503229 | G141: 1486.89 | H141: 16.15 | I141: 0.413025 | K141: 1.9191 | L141: 81.93687129 | M141: 83.65670936 | N141: 1302.9 | O141: 13.27 | P141: 0.3619166667 | Q141: 0.8762584993 | R141: 0.8216718266
C142: 33 | D142: 1.5383 | E142: 78.58407951 | F142: 80.18527243 | G142: 1455.91 | H142: 15.18 | I142: 0.4044194444 | K142: 1.5398 | L142: 78.6118918 | M142: 80.22268232 | N142: 1284.03 | O142: 12.35 | P142: 0.356675 | Q142: 0.881943252 | R142: 0.8135704875
C143: 44 | D143: 1.2588 | E143: 76.05262561 | F143: 77.88515626 | G143: 1430.43 | H143: 14.47 | I143: 0.3973416667 | K143: 1.2613 | L143: 76.09435441 | M143: 77.94622801 | N143: 1260.61 | O143: 11.57 | P143: 0.3501694444 | Q143: 0.8812804541 | R143: 0.799585349
C144: 55 | D144: 1.0953 | E144: 74.46669395 | F144: 76.10812477 | G144: 1417.09 | H144: 14.02 | I144: 0.3936361111 | K144: 1.0986 | L144: 74.49818201 | M144: 76.14647672 | N144: 1246.34 | O144: 11.08 | P144: 0.3462055556 | Q144: 0.8795065945 | R144: 0.790299572
C145: 66 | D145: 0.9676 | E145: 73.15586557 | F145: 74.82382665 | G145: 1414.09 | H145: 13.64 | I145: 0.3928027778 | K145: 0.9707 | L145: 73.18182443 | M145: 74.85075119 | N145: 1234.37 | O145: 10.62 | P145: 0.3428805556 | Q145: 0.872907665 | R145: 0.7785923754
C146: 77 | D146: 0.8622 | E146: 72.01745129 | F146: 73.83945504 | G146: 1389.33 | H146: 13.21 | I146: 0.385925 | K146: 0.8652 | L146: 72.0470833 | M146: 73.87522624 | N146: 1224.82 | O146: 10.22 | P146: 0.3402277778 | Q146: 0.8815904069 | R146: 0.773656321
C147: 88 | D147: 0.7997 | E147: 71.28979268 | F147: 73.26485724 | G147: 1385.73 | H147: 13 | I147: 0.384925 | K147: 0.8026 | L147: 71.31026838 | M147: 73.30224134 | N147: 1222.25 | O147: 10 | P147: 0.3395138889 | Q147: 0.8820260801 | R147: 0.7692307692
C148: 99 | D148: 0.7215 | E148: 70.34456005 | F148: 72.22944678 | G148: 1370.85 | H148: 12.46 | I148: 0.3807916667 | K148: 0.7248 | L148: 70.36923881 | M148: 72.29114344 | N148: 1226.29 | O148: 9.83 | P148: 0.3406361111 | Q148: 0.8945471788 | R148: 0.7889245586
C149: 110 | D149: 0.6535 | E149: 69.48099585 | F149: 71.42161511 | G149: 1368.77 | H149: 12.45 | I149: 0.3802138889 | K149: 0.6568 | L149: 69.51157726 | M149: 71.44286056 | N149: 1202.88 | O149: 9.4 | P149: 0.3341333333 | Q149: 0.8788035974 | R149: 0.7550200803
B150: sub-106_task-Sleep_acq-psg_eeg.dat | C150: 1 | D150: 6.8297 | E150: 0 | F150: 0 | G150: 1700.46 | H150: 20.9 | I150: 0.47235 | K150: 6.8285 | L150: 0 | M150: 0 | N150: 1529.72 | O150: 18.05 | P150: 0.4249222222 | Q150: 0.8995918751 | R150: 0.8636363636 | V150: =($K150/$D150-1) -> -0.0001757031788
C151: 1.125 | D151: 6.877 | E151: 120.2720744 | F151: 125.5253056 | G151: 1680.78 | H151: 16.87 | I151: 0.4668833333 | K151: 6.8745 | L151: 120.0795882 | M151: 125.4355289 | N151: 1512.55 | O151: 15.31 | P151: 0.4201527778 | Q151: 0.8999095658 | R151: 0.9075281565 | T151: =bdrate($D151:$D170,E151:E170,$K151:$K170,L151:L170) -> -0.0001279387126 | U151: =bdrate($D151:$D170,F151:F170,$K151:$K170,M151:M170) -> -0.0002548447033
C152: 1.5 | D152: 6.3536 | E152: 102.5066144 | F152: 102.7979592 | G152: 1651.26 | H152: 26.53 | I152: 0.4586833333 | K152: 6.3573 | L152: 102.5307859 | M152: 102.8142286 | N152: 1472.14 | O152: 24.35 | P152: 0.4089277778 | Q152: 0.8915252595 | R152: 0.917828873
C153: 2 | D153: 5.9367 | E153: 100.2014467 | F153: 100.4604952 | G153: 1609.38 | H153: 21.02 | I153: 0.44705 | K153: 5.9375 | L153: 100.2083266 | M153: 100.4640236 | N153: 1446.15 | O153: 18.99 | P153: 0.4017083333 | Q153: 0.8985758491 | R153: 0.9034253092
C154: 3 | D154: 5.407 | E154: 98.19851525 | F154: 98.41659818 | G154: 1560.35 | H154: 22.77 | I154: 0.4334305556 | K154: 5.4084 | L154: 98.18752588 | M154: 98.40477898 | N154: 1408.47 | O154: 19.86 | P154: 0.3912416667 | Q154: 0.9026628641 | R154: 0.8722002635
C155: 4 | D155: 5.0298 | E155: 95.11767875 | F155: 95.41614209 | G155: 1538.55 | H155: 21.36 | I155: 0.427375 | K155: 5.0297 | L155: 95.11600972 | M155: 95.41574634 | N155: 1381.54 | O155: 18.87 | P155: 0.3837611111 | Q155: 0.8979493679 | R155: 0.8834269663
C156: 5.5 | D156: 4.6281 | E156: 92.69980486 | F156: 93.05612831 | G156: 1512.92 | H156: 21.13 | I156: 0.4202555556 | K156: 4.6289 | L156: 92.7016123 | M156: 93.06111103 | N156: 1359.07 | O156: 18.48 | P156: 0.3775194444 | Q156: 0.8983092298 | R156: 0.8745858968
C157: 7 | D157: 4.335 | E157: 90.92811615 | F157: 91.3486856 | G157: 1490.18 | H157: 20.28 | I157: 0.4139388889 | K157: 4.3354 | L157: 90.92867312 | M157: 91.35612416 | N157: 1341.21 | O157: 17.58 | P157: 0.3725583333 | Q157: 0.9000322109 | R157: 0.8668639053
C158: 9 | D158: 4.039 | E158: 88.91217881 | F158: 89.41817207 | G158: 1469.06 | H158: 19.56 | I158: 0.4080722222 | K158: 4.0391 | L158: 88.91346164 | M158: 89.42961417 | N158: 1323.63 | O158: 16.91 | P158: 0.367675 | Q158: 0.9010047241 | R158: 0.8645194274
C159: 11 | D159: 3.8094 | E159: 87.30062793 | F159: 87.91681062 | G159: 1450.89 | H159: 18.68 | I159: 0.403025 | K159: 3.8097 | L159: 87.30150622 | M159: 87.92656182 | N159: 1304.82 | O159: 16.14 | P159: 0.36245 | Q159: 0.8993238633 | R159: 0.8640256959
C160: 13 | D160: 3.5777 | E160: 85.60448204 | F160: 86.3498475 | G160: 1435.83 | H160: 17.98 | I160: 0.3988416667 | K160: 3.5786 | L160: 85.61201354 | M160: 86.36630219 | N160: 1291.26 | O160: 15.55 | P160: 0.3586833333 | Q160: 0.8993125927 | R160: 0.8648498331
C161: 16 | D161: 3.3927 | E161: 84.22519789 | F161: 85.09013091 | G161: 1416.78 | H161: 17.2 | I161: 0.39355 | K161: 3.3934 | L161: 84.23195525 | M161: 85.10193834 | N161: 1284.98 | O161: 15.04 | P161: 0.3569388889 | Q161: 0.9069721481 | R161: 0.8744186047
C162: 22 | D162: 3.0476 | E162: 81.58107644 | F162: 82.66740936 | G162: 1403.2 | H162: 16.34 | I162: 0.3897777778 | K162: 3.0483 | L162: 81.59042931 | M162: 82.68620841 | N162: 1260.32 | O162: 14.08 | P162: 0.3500888889 | Q162: 0.8981755986 | R162: 0.8616891065
C163: 33 | D163: 2.6217 | E163: 78.18296452 | F163: 79.53112334 | G163: 1369.97 | H163: 15.01 | I163: 0.3805472222 | K163: 2.6226 | L163: 78.1973232 | M163: 79.54446288 | N163: 1237.2 | O163: 12.93 | P163: 0.3436666667 | Q163: 0.903085469 | R163: 0.8614257162
C164: 44 | D164: 2.2809 | E164: 75.41560881 | F164: 76.95628827 | G164: 1347.74 | H164: 14.26 | I164: 0.3743722222 | K164: 2.2816 | L164: 75.43454721 | M164: 76.98299161 | N164: 1220.78 | O164: 12.24 | P164: 0.3391055556 | Q164: 0.9057978542 | R164: 0.858345021
C165: 55 | D165: 2.0772 | E165: 73.72078941 | F165: 75.35963059 | G165: 1342.42 | H165: 13.8 | I165: 0.3728944444 | K165: 2.0773 | L165: 73.73308832 | M165: 75.36632162 | N165: 1210.81 | O165: 11.58 | P165: 0.3363361111 | Q165: 0.9019606383 | R165: 0.8391304348
C166: 66 | D166: 1.9007 | E166: 72.21912263 | F166: 73.93083601 | G166: 1325.04 | H166: 13.27 | I166: 0.3680666667 | K166: 1.9002 | L166: 72.22949064 | M166: 73.9421166 | N166: 1206.29 | O166: 11.18 | P166: 0.3350805556 | Q166: 0.910380064 | R166: 0.8425018839
C167: 77 | D167: 1.7416 | E167: 70.84963591 | F167: 72.61282905 | G167: 1311.58 | H167: 12.92 | I167: 0.3643277778 | K167: 1.7406 | L167: 70.86067073 | M167: 72.62569057 | N167: 1188.69 | O167: 10.85 | P167: 0.3301916667 | Q167: 0.9063038473 | R167: 0.8397832817
C168: 88 | D168: 1.655 | E168: 70.09214868 | F168: 71.87018651 | G168: 1309.48 | H168: 12.69 | I168: 0.3637444444 | K168: 1.6539 | L168: 70.09528204 | M168: 71.87702821 | N168: 1186.75 | O168: 10.57 | P168: 0.3296527778 | Q168: 0.9062757736 | R168: 0.8329393223
C169: 99 | D169: 1.5236 | E169: 68.93252772 | F169: 70.79205128 | G169: 1299.28 | H169: 12.5 | I169: 0.3609111111 | K169: 1.5219 | L169: 68.93938168 | M169: 70.80962131 | N169: 1180.02 | O169: 10.42 | P169: 0.3277833333 | Q169: 0.9082107013 | R169: 0.8336
C170: 110 | D170: 1.407 | E170: 67.89264591 | F170: 69.84334282 | G170: 1285.99 | H170: 12.31 | I170: 0.3572194444 | K170: 1.4047 | L170: 67.90025043 | M170: 69.8522001 | N170: 1168.93 | O170: 10.16 | P170: 0.3247027778 | Q170: 0.9089728536 | R170: 0.8253452478
B171: sub-107_task-Sleep_acq-headband_eeg.dat | C171: 1 | D171: 2.65 | E171: 0 | F171: 0 | G171: 877.83 | H171: 9.38 | I171: 0.2438416667 | K171: 2.6404 | L171: 0 | M171: 0 | N171: 798.6 | O171: 5.97 | P171: 0.2218333333 | Q171: 0.9097433444 | R171: 0.6364605544 | V171: =($K171/$D171-1) -> -0.003622641509
C172: 1.125 | D172: 2.867 | E172: 121.9891307 | F172: 129.306907 | G172: 879.45 | H172: 7.63 | I172: 0.2442916667 | K172: 2.8686 | L172: 122.0150175 | M172: 129.1094316 | N172: 799.73 | O172: 5.88 | P172: 0.2221472222 | Q172: 0.9093524362 | R172: 0.7706422018 | T172: =bdrate($D172:$D191,E172:E191,$K172:$K191,L172:L191) -> 0.0007814538186 | U172: =bdrate($D172:$D191,F172:F191,$K172:$K191,M172:M191) -> 0.000965367936
C173: 1.5 | D173: 2.4136 | E173: 101.9743996 | F173: 102.1895438 | G173: 830.81 | H173: 10.14 | I173: 0.2307805556 | K173: 2.4181 | L173: 101.981923 | M173: 102.1941419 | N173: 755.88 | O173: 7.26 | P173: 0.2099666667 | Q173: 0.9098109074 | R173: 0.7159763314
C174: 2 | D174: 2.1342 | E174: 100.4720253 | F174: 100.6689571 | G174: 815.71 | H174: 9.39 | I174: 0.2265861111 | K174: 2.1354 | L174: 100.463256 | M174: 100.6578874 | N174: 738.67 | O174: 6.49 | P174: 0.2051861111 | Q174: 0.9055546702 | R174: 0.6911608094
C175: 3 | D175: 1.884 | E175: 98.63167925 | F175: 98.82577348 | G175: 797.09 | H175: 9.69 | I175: 0.2214138889 | K175: 1.886 | L175: 98.60345032 | M175: 98.79850719 | N175: 722.28 | O175: 6.7 | P175: 0.2006333333 | Q175: 0.9061461065 | R175: 0.6914344685
C176: 4 | D176: 1.5803 | E176: 95.94861521 | F176: 96.38251817 | G176: 785.03 | H176: 8.39 | I176: 0.2180638889 | K176: 1.5828 | L176: 95.94904574 | M176: 96.38121032 | N176: 713.67 | O176: 5.94 | P176: 0.1982416667 | Q176: 0.9090990153 | R176: 0.7079856973
C177: 5.5 | D177: 1.3292 | E177: 93.65306183 | F177: 94.2801736 | G177: 774.19 | H177: 7.92 | I177: 0.2150527778 | K177: 1.3309 | L177: 93.65046399 | M177: 94.27938378 | N177: 704.1 | O177: 5.65 | P177: 0.1955833333 | Q177: 0.9094666684 | R177: 0.7133838384
C178: 7 | D178: 1.173 | E178: 92.09630167 | F178: 92.84065668 | G178: 760.78 | H178: 7.53 | I178: 0.2113277778 | K178: 1.1739 | L178: 92.0898892 | M178: 92.83594404 | N178: 691.97 | O178: 5.36 | P178: 0.1922138889 | Q178: 0.9095533531 | R178: 0.7118193891
C179: 9 | D179: 1.0258 | E179: 90.47661178 | F179: 91.29801259 | G179: 754.52 | H179: 7.49 | I179: 0.2095888889 | K179: 1.0264 | L179: 90.47451396 | M179: 91.29745602 | N179: 684.8 | O179: 5.2 | P179: 0.1902222222 | Q179: 0.9075968828 | R179: 0.694259012
C180: 11 | D180: 0.9138 | E180: 89.13847999 | F180: 90.07268342 | G180: 741.04 | H180: 7.09 | I180: 0.2058444444 | K180: 0.9142 | L180: 89.13791564 | M180: 90.07667413 | N180: 675.53 | O180: 4.97 | P180: 0.1876472222 | Q180: 0.9115972147 | R180: 0.7009873061
C181: 13 | D181: 0.8139 | E181: 87.83804687 | F181: 88.85669307 | G181: 734.59 | H181: 6.56 | I181: 0.2040527778 | K181: 0.8145 | L181: 87.83954391 | M181: 88.86799357 | N181: 668.15 | O181: 4.75 | P181: 0.1855972222 | Q181: 0.9095549899 | R181: 0.7240853659
C182: 16 | D182: 0.735 | E182: 86.74372969 | F182: 87.86997509 | G182: 729.78 | H182: 6.19 | I182: 0.2027166667 | K182: 0.7354 | L182: 86.74109261 | M182: 87.8720861 | N182: 663.02 | O182: 4.62 | P182: 0.1841722222 | Q182: 0.908520376 | R182: 0.746365105
C183: 22 | D183: 0.6027 | E183: 84.65427305 | F183: 86.01446948 | G183: 720.98 | H183: 5.46 | I183: 0.2002722222 | K183: 0.6028 | L183: 84.66080436 | M183: 86.02739785 | N183: 652.41 | O183: 4.34 | P183: 0.181225 | Q183: 0.9048933396 | R183: 0.7948717949
C184: 33 | D184: 0.4597 | E184: 82.02468067 | F184: 83.73112689 | G184: 712.5 | H184: 5.06 | I184: 0.1979166667 | K184: 0.4593 | L184: 82.02859031 | M184: 83.73266189 | N184: 646.07 | O184: 4.15 | P184: 0.1794638889 | Q184: 0.9067649123 | R184: 0.8201581028
C185: 44 | D185: 0.3584 | E185: 79.95921949 | F185: 82.08209702 | G185: 704.74 | H185: 5.15 | I185: 0.1957611111 | K185: 0.3585 | L185: 79.96627043 | M185: 82.08462804 | N185: 638.29 | O185: 4.04 | P185: 0.1773027778 | Q185: 0.9057099072 | R185: 0.7844660194
C186: 55 | D186: 0.3099 | E186: 78.78438805 | F186: 81.13334468 | G186: 697.95 | H186: 4.85 | I186: 0.193875 | K186: 0.3106 | L186: 78.80081236 | M186: 81.14678694 | N186: 636.62 | O186: 4 | P186: 0.1768388889 | Q186: 0.912128376 | R186: 0.824742268
C187: 66 | D187: 0.2727 | E187: 77.75758331 | F187: 80.3172493 | G187: 696.03 | H187: 4.58 | I187: 0.1933416667 | K187: 0.2735 | L187: 77.77733633 | M187: 80.3344893 | N187: 631.9 | O187: 3.89 | P187: 0.1755277778 | Q187: 0.9078631668 | R187: 0.8493449782
C188: 77 | D188: 0.2419 | E188: 76.82632777 | F188: 79.5936748 | G188: 692.09 | H188: 4.41 | I188: 0.1922472222 | K188: 0.2426 | L188: 76.84743252 | M188: 79.61594424 | N188: 629.28 | O188: 3.82 | P188: 0.1748 | Q188: 0.9092459073 | R188: 0.8662131519
C189: 88 | D189: 0.2265 | E189: 76.30755564 | F189: 79.14970783 | G189: 693.01 | H189: 4.38 | I189: 0.1925027778 | K189: 0.2272 | L189: 76.32035734 | M189: 79.15758361 | N189: 627.89 | O189: 3.8 | P189: 0.1744138889 | Q189: 0.906033102 | R189: 0.8675799087
C190: 99 | D190: 0.204 | E190: 75.51678051 | F190: 78.58321953 | G190: 688.54 | H190: 4.35 | I190: 0.1912611111 | K190: 0.2044 | L190: 75.52468129 | M190: 78.58885292 | N190: 624.85 | O190: 3.79 | P190: 0.1735694444 | Q190: 0.9074999274 | R190: 0.8712643678
C191: 110 | D191: 0.1857 | E191: 74.79384987 | F191: 78.05044645 | G191: 687.69 | H191: 4.35 | I191: 0.191025 | K191: 0.1861 | L191: 74.81349918 | M191: 78.06781998 | N191: 624.14 | O191: 3.74 | P191: 0.1733722222 | Q191: 0.9075891754 | R191: 0.8597701149
B192: sub-107_task-Sleep_acq-psg_eeg.dat | C192: 1 | D192: 5.0848 | E192: 0 | F192: 0 | G192: 1706.54 | H192: 19.28 | I192: 0.4740388889 | K192: 5.0713 | L192: 0 | M192: 0 | N192: 1533.08 | O192: 16.31 | P192: 0.4258555556 | Q192: 0.8983557373 | R192: 0.8459543568 | V192: =($K192/$D192-1) -> -0.00265497168
C193: 1.125 | D193: 5.3976 | E193: 121.5120373 | F193: 133.1633844 | G193: 1695.6 | H193: 15.48 | I193: 0.471 | K193: 5.3982 | L193: 121.3754081 | M193: 133.6559419 | N193: 1521.72 | O193: 14.25 | P193: 0.4227 | Q193: 0.8974522293 | R193: 0.9205426357 | T193: =bdrate($D193:$D212,E193:E212,$K193:$K212,L193:L212) -> 0.0003172899665 | U193: =bdrate($D193:$D212,F193:F212,$K193:$K212,M193:M212) -> 0.0002724266702
C194: 1.5 | D194: 4.8992 | E194: 102.7277936 | F194: 104.7059738 | G194: 1628.57 | H194: 22.96 | I194: 0.4523805556 | K194: 4.9077 | L194: 102.7779033 | M194: 104.7392478 | N194: 1456.94 | O194: 20.98 | P194: 0.4047055556 | Q194: 0.8946130655 | R194: 0.9137630662
C195: 2 | D195: 4.5026 | E195: 100.4282895 | F195: 102.137397 | G195: 1599.56 | H195: 18.49 | I195: =G195/3600 -> 0.4443222222 | K195: 4.5056 | L195: 100.4413591 | M195: 102.1269405 | N195: 1430.87 | O195: 16.66 | P195: =N195/3600 -> 0.3974638889 | Q195: =N195/G195 -> 0.8945397484 | R195: =O195/H195 -> 0.9010275825
C196: 3 | D196: 4.0116 | E196: 98.47184326 | F196: 100.0747121 | G196: 1565.15 | H196: 20.8 | I196: 0.4347638889 | K196: 4.0171 | L196: 98.4701074 | M196: 100.0803997 | N196: 1411.06 | O196: 17.04 | P196: 0.3919611111 | Q196: 0.9015493723 | R196: 0.8192307692
C197: 4 | D197: 3.6109 | E197: 95.24071978 | F197: 96.69859717 | G197: 1556.24 | H197: 19.43 | I197: 0.4322888889 | K197: 3.6119 | L197: 95.23688118 | M197: 96.6963589 | N197: 1390.58 | O197: 16.12 | P197: 0.3862722222 | Q197: 0.8935511232 | R197: 0.8296448791
C198: 5.5 | D198: 3.2032 | E198: 92.68719353 | F198: 94.10777561 | G198: 1525.45 | H198: 18.6 | I198: 0.4237361111 | K198: 3.2041 | L198: 92.68741009 | M198: 94.1153261 | N198: 1363.62 | O198: 15.31 | P198: 0.3787833333 | Q198: 0.8939132715 | R198: 0.8231182796
C199: 7 | D199: 2.9216 | E199: 90.8817795 | F199: 92.33698737 | G199: 1497.58 | H199: 17.55 | I199: 0.4159944444 | K199: 2.9201 | L199: 90.86669346 | M199: 92.32078995 | N199: 1342.84 | O199: 14.41 | P199: 0.3730111111 | Q199: 0.8966732996 | R199: 0.8210826211
C200: 9 | D200: 2.6359 | E200: 88.91481699 | F200: 90.38845227 | G200: 1471.34 | H200: 16.47 | I200: 0.4087055556 | K200: 2.6348 | L200: 88.90631874 | M200: 90.36832075 | N200: 1327.82 | O200: 13.57 | P200: 0.3688388889 | Q200: 0.9024562644 | R200: 0.8239222829
... 2495 more rows

Sheet NMR57 (EEG)
D1: Reference | K1: Tested | T1: BD-rate (piecewise cubic) | V1: Lossless
C2: StepSizeForQP | D2: BPS | E2: PSNR1 | F2: PSNR2 | G2: Enc T [s] | H2: Dec T [s] | I2: Enc T [h] | K2: BPS | L2: PSNR1 | M2: PSNR2 | N2: Enc T [s] | O2: Dec T [s] | P2: Enc T [h] | Q2: EncR | R2: DecR | T2: BD-PSNR1 | U2: BD-PSNR2 | V2: BR-R
A3: NMR57 | B3: sub-R1124J_ses-0_task-FR3_acq-bipolar_ieeg.dat | C3: 1 | D3: 5.7295 | E3: 0 | F3: 0 | G3: 5558.57 | H3: 83.68 | I3: =G3/3600 -> 1.544047222 | K3: 5.7163 | L3: 0 | M3: 0 | N3: 4923.37 | O3: 64.3 | P3: =N3/3600 -> 1.367602778 | Q3: =N3/G3 -> 0.8857260051 | R3: =O3/H3 -> 0.7684034417 | V3: =($K3/$D3-1) -> -0.002303865957
A4: EEG | C4: 1.125 | D4: 6.4042 | E4: 120.7777411 | F4: 133.2966528 | G4: 5081.91 | H4: 49.39 | I4: 1.411641667 | K4: 6.4026 | L4: 120.5494624 | M4: 133.2108155 | N4: 4454.49 | O4: 46.7 | P4: 1.237358333 | Q4: 0.8765385455 | R4: 0.9455355335 | T4: =bdrate($D4:$D23,E4:E23,$K4:$K23,L4:L23) -> -0.002599770101 | U4: =bdrate($D4:$D23,F4:F23,$K4:$K23,M4:M23) -> -0.002186295584
C5: 1.5 | D5: 5.9136 | E5: 103.390867 | F5: 103.3955407 | G5: 4832.81 | H5: 117.72 | I5: 1.342447222 | K5: 5.9203 | L5: 103.4361972 | M5: 103.4401263 | N5: 4247.49 | O5: 100.48 | P5: 1.179858333 | Q5: 0.8788861966 | R5: 0.8535507985
C6: 2 | D6: 5.4578 | E6: 100.8589147 | F6: 100.8659272 | G6: 4768 | H6: 102.13 | I6: 1.324444444 | K6: 5.4619 | L6: 100.874686 | M6: 100.8818495 | N6: 4187.64 | O6: 85.88 | P6: 1.163233333 | Q6: 0.8782802013 | R6: 0.840889063
C7: 3 | D7: 4.8477 | E7: 97.95840133 | F7: 97.96436211 | G7: 4669.3 | H7: 83.99 | I7: 1.297027778 | K7: 4.8483 | L7: 97.97991238 | M7: 97.98578223 | N7: 4123.87 | O7: 65.38 | P7: 1.145519444 | Q7: 0.8831880582 | R7: 0.7784260031
C8: 4 | D8: 4.4186 | E8: 95.50553388 | F8: 95.51224869 | G8: 4631.8 | H8: 83 | I8: 1.286611111 | K8: 4.4187 | L8: 95.50388507 | M8: 95.51082736 | N8: 4088.27 | O8: 66.93 | P8: 1.135630556 | Q8: 0.8826525325 | R8: 0.8063855422
C9: 5.5 | D9: 3.9563 | E9: 92.88384374 | F9: 92.89027396 | G9: 4571.56 | H9: 78.27 | I9: 1.269877778 | K9: 3.9563 | L9: 92.88856582 | M9: 92.89494264 | N9: 4048.34 | O9: 61.5 | P9: 1.124538889 | Q9: 0.8855489155 | R9: 0.7857416635
C10: 7 | D10: 3.6036 | E10: 90.85162919 | F10: 90.8570622 | G10: 4522.67 | H10: 74.54 | I10: 1.256297222 | K10: 3.6041 | L10: 90.86784719 | M10: 90.87287841 | N10: 4021.18 | O10: 57.59 | P10: 1.116994444 | Q10: 0.8891163848 | R10: 0.7726053126
C11: 9 | D11: 3.2309 | E11: 88.66767619 | F11: 88.67157865 | G11: 4485.95 | H11: 70.82 | I11: 1.246097222 | K11: 3.2314 | L11: 88.68982988 | M11: 88.69352036 | N11: 3988 | O11: 54.54 | P11: 1.107777778 | Q11: 0.8889978711 | R11: 0.7701214346
C12: 11 | D12: 2.9263 | E12: 86.86485117 | F12: 86.87030149 | G12: 4454.26 | H12: 67.84 | I12: 1.237294444 | K12: 2.9259 | L12: 86.88900648 | M12: 86.89418144 | N12: 3976.46 | O12: 51.57 | P12: 1.104572222 | Q12: 0.8927319016 | R12: 0.7601709906
C13: 13 | D13: 2.6092 | E13: 84.97865194 | F13: 84.98414173 | G13: 4430.02 | H13: 64.98 | I13: 1.230561111 | K13: 2.6084 | L13: 85.00845607 | M13: 85.01372771 | N13: 3950.92 | O13: 48.41 | P13: 1.097477778 | Q13: 0.8918515041 | R13: 0.7449984611
C14: 16 | D14: 2.3398 | E14: 83.3682751 | F14: 83.37437744 | G14: 4389.9 | H14: 62.49 | I14: 1.219416667 | K14: 2.3389 | L14: 83.40384564 | M14: 83.40974983 | N14: 3925.24 | O14: 46.08 | P14: 1.090344444 | Q14: 0.8941524864 | R14: 0.7373979837
C15: 22 | D15: 1.8102 | E15: 80.18494814 | F15: 80.19702458 | G15: 4344.16 | H15: 57.12 | I15: 1.206711111 | K15: 1.812 | L15: 80.24674162 | M15: 80.25778713 | N15: 3886.65 | O15: 40.65 | P15: 1.079625 | Q15: 0.8946838975 | R15: 0.7116596639
C16: 33 | D16: 1.0436 | E16: 76.20433582 | F16: 76.22543278 | G16: 4255.55 | H16: 49.37 | I16: 1.182097222 | K16: 1.0382 | L16: 76.21297585 | M16: 76.23608036 | N16: 3802.97 | O16: 32.74 | P16: 1.056380556 | Q16: 0.8936494695 | R16: 0.6631557626
C17: 44 | D17: 0.6977 | E17: 74.34207117 | F17: 74.39459142 | G17: 4136.41 | H17: 46.32 | I17: 1.149002778 | K17: 0.6927 | L17: 74.35267845 | M17: 74.40607393 | N17: 3713.5 | O17: 29.39 | P17: 1.031527778 | Q17: 0.897759168 | R17: 0.6344991364
C18: 55 | D18: 0.5383 | E18: 73.32251079 | F18: 73.46629426 | G18: 4070.68 | H18: 45.83 | I18: 1.130744444 | K18: 0.531 | L18: 73.3233144 | M18: 73.47543776 | N18: 3676.28 | O18: 28.33 | P18: 1.021188889 | Q18: 0.9031120108 | R18: 0.6181540476
C19: 66 | D19: 0.4362 | E19: 72.48704488 | F19: 72.73244969 | G19: 4040.07 | H19: 45.01 | I19: 1.122241667 | K19: 0.4272 | L19: 72.47143566 | M19: 72.73160666 | N19: 3634.91 | O19: 27.19 | P19: 1.009697222 | Q19: 0.8997146089 | R19: 0.6040879804
C20: 77 | D20: 0.366 | E20: 71.79018215 | F20: 72.12418423 | G20: 3976.05 | H20: 43.7 | I20: 1.104458333 | K20: 0.3572 | L20: 71.76454045 | M20: 72.11296972 | N20: 3600.42 | O20: 26.22 | P20: 1.000116667 | Q20: 0.905526842 | R20: 0.6
C21: 88 | D21: 0.3199 | E21: 71.20363522 | F21: 71.58670606 | G21: 3972.56 | H21: 43.43 | I21: 1.103488889 | K21: 0.3128 | L21: 71.19126936 | M21: 71.5927046 | N21: 3585.86 | O21: 25.43 | P21: 0.9960722222 | Q21: 0.9026572286 | R21: 0.5855399493
C22: 99 | D22: 0.28 | E22: 70.63717754 | F22: 71.08636639 | G22: 3952.38 | H22: 42.31 | I22: 1.097883333 | K22: 0.2739 | L22: 70.63714283 | M22: 71.10470323 | N22: 3568.16 | O22: 24.85 | P22: 0.9911555556 | Q22: 0.9027876874 | R22: 0.5873316001
C23: 110 | D23: 0.2479 | E23: 70.12260101 | F23: 70.63799361 | G23: 3945.54 | H23: 41.74 | I23: 1.095983333 | K23: 0.2429 | L23: 70.13928528 | M23: 70.67302083 | N23: 3557.05 | O23: 24.29 | P23: 0.9880694444 | Q23: 0.9015369252 | R23: 0.581935793
B24: sub-R1124J_ses-1_task-FR3_acq-monopolar_ieeg.dat | C24: 1 | D24: 7.5485 | E24: 0 | F24: 0 | G24: 6180.33 | H24: 109.61 | I24: 1.716758333 | K24: 7.5098 | L24: 0 | M24: 0 | N24: 5539.37 | O24: 85.67 | P24: 1.538713889 | Q24: 0.8962903275 | R24: 0.7815892711 | V24: =($K24/$D24-1) -> -0.005126846393
C25: 1.125 | D25: 8.427 | E25: 125.8859888 | F25: 131.116219 | G25: 5603.08 | H25: 60.44 | I25: 1.556411111 | K25: 8.4267 | L25: 125.6848777 | M25: 131.3132957 | N25: 4955.78 | O25: 59.97 | P25: 1.376605556 | Q25: 0.8844742534 | R25: 0.9922236929 | T25: =bdrate($D25:$D44,E25:E44,$K25:$K44,L25:L44) -> -0.001916740073 | U25: =bdrate($D25:$D44,F25:F44,$K25:$K44,M25:M44) -> -0.001853517108
C26: 1.5 | D26: 7.9703 | E26: 103.1192324 | F26: 103.1400068 | G26: 5403.74 | H26: 179.94 | I26: 1.501038889 | K26: 7.97 | L26: 103.1624842 | M26: 103.1829309 | N26: 4792.47 | O26: 157.91 | P26: 1.331241667 | Q26: 0.8868801978 | R26: 0.8775703012
C27: 2 | D27: 7.5077 | E27: 100.5322534 | F27: 100.5481666 | G27: 5328.84 | H27: 151.04 | I27: 1.480233333 | K27: 7.5069 | L27: 100.5647989 | M27: 100.5817921 | N27: 4717.42 | O27: 131.38 | P27: 1.310394444 | Q27: 0.8852620833 | R27: 0.8698358051
C28: 3 | D28: 6.9048 | E28: 97.91865826 | F28: 97.9251487 | G28: 5149.64 | H28: 115.86 | I28: 1.430455556 | K28: 6.894 | L28: 97.97636836 | M28: 97.98201789 | N28: 4560.1 | O28: 86.84 | P28: 1.266694444 | Q28: 0.885518211 | R28: 0.7495252891
C29: 4 | D29: 6.4819 | E29: 95.41155228 | F29: 95.41737964 | G29: 5098.54 | H29: 135.83 | I29: 1.416261111 | K29: 6.476 | L29: 95.42787301 | M29: 95.43488129 | N29: 4541.97 | O29: 113.84 | P29: 1.261658333 | Q29: 0.890837377 | R29: 0.8381064566
C30: 5.5 | D30: 6.0063 | E30: 92.86761625 | F30: 92.87114559 | G30: 5011.08 | H30: 126.36 | I30: 1.391966667 | K30: 5.9986 | L30: 92.87416803 | M30: 92.87916922 | N30: 4464.91 | O30: 103.9 | P30: 1.240252778 | Q30: 0.8910075273 | R30: 0.8222538778
C31: 7 | D31: 5.6422 | E31: 90.86345294 | F31: 90.86675793 | G31: 4925.95 | H31: 117.28 | I31: 1.368319444 | K31: 5.6351 | L31: 90.87500154 | M31: 90.87927329 | N31: 4409.65 | O31: 95.14 | P31: 1.224902778 | Q31: 0.8951877303 | R31: 0.8112210095
C32: 9 | D32: 5.2641 | E32: 88.71538774 | F32: 88.71865896 | G32: 4874.42 | H32: 108.99 | I32: 1.354005556 | K32: 5.257 | L32: 88.7256253 | M32: 88.7298186 | N32: 4359.14 | O32: 87.23 | P32: 1.210872222 | Q32: 0.8942889616 | R32: 0.8003486558
C33: 11 | D33: 4.9654 | E33: 86.99313714 | F33: 86.99604074 | G33: 4828.95 | H33: 104.14 | I33: 1.341375 | K33: 4.9575 | L33: 86.99727939 | M33: 87.00118122 | N33: 4333.04 | O33: 81.35 | P33: 1.203622222 | Q33: 0.8973047971 | R33: 0.781159977
C34: 13 | D34: 4.6645 | E34: 85.23455613 | F34: 85.23695538 | G34: 4797.43 | H34: 99 | I34: 1.332619444 | K34: 4.6555 | L34: 85.23264495 | M34: 85.23610383 | N34: 4288.43 | O34: 76.21 | P34: 1.191230556 | Q34: 0.8939015264 | R34: 0.7697979798
C35: 16 | D35: 4.418 | E35: 83.77726161 | F35: 83.77918476 | G35: 4750.79 | H35: 95.37 | I35: 1.319663889 | K35: 4.4089 | L35: 83.77659534 | M35: 83.77917138 | N35: 4258.62 | O35: 72.45 | P35: 1.18295 | Q35: 0.8964024931 | R35: 0.7596728531
C36: 22 | D36: 3.9546 | E36: 81.01058542 | F36: 81.01270508 | G36: 4705.55 | H36: 89.4 | I36: 1.307097222 | K36: 3.9451 | L36: 81.01156393 | M36: 81.01391431 | N36: 4226.59 | O36: 66.4 | P36: 1.174052778 | Q36: 0.8982138114 | R36: 0.7427293065
C37: 33 | D37: 3.3581 | E37: 77.42971034 | F37: 77.43422525 | G37: 4705.09 | H37: 82.04 | I37: 1.306969444 | K37: 3.3488 | L37: 77.44113374 | M37: 77.4454138 | N37: 4171.24 | O37: 59.28 | P37: 1.158677778 | Q37: 0.8865377708 | R37: 0.722574354
C38: 44 | D38: 2.8753 | E38: 74.47090497 | F38: 74.47833057 | G38: 4561.72 | H38: 76.54 | I38: 1.267144444 | K38: 2.867 | L38: 74.50148106 | M38: 74.50807731 | N38: 4142.57 | O38: 54.62 | P38: 1.150713889 | Q38: 0.9081157984 | R38: 0.7136137967
C39: 55 | D39: 2.5659 | E39: 72.6122552 | F39: 72.62326972 | G39: 4548.72 | H39: 73.1 | I39: 1.263533333 | K39: 2.5574 | L39: 72.64107306 | M39: 72.65141121 | N39: 4104.97 | O39: 51.19 | P39: 1.140269444 | Q39: 0.9024450835 | R39: 0.7002735978
C40: 66 | D40: 2.2859 | E40: 70.94132791 | F40: 70.95472324 | G40: 4497.97 | H40: 69.63 | I40: 1.249436111 | K40: 2.2773 | L40: 70.9714399 | M40: 70.98454658 | N40: 4098.93 | O40: 48.33 | P40: 1.138591667 | Q40: 0.9112844239 | R40: 0.6940973718
C41: 77 | D41: 2.0302 | E41: 69.42115442 | F41: 69.43452895 | G41: 4491.09 | H41: 67.05 | I41: 1.247525 | K41: 2.0216 | L41: 69.45363792 | M41: 69.46731272 | N41: 4066.86 | O41: 46.08 | P41: 1.129683333 | Q41: 0.9055396351 | R41: 0.6872483221
C42: 88 | D42: 1.8628 | E42: 68.45926317 | F42: 68.47907185 | G42: 4464.86 | H42: 66.84 | I42: 1.240238889 | K42: 1.8563 | L42: 68.4918197 | M42: 68.51186542 | N42: 4045.52 | O42: 44.76 | P42: 1.123755556 | Q42: 0.9060799219 | R42: 0.6696588869
C43: 99 | D43: 1.6495 | E43: 67.21853093 | F43: 67.23190148 | G43: 4437.47 | H43: 64.48 | I43: 1.232630556 | K43: 1.6421 | L43: 67.25214141 | M43: 67.26553771 | N43: 4148.86 | O43: 43.79 | P43: 1.152461111 | Q43: 0.9349606871 | R43: 0.6791253102
C44: 110 | D44: 1.4645 | E44: 66.1334576 | F44: 66.14603094 | G44: 4411.01 | H44: 62.38 | I44: 1.225280556 | K44: 1.456 | L44: 66.16962263 | M44: 66.18137077 | N44: 4002.65 | O44: 40.94 | P44: 1.111847222 | Q44: 0.9074225631 | R44: 0.6563000962
B45: sub-R1145J_ses-0_task-FR3_acq-monopolar_ieeg.dat | C45: 1 | D45: 7.6176 | E45: 0 | F45: 0 | G45: 10974.87 | H45: 197.41 | I45: 3.048575 | K45: 7.5759 | L45: 0 | M45: 0 | N45: 9909.92 | O45: 153.75 | P45: 2.752755556 | Q45: 0.902964682 | R45: 0.7788359252 | V45: =($K45/$D45-1) -> -0.005474165091
C46: 1.125 | D46: 8.5284 | E46: 130.3530561 | F46: 131.2202984 | G46: 9877.47 | H46: 108.37 | I46: 2.743741667 | K46: 8.5285 | L46: 130.3983902 | M46: 131.3138191 | N46: 8821.69 | O46: 105.97 | P46: 2.450469444 | Q46: 0.8931123051 | R46: 0.9778536495 | T46: =bdrate($D46:$D65,E46:E65,$K46:$K65,L46:L65) -> -0.001395820811 | U46: =bdrate($D46:$D65,F46:F65,$K46:$K65,M46:M65) -> -0.001389405695
C47: 1.5 | D47: 8.0702 | E47: 103.1930164 | F47: 103.213758 | G47: 9648.17 | H47: 334.47 | I47: 2.680047222 | K47: 8.0732 | L47: 103.2295421 | M47: 103.2512384 | N47: 8560.08 | O47: 291.31 | P47: 2.3778 | Q47: 0.8872231729 | R47: 0.8709600263
C48: 2 | D48: 7.6059 | E48: 100.5992986 | F48: 100.6101224 | G48: 9398.96 | H48: 276.52 | I48: 2.610822222 | K48: 7.6065 | L48: 100.6160762 | M48: 100.6276858 | N48: 8406.1 | O48: 240.22 | P48: 2.335027778 | Q48: 0.8943649085 | R48: 0.8687255895
C49: 3 | D49: 6.9775 | E49: 97.8915355 | F49: 97.90034111 | G49: 9126.24 | H49: 194.12 | I49: 2.535066667 | K49: 6.9645 | L49: 97.96898671 | M49: 97.97460857 | N49: 8142.07 | O49: 146.41 | P49: 2.261686111 | Q49: 0.8921604078 | R49: 0.7542241912
C50: 4 | D50: 6.5604 | E50: 95.39785408 | F50: 95.40568022 | G50: 9051.27 | H50: 241.7 | I50: 2.514241667 | K50: 6.5582 | L50: 95.40126427 | M50: 95.40993228 | N50: 8087.88 | O50: 199.77 | P50: 2.246633333 | Q50: 0.8935630028 | R50: 0.8265204799
C51: 5.5 | D51: 6.0846 | E51: 92.88196264 | F51: 92.88666711 | G51: 8880.3 | H51: 228.83 | I51: 2.46675 | K51: 6.0835 | L51: 92.89357323 | M51: 92.898669 | N51: 7958.68 | O51: 186.09 | P51: 2.210744444 | Q51: 0.8962174701 | R51: 0.8132237906
C52: 7 | D52: 5.721 | E52: 90.89937342 | F52: 90.90343684 | G52: 8784.69 | H52: 215.68 | I52: 2.440191667 | K52: 5.7212 | L52: 90.92012478 | M52: 90.92465717 | N52: 7897.51 | O52: 172.52 | P52: 2.193752778 | Q52: 0.8990083885 | R52: 0.799888724
C53: 9 | D53: 5.3414 | E53: 88.76404748 | F53: 88.76856272 | G53: 8704.49 | H53: 200.57 | I53: 2.417913889 | K53: 5.3424 | L53: 88.787435 | M53: 88.79234525 | N53: 7790.1 | O53: 159.05 | P53: 2.163916667 | Q53: 0.8949519156 | R53: 0.7929899786
C54: 11 | D54: 5.0401 | E54: 87.03650304 | F54: 87.04155977 | G54: 8567.08 | H54: 189.07 | I54: 2.379744444 | K54: 5.0408 | L54: 87.05945466 | M54: 87.06455688 | N54: 7747.07 | O54: 150.04 | P54: 2.151963889 | Q54: 0.9042836065 | R54: 0.7935685196
C55: 13 | D55: 4.7373 | E55: 85.272867 | F55: 85.27684999 | G55: 8495.96 | H55: 179.72 | I55: 2.359988889 | K55: 4.7365 | L55: 85.28921223 | M55: 85.29324221 | N55: 7603.74 | O55: 138.82 | P55: 2.11215 | Q55: 0.8949830272 | R55: 0.7724237703
C56: 16 | D56: 4.4898 | E56: 83.80655993 | F56: 83.80955124 | G56: 8441.9 | H56: 173.28 | I56: 2.344972222 | K56: 4.4881 | L56: 83.82074881 | M56: 83.82362173 | N56: 7648.3 | O56: 133.3 | P56: 2.124527778 | Q56: 0.9059927268 | R56: 0.7692751616
C57: 22 | D57: 4.0259 | E57: 81.01948295 | F57: 81.02261392 | G57: 8361.97 | H57: 162.45 | I57: 2.322769444 | K57: 4.0225 | L57: 81.0315918 | M57: 81.03439787 | N57: 7517.07 | O57: 121.08 | P57: 2.088075 | Q57: 0.8989592165 | R57: 0.7453370268
C58: 33 | D58: 3.4289 | E58: 77.44190937 | F58: 77.44641236 | G58: 8207.63 | H58: 148.46 | I58: 2.279897222 | K58: 3.4239 | L58: 77.4580987 | M58: 77.4623174 | N58: 7455.96 | O58: 108.61 | P58: 2.0711 | Q58: 0.9084181426 | R58: 0.7315775293
C59: 44 | D59: 2.9458 | E59: 74.48526449 | F59: 74.49230479 | G59: 8148.67 | H59: 139.38 | I59: 2.263519444 | K59: 2.9411 | L59: 74.52712152 | M59: 74.53301042 | N59: 7345.12 | O59: 98.71 | P59: 2.040311111 | Q59: 0.9013888156 | R59: 0.7082077773
C60: 55 | D60: 2.6366 | E60: 72.61737985 | F60: 72.62806512 | G60: 8068.75 | H60: 132.69 | I60: 2.241319444 | K60: 2.6316 | L60: 72.65628855 | M60: 72.66601098 | N60: 7330.12 | O60: 93.2 | P60: 2.036144444 | Q60: 0.9084579396 | R60: 0.7023890271
C61: 66 | D61: 2.3527 | E61: 70.91689554 | F61: 70.93206757 | G61: 7979.63 | H61: 127.16 | I61: 2.216563889 | K61: 2.3468 | L61: 70.95949016 | M61: 70.97397102 | N61: 7297.24 | O61: 88.44 | P61: 2.027011111 | Q61: 0.9144835036 | R61: 0.6955017301
C62: 77 | D62: 2.0876 | E62: 69.34376894 | F62: 69.36436184 | G62: 7940.85 | H62: 122.23 | I62: 2.205791667 | K62: 2.081 | L62: 69.39022886 | M62: 69.41103644 | N62: 7217.41 | O62: 83.02 | P62: 2.004836111 | Q62: 0.9088964028 | R62: 0.6792113229
C63: 88 | D63: 1.9096 | E63: 68.34294287 | F63: 68.37581978 | G63: 7899.65 | H63: 120.2 | I63: 2.194347222 | K63: 1.903 | L63: 68.37798392 | M63: 68.4127812 | N63: 7193.79 | O63: 80.72 | P63: 1.998275 | Q63: 0.9106466742 | R63: 0.671547421
C64: 99 | D64: 1.6864 | E64: 67.08453341 | F64: 67.10667863 | G64: 7857.37 | H64: 115.39 | I64: 2.182602778 | K64: 1.6786 | L64: 67.12351671 | M64: 67.14788494 | N64: 7150.35 | O64: 76.78 | P64: 1.986208333 | Q64: 0.9100182377 | R64: 0.6653956149
C65: 110 | D65: 1.4989 | E65: 66.01570211 | F65: 66.02639723 | G65: 7836.78 | H65: 111.54 | I65: 2.176883333 | K65: 1.49 | L65: 66.06072895 | M65: 66.07225815 | N65: 7147.01 | O65: 73.75 | P65: 1.985280556 | Q65: 0.9119829828 | R65: 0.6611977766
B66: sub-R1154D_ses-1_task-FR3_acq-bipolar_ieeg.dat | C66: 1 | D66: 5.5087 | E66: 0 | F66: 0 | G66: 5396.89 | H66: 73.45 | I66: 1.499136111 | K66: 5.5079 | L66: 0 | M66: 0 | N66: 4881.34 | O66: 57.46 | P66: 1.355927778 | Q66: 0.9044727612 | R66: 0.782300885 | V66: =($K66/$D66-1) -> -0.0001452248262
C67: 1.125 | D67: 6.3696 | E67: 133.5018064 | F67: 137.7246661 | G67: 4961.35 | H67: 41.25 | I67: =G67/3600 -> 1.378152778 | K67: 6.3698 | L67: 133.6617517 | M67: 138.2501447 | N67: 4421.56 | O67: 40.4 | P67: =N67/3600 -> 1.228211111 | Q67: =N67/G67 -> 0.8912009836 | R67: =O67/H67 -> 0.9793939394 | T67: =bdrate($D67:$D86,E67:E86,$K67:$K86,L67:L86) -> 0.0003573904892 | U67: =bdrate($D67:$D86,F67:F86,$K67:$K86,M67:M86) -> 0.0001738571142
C68: 1.5 | D68: 5.891 | E68: 103.2702366 | F68: 103.2843743 | G68: 4792.32 | H68: 103.02 | I68: 1.3312 | K68: 5.8984 | L68: 103.334851 | M68: 103.3496829 | N68: 4310.53 | O68: 93.76 | P68: 1.197369444 | Q68: 0.8994662293 | R68: 0.9101145409
C69: 2 | D69: 5.4406 | E69: 100.752108 | F69: 100.7624056 | G69: 4741.15 | H69: 87.23 | I69: 1.316986111 | K69: 5.4464 | L69: 100.7844624 | M69: 100.795079 | N69: 4240.91 | O69: 80.38 | P69: 1.178030556 | Q69: 0.8944897335 | R69: 0.9214719707
C70: 3 | D70: 4.8193 | E70: 98.16027454 | F70: 98.1603505 | G70: 4604.51 | H70: 72.89 | I70: 1.279030556 | K70: 4.8194 | L70: 98.16239459 | M70: 98.16244875 | N70: 4156.38 | O70: 56.42 | P70: 1.15455 | Q70: 0.9026758548 | R70: 0.7740430786
C71: 4 | D71: 4.3628 | E71: 95.11735626 | F71: 95.13857742 | G71: 4591.83 | H71: 61.48 | I71: 1.275508333 | K71: 4.3644 | L71: 95.12061416 | M71: 95.1429014 | N71: 4118.68 | O71: 57.1 | P71: 1.144077778 | Q71: 0.8969582933 | R71: 0.9287573195
C72: 5.5 | D72: 3.9047 | E72: 92.48744157 | F72: 92.50549159 | G72: 4512.62 | H72: 59.67 | I72: 1.253505556 | K72: 3.9073 | L72: 92.4968861 | M72: 92.51558852 | N72: 4072.6 | O72: 54.48 | P72: 1.131277778 | Q72: 0.9024912357 | R72: 0.9130216189
C73: 7 | D73: 3.5458 | E73: 90.4451298 | F73: 90.46157875 | G73: 4468.93 | H73: 53.89 | I73: 1.241369444 | K73: 3.5473 | L73: 90.44528229 | M73: 90.46274967 | N73: 4038.55 | O73: 48.89 | P73: 1.121819444 | Q73: 0.9036950679 | R73: 0.9072184079
C74: 9 | D74: 3.1783 | E74: 88.29892801 | F74: 88.31269073 | G74: 4430.07 | H74: 50.42 | I74: 1.230575 | K74: 3.1804 | L74: 88.2999745 | M74: 88.31495997 | N74: 4001.19 | O74: 46.32 | P74: 1.111441667 | Q74: 0.9031888887 | R74: 0.9186830623
C75: 11 | D75: 2.8526 | E75: 86.38884245 | F75: 86.40732571 | G75: 4391.43 | H75: 45.81 | I75: 1.219841667 | K75: 2.8526 | L75: 86.37672772 | M75: 86.39676396 | N75: 3986.17 | O75: 42.35 | P75: 1.107269444 | Q75: 0.9077157099 | R75: 0.9244706396
C76: 13 | D76: 2.537 | E76: 84.53298175 | F76: 84.54629914 | G76: 4363.66 | H76: 42.56 | I76: 1.212127778 | K76: 2.5378 | L76: 84.52525975 | M76: 84.53976586 | N76: 3968.94 | O76: 39.41 | P76: 1.102483333 | Q76: 0.9095438233 | R76: 0.9259868421
C77: 16 | D77: 2.2716 | E77: 82.93915573 | F77: 82.95073686 | G77: 4305.98 | H77: 40.72 | I77: 1.196105556 | K77: 2.2734 | L77: 82.9364507 | M77: 82.94894593 | N77: 3931.22 | O77: 37.49 | P77: 1.092005556 | Q77: 0.9129675475 | R77: 0.9206777996
C78: 22 | D78: 1.686 | E78: 79.5730407 | F78: 79.59828385 | G78: 4262.67 | H78: 37.38 | I78: 1.184075 | K78: 1.693 | L78: 79.5960104 | M78: 79.62250969 | N78: 3880.9 | O78: 33.62 | P78: 1.078027778 | Q78: 0.9104387626 | R78: 0.89941145
C79: 33 | D79: 0.9508 | E79: 76.15802847 | F79: 76.17178711 | G79: 4110 | H79: 32.38 | I79: 1.141666667 | K79: 0.9532 | L79: 76.16320387 | M79: 76.17690007 | N79: 3786.69 | O79: 28.57 | P79: 1.051858333 | Q79: 0.9213357664 | R79: 0.8823347746
C80: 44 | D80: 0.7364 | E80: 74.89591003 | F80: 74.94112734 | G80: 3922.03 | H80: 30.07 | I80: 1.089452778 | K80: 0.7386 | L80: 74.91145998 | M80: 74.95632314 | N80: 3603.2 | O80: 26.38 | P80: 1.000888889 | Q80: 0.918707914 | R80: 0.8772863319
C81: 55 | D81: 0.6248 | E81: 74.02542241 | F81: 74.13752789 | G81: 3772.06 | H81: 28.68 | I81: 1.047794444 | K81: 0.6267 | L81: 74.03672174 | M81: 74.15043853 | N81: 3457.78 | O81: 25.12 | P81: 0.9604944444 | Q81: 0.9166821312 | R81: 0.8758716876
C82: 66 | D82: 0.5409 | E82: 73.20846294 | F82: 73.40869494 | G82: 3701.9 | H82: 27.57 | I82: 1.028305556 | K82: 0.5423 | L82: 73.21790573 | M82: 73.42104081 | N82: 3388.32 | O82: 24.07 | P82: 0.9412 | Q82: 0.9152921473 | R82: 0.8730504171
C83: 77 | D83: 0.4716 | E83: 72.40032248 | F83: 72.71215948 | G83: 3657.82 | H83: 26.6 | I83: 1.016061111 | K83: 0.4728 | L83: 72.41489416 | M83: 72.72969913 | N83: 3352.72 | O83: 23.44 | P83: 0.9313111111 | Q83: 0.9165896627 | R83: 0.8812030075
C84: 88 | D84: 0.4289 | E84: 71.84317626 | F84: 72.22524891 | G84: 3661.88 | H84: 25.89 | I84: 1.017188889 | K84: 0.43 | L84: 71.84928593 | M84: 72.23510414 | N84: 3331.21 | O84: 22.94 | P84: 0.9253361111 | Q84: 0.9096993894 | R84: 0.8860563924
C85: 99 | D85: 0.3735 | E85: 71.05303367 | F85: 71.58515546 | G85: 3635.86 | H85: 24.97 | I85: 1.009961111 | K85: 0.3743 | L85: 71.06649258 | M85: 71.60133982 | N85: 3317.94 | O85: 22.3 | P85: 0.92165 | Q85: 0.9125598895 | R85: 0.893071686
C86: 110 | D86: 0.3171 | E86: 70.19007781 | F86: 70.94691995 | G86: 3613.43 | H86: 24.14 | I86: 1.003730556 | K86: 0.3178 | L86: 70.21005089 | M86: 70.96963985 | N86: 3301.84 | O86: 21.85 | P86: 0.9171777778 | Q86: 0.9137689121 | R86: 0.9051367026
B87: sub-R1154D_ses-1_task-FR3_acq-monopolar_ieeg.dat | C87: 1 | D87: 6.5809 | E87: 0 | F87: 0 | G87: 3867.61 | H87: 63.69 | I87: 1.074336111 | K87: 6.5625 | L87: 0 | M87: 0 | N87: 3517.15 | O87: 50.7 | P87: 0.9769861111 | Q87: 0.9093858998 | R87: 0.7960433349 | V87: =($K87/$D87-1) -> -0.002795970156
C88: 1.125 | D88: 7.4572 | E88: 119.5822788 | F88: 126.6587899 | G88: 3497.41 | H88: 37.81 | I88: 0.9715027778 | K88: 7.4581 | L88: 119.6326338 | M88: 127.0432048 | N88: 3128.85 | O88: 36.15 | P88: 0.869125 | Q88: 0.894619161 | R88: 0.9560962708 | T88: =bdrate($D88:$D107,E88:E107,$K88:$K107,L88:L107) -> -0.0004069846776 | U88: =bdrate($D88:$D107,F88:F107,$K88:$K107,M88:M107) -> -0.0003773354071
C89: 1.5 | D89: 6.9505 | E89: 102.7043338 | F89: 102.73584 | G89: 3396.75 | H89: 79.4 | I89: 0.9435416667 | K89: 6.9595 | L89: 102.753202 | M89: 102.7886573 | N89: 3016.81 | O89: 69.86 | P89: 0.8380027778 | Q89: 0.8881460219 | R89: 0.8798488665
C90: 2 | D90: 6.4962 | E90: 100.2758538 | F90: 100.2966211 | G90: 3348.39 | H90: 65.3 | I90: 0.9301083333 | K90: 6.5001 | L90: 100.2922162 | M90: 100.3157727 | N90: 2965.97 | O90: 57.46 | P90: 0.8238805556 | Q90: 0.8857898871 | R90: 0.8799387443
C91: 3 | D91: 5.9126 | E91: 97.70191329 | F91: 97.72360022 | G91: 3227.85 | H91: 57.36 | I91: 0.896625 | K91: 5.9223 | L91: 97.82650571 | M91: 97.84288069 | N91: 2877.81 | O91: 45.56 | P91: 0.7993916667 | Q91: 0.8915562991 | R91: 0.7942817294
C92: 4 | D92: 5.4753 | E92: 95.07931656 | F92: 95.09840868 | G92: 3205.13 | H92: 60.01 | I92: 0.8903138889 | K92: 5.4803 | L92: 95.10791672 | M92: 95.12969735 | N92: 2869.03 | O92: 50.72 | P92: 0.7969527778 | Q92: 0.8951368587 | R92: 0.8451924679
C93: 5.5 | D93: 4.9791 | E93: 92.30701997 | F93: 92.33249323 | G93: 3164.18 | H93: 52.4 | I93: 0.8789388889 | K93: 4.9831 | L93: 92.33142677 | M93: 92.35884565 | N93: 2833.93 | O93: 43.84 | P93: 0.7872027778 | Q93: 0.8956285673 | R93: 0.8366412214
C94: 7 | D94: 4.6215 | E94: 90.2489339 | F94: 90.2749955 | G94: 3129.45 | H94: 48.36 | I94: 0.8692916667 | K94: 4.6252 | L94: 90.27199363 | M94: 90.29931098 | N94: 2800.44 | O94: 40.13 | P94: 0.7779 | Q94: 0.8948665101 | R94: 0.8298180314
C95: 9 | D95: 4.2657 | E95: 88.14821432 | F95: 88.16974766 | G95: 3110.73 | H95: 46.37 | I95: 0.8640916667 | K95: 4.2695 | L95: 88.17231535 | M95: 88.19485302 | N95: 2770.74 | O95: 37.67 | P95: 0.76965 | Q95: 0.8907041113 | R95: 0.8123786931
C96: 11 | D96: 3.972 | E96: 86.37671154 | F96: 86.4023249 | G96: 3064.55 | H96: 44.91 | I96: 0.8512638889 | K96: 3.9766 | L96: 86.40542055 | M96: 86.4312961 | N96: 2757.55 | O96: 36.58 | P96: 0.7659861111 | Q96: 0.8998221599 | R96: 0.8145179247
C97: 13 | D97: 3.6769 | E97: 84.61292208 | F97: 84.63425902 | G97: 3052.22 | H97: 42.67 | I97: 0.8478388889 | K97: 3.6816 | L97: 84.64335592 | M97: 84.66536935 | N97: 2742.95 | O97: 34.37 | P97: 0.7619305556 | Q97: 0.8986737522 | R97: 0.8054839466
C98: 16 | D98: 3.4321 | E98: 83.12928717 | F98: 83.15036882 | G98: 3026.17 | H98: 41.75 | I98: 0.8406027778 | K98: 3.4377 | L98: 83.16634542 | M98: 83.18783823 | N98: 2724.06 | O98: 33.23 | P98: 0.7566833333 | Q98: 0.9001675385 | R98: 0.7959281437
C99: 22 | D99: 2.9414 | E99: 80.24410094 | F99: 80.26633207 | G99: 2981.29 | H99: 37.52 | I99: 0.8281361111 | K99: 2.9466 | L99: 80.28317192 | M99: 80.3068448 | N99: 2707.59 | O99: 31.2 | P99: 0.7521083333 | Q99: 0.9081941039 | R99: 0.8315565032
C100: 33 | D100: 2.3332 | E100: 76.63760025 | F100: 76.6508021 | G100: 2943.25 | H100: 33.65 | I100: 0.8175694444 | K100: 2.3388 | L100: 76.6754055 | M100: 76.68896009 | N100: 2658.73 | O100: 26.59 | P100: 0.7385361111 | Q100: 0.9033313514 | R100: 0.7901931649
C101: 44 | D101: 1.8003 | E101: 73.63542058 | F101: 73.65078682 | G101: 2900.16 | H101: 31.12 | I101: 0.8056 | K101: 1.8053 | L101: 73.67358805 | M101: 73.68849984 | N101: 2621.41 | O101: 24.1 | P101: 0.7281694444 | Q101: 0.9038846133 | R101: 0.7744215938
C102: 55 | D102: 1.3574 | E102: 71.45332411 | F102: 71.48038277 | G102: 2871.35 | H102: 37.4 | I102: 0.7975972222 | K102: 1.3659 | L102: 71.50169153 | M102: 71.52934814 | N102: 2596.56 | O102: 25.33 | P102: 0.7212666667 | Q102: 0.9042993714 | R102: 0.6772727273
C103: 66 | D103: 1.0972 | E103: 70.22481188 | F103: 70.23365858 | G103: 2825.87 | H103: 37.47 | I103: 0.7849638889 | K103: 1.0975 | L103: 70.24179906 | M103: 70.25111899 | N103: 2575.21 | O103: 24.56 | P103: 0.7153361111 | Q103: 0.9112981135 | R103: 0.6554576995
C104: 77 | D104: 0.9374 | E104: 69.34204485 | F104: 69.35098162 | G104: 2805.3 | H104: 36.61 | I104: 0.77925 | K104: 0.935 | L104: 69.35324586 | M104: 69.36145869 | N104: 2551.96 | O104: 23.3 | P104: 0.7088777778 | Q104: 0.909692368 | R104: 0.6364381317
C105: 88 | D105: 0.8265 | E105: 68.66744238 | F105: 68.69317274 | G105: 2785.82 | H105: 35.74 | I105: 0.7738388889 | K105: 0.8222 | L105: 68.64807151 | M105: 68.67096015 | N105: 2539.53 | O105: 22.42 | P105: 0.705425 | Q105: 0.9115915601 | R105: 0.627308338
C106: 99 | D106: 0.715 | E106: 67.89140801 | F106: 67.96005192 | G106: 2753.66 | H106: 34.28 | I106: 0.7649055556 | K106: 0.7086 | L106: 67.85793607 | M106: 67.91917287 | N106: 2503.55 | O106: 21.04 | P106: 0.6954305556 | Q106: 0.9091717932 | R106: 0.6137689615
C107: 110 | D107: 0.62 | E107: 67.15021568 | F107: 67.2661004 | G107: 2719.5 | H107: 32.84 | I107: 0.7554166667 | K107: 0.6113 | L107: 67.11389375 | M107: 67.2202113 | N107: 2472.94 | O107: 19.81 | P107: 0.6869277778 | Q107: 0.9093362751 | R107: 0.603227771
B108: sub-R1154D_ses-3_task-FR3_acq-bipolar_ieeg.dat | C108: 1 | D108: 5.6029 | E108: 0 | F108: 0 | G108: 6385.13 | H108: 87.22 | I108: 1.773647222 | K108: 5.6018 | L108: 0 | M108: 0 | N108: 5814.84 | O108: 68.94 | P108: 1.615233333 | Q108: 0.9106846689 | R108: 0.7904150424 | V108: =($K108/$D108-1) -> -0.0001963269021
C109: 1.125 | D109: 6.4816 | E109: 124.2544561 | F109: 138.1490035 | G109: 5881.79 | H109: 53.45 | I109: 1.633830556 | K109: 6.482 | L109: 124.3478375 | M109: 137.9682368 | N109: 5260.64 | O109: 52 | P109: 1.461288889 | Q109: 0.8943943935 | R109: 0.9728718428 | T109: =bdrate($D109:$D128,E109:E128,$K109:$K128,L109:L128) -> 9.002640941e-05 | U109: =bdrate($D109:$D128,F109:F128,$K109:$K128,M109:M128) -> 0.0001689955645
C110: 1.5 | D110: 6.0099 | E110: 103.3273636 | F110: 103.3381001 | G110: 5715.36 | H110: 132.24 | I110: 1.5876 | K110: 6.017 | L110: 103.3961879 | M110: 103.4080661 | N110: 5112.94 | O110: 117.17 | P110: 1.420261111 | Q110: 0.8945963159 | R110: 0.8860405324
C111: 2 | D111: 5.5511 | E111: 100.7647312 | F111: 100.7762394 | G111: 5591.13 | H111: 108.91 | I111: 1.553091667 | K111: 5.5574 | L111: 100.8055607 | M111: 100.8177012 | N111: 5012.37 | O111: 97.8 | P111: 1.392325 | Q111: 0.8964860413 | R111: 0.8979891654
C112: 3 | D112: 4.9181 | E112: 98.16075359 | F112: 98.16082617 | G112: 5513.34 | H112: 88.87 | I112: 1.531483333 | K112: 4.9172 | L112: 98.16091567 | M112: 98.16097243 | N112: 4909.69 | O112: 67.8 | P112: 1.363802778 | Q112: 0.8905110151 | R112: 0.7629121188
C113: 4 | D113: 4.4675 | E113: 95.06712274 | F113: 95.08894467 | G113: 5433.97 | H113: 75.08 | I113: 1.509436111 | K113: 4.4709 | L113: 95.08565391 | M113: 95.10849152 | N113: 4896.73 | O113: 68.36 | P113: 1.360202778 | Q113: 0.9011330574 | R113: 0.9104954715
C114: 5.5 | D114: 4.0051 | E114: 92.41920025 | F114: 92.43657425 | G114: 5348.55 | H114: 72.91 | I114: 1.485708333 | K114: 4.0088 | L114: 92.4429927 | M114: 92.46091158 | N114: 4819.18 | O114: 63.88 | P114: 1.338661111 | Q114: 0.9010255116 | R114: 0.8761486765
C115: 7 | D115: 3.6655 | E115: 90.47428518 | F115: 90.48704012 | G115: 5303.41 | H115: 70.08 | I115: 1.473169444 | K115: 3.6682 | L115: 90.49013205 | M115: 90.50358828 | N115: 4776.64 | O115: 60.39 | P115: 1.326844444 | Q115: 0.9006733404 | R115: 0.8617294521
C116: 9 | D116: 3.2929 | E116: 88.29188732 | F116: 88.30498049 | G116: 5251.67 | H116: 64.36 | I116: 1.458797222 | K116: 3.2964 | L116: 88.31002543 | M116: 88.32383752 | N116: 4750.39 | O116: 56.66 | P116: 1.319552778 | Q116: 0.9045484579 | R116: 0.8803604723
C117: 11 | D117: 2.9702 | E117: 86.39784598 | F117: 86.41685854 | G117: 5231.19 | H117: 58.9 | I117: 1.453108333 | K117: 2.973 | L117: 86.41156065 | M117: 86.43197909 | N117: 4707 | O117: 52.44 | P117: 1.3075 | Q117: 0.8997952665 | R117: 0.8903225806
C118: 13 | D118: 2.6534 | E118: 84.54024703 | F118: 84.55499187 | G118: 5177.68 | H118: 54.53 | I118: 1.438244444 | K118: 2.6561 | L118: 84.54900268 | M118: 84.56494725 | N118: 4685.48 | O118: 49.02 | P118: 1.301522222 | Q118: 0.904938119 | R118: 0.8989547038
C119: 16 | D119: 2.3891 | E119: 82.9527399 | F119: 82.965652 | G119: 5133.38 | H119: 51.82 | I119: 1.425938889 | K119: 2.392 | L119: 82.9614224 | M119: 82.9752948 | N119: 4655.17 | O119: 46.1 | P119: 1.293102778 | Q119: 0.9068430547 | R119: 0.8896179081
C120: 22 | D120: 1.8319 | E120: 79.71657643 | F120: 79.73942551 | G120: 5041.11 | H120: 47.83 | I120: 1.400308333 | K120: 1.8363 | L120: 79.73582341 | M120: 79.75929711 | N120: 4583.41 | O120: 41.48 | P120: 1.273169444 | Q120: 0.9092065041 | R120: 0.8672381351
C121: 33 | D121: 1.0521 | E121: 76.02894282 | F121: 76.05184246 | G121: 4904.89 | H121: 43.51 | I121: 1.362469444 | K121: 1.0544 | L121: 76.03667585 | M121: 76.05987828 | N121: 4504 | O121: 36 | P121: 1.251111111 | Q121: 0.9182672802 | R121: 0.8273960009
C122: 44 | D122: 0.8215 | E122: 74.69839659 | F122: 74.74671592 | G122: 4693.29 | H122: 40.14 | I122: 1.303691667 | K122: 0.8234 | L122: 74.71525649 | M122: 74.76207686 | N122: 4287.79 | O122: 33.01 | P122: 1.191052778 | Q122: 0.9136000545 | R122: 0.8223716991
C123: 55 | D123: 0.7005 | E123: 73.7933066 | F123: 73.90852832 | G123: 4518.66 | H123: 38.24 | I123: 1.255183333 | K123: 0.7019 | L123: 73.80551503 | M123: 73.92060867 | N123: 4138.73 | O123: 31.42 | P123: 1.149647222 | Q123: 0.9159197638 | R123: 0.8216527197
C124: 66 | D124: 0.6115 | E124: 72.97623222 | F124: 73.16696669 | G124: 4454.03 | H124: 37.17 | I124: 1.237230556 | K124: 0.6126 | L124: 72.98889095 | M124: 73.18087514 | N124: 4048.07 | O124: 30.13 | P124: 1.124463889 | Q124: 0.9088555757 | R124: 0.8105999462
C125: 77 | D125: 0.5397 | E125: 72.18577988 | F125: 72.47379575 | G125: 4404.34 | H125: 35.9 | I125: 1.223427778 | K125: 0.5405 | L125: 72.19963435 | M125: 72.48977652 | N125: 4023.36 | O125: 29.55 | P125: 1.1176 | Q125: 0.9134989578 | R125: 0.8231197772
C126: 88 | D126: 0.4989 | E126: 71.66896939 | F126: 72.00868633 | G126: 4375.45 | H126: 34.79 | I126: 1.215402778 | K126: 0.4995 | L126: 71.67487477 | M126: 72.01933117 | N126: 3987.07 | O126: 28.99 | P126: 1.107519444 | Q126: 0.9112365585 | R126: 0.8332854268
C127: 99 | D127: 0.4461 | E127: 70.9309975 | F127: 71.38123999 | G127: 4337.95 | H127: 33.66 | I127: 1.204986111 | K127: 0.4466 | L127: 70.94002101 | M127: 71.39598312 | N127: 3974.97 | O127: 28.1 | P127: 1.104158333 | Q127: 0.9163245312 | R127: 0.834818776
C128: 110 | D128: 0.4007 | E128: 70.22773017 | F128: 70.78892519 | G128: 4314.78 | H128: 33 | I128: 1.19855 | K128: 0.4013 | L128: 70.24417577 | M128: 70.81199801 | N128: 3943.47 | O128: 27.49 | P128: 1.095408333 | Q128: 0.9139446275 | R128: 0.833030303
B129: sub-R1154D_ses-4_task-FR3_acq-bipolar_ieeg.dat | C129: 1 | D129: 5.5214 | E129: 0 | F129: 0 | G129: 5627.41 | H129: 76 | I129: 1.563169444 | K129: 5.5212 | L129: 0 | M129: 0 | N129: 5104.4 | O129: 60.05 | P129: 1.417888889 | Q129: 0.907060264 | R129: 0.7901315789 | V129: =($K129/$D129-1) -> -3.622269714e-05
C130: 1.125 | D130: 6.3742 | E130: 137.1619123 | F130: 140.4578118 | G130: 5181.79 | H130: 42.73 | I130: 1.439386111 | K130: 6.3743 | L130: 137.4229218 | M130: 140.6158495 | N130: 4648.91 | O130: 42.2 | P130: 1.291363889 | Q130: 0.8971629495 | R130: 0.9875965364 | T130: =bdrate($D130:$D149,E130:E149,$K130:$K149,L130:L149) -> 0.0004641061951 | U130: =bdrate($D130:$D149,F130:F149,$K130:$K149,M130:M149) -> 0.0004285411409
C131: 1.5 | D131: 5.9111 | E131: 103.262628 | F131: 103.277392 | G131: 5011.13 | H131: 108.95 | I131: =G131/3600 -> 1.391980556 | K131: 5.9193 | L131: 103.3326813 | M131: 103.3483673 | N131: 4504.72 | O131: 99.14 | P131: =N131/3600 -> 1.251311111 | Q131: =N131/G131 -> 0.898942953 | R131: =O131/H131 -> 0.9099586966
C132: 2 | D132: 5.4598 | E132: 100.7327012 | F132: 100.7425744 | G132: 4976.3 | H132: 92.88 | I132: 1.382305556 | K132: 5.4663 | L132: 100.768197 | M132: 100.7784344 | N132: 4425.74 | O132: 85.05 | P132: 1.229372222 | Q132: 0.8893635834 | R132: 0.9156976744
C133: 3 | D133: 4.8338 | E133: 98.16689385 | F133: 98.16694458 | G133: 4833.6 | H133: 76.8 | I133: 1.342666667 | K133: 4.834 | L133: 98.16649522 | M133: 98.16653625 | N133: 4353.85 | O133: 58.82 | P133: 1.209402778 | Q133: 0.9007468553 | R133: 0.7658854167
C134: 4 | D134: 4.3704 | E134: 95.01430594 | F134: 95.03404116 | G134: 4799.59 | H134: 62.21 | I134: 1.333219444 | K134: 4.3725 | L134: 95.01899512 | M134: 95.03946732 | N134: 4328.88 | O134: 58.36 | P134: 1.202466667 | Q134: 0.9019270396 | R134: 0.9381128436
C135: 5.5 | D135: 3.9117 | E135: 92.38326106 | F135: 92.39978883 | G135: 4719.91 | H135: 61.3 | I135: 1.311086111 | K135: 3.9143 | L135: 92.38989513 | M135: 92.40689312 | N135: 4257.07 | O135: 55.06 | P135: 1.182519444 | Q135: 0.9019388082 | R135: 0.8982055465
C136: 7 | D136: 3.5581 | E136: 90.36572617 | F136: 90.38053495 | G136: 4660.77 | H136: 55.47 | I136: 1.294658333 | K136: 3.5599 | L136: 90.36664462 | M136: 90.38207747 | N136: 4225.21 | O136: 50.07 | P136: 1.173669444 | Q136: 0.9065476305 | R136: 0.9026500811
C137: 9 | D137: 3.1923 | E137: 88.21739098 | F137: 88.23069372 | G137: 4623.23 | H137: 51.5 | I137: 1.284230556 | K137: 3.1953 | L137: 88.22255188 | M137: 88.23666426 | N137: 4197.09 | O137: 47.64 | P137: 1.165858333 | Q137: 0.9078263465 | R137: 0.9250485437
C138: 11 | D138: 2.8621 | E138: 86.29440958 | F138: 86.31179873 | G138: 4601.55 | H138: 46.22 | I138: 1.278208333 | K138: 2.8624 | L138: 86.28256505 | M138: 86.30105788 | N138: 4177.44 | O138: 43.17 | P138: 1.1604 | Q138: 0.9078332301 | R138: 0.9340112505
C139: 13 | D139: 2.5479 | E139: 84.45404593 | F139: 84.46624471 | G139: 4547.38 | H139: 42.77 | I139: 1.263161111 | K139: 2.5486 | L139: 84.44407194 | M139: 84.45697973 | N139: 4123.88 | O139: 39.69 | P139: 1.145522222 | Q139: 0.9068694501 | R139: 0.9279869067
C140: 16 | D140: 2.2847 | E140: 82.87390718 | F140: 82.88401698 | G140: 4545.88 | H140: 40.91 | I140: 1.262744444 | K140: 2.2867 | L140: 82.86927226 | M140: 82.88005967 | N140: 4112.38 | O140: 38 | P140: 1.142327778 | Q140: 0.9046389258 | R140: 0.9288682474
C141: 22 | D141: 1.7102 | E141: 79.57689975 | F141: 79.59923393 | G141: 4447.18 | H141: 37.41 | I141: 1.235327778 | K141: 1.7168 | L141: 79.5954995 | M141: 79.61924932 | N141: 4062.64 | O141: 34.44 | P141: 1.128511111 | Q141: 0.9135317212 | R141: 0.9206094627
C142: 33 | D142: 0.9615 | E142: 76.11925471 | F142: 76.1331481 | G142: 4345.58 | H142: 33.8 | I142: 1.207105556 | K142: 0.9643 | L142: 76.12373559 | M142: 76.13750909 | N142: 3965.21 | O142: 30.27 | P142: 1.101447222 | Q142: 0.9124696818 | R142: 0.8955621302
C143: 44 | D143: 0.7422 | E143: 74.83889234 | F143: 74.87979857 | G143: 4136.75 | H143: 31.41 | I143: 1.149097222 | K143: 0.7448 | L143: 74.85176089 | M143: 74.8927627 | N143: 3769.7 | O143: 27.78 | P143: 1.047138889 | Q143: 0.9112709252 | R143: 0.8844317096
C144: 55 | D144: 0.6278 | E144: 73.95643035 | F144: 74.05629386 | G144: 3964.06 | H144: 29.52 | I144: 1.101127778 | K144: 0.6301 | L144: 73.96794329 | M144: 74.06858097 | N144: 3620.58 | O144: 26.31 | P144: 1.005716667 | Q144: 0.9133514629 | R144: 0.8912601626
C145: 66 | D145: 0.5421 | E145: 73.14059338 | F145: 73.31600738 | G145: 3890.05 | H145: 28 | I145: 1.080569444 | K145: 0.544 | L145: 73.1526188 | M145: 73.32974898 | N145: 3542.26 | O145: 25.27 | P145: 0.9839611111 | Q145: 0.9105949795 | R145: 0.9025
C146: 77 | D146: 0.4714 | E146: 72.34203263 | F146: 72.617258 | G146: 3835.98 | H146: 26.8 | I146: 1.06555 | K146: 0.4729 | L146: 72.35434666 | M146: 72.63126481 | N146: 3502.55 | O146: 24.37 | P146: 0.9729305556 | Q146: 0.9130782747 | R146: 0.9093283582
C147: 88 | D147: 0.4284 | E147: 71.80123906 | F147: 72.14640579 | G147: 3829.64 | H147: 26.09 | I147: 1.063788889 | K147: 0.4299 | L147: 71.81058532 | M147: 72.15574129 | N147: 3493.16 | O147: 23.93 | P147: 0.9703222222 | Q147: 0.9121379555 | R147: 0.9172096589
C148: 99 | D148: 0.3702 | E148: 70.99442195 | F148: 71.50364443 | G148: 3803.88 | H148: 25.27 | I148: 1.056633333 | K148: 0.3714 | L148: 71.00672951 | M148: 71.51687102 | N148: 3470.9 | O148: 23.41 | P148: 0.9641388889 | Q148: 0.912463064 | R148: 0.9263949347
C149: 110 | D149: 0.3111 | E149: 70.12687699 | F149: 70.87467456 | G149: 3778.19 | H149: 24.68 | I149: 1.049497222 | K149: 0.3122 | L149: 70.14693199 | M149: 70.89489579 | N149: 3444.51 | O149: 22.82 | P149: 0.9568083333 | Q149: 0.9116825782 | R149: 0.9246353323
B150: sub-R1154D_ses-4_task-FR3_acq-monopolar_ieeg.dat | C150: 1 | D150: 6.5112 | E150: 0 | F150: 0 | G150: 4032.22 | H150: 65.98 | I150: 1.120061111 | K150: 6.4958 | L150: 0 | M150: 0 | N150: 3651.6 | O150: 51.63 | P150: 1.014333333 | Q150: 0.9056053489 | R150: 0.7825098515 | V150: =($K150/$D150-1) -> -0.002365155424
C151: 1.125 | D151: 7.4028 | E151: 129.3760116 | F151: 131.5108059 | G151: 3647.5 | H151: 37.56 | I151: 1.013194444 | K151: 7.4035 | L151: 129.7806796 | M151: 132.1813693 | N151: 3265.3 | O151: 36.69 | P151: 0.9070277778 | Q151: 0.8952159013 | R151: 0.9768370607 | T151: =bdrate($D151:$D170,E151:E170,$K151:$K170,L151:L170) -> -0.0005641696896 | U151: =bdrate($D151:$D170,F151:F170,$K151:$K170,M151:M170) -> -0.0005993515696
C152: 1.5 | D152: 6.8769 | E152: 102.6654149 | F152: 102.6978228 | G152: 3543.83 | H152: 78.84 | I152: 0.9843972222 | K152: 6.8886 | L152: 102.7394349 | M152: 102.775579 | N152: 3150.69 | O152: 71.84 | P152: 0.8751916667 | Q152: 0.8890635273 | R152: 0.9112125824
C153: 2 | D153: 6.4248 | E153: 100.2457513 | F153: 100.2698659 | G153: 3478.82 | H153: 64.98 | I153: 0.9663388889 | K153: 6.431 | L153: 100.2828336 | M153: 100.3109132 | N153: 3089.93 | O153: 58.21 | P153: 0.8583138889 | Q153: 0.8882120949 | R153: 0.8958140966
C154: 3 | D154: 5.8603 | E154: 97.73394278 | F154: 97.75302601 | G154: 3390.91 | H154: 59.09 | I154: 0.9419194444 | K154: 5.8679 | L154: 97.84557408 | M154: 97.85972665 | N154: 3020.7 | O154: 47.29 | P154: 0.8390833333 | Q154: 0.8908228175 | R154: 0.8003046201
C155: 4 | D155: 5.4056 | E155: 95.0258213 | F155: 95.05113287 | G155: 3357.29 | H155: 59.71 | I155: 0.9325805556 | K155: 5.4112 | L155: 95.06698303 | M155: 95.09565435 | N155: 2998.23 | O155: 51.6 | P155: 0.8328416667 | Q155: 0.893050645 | R155: 0.8641768548
C156: 5.5 | D156: 4.9079 | E156: 92.24372103 | F156: 92.27448502 | G156: 3319.95 | H156: 52.1 | I156: 0.9222083333 | K156: 4.9119 | L156: 92.27412802 | M156: 92.30781296 | N156: 2965.11 | O156: 44.74 | P156: 0.8236416667 | Q156: 0.8931188723 | R156: 0.8587332054
C157: 7 | D157: 4.5505 | E157: 90.17788471 | F157: 90.20665427 | G157: 3279.98 | H157: 47.93 | I157: 0.9111055556 | K157: 4.554 | L157: 90.20369474 | M157: 90.23408527 | N157: 2934.6 | O157: 40.5 | P157: 0.8151666667 | Q157: 0.8947005774 | R157: 0.8449822658
C158: 9 | D158: 4.1978 | E158: 88.0798061 | F158: 88.10234559 | G158: 3231.19 | H158: 45.18 | I158: 0.8975527778 | K158: 4.2006 | L158: 88.09888996 | M158: 88.12246601 | N158: 2911.22 | O158: 37.8 | P158: 0.8086722222 | Q158: 0.9009745636 | R158: 0.8366533865
C159: 11 | D159: 3.9036 | E159: 86.29190087 | F159: 86.31827985 | G159: 3213.25 | H159: 44.26 | I159: 0.8925694444 | K159: 3.907 | L159: 86.3129217 | M159: 86.33987592 | N159: 2886.12 | O159: 36.53 | P159: 0.8017 | Q159: 0.8981934179 | R159: 0.8253502033
C160: 13 | D160: 3.6091 | E160: 84.53317467 | F160: 84.55444402 | G160: 3188.38 | H160: 41.7 | I160: 0.8856611111 | K160: 3.6124 | L160: 84.55343696 | M160: 84.5754514 | N160: 2884.36 | O160: 34.37 | P160: 0.8012111111 | Q160: 0.9046475012 | R160: 0.8242206235
C161: 16 | D161: 3.3633 | E161: 83.04232491 | F161: 83.06281296 | G161: 3178.05 | H161: 40.85 | I161: 0.8827916667 | K161: 3.3676 | L161: 83.07502877 | M161: 83.0966727 | N161: 2854.85 | O161: 33.25 | P161: 0.7930138889 | Q161: 0.8983024181 | R161: 0.8139534884
C162: 22 | D162: 2.8673 | E162: 80.15479506 | F162: 80.17575411 | G162: 3142.78 | H162: 36.51 | I162: 0.8729944444 | K162: 2.8717 | L162: 80.18763548 | M162: 80.21047059 | N162: 2819.63 | O162: 29.85 | P162: 0.7832305556 | Q162: 0.8971770216 | R162: 0.8175842235
C163: 33 | D163: 2.2648 | E163: 76.6022704 | F163: 76.61393624 | G163: 3081.92 | H163: 32.74 | I163: 0.8560888889 | K163: 2.2681 | L163: 76.62714373 | M163: 76.63963349 | N163: 2787.54 | O163: 26.6 | P163: 0.7743166667 | Q163: 0.9044816218 | R163: 0.8124618204
C164: 44 | D164: 1.7372 | E164: 73.63961347 | F164: 73.65142581 | G164: 3038.56 | H164: 30.03 | I164: 0.8440444444 | K164: 1.7376 | L164: 73.65732922 | M164: 73.67027559 | N164: 2756.77 | O164: 24.25 | P164: 0.7657694444 | Q164: 0.9072619925 | R164: 0.8075258075
C165: 55 | D165: 1.2848 | E165: 71.42771574 | F165: 71.44637349 | G165: 2990.92 | H165: 38.55 | I165: 0.8308111111 | K165: 1.2883 | L165: 71.4595413 | M165: 71.47926796 | N165: 2721.13 | O165: 26.44 | P165: 0.7558694444 | Q165: 0.9097969855 | R165: 0.6858625162
C166: 66 | D166: 1.0363 | E166: 70.24116341 | F166: 70.24702465 | G166: 2964.89 | H166: 39.12 | I166: 0.8235805556 | K166: 1.0346 | L166: 70.25606691 | M166: 70.26206618 | N166: 2693.21 | O166: 25.67 | P166: 0.7481138889 | Q166: 0.9083675954 | R166: 0.6561860941
C167: 77 | D167: 0.8741 | E167: 69.33414029 | F167: 69.35921418 | G167: 2947.02 | H167: 37.46 | I167: 0.8186166667 | K167: 0.8709 | L167: 69.34774295 | M167: 69.37093183 | N167: 2671.83 | O167: 24.17 | P167: 0.742175 | Q167: 0.9066209255 | R167: 0.6452215697
C168: 88 | D168: 0.7561 | E168: 68.62150923 | F168: 68.68158789 | G168: 2909.82 | H168: 35.96 | I168: 0.8082833333 | K168: 0.7514 | L168: 68.60748969 | M168: 68.66501829 | N168: 2652.11 | O168: 22.99 | P168: 0.7366972222 | Q168: 0.9114343843 | R168: 0.6393214683
C169: 99 | D169: 0.6505 | E169: 67.89693535 | F169: 67.9939868 | G169: 2877.87 | H169: 33.9 | I169: 0.7994083333 | K169: 0.6428 | L169: 67.86667377 | M169: 67.95747037 | N169: 2637.93 | O169: 21.58 | P169: 0.7327583333 | Q169: 0.9166258379 | R169: 0.6365781711
C170: 110 | D170: 0.5683 | E170: 67.25120188 | F170: 67.36253745 | G170: 2850.46 | H170: 32.83 | I170: 0.7917944444 | K170: 0.5594 | L170: 67.22443495 | M170: 67.3279001 | N170: 2604.05 | O170: 20.42 | P170: 0.7233472222 | Q170: 0.9135543035 | R170: 0.6219920804
B171: sub-R1161E_ses-0_task-FR3_acq-monopolar_ieeg.dat | C171: 1 | D171: 6.8762 | E171: 0 | F171: 0 | G171: 4126.3 | H171: 69.99 | I171: 1.146194444 | K171: 6.8558 | L171: 0 | M171: 0 | N171: 3747.64 | O171: 54.37 | P171: 1.041011111 | Q171: 0.908232557 | R171: 0.7768252608 | V171: =($K171/$D171-1) -> -0.002966754894
C172: 1.125 | D172: 7.8132 | E172: 128.0083846 | F172: 129.2320763 | G172: 3751.72 | H172: 38.89 | I172: 1.042144444 | K172: 7.8135 | L172: 128.0720157 | M172: 129.3863118 | N172: 3374.98 | O172: 38.23 | P172: 0.9374944444 | Q172: 0.8995820584 | R172: 0.9830290563 | T172: =bdrate($D172:$D191,E172:E191,$K172:$K191,L172:L191) -> -0.001134635025 | U172: =bdrate($D172:$D191,F172:F191,$K172:$K191,M172:M191) -> -0.0009767279335
C173: 1.5 | D173: 7.3483 | E173: 103.1827854 | F173: 103.4408779 | G173: 3670.94 | H173: 110.4 | I173: 1.019705556 | K173: 7.3546 | L173: 103.2402379 | M173: 103.5010736 | N173: 3251.8 | O173: 95.55 | P173: 0.9032777778 | Q173: 0.88582216 | R173: 0.8654891304
C174: 2 | D174: 6.8957 | E174: 100.6824175 | F174: 100.9488935 | G174: 3580.31 | H174: 95.62 | I174: 0.9945305556 | K174: 6.899 | L174: 100.7125184 | M174: 100.9776262 | N174: 3193.95 | O174: 81.61 | P174: 0.8872083333 | Q174: 0.8920875567 | R174: 0.853482535
C175: 3 | D175: 6.2602 | E175: 98.12983014 | F175: 98.39269298 | G175: 3479.87 | H175: 68.23 | I175: 0.9666305556 | K175: 6.2472 | L175: 98.1571478 | M175: 98.41366808 | N175: 3090.11 | O175: 51.68 | P175: 0.8583638889 | Q175: 0.8879958159 | R175: 0.7574380771
C176: 4 | D176: 5.8584 | E176: 95.43243941 | F176: 95.68269064 | G176: 3437.62 | H176: 79.64 | I176: 0.9548944444 | K176: 5.8582 | L176: 95.45327427 | M176: 95.70182102 | N176: 3082.03 | O176: 64.5 | P176: 0.8561194444 | Q176: 0.8965592474 | R176: 0.8098945254
C177: 5.5 | D177: 5.3843 | E177: 92.78627462 | F177: 93.04850101 | G177: 3403.9 | H177: 72.41 | I177: 0.9455277778 | K177: 5.383 | L177: 92.80583817 | M177: 93.067008 | N177: 3047.96 | O177: 57.23 | P177: 0.8466555556 | Q177: 0.8954317107 | R177: 0.7903604475
C178: 7 | D178: 5.0325 | E178: 90.75807109 | F178: 91.02494853 | G178: 3351.22 | H178: 66.88 | I178: 0.9308944444 | K178: 5.0303 | L178: 90.77652872 | M178: 91.04287129 | N178: 2995.15 | O178: 52.1 | P178: 0.8319861111 | Q178: 0.8937491421 | R178: 0.779007177
C179: 9 | D179: 4.6728 | E179: 88.61862674 | F179: 88.88849956 | G179: 3315.69 | H179: 64.28 | I179: 0.921025 | K179: 4.6718 | L179: 88.64720885 | M179: 88.91382136 | N179: 2974.31 | O179: 49.55 | P179: 0.8261972222 | Q179: 0.8970410382 | R179: 0.7708462974
C180: 11 | D180: 4.3838 | E180: 86.87871876 | F180: 87.14801377 | G180: 3285.23 | H180: 61.91 | I180: 0.9125638889 | K180: 4.3832 | L180: 86.91266584 | M180: 87.17899683 | N180: 2949.3 | O180: 47.42 | P180: 0.81925 | Q180: 0.8977453633 | R180: 0.7659505734
C181: 13 | D181: 4.0892 | E181: 85.08680882 | F181: 85.35599664 | G181: 3265.49 | H181: 59.47 | I181: 0.9070805556 | K181: 4.0881 | L181: 85.11781527 | M181: 85.38474209 | N181: 2920.14 | O181: 44.81 | P181: 0.81115 | Q181: 0.894242518 | R181: 0.7534891542
C182: 16 | D182: 3.8448 | E182: 83.58947961 | F182: 83.86190351 | G182: 3240.44 | H182: 57.08 | I182: 0.9001222222 | K182: 3.8435 | L182: 83.62066817 | M182: 83.89201974 | N182: 2916.37 | O182: 42.82 | P182: 0.8101027778 | Q182: 0.8999919764 | R182: 0.7501751927
C183: 22 | D183: 3.376 | E183: 80.72890332 | F183: 81.0040217 | G183: 3186.65 | H183: 51.94 | I183: 0.8851805556 | K183: 3.3743 | L183: 80.75780012 | M183: 81.02863112 | N183: 2875.43 | O183: 38.32 | P183: 0.7987305556 | Q183: 0.9023363093 | R183: 0.737774355
C184: 33 | D184: 2.7816 | E184: 77.0759048 | F184: 77.35232646 | G184: 3136.73 | H184: 46.9 | I184: 0.8713138889 | K184: 2.781 | L184: 77.11490514 | M184: 77.38113952 | N184: 2846.35 | O184: 33.99 | P184: 0.7906527778 | Q184: 0.9074258862 | R184: 0.7247334755
C185: 44 | D185: 2.2752 | E185: 73.9999157 | F185: 74.28215725 | G185: 3106.2 | H185: 44.59 | I185: 0.8628333333 | K185: 2.2779 | L185: 74.06911105 | M185: 74.34180459 | N185: 2802.49 | O185: 31.28 | P185: 0.7784694444 | Q185: 0.9022245831 | R185: 0.7015025791
C186: 55 | D186: 1.8956 | E186: 71.92636944 | F186: 72.2214295 | G186: 3078.49 | H186: 44.14 | I186: 0.8551361111 | K186: 1.8954 | L186: 71.95772877 | M186: 72.24362125 | N186: 2799.69 | O186: 29.83 | P186: 0.7776916667 | Q186: 0.9094361197 | R186: 0.6758042592
C187: 66 | D187: 1.5874 | E187: 70.3085494 | F187: 70.59671537 | G187: 3036.02 | H187: 42.52 | I187: 0.8433388889 | K187: 1.5845 | L187: 70.32235424 | M187: 70.60447835 | N187: 2764.96 | O187: 27.63 | P187: 0.7680444444 | Q187: 0.9107186382 | R187: 0.6498118532
C188: 77 | D188: 1.3458 | E188: 69.00879501 | F188: 69.27573926 | G188: 3014.9 | H188: 41.42 | I188: 0.8374722222 | K188: 1.3411 | L188: 69.0132559 | M188: 69.27752468 | N188: 2743.12 | O188: 26.12 | P188: 0.7619777778 | Q188: 0.9098543899 | R188: 0.6306132303
C189: 88 | D189: 1.2 | E189: 68.20673972 | F189: 68.48421226 | G189: 3011.04 | H189: 40.87 | I189: 0.8364 | K189: 1.1954 | L189: 68.19696005 | M189: 68.47423452 | N189: 2731.58 | O189: 25.49 | P189: 0.7587722222 | Q189: 0.907188214 | R189: 0.6236848544
C190: 99 | D190: 1.049 | E190: 67.31221141 | F190: 67.60924351 | G190: 3084.22 | H190: 39.52 | I190: 0.8567277778 | K190: 1.0448 | L190: 67.30917454 | M190: 67.59977021 | N190: 2713.43 | O190: 24.05 | P190: 0.7537305556 | Q190: 0.8797783556 | R190: 0.6085526316
C191: 110 | D191: 0.9304 | E191: 66.56255488 | F191: 66.8516783 | G191: 2942.35 | H191: 38.57 | I191: 0.8173194444 | K191: 0.927 | L191: 66.57412516 | M191: 66.86197364 | N191: 2695.06 | O191: 23.19 | P191: 0.7486277778 | Q191: 0.915954934 | R191: 0.6012444905
B192: sub-R1161E_ses-1_task-FR3_acq-bipolar_ieeg.dat | C192: 1 | D192: 5.5905 | E192: 0 | F192: 0 | G192: 2995.84 | H192: 47.49 | I192: 0.8321777778 | K192: 5.5709 | L192: 0 | M192: 0 | N192: 2729.2 | O192: 35.33 | P192: 0.7581111111 | Q192: 0.9109965819 | R192: 0.7439460939 | V192: =($K192/$D192-1) -> -0.00350594759
C193: 1.125 | D193: 6.5839 | E193: 123.9046206 | F193: 129.3407539 | G193: 2731.99 | H193: 27.35 | I193: 0.7588861111 | K193: 6.5838 | L193: 123.7631215 | M193: 128.9301852 | N193: 2441.92 | O193: 26.49 | P193: 0.6783111111 | Q193: 0.893824648 | R193: 0.9685557587 | T193: =bdrate($D193:$D212,E193:E212,$K193:$K212,L193:L212) -> -0.002946477956 | U193: =bdrate($D193:$D212,F193:F212,$K193:$K212,M193:M212) -> -0.002676583999
C194: 1.5 | D194: 6.0065 | E194: 103.3509465 | F194: 103.3526767 | G194: 2620.52 | H194: 71.39 | I194: 0.7279222222 | K194: 6.0125 | L194: 103.4078476 | M194: 103.4094888 | N194: 2330.94 | O194: 57.2 | P194: 0.6474833333 | Q194: 0.8894952147 | R194: 0.8012326656
C195: 2 | D195: 5.5554 | E195: 100.8831187 | F195: 100.8843564 | G195: 2572.36 | H195: 63.38 | I195: =G195/3600 -> 0.7145444444 | K195: 5.5598 | L195: 100.9172048 | M195: 100.918423 | N195: 2298.45 | O195: 50.29 | P195: =N195/3600 -> 0.6384583333 | Q195: =N195/G195 -> 0.8935180146 | R195: =O195/H195 -> 0.793467971
C196: 3 | D196: 4.9425 | E196: 98.10584818 | F196: 98.10623073 | G196: 2523.9 | H196: 47.95 | I196: 0.7010833333 | K196: 4.9337 | L196: 98.13343411 | M196: 98.13370041 | N196: 2253.11 | O196: 33.9 | P196: 0.6258638889 | Q196: 0.8927096953 | R196: 0.7069864442
C197: 4 | D197: 4.5112 | E197: 95.54312363 | F197: 95.54441792 | G197: 2482.79 | H197: 51.5 | I197: 0.6896638889 | K197: 4.5097 | L197: 95.53933285 | M197: 95.54076912 | N197: 2240.03 | O197: 39.56 | P197: 0.6222305556 | Q197: 0.9022229025 | R197: 0.7681553398
C198: 5.5 | D198: 4.0397 | E198: 92.9133773 | F198: 92.91534152 | G198: 2459.36 | H198: 47.91 | I198: 0.6831555556 | K198: 4.0371 | L198: 92.90812365 | M198: 92.91024878 | N198: 2219.44 | O198: 35.41 | P198: 0.6165111111 | Q198: 0.9024461649 | R198: 0.7390941348
C199: 7 | D199: 3.6941 | E199: 90.87309223 | F199: 90.87456481 | G199: 2445.17 | H199: 45.37 | I199: 0.6792138889 | K199: 3.6917 | L199: 90.88108879 | M199: 90.88253466 | N199: 2209.59 | O199: 33.42 | P199: 0.613775 | Q199: 0.9036549606 | R199: 0.7366100948
C200: 9 | D200: 3.3188 | E200: 88.66670433 | F200: 88.66829514 | G200: 2418.88 | H200: 43.19 | I200: 0.6719111111 | K200: 3.3161 | L200: 88.67971959 | M200: 88.68134799 | N200: 2171.07 | O200: 30.62 | P200: 0.603075 | Q200: 0.8975517595 | R200: 0.7089604075
... 437 more rows

Sheet Ozdemir (EMG)
D1: Reference | K1: Tested | T1: BD-rate (piecewise cubic) | V1: Lossless
C2: StepSizeForQP | D2: BPS | E2: PSNR1 | F2: PSNR2 | G2: Enc T [s] | H2: Dec T [s] | I2: Enc T [h] | K2: BPS | L2: PSNR1 | M2: PSNR2 | N2: Enc T [s] | O2: Dec T [s] | P2: Enc T [h] | Q2: EncR | R2: DecR | T2: BD-PSNR1 | U2: BD-PSNR2 | V2: BR-R
A3: Ozdemir | B3: raw_strm1.dat | C3: 1 | D3: 6.3337 | E3: 0 | F3: 0 | G3: 79.55 | H3: 0.69 | I3: =G3/3600 -> 0.02209722222 | K3: 6.333 | L3: 0 | M3: 0 | N3: 72.76 | O3: 0.67 | P3: =N3/3600 -> 0.02021111111 | Q3: =N3/G3 -> 0.9146448774 | R3: =O3/H3 -> 0.9710144928 | V3: =($K3/$D3-1) -> -0.0001105199173
A4: EMG | C4: 1.5 | D4: 5.8815 | E4: 102.6979938 | F4: 102.7105 | G4: 77.57 | H4: 1.38 | I4: 0.02154722222 | K4: 5.9024 | L4: 102.8773987 | M4: 102.8982202 | N4: 69.37 | O4: 1.38 | P4: 0.01926944444 | Q4: 0.8942890293 | R4: 1 | T4: =bdrate($D4:$D24,E4:E24,$K4:$K24,L4:L24) -> -0.0007142329837 | U4: =bdrate($D4:$D24,F4:F24,$K4:$K24,M4:M24) -> -0.0008158101033
C5: 2 | D5: 5.3987 | E5: 100.1339026 | F5: 100.1360356 | G5: 75.73 | H5: 0.97 | I5: 0.02103611111 | K5: 5.4146 | L5: 100.2491308 | M5: 100.2506217 | N5: 68.23 | O5: 0.99 | P5: 0.01895277778 | Q5: 0.9009639509 | R5: 1.020618557
C6: 3 | D6: 4.8524 | E6: 98.06221053 | F6: 98.06437198 | G6: 73.73 | H6: 1.11 | I6: 0.02048055556 | K6: 4.8507 | L6: 98.07371156 | M6: 98.0758276 | N6: 66.35 | O6: 0.9 | P6: 0.01843055556 | Q6: 0.899905059 | R6: 0.8108108108
C7: 4 | D7: 4.422 | E7: 94.9147742 | F7: 94.94145527 | G7: 72.64 | H7: 0.93 | I7: 0.02017777778 | K7: 4.4232 | L7: 94.91827311 | M7: 94.94551144 | N7: 64.93 | O7: 0.78 | P7: 0.01803611111 | Q7: 0.8938601322 | R7: 0.8387096774
C8: 5.5 | D8: 3.9914 | E8: 92.389653 | F8: 92.43078973 | G8: 71.21 | H8: 0.92 | I8: 0.01978055556 | K8: 3.9926 | L8: 92.38483708 | M8: 92.428271 | N8: 64.11 | O8: 0.74 | P8: 0.01780833333 | Q8: 0.9002949024 | R8: 0.8043478261
C9: 7 | D9: 3.6889 | E9: 90.56242177 | F9: 90.6123777 | G9: 70.41 | H9: 0.87 | I9: 0.01955833333 | K9: 3.692 | L9: 90.57355025 | M9: 90.62487894 | N9: 64.09 | O9: 0.72 | P9: 0.01780277778 | Q9: 0.9102400227 | R9: 0.8275862069
C10: 9 | D10: 3.3584 | E10: 88.40578929 | F10: 88.48581768 | G10: 69.65 | H10: 0.8 | I10: 0.01934722222 | K10: 3.36 | L10: 88.40231096 | M10: 88.48532902 | N10: 63.32 | O10: 0.66 | P10: 0.01758888889 | Q10: 0.9091170136 | R10: 0.825
C11: 11 | D11: 3.0837 | E11: 86.5935611 | F11: 86.70324891 | G11: 68.91 | H11: 0.74 | I11: 0.01914166667 | K11: 3.0845 | L11: 86.58642165 | M11: 86.69837319 | N11: 62.38 | O11: 0.62 | P11: 0.01732777778 | Q11: 0.9052387172 | R11: 0.8378378378
C12: 13.5 | D12: 2.8123 | E12: 84.82077466 | F12: 84.95777791 | G12: 68.26 | H12: 0.7 | I12: 0.01896111111 | K12: 2.8093 | L12: 84.80793051 | M12: 84.94843902 | N12: 62 | O12: 0.6 | P12: 0.01722222222 | Q12: 0.9082918254 | R12: 0.8571428571
C13: 16 | D13: 2.5912 | E13: 83.37622144 | F13: 83.53181022 | G13: 67.41 | H13: 0.66 | I13: 0.018725 | K13: 2.589 | L13: 83.37338051 | M13: 83.53264641 | N13: 61.53 | O13: 0.58 | P13: 0.01709166667 | Q13: 0.9127725857 | R13: 0.8787878788
C14: 19 | D14: 2.3686 | E14: 81.92319082 | F14: 82.09843256 | G14: 67.06 | H14: 0.62 | I14: 0.01862777778 | K14: 2.367 | L14: 81.91937704 | M14: 82.0983789 | N14: 61.51 | O14: 0.55 | P14: 0.01708611111 | Q14: 0.9172382941 | R14: 0.8870967742
C15: 22 | D15: 2.1809 | E15: 80.69655113 | F15: 80.88880848 | G15: 66.45 | H15: 0.59 | I15: 0.01845833333 | K15: 2.1774 | L15: 80.68882296 | M15: 80.883892 | N15: 60.6 | O15: 0.53 | P15: 0.01683333333 | Q15: 0.9119638826 | R15: 0.8983050847
C16: 25.5 | D16: 1.9935 | E16: 79.4648304 | F16: 79.67258455 | G16: 65.82 | H16: 0.57 | I16: 0.01828333333 | K16: 1.9896 | L16: 79.45088685 | M16: 79.66345667 | N16: 60.07 | O16: 0.51 | P16: 0.01668611111 | Q16: 0.9126405348 | R16: 0.8947368421
C17: 29 | D17: 1.8511 | E17: 78.5172916 | F17: 78.72810348 | G17: 65.4 | H17: 0.55 | I17: 0.01816666667 | K17: 1.8511 | L17: 78.52755668 | M17: 78.7376603 | N17: 59.73 | O17: 0.5 | P17: 0.01659166667 | Q17: 0.9133027523 | R17: 0.9090909091
C18: 33 | D18: 1.7032 | E18: 77.51847104 | F18: 77.72935061 | G18: 64.84 | H18: 0.54 | I18: 0.01801111111 | K18: 1.6998 | L18: 77.51199739 | M18: 77.72645719 | N18: 59.42 | O18: 0.49 | P18: 0.01650555556 | Q18: 0.9164096237 | R18: 0.9074074074
C19: 37 | D19: 1.5757 | E19: 76.62172993 | F19: 76.83537825 | G19: 64.33 | H19: 0.52 | I19: 0.01786944444 | K19: 1.5724 | L19: 76.62337347 | M19: 76.83963735 | N19: 59.24 | O19: 0.48 | P19: 0.01645555556 | Q19: 0.9208767294 | R19: 0.9230769231
C20: 41.5 | D20: 1.4631 | E20: 75.80692569 | F20: 76.02194341 | G20: 63.99 | H20: 0.52 | I20: 0.017775 | K20: 1.4601 | L20: 75.81616689 | M20: 76.0321712 | N20: 58.45 | O20: 0.47 | P20: 0.01623611111 | Q20: 0.9134239725 | R20: 0.9038461538
C21: 46 | D21: 1.3659 | E21: 75.07101494 | F21: 75.28631551 | G21: 63.38 | H21: 0.51 | I21: 0.01760555556 | K21: 1.3651 | L21: 75.09116527 | M21: 75.30548864 | N21: 57.92 | O21: 0.47 | P21: 0.01608888889 | Q21: 0.9138529505 | R21: 0.9215686275
C22: 51 | D22: 1.2765 | E22: 74.35656259 | F22: 74.56899896 | G22: 62.73 | H22: 0.49 | I22: 0.017425 | K22: 1.2728 | L22: 74.36338484 | M22: 74.57682871 | N22: 57.24 | O22: 0.45 | P22: 0.0159 | Q22: 0.912482066 | R22: 0.9183673469
C23: 56 | D23: 1.1942 | E23: 73.70752153 | F23: 73.91784747 | G23: 62.17 | H23: 0.49 | I23: 0.01726944444 | K23: 1.1955 | L23: 73.73828407 | M23: 73.9470043 | N23: 56.69 | O23: 0.45 | P23: 0.01574722222 | Q23: 0.9118545922 | R23: 0.9183673469
C24: 60.5 | D24: 1.125 | E24: 73.11630768 | F24: 73.32810913 | G24: 61.4 | H24: 0.49 | I24: 0.01705555556 | K24: 1.1242 | L24: 73.13699898 | M24: 73.34916138 | N24: 56.26 | O24: 0.44 | P24: 0.01562777778 | Q24: 0.916286645 | R24: 0.8979591837
B25: raw_strm10.dat | C25: 1 | D25: 5.9948 | E25: 0 | F25: 0 | G25: 78.99 | H25: 0.65 | I25: 0.02194166667 | K25: 5.9952 | L25: 0 | M25: 0 | N25: 70.94 | O25: 0.63 | P25: 0.01970555556 | Q25: 0.8980883656 | R25: 0.9692307692 | V25: =($K25/$D25-1) -> 6.672449456e-05
C26: 1.5 | D26: 5.5417 | E26: 102.8199445 | F26: 102.8312052 | G26: 76.65 | H26: 1.35 | I26: 0.02129166667 | K26: 5.5592 | L26: 102.9747225 | M26: 102.9936236 | N26: 69.34 | O26: 1.33 | P26: 0.01926111111 | Q26: 0.9046314416 | R26: 0.9851851852 | T26: =bdrate($D26:$D46,E26:E46,$K26:$K46,L26:L46) -> -0.0006700273445 | U26: =bdrate($D26:$D46,F26:F46,$K26:$K46,M26:M46) -> -0.0007877501211
C27: 2 | D27: 5.0439 | E27: 100.1511277 | F27: 100.1543002 | G27: 74.97 | H27: 0.88 | I27: 0.020825 | K27: 5.0575 | L27: 100.2362238 | M27: 100.2377393 | N27: 67.8 | O27: 0.88 | P27: 0.01883333333 | Q27: 0.9043617447 | R27: 1
C28: 3 | D28: 4.4986 | E28: 98.11593799 | F28: 98.11702065 | G28: 72.77 | H28: 1.02 | I28: 0.02021388889 | K28: 4.5009 | L28: 98.11668806 | M28: 98.11762927 | N28: 65.93 | O28: 0.81 | P28: 0.01831388889 | Q28: 0.9060052219 | R28: 0.7941176471
C29: 4 | D29: 4.0763 | E29: 94.97307239 | F29: 95.00849193 | G29: 72.06 | H29: 0.88 | I29: 0.02001666667 | K29: 4.0769 | L29: 94.97168041 | M29: 95.00854621 | N29: 65.18 | O29: 0.72 | P29: 0.01810555556 | Q29: 0.9045240078 | R29: 0.8181818182
C30: 5.5 | D30: 3.6483 | E30: 92.4405464 | F30: 92.49804766 | G30: 70.94 | H30: 0.86 | I30: 0.01970555556 | K30: 3.6493 | L30: 92.44077021 | M30: 92.50109467 | N30: 64.23 | O30: 0.69 | P30: 0.01784166667 | Q30: 0.9054130251 | R30: 0.8023255814
C31: 7 | D31: 3.3504 | E31: 90.59551345 | F31: 90.66509435 | G31: 70.09 | H31: 0.81 | I31: 0.01946944444 | K31: 3.3508 | L31: 90.59289152 | M31: 90.66624005 | N31: 63.65 | O31: 0.65 | P31: 0.01768055556 | Q31: 0.9081181338 | R31: 0.8024691358
C32: 9 | D32: 3.0236 | E32: 88.43344346 | F32: 88.53866418 | G32: 69.32 | H32: 0.73 | I32: 0.01925555556 | K32: 3.0223 | L32: 88.4276818 | M32: 88.53647429 | N32: 62.84 | O32: 0.6 | P32: 0.01745555556 | Q32: 0.9065204847 | R32: 0.8219178082
C33: 11 | D33: 2.744 | E33: 86.59277072 | F33: 86.73279792 | G33: 68.57 | H33: 0.67 | I33: 0.01904722222 | K33: 2.7424 | L33: 86.58764006 | M33: 86.73426593 | N33: 62.64 | O33: 0.59 | P33: 0.0174 | Q33: 0.9135190316 | R33: 0.8805970149
C34: 13.5 | D34: 2.4721 | E34: 84.8288747 | F34: 84.99867665 | G34: 67.84 | H34: 0.64 | I34: 0.01884444444 | K34: 2.4696 | L34: 84.8213999 | M34: 84.99591381 | N34: 62.07 | O34: 0.55 | P34: 0.01724166667 | Q34: 0.914946934 | R34: 0.859375
C35: 16 | D35: 2.2452 | E35: 83.38340123 | F35: 83.57710102 | G35: 67.42 | H35: 0.61 | I35: 0.01872777778 | K35: 2.2442 | L35: 83.38118621 | M35: 83.57744608 | N35: 61.23 | O35: 0.53 | P35: 0.01700833333 | Q35: 0.9081874815 | R35: 0.868852459
C36: 19 | D36: 2.023 | E36: 81.93284626 | F36: 82.15107383 | G36: 66.72 | H36: 0.57 | I36: 0.01853333333 | K36: 2.017 | L36: 81.91448613 | M36: 82.13753326 | N36: 61.28 | O36: 0.52 | P36: 0.01702222222 | Q36: 0.9184652278 | R36: 0.9122807018
C37: 22 | D37: 1.8383 | E37: 80.74707848 | F37: 80.98191981 | G37: 66.23 | H37: 0.55 | I37: 0.01839722222 | K37: 1.8366 | L37: 80.74585857 | M37: 80.9804392 | N37: 60.46 | O37: 0.5 | P37: 0.01679444444 | Q37: 0.9128793598 | R37: 0.9090909091
C38: 25.5 | D38: 1.669 | E38: 79.61706597 | F38: 79.85398006 | G38: 65.58 | H38: 0.53 | I38: 0.01821666667 | K38: 1.6645 | L38: 79.61213229 | M38: 79.85055337 | N38: 60.2 | O38: 0.49 | P38: 0.01672222222 | Q38: 0.9179627935 | R38: 0.9245283019
C39: 29 | D39: 1.5345 | E39: 78.70990888 | F39: 78.94011436 | G39: 65.19 | H39: 0.52 | I39: 0.01810833333 | K39: 1.5368 | L39: 78.7239036 | M39: 78.95268988 | N39: 59.6 | O39: 0.48 | P39: 0.01655555556 | Q39: 0.9142506519 | R39: 0.9230769231
C40: 33 | D40: 1.4053 | E40: 77.78794193 | F40: 78.01582522 | G40: 64.66 | H40: 0.51 | I40: 0.01796111111 | K40: 1.4041 | L40: 77.78953845 | M40: 78.01811877 | N40: 58.86 | O40: 0.47 | P40: 0.01635 | Q40: 0.9103000309 | R40: 0.9215686275
C41: 37 | D41: 1.2934 | E41: 76.94977979 | F41: 77.17782846 | G41: 63.84 | H41: 0.5 | I41: 0.01773333333 | K41: 1.2932 | L41: 76.96311445 | M41: 77.18929882 | N41: 58.32 | O41: 0.46 | P41: 0.0162 | Q41: 0.9135338346 | R41: 0.92
C42: 41.5 | D42: 1.1965 | E42: 76.17651732 | F42: 76.39896212 | G42: 63.25 | H42: 0.49 | I42: 0.01756944444 | K42: 1.1926 | L42: 76.17972631 | M42: 76.40137492 | N42: 57.99 | O42: 0.45 | P42: 0.01610833333 | Q42: 0.9168379447 | R42: 0.9183673469
C43: 46 | D43: 1.1117 | E43: 75.47542895 | F43: 75.69190812 | G43: 62.51 | H43: 0.47 | I43: 0.01736388889 | K43: 1.1081 | L43: 75.47571802 | M43: 75.69563493 | N43: 57.12 | O43: 0.44 | P43: 0.01586666667 | Q43: 0.9137737962 | R43: 0.9361702128
C44: 51 | D44: 1.0262 | E44: 74.75463747 | F44: 74.97254396 | G44: 61.56 | H44: 0.46 | I44: 0.0171 | K44: 1.0245 | L44: 74.76082088 | M44: 74.98018486 | N44: 56.5 | O44: 0.43 | P44: 0.01569444444 | Q44: 0.9178037687 | R44: 0.9347826087
C45: 56 | D45: 0.9571 | E45: 74.12582204 | F45: 74.34105154 | G45: 61.04 | H45: 0.45 | I45: 0.01695555556 | K45: 0.9555 | L45: 74.13105766 | M45: 74.3482486 | N45: 55.86 | O45: 0.42 | P45: 0.01551666667 | Q45: 0.9151376147 | R45: 0.9333333333
C46: 60.5 | D46: 0.8919 | E46: 73.52666646 | F46: 73.74037023 | G46: 60.66 | H46: 0.44 | I46: 0.01685 | K46: 0.8919 | L46: 73.53772768 | M46: 73.75473537 | N46: 55.6 | O46: 0.41 | P46: 0.01544444444 | Q46: 0.91658424 | R46: 0.9318181818
B47: raw_strm11.dat | C47: 1 | D47: 6.4666 | E47: 0 | F47: 0 | G47: 80.31 | H47: 0.62 | I47: 0.02230833333 | K47: 6.4667 | L47: 0 | M47: 0 | N47: 71.96 | O47: 0.64 | P47: 0.01998888889 | Q47: 0.8960278919 | R47: 1.032258065 | V47: =($K47/$D47-1) -> 1.546407695e-05
C48: 1.5 | D48: 6.0468 | E48: 102.5039737 | F48: 102.5096953 | G48: 78.22 | H48: 1.31 | I48: 0.02172777778 | K48: 6.0702 | L48: 102.6721409 | M48: 102.6842463 | N48: 70.09 | O48: 1.33 | P48: 0.01946944444 | Q48: 0.8960623881 | R48: 1.015267176 | T48: =bdrate($D48:$D68,E48:E68,$K48:$K68,L48:L68) -> -0.0001600635526 | U48: =bdrate($D48:$D68,F48:F68,$K48:$K68,M48:M68) -> -0.0002787982239
C49: 2 | D49: 5.5721 | E49: 100.0515145 | F49: 100.0569479 | G49: 76.64 | H49: 1.02 | I49: 0.02128888889 | K49: 5.5856 | L49: 100.1277292 | M49: 100.1318966 | N49: 68.52 | O49: 1 | P49: 0.01903333333 | Q49: 0.8940501044 | R49: 0.9803921569
C50: 3 | D50: 5.0173 | E50: 98.09502946 | F50: 98.09590511 | G50: 74.38 | H50: 1.13 | I50: 0.02066111111 | K50: 5.0167 | L50: 98.09636961 | M50: 98.09704718 | N50: 66.95 | O50: 0.9 | P50: 0.01859722222 | Q50: 0.9001075558 | R50: 0.796460177
C51: 4 | D51: 4.6063 | E51: 94.97445241 | F51: 95.00725722 | G51: 73.07 | H51: 1.04 | I51: 0.02029722222 | K51: 4.609 | L51: 94.97413639 | M51: 95.00754862 | N51: 65.81 | O51: 0.85 | P51: 0.01828055556 | Q51: 0.9006432188 | R51: 0.8173076923
C52: 5.5 | D52: 4.179 | E52: 92.46919494 | F52: 92.5191142 | G52: 72.16 | H52: 1 | I52: 0.02004444444 | K52: 4.1811 | L52: 92.47090998 | M52: 92.5220019 | N52: 65.11 | O52: 0.81 | P52: 0.01808611111 | Q52: 0.9023004435 | R52: 0.81
C53: 7 | D53: 3.8844 | E53: 90.65844321 | F53: 90.71446495 | G53: 71.35 | H53: 0.96 | I53: 0.01981944444 | K53: 3.8882 | L53: 90.67822509 | M53: 90.7348168 | N53: 64.74 | O53: 0.77 | P53: 0.01798333333 | Q53: 0.9073580939 | R53: 0.8020833333
C54: 9 | D54: 3.5604 | E54: 88.507342 | F54: 88.59478091 | G54: 70.41 | H54: 0.9 | I54: 0.01955833333 | K54: 3.5631 | L54: 88.51639021 | M54: 88.60518596 | N54: 64.09 | O54: 0.72 | P54: 0.01780277778 | Q54: 0.9102400227 | R54: 0.8
C55: 11 | D55: 3.2916 | E55: 86.70803513 | F55: 86.82537818 | G55: 69.71 | H55: 0.86 | I55: 0.01936388889 | K55: 3.2947 | L55: 86.71742353 | M55: 86.83780798 | N55: 63.29 | O55: 0.7 | P55: 0.01758055556 | Q55: 0.9079041744 | R55: 0.8139534884
C56: 13.5 | D56: 3.0141 | E56: 84.85678622 | F56: 85.0198424 | G56: 69.19 | H56: 0.81 | I56: 0.01921944444 | K56: 3.0105 | L56: 84.83317379 | M56: 85.00328473 | N56: 62.74 | O56: 0.68 | P56: 0.01742777778 | Q56: 0.9067784362 | R56: 0.8395061728
C57: 16 | D57: 2.7824 | E57: 83.36632727 | F57: 83.55893266 | G57: 68.33 | H57: 0.78 | I57: 0.01898055556 | K57: 2.7812 | L57: 83.36261403 | M57: 83.55928241 | N57: 61.9 | O57: 0.65 | P57: 0.01719444444 | Q57: 0.9058978487 | R57: 0.8333333333
C58: 19 | D58: 2.5734 | E58: 81.97208884 | F58: 82.17749251 | G58: 67.67 | H58: 0.74 | I58: 0.01879722222 | K58: 2.5735 | L58: 81.97953489 | M58: 82.18658667 | N58: 61.24 | O58: 0.63 | P58: 0.01701111111 | Q58: 0.9049800502 | R58: 0.8513513514
C59: 22 | D59: 2.3959 | E59: 80.79972155 | F59: 81.01378532 | G59: 66.85 | H59: 0.71 | I59: 0.01856944444 | K59: 2.3955 | L59: 80.7988339 | M59: 81.01629887 | N59: 62.76 | O59: 0.62 | P59: 0.01743333333 | Q59: 0.9388182498 | R59: 0.8732394366
C60: 25.5 | D60: 2.2273 | E60: 79.62210407 | F60: 79.84709253 | G60: 66.11 | H60: 0.68 | I60: 0.01836388889 | K60: 2.2263 | L60: 79.62258786 | M60: 79.84962726 | N60: 60.01 | O60: 0.59 | P60: 0.01666944444 | Q60: 0.9077295417 | R60: 0.8676470588
C61: 29 | D61: 2.0946 | E61: 78.67139032 | F61: 78.89945945 | G61: 65.55 | H61: 0.65 | I61: 0.01820833333 | K61: 2.0917 | L61: 78.66721838 | M61: 78.8993061 | N61: 59.52 | O61: 0.58 | P61: 0.01653333333 | Q61: 0.9080091533 | R61: 0.8923076923
C62: 33 | D62: 1.9534 | E62: 77.66519097 | F62: 77.89854539 | G62: 64.62 | H62: 0.64 | I62: 0.01795 | K62: 1.9516 | L62: 77.66573694 | M62: 77.90124691 | N62: 58.94 | O62: 0.58 | P62: 0.01637222222 | Q62: 0.9121015166 | R62: 0.90625
C63: 37 | D63: 1.8288 | E63: 76.76391743 | F63: 77.00496395 | G63: 64.03 | H63: 0.61 | I63: 0.01778611111 | K63: 1.8288 | L63: 76.75906405 | M63: 77.00455422 | N63: 58.4 | O63: 0.56 | P63: 0.01622222222 | Q63: 0.912072466 | R63: 0.9180327869
C64: 41.5 | D64: 1.7185 | E64: 75.92992584 | F64: 76.17706686 | G64: 63.46 | H64: 0.59 | I64: 0.01762777778 | K64: 1.7154 | L64: 75.92100892 | M64: 76.17066455 | N64: 57.9 | O64: 0.55 | P64: 0.01608333333 | Q64: 0.9123857548 | R64: 0.9322033898
C65: 46 | D65: 1.6153 | E65: 75.15463023 | F65: 75.40847777 | G65: 62.95 | H65: 0.58 | I65: 0.01748611111 | K65: 1.6138 | L65: 75.14937433 | M65: 75.40766854 | N65: 57.42 | O65: 0.54 | P65: 0.01595 | Q65: 0.912152502 | R65: 0.9310344828
C66: 51 | D66: 1.5166 | E66: 74.36458241 | F66: 74.63005153 | G66: 62.43 | H66: 0.56 | I66: 0.01734166667 | K66: 1.5159 | L66: 74.36784398 | M66: 74.63568581 | N66: 56.98 | O66: 0.53 | P66: 0.01582777778 | Q66: 0.9127022265 | R66: 0.9464285714
C67: 56 | D67: 1.4355 | E67: 73.6991516 | F67: 73.97193046 | G67: 61.96 | H67: 0.55 | I67: =G67/3600 -> 0.01721111111 | K67: 1.4341 | L67: 73.69695089 | M67: 73.97222268 | N67: 56.63 | O67: 0.52 | P67: =N67/3600 -> 0.01573055556 | Q67: =N67/G67 -> 0.9139767592 | R67: =O67/H67 -> 0.9454545455
C68: 60.5 | D68: 1.3622 | E68: 73.0673308 | F68: 73.34766412 | G68: 61.72 | H68: 0.53 | I68: 0.01714444444 | K68: 1.3592 | L68: 73.06920839 | M68: 73.35301195 | N68: 56.26 | O68: 0.51 | P68: 0.01562777778 | Q68: 0.9115359689 | R68: 0.9622641509
B69: raw_strm12.dat | C69: 1 | D69: 6.6234 | E69: 0 | F69: 0 | G69: 80.67 | H69: 0.68 | I69: 0.02240833333 | K69: 6.6236 | L69: 0 | M69: 0 | N69: 72.78 | O69: 0.66 | P69: 0.02021666667 | Q69: 0.9021941242 | R69: 0.9705882353 | V69: =($K69/$D69-1) -> 3.019597186e-05
C70: 1.5 | D70: 6.1808 | E70: 102.5230157 | F70: 102.5319387 | G70: 78.77 | H70: 1.3 | I70: 0.02188055556 | K70: 6.1994 | L70: 102.6611414 | M70: 102.6781457 | N70: 70.73 | O70: 1.29 | P70: 0.01964722222 | Q70: 0.8979306843 | R70: 0.9923076923 | T70: =bdrate($D70:$D90,E70:E90,$K70:$K90,L70:L90) -> 5.108110826e-05 | U70: =bdrate($D70:$D90,F70:F90,$K70:$K90,M70:M90) -> -4.109777844e-05
C71: 2 | D71: 5.6971 | E71: 100.0050335 | F71: 100.0089837 | G71: 76.83 | H71: 0.96 | I71: 0.02134166667 | K71: 5.7105 | L71: 100.0765767 | M71: 100.0793106 | N71: 69.03 | O71: 0.95 | P71: 0.019175 | Q71: 0.8984771574 | R71: 0.9895833333
C72: 3 | D72: 5.1385 | E72: 98.07835426 | F72: 98.08051163 | G72: 74.33 | H72: 1.16 | I72: 0.02064722222 | K72: 5.1417 | L72: 98.07275599 | M72: 98.07471925 | N72: 66.96 | O72: 0.96 | P72: 0.0186 | Q72: 0.9008475716 | R72: 0.8275862069
C73: 4 | D73: 4.7322 | E73: 94.93395505 | F73: 94.9586183 | G73: 73.48 | H73: 1.04 | I73: 0.02041111111 | K73: 4.7343 | L73: 94.92185887 | M73: 94.94746791 | N73: 66.13 | O73: 0.87 | P73: 0.01836944444 | Q73: 0.8999727817 | R73: 0.8365384615
C74: 5.5 | D74: 4.3028 | E74: 92.40429572 | F74: 92.44225665 | G74: 72.24 | H74: 1 | I74: 0.02006666667 | K74: 4.3036 | L74: 92.40485747 | M74: 92.4429294 | N74: 65.47 | O74: 0.83 | P74: 0.01818611111 | Q74: 0.9062846069 | R74: 0.83
C75: 7 | D75: 4.0028 | E75: 90.57717661 | F75: 90.61950448 | G75: 71.37 | H75: 0.95 | I75: 0.019825 | K75: 4.0056 | L75: 90.58597697 | M75: 90.62869532 | N75: 64.76 | O75: 0.79 | P75: 0.01798888889 | Q75: 0.9073840549 | R75: 0.8315789474
C76: 9 | D76: 3.6754 | E76: 88.44046349 | F76: 88.50803138 | G76: 70.65 | H76: 0.91 | I76: 0.019625 | K76: 3.6783 | L76: 88.43689363 | M76: 88.50673662 | N76: 64.41 | O76: 0.75 | P76: 0.01789166667 | Q76: 0.9116772824 | R76: 0.8241758242
C77: 11 | D77: 3.3905 | E77: 86.57746738 | F77: 86.67204047 | G77: 69.98 | H77: 0.87 | I77: 0.01943888889 | K77: 3.3896 | L77: 86.55127957 | M77: 86.65141127 | N77: 63.36 | O77: 0.71 | P77: 0.0176 | Q77: 0.9054015433 | R77: 0.816091954
C78: 13.5 | D78: 3.1173 | E78: 84.82110669 | F78: 84.94321361 | G78: 69.2 | H78: 0.82 | I78: 0.01922222222 | K78: 3.1181 | L78: 84.8145139 | M78: 84.93974536 | N78: 62.8 | O78: 0.67 | P78: 0.01744444444 | Q78: 0.9075144509 | R78: 0.8170731707
C79: 16 | D79: 2.9026 | E79: 83.43342737 | F79: 83.56743359 | G79: 68.78 | H79: 0.78 | I79: 0.01910555556 | K79: 2.8995 | L79: 83.41566469 | M79: 83.55540984 | N79: 62.56 | O79: 0.66 | P79: 0.01737777778 | Q79: 0.9095667345 | R79: 0.8461538462
C80: 19 | D80: 2.6893 | E80: 82.03493396 | F80: 82.18093653 | G80: 68.05 | H80: 0.75 | I80: 0.01890277778 | K80: 2.687 | L80: 82.02725184 | M80: 82.17797148 | N80: 61.88 | O80: 0.64 | P80: 0.01718888889 | Q80: 0.909331374 | R80: 0.8533333333
C81: 22 | D81: 2.5152 | E81: 80.86500788 | F81: 81.01694465 | G81: 67.43 | H81: 0.73 | I81: 0.01873055556 | K81: 2.5173 | L81: 80.87732804 | M81: 81.02948867 | N81: 61.08 | O81: 0.61 | P81: 0.01696666667 | Q81: 0.9058282664 | R81: 0.8356164384
C82: 25.5 | D82: 2.3461 | E82: 79.70133373 | F82: 79.85845298 | G82: 66.55 | H82: 0.71 | I82: 0.01848611111 | K82: 2.3462 | L82: 79.7037456 | M82: 79.86173985 | N82: 62.16 | O82: 0.61 | P82: 0.01726666667 | Q82: 0.9340345605 | R82: 0.8591549296
C83: 29 | D83: 2.213 | E83: 78.75683439 | F83: 78.92057372 | G83: 65.87 | H83: 0.67 | I83: 0.01829722222 | K83: 2.2169 | L83: 78.77657417 | M83: 78.9402715 | N83: 59.91 | O83: 0.58 | P83: 0.01664166667 | Q83: 0.9095187491 | R83: 0.8656716418
C84: 33 | D84: 2.0771 | E84: 77.76666614 | F84: 77.93262845 | G84: 65.11 | H84: 0.66 | I84: 0.01808611111 | K84: 2.0738 | L84: 77.76286986 | M84: 77.93162171 | N84: 59.22 | O84: 0.57 | P84: 0.01645 | Q84: 0.9095377054 | R84: 0.8636363636
C85: 37 | D85: 1.9548 | E85: 76.86250034 | F85: 77.03273887 | G85: 64.43 | H85: 0.63 | I85: 0.01789722222 | K85: 1.9531 | L85: 76.86471774 | M85: 77.03642137 | N85: 59.01 | O85: 0.55 | P85: 0.01639166667 | Q85: 0.9158776967 | R85: 0.873015873
C86: 41.5 | D86: 1.8407 | E86: 75.9938793 | F86: 76.17037125 | G86: 64.02 | H86: 0.62 | I86: 0.01778333333 | K86: 1.8391 | L86: 75.99358365 | M86: 76.17276149 | N86: 58.33 | O86: 0.54 | P86: 0.01620277778 | Q86: 0.9111215245 | R86: 0.8709677419
C87: 46 | D87: 1.7427 | E87: 75.21393028 | F87: 75.39514469 | G87: 63.59 | H87: 0.6 | I87: 0.01766388889 | K87: 1.739 | L87: 75.20618301 | M87: 75.38990309 | N87: 57.97 | O87: 0.53 | P87: 0.01610277778 | Q87: 0.9116213241 | R87: 0.8833333333
C88: 51 | D88: 1.6442 | E88: 74.41246172 | F88: 74.60173663 | G88: 63.09 | H88: 0.59 | I88: 0.017525 | K88: 1.6433 | L88: 74.41400495 | M88: 74.60547595 | N88: 57.74 | O88: 0.51 | P88: 0.01603888889 | Q88: 0.9152005072 | R88: 0.8644067797
C89: 56 | D89: 1.5612 | E89: 73.72744865 | F89: 73.92170604 | G89: 62.69 | H89: 0.57 | I89: 0.01741388889 | K89: 1.5601 | L89: 73.73004548 | M89: 73.92700864 | N89: 57.09 | O89: 0.5 | P89: 0.01585833333 | Q89: 0.9106715585 | R89: 0.8771929825
C90: 60.5 | D90: 1.4854 | E90: 73.07218025 | F90: 73.27434396 | G90: 62.58 | H90: 0.55 | I90: 0.01738333333 | K90: 1.4839 | L90: 73.08085226 | M90: 73.28541474 | N90: 56.56 | O90: 0.49 | P90: 0.01571111111 | Q90: 0.903803132 | R90: 0.8909090909
B91: raw_strm13.dat | C91: 1 | D91: 6.2126 | E91: 0 | F91: 0 | G91: 79.39 | H91: 0.64 | I91: 0.02205277778 | K91: 6.2126 | L91: 0 | M91: 0 | N91: 71.21 | O91: 0.62 | P91: 0.01978055556 | Q91: 0.8969643532 | R91: 0.96875 | V91: =($K91/$D91-1) -> 0
C92: 1.5 | D92: 5.7826 | E92: 102.7090946 | F92: 102.7230261 | G92: 77.25 | H92: 1.41 | I92: 0.02145833333 | K92: 5.8027 | L92: 102.8786823 | M92: 102.9017904 | N92: 69.32 | O92: 1.38 | P92: 0.01925555556 | Q92: 0.8973462783 | R92: 0.9787234043 | T92: =bdrate($D92:$D112,E92:E112,$K92:$K112,L92:L112) -> -0.0003405757647 | U92: =bdrate($D92:$D112,F92:F112,$K92:$K112,M92:M112) -> -0.0004350592776
C93: 2 | D93: 5.283 | E93: 100.0694787 | F93: 100.0702619 | G93: 76.09 | H93: 0.99 | I93: 0.02113611111 | K93: 5.3 | L93: 100.1661471 | M93: 100.166599 | N93: 67.92 | O93: 0.97 | P93: 0.01886666667 | Q93: 0.8926271521 | R93: 0.9797979798
C94: 3 | D94: 4.7166 | E94: 98.13495473 | F94: 98.13523631 | G94: 73.47 | H94: 1.07 | I94: 0.02040833333 | K94: 4.7191 | L94: 98.13086756 | M94: 98.13111877 | N94: 66.41 | O94: 0.86 | P94: 0.01844722222 | Q94: 0.9039063563 | R94: 0.8037383178
C95: 4 | D95: 4.2928 | E95: 94.9249571 | F95: 94.94011036 | G95: 72.64 | H95: 1.01 | I95: 0.02017777778 | K95: 4.296 | L95: 94.925668 | M95: 94.9410888 | N95: 65.89 | O95: 0.82 | P95: 0.01830277778 | Q95: 0.9070759912 | R95: 0.8118811881
C96: 5.5 | D96: 3.8562 | E96: 92.36644735 | F96: 92.39188418 | G96: 71.35 | H96: 0.95 | I96: 0.01981944444 | K96: 3.8593 | L96: 92.36267951 | M96: 92.38856773 | N96: 64.66 | O96: 0.76 | P96: 0.01796111111 | Q96: 0.9062368605 | R96: 0.8
C97: 7 | D97: 3.559 | E97: 90.54871155 | F97: 90.57822686 | G97: 70.48 | H97: 0.9 | I97: 0.01957777778 | K97: 3.5615 | L97: 90.54745857 | M97: 90.57790353 | N97: 64.14 | O97: 0.72 | P97: 0.01781666667 | Q97: 0.910045403 | R97: 0.8
C98: 9 | D98: 3.2289 | E98: 88.39276096 | F98: 88.44680407 | G98: 69.77 | H98: 0.84 | I98: 0.01938055556 | K98: 3.2309 | L98: 88.38108966 | M98: 88.43680533 | N98: 63.43 | O98: 0.68 | P98: 0.01761944444 | Q98: 0.9091299986 | R98: 0.8095238095
C99: 11 | D99: 2.9356 | E99: 86.49754077 | F99: 86.58168735 | G99: 68.83 | H99: 0.79 | I99: 0.01911944444 | K99: 2.9368 | L99: 86.48903671 | M99: 86.57487991 | N99: 62.72 | O99: 0.66 | P99: 0.01742222222 | Q99: 0.9112305681 | R99: 0.835443038
C100: 13.5 | D100: 2.6463 | E100: 84.66681818 | F100: 84.78465247 | G100: 68.03 | H100: 0.75 | I100: 0.01889722222 | K100: 2.6436 | L100: 84.65476157 | M100: 84.77495019 | N100: 62.01 | O100: 0.64 | P100: 0.017225 | Q100: 0.9115096281 | R100: 0.8533333333
C101: 16 | D101: 2.4227 | E101: 83.27415501 | F101: 83.40048226 | G101: 67.55 | H101: 0.71 | I101: 0.01876388889 | K101: 2.4106 | L101: 83.22605149 | M101: 83.35937609 | N101: 61.43 | O101: 0.62 | P101: 0.01706388889 | Q101: 0.9094004441 | R101: 0.8732394366
C102: 19 | D102: 2.2051 | E102: 81.90960425 | F102: 82.04026362 | G102: 66.84 | H102: 0.68 | I102: 0.01856666667 | K102: 2.1999 | L102: 81.90384877 | M102: 82.0362138 | N102: 60.8 | O102: 0.59 | P102: 0.01688888889 | Q102: 0.9096349491 | R102: 0.8676470588
C103: 22 | D103: 2.037 | E103: 80.80634179 | F103: 80.93017362 | G103: 66.09 | H103: 0.65 | I103: 0.01835833333 | K103: 2.0308 | L103: 80.79801992 | M103: 80.92394268 | N103: 60.31 | O103: 0.57 | P103: 0.01675277778 | Q103: 0.9125435013 | R103: 0.8769230769
C104: 25.5 | D104: 1.8712 | E104: 79.68789367 | F104: 79.81066302 | G104: 65.01 | H104: 0.61 | I104: 0.01805833333 | K104: 1.8728 | L104: 79.70308885 | M104: 79.82650012 | N104: 59.24 | O104: 0.55 | P104: 0.01645555556 | Q104: 0.9112444239 | R104: 0.9016393443
C105: 29 | D105: 1.7454 | E105: 78.78819575 | F105: 78.91200982 | G105: 64.37 | H105: 0.57 | I105: 0.01788055556 | K105: 1.7438 | L105: 78.79434243 | M105: 78.91857026 | N105: 58.54 | O105: 0.52 | P105: 0.01626111111 | Q105: 0.9094298586 | R105: 0.9122807018
C106: 33 | D106: 1.6146 | E106: 77.838448 | F106: 77.9598552 | G106: 63.55 | H106: 0.54 | I106: 0.01765277778 | K106: 1.6111 | L106: 77.83775723 | M106: 77.96027181 | N106: 58.13 | O106: 0.51 | P106: 0.01614722222 | Q106: 0.9147128245 | R106: 0.9444444444
C107: 37 | D107: 1.4991 | E107: 76.98325351 | F107: 77.10919116 | G107: 62.98 | H107: 0.52 | I107: 0.01749444444 | K107: 1.4987 | L107: 76.98968398 | M107: 77.11750336 | N107: 57.29 | O107: 0.5 | P107: 0.01591388889 | Q107: 0.9096538584 | R107: 0.9615384615
C108: 41.5 | D108: 1.3948 | E108: 76.1754103 | F108: 76.30551524 | G108: 62.31 | H108: 0.51 | I108: 0.01730833333 | K108: 1.3941 | L108: 76.17870016 | M108: 76.31146339 | N108: 56.78 | O108: 0.48 | P108: 0.01577222222 | Q108: 0.9112502006 | R108: 0.9411764706
C109: 46 | D109: 1.305 | E109: 75.4449123 | F109: 75.57487692 | G109: 61.72 | H109: 0.51 | I109: 0.01714444444 | K109: 1.304 | L109: 75.44921825 | M109: 75.58123991 | N109: 56.37 | O109: 0.47 | P109: 0.01565833333 | Q109: 0.9133182113 | R109: 0.9215686275
C110: 51 | D110: 1.2173 | E110: 74.70456363 | F110: 74.83832487 | G110: 60.97 | H110: 0.49 | I110: 0.01693611111 | K110: 1.216 | L110: 74.70982226 | M110: 74.8450069 | N110: 55.92 | O110: 0.46 | P110: 0.01553333333 | Q110: 0.9171723799 | R110: 0.9387755102
C111: 56 | D111: 1.1453 | E111: 74.07036265 | F111: 74.20698041 | G111: 60.7 | H111: 0.48 | I111: 0.01686111111 | K111: 1.1424 | L111: 74.06914009 | M111: 74.20856007 | N111: 55.7 | O111: 0.46 | P111: 0.01547222222 | Q111: 0.9176276771 | R111: 0.9583333333
C112: 60.5 | D112: 1.077 | E112: 73.46226526 | F112: 73.60006508 | G112: 60.26 | H112: 0.48 | I112: 0.01673888889 | K112: 1.0761 | L112: 73.47152056 | M112: 73.60964654 | N112: 55.22 | O112: 0.45 | P112: 0.01533888889 | Q112: 0.9163624295 | R112: 0.9375
B113: raw_strm14.dat | C113: 1 | D113: 6.5729 | E113: 0 | F113: 0 | G113: 79.62 | H113: 0.65 | I113: 0.02211666667 | K113: 6.5766 | L113: 0 | M113: 0 | N113: 71.71 | O113: 0.63 | P113: 0.01991944444 | Q113: 0.9006531022 | R113: 0.9692307692 | V113: =($K113/$D113-1) -> 0.0005629174337
C114: 1.5 | D114: 6.0947 | E114: 102.3503171 | F114: 102.3519784 | G114: 77.6 | H114: 1.05 | I114: 0.02155555556 | K114: 6.1216 | L114: 102.4852493 | M114: 102.490072 | N114: 69.92 | O114: 1.1 | P114: 0.01942222222 | Q114: 0.9010309278 | R114: 1.047619048 | T114: =bdrate($D114:$D134,E114:E134,$K114:$K134,L114:L134) -> 0.0003400347486 | U114: =bdrate($D114:$D134,F114:F134,$K114:$K134,M114:M134) -> 0.0001904592205
C115: 2 | D115: 5.6538 | E115: 100.0507471 | F115: 100.0545529 | G115: 75.95 | H115: 0.84 | I115: 0.02109722222 | K115: 5.6614 | L115: 100.0784325 | M115: 100.0814947 | N115: 68.26 | O115: 0.84 | P115: 0.01896111111 | Q115: 0.8987491771 | R115: 1
C116: 3 | D116: 5.1402 | E116: 98.13417066 | F116: 98.13881688 | G116: 73.63 | H116: 1.18 | I116: 0.02045277778 | K116: 5.1409 | L116: 98.13789818 | M116: 98.14236225 | N116: 66.53 | O116: 0.93 | P116: 0.01848055556 | Q116: 0.9035719136 | R116: 0.7881355932
C117: 4 | D117: 4.7185 | E117: 94.9561735 | F117: 94.98019166 | G117: 72.81 | H117: 0.93 | I117: 0.020225 | K117: 4.7212 | L117: 94.94508584 | M117: 94.97062056 | N117: 65.75 | O117: 0.81 | P117: 0.01826388889 | Q117: 0.9030352973 | R117: 0.8709677419
C118: 5.5 | D118: 4.3006 | E118: 92.47609059 | F118: 92.51149367 | G118: 71.79 | H118: 0.95 | I118: 0.01994166667 | K118: 4.3024 | L118: 92.46563519 | M118: 92.50243742 | N118: 64.83 | O118: 0.78 | P118: 0.01800833333 | Q118: 0.9030505641 | R118: 0.8210526316
C119: 7 | D119: 4.0044 | E119: 90.65509698 | F119: 90.69570655 | G119: 71.34 | H119: 0.92 | I119: 0.01981666667 | K119: 4.0089 | L119: 90.66913716 | M119: 90.71228708 | N119: 63.75 | O119: 0.75 | P119: 0.01770833333 | Q119: 0.893608074 | R119: 0.8152173913
C120: 9 | D120: 3.6859 | E120: 88.5367059 | F120: 88.60356377 | G120: 69.92 | H120: 0.87 | I120: 0.01942222222 | K120: 3.6886 | L120: 88.53835881 | M120: 88.60757617 | N120: 63.09 | O120: 0.71 | P120: 0.017525 | Q120: 0.9023169336 | R120: 0.816091954
C121: 11 | D121: 3.4181 | E121: 86.73687647 | F121: 86.82353718 | G121: 69.2 | H121: 0.82 | I121: 0.01922222222 | K121: 3.4217 | L121: 86.74816295 | M121: 86.83856701 | N121: 62.94 | O121: 0.67 | P121: 0.01748333333 | Q121: 0.9095375723 | R121: 0.8170731707
C122: 13.5 | D122: 3.151 | E122: 84.95081391 | F122: 85.06928126 | G122: 68.52 | H122: 0.77 | I122: 0.01903333333 | K122: 3.1513 | L122: 84.94526875 | M122: 85.0698006 | N122: 62.41 | O122: 0.63 | P122: 0.01733611111 | Q122: 0.910828955 | R122: 0.8181818182
C123: 16 | D123: 2.9349 | E123: 83.50738671 | F123: 83.64221578 | G123: 68.02 | H123: 0.74 | I123: 0.01889444444 | K123: 2.9351 | L123: 83.50461924 | M123: 83.6451357 | N123: 61.89 | O123: 0.62 | P123: 0.01719166667 | Q123: 0.9098794472 | R123: 0.8378378378
C124: 19 | D124: 2.7243 | E124: 82.06943216 | F124: 82.22034231 | G124: 67.37 | H124: 0.69 | I124: 0.01871388889 | K124: 2.7266 | L124: 82.07184389 | M124: 82.22633638 | N124: 61.38 | O124: 0.59 | P124: 0.01705 | Q124: 0.9110880214 | R124: 0.8550724638
C125: 22 | D125: 2.5436 | E125: 80.83972553 | F125: 81.00399813 | G125: 67.35 | H125: 0.66 | I125: 0.01870833333 | K125: 2.5441 | L125: 80.8337539 | M125: 81.00227738 | N125: 61.3 | O125: 0.57 | P125: 0.01702777778 | Q125: 0.9101707498 | R125: 0.8636363636
C126: 25.5 | D126: 2.369 | E126: 79.62417349 | F126: 79.80139774 | G126: 66.7 | H126: 0.63 | I126: 0.01852777778 | K126: 2.3696 | L126: 79.62121357 | M126: 79.80111391 | N126: 60.94 | O126: 0.55 | P126: 0.01692777778 | Q126: 0.9136431784 | R126: 0.873015873
C127: 29 | D127: 2.2362 | E127: 78.68194596 | F127: 78.86093729 | G127: 66.16 | H127: 0.6 | I127: 0.01837777778 | K127: 2.2315 | L127: 78.65930159 | M127: 78.8463469 | N127: 60.37 | O127: 0.53 | P127: 0.01676944444 | Q127: 0.9124848851 | R127: 0.8833333333
C128: 33 | D128: 2.0915 | E128: 77.66091102 | F128: 77.84938696 | G128: 65.67 | H128: 0.58 | I128: 0.01824166667 | K128: 2.0901 | L128: 77.65253006 | M128: 77.84681447 | N128: 59.78 | O128: 0.52 | P128: 0.01660555556 | Q128: 0.9103091214 | R128: 0.8965517241
C129: 37 | D129: 1.9594 | E129: 76.70286313 | F129: 76.90480306 | G129: 65.1 | H129: 0.55 | I129: 0.01808333333 | K129: 1.9576 | L129: 76.69267753 | M129: 76.89924889 | N129: 58.96 | O129: 0.51 | P129: 0.01637777778 | Q129: 0.9056835637 | R129: 0.9272727273
C130: 41.5 | D130: 1.8413 | E130: 75.84156786 | F130: 76.04899495 | G130: 64.14 | H130: 0.52 | I130: 0.01781666667 | K130: 1.8389 | L130: 75.82966338 | M130: 76.04044844 | N130: 58.52 | O130: 0.5 | P130: 0.01625555556 | Q130: 0.9123791706 | R130: 0.9615384615
C131: 46 | D131: 1.7364 | E131: 75.05852567 | F131: 75.27354889 | G131: 63.71 | H131: 0.51 | I131: =G131/3600 -> 0.01769722222 | K131: 1.7348 | L131: 75.04649617 | M131: 75.2656446 | N131: 57.78 | O131: 0.48 | P131: =N131/3600 -> 0.01605 | Q131: =N131/G131 -> 0.9069219903 | R131: =O131/H131 -> 0.9411764706
C132: 51 | D132: 1.6326 | E132: 74.26175441 | F132: 74.48588404 | G132: 63.02 | H132: 0.5 | I132: 0.01750555556 | K132: 1.631 | L132: 74.25666673 | M132: 74.48388697 | N132: 57.32 | O132: 0.47 | P132: 0.01592222222 | Q132: 0.909552523 | R132: 0.94
